Workbook

Sheet OCENA
C2: ОЦЕНА и БРОЈ БОДОВА СЕ ПОЈАВЉУЈЕ ТЕК КАДА УНЕСЕТЕ ПОДAТКЕ НА СЛЕДЕЋИ НАЧИН: | T2: веће и једнако од | U2: мање | V2: оцена | W2: текст | Y2: РОК
C3: 1. У сива поља уписати остварени број бодова; | T3: 55 | U3: 65 | V3: 6 | W3: шест | Y3: Јануар
C4: 2. у поље рок уписати рок у коме је остварен коначан резултат и у коме је пријављен испит. | T4: 65 | U4: 75 | V4: 7 | W4: седам | Y4: Фебруар
T5: 75 | U5: 85 | V5: 8 | W5: осам | Y5: Април
T6: 85 | U6: 95 | V6: 9 | W6: девет | Y6: Јун
C7: WORD | D7: EXCEL | E7: STATS | F7: TEST_1 | G7: TEST_2 | T7: 95 | U7: 100 | V7: 10 | W7: десет | Y7: Јул
Y8: Септембар
Y9: Октобар
C10: Akt_nast_bod | D10: Akt_vežbe_bod | E10: WORD bod | F10: EXCEL bod | G10: STATS bod | H10: TEST_1 bod | I10: TEST_2 bod | J10: ISPIT | K10: Ukupno | L10: OCENA | M10: ROK
C11: =IF(J11<>"",5,"") ->  | D11: =IF(J11<>"",5,"") ->  | E11: =IF(C8<>"",IF(C8>=24,(C8/32)*14,""),"") ->  | F11: =IF(D8<>"",IF(D8>=24,(D8/32)*14,""),"") ->  | G11: =IF(E8<>"",IF(E8>=11,(E8/21)*14,""),"") ->  | H11: =IF(F8<>"",IF(F8>=9,(F8/15)*14,""),"") ->  | I11: =IF(G8<>"",IF(G8>=9,(G8/15)*14,""),"") ->  | J11: =IF(M11<>"",IF(AND(E11<>"",F11<>"",G11<>"",H11<>"",I11<>""),IF(OR(M11="Јануар",M11="Фебруар"),20,IF(OR(M11="Април",M11="Јун",M11="Јул"),15,10)),""),"") ->  | K11: =IF(AND(C11<>"",D11<>"",J11<>"",E11<>"",F11<>"",H11<>"",G11<>"",I11<>""),ROUND(SUM(C11,D11,J11,E11,F11,H11,G11,I11),0),"") ->  | L11: =IF(K11<>"",VLOOKUP(K11,T3:W7,3),"") -> 

Sheet INDEKS
T1: =OSS_2017_18!C2 -> Prezime i ime
D2: СМЕР: | F2: ПРЕЗИМЕ И ИМЕ | T2: =OSS_2017_18!C3 -> Арсенијевић Милош
D3: спорт | F3: Коџић Сара | T3: =OSS_2017_18!C4 -> Баша Јанош
T4: =OSS_2017_18!C5 -> Белоица Урош
T5: =OSS_2017_18!C6 -> Божовић Урош
D6: ПОДАЦИ О ПРЕДИСПИТНИМ ОБАВЕЗАМА И ПОЛАГАЊУ ИСПИТА | M6: спорт | N6: СС1О02 | T6: =OSS_2017_18!C7 -> Брајковић Сара
M7: рекреација | N7: СР1О02 | T7: =OSS_2017_18!C8 -> Васић Павле
D8: (назив предмета) | T8: =OSS_2017_18!C9 -> Веселиновић Вук
D9: =IF(D3<>"",VLOOKUP(D3,$M$6:$N$7,2,FALSE),"") -> СС1О02 | G9: 5 | I9: ОБАВЕЗНИ | T9: =OSS_2017_18!C10 -> Весковић Миа
D10: (шифра предмета) | G10: (ЕСПБ бодова) | I10: (обавезни, изборни) | T10: =OSS_2017_18!C11 -> Воденичар Сања
D11: Назив предисптитне обевезе | G11: Број поена | H11: Датум овере/полагања | J11: Потпис наставника | T11: =OSS_2017_18!C12 -> Вујотић Миња
D12: Присуство | G12: =IFERROR(IF(F3<>"",VLOOKUP(F3,OSS_2017_18!$C$3:$AG$1000,22,FALSE),""),"") -> 10 | H12: =IF(ISNA(IF(F3<>"",VLOOKUP(F3,OSS_2017_18!C3:AG1000,21,FALSE),"")),"",IF(F3<>"",VLOOKUP(F3,OSS_2017_18!C3:AG1000,21,FALSE),"")) -> 2018-09-12 | T12: =OSS_2017_18!C13 -> Вуковић Огњен
D13: Практично | G13: =IFERROR(IF(F3<>"",VLOOKUP(F3,OSS_2017_18!$C$3:$AG$1000,24,FALSE),""),"") -> 30 | H13: =IF(ISNA(IF(F3<>"",VLOOKUP(F3,OSS_2017_18!C3:AG1000,23,FALSE),"")),"",IF(F3<>"",VLOOKUP(F3,OSS_2017_18!C3:AG1000,23,FALSE),"")) -> 2018-01-09 | T13: =OSS_2017_18!C14 -> Вукотић Шћепан
D14: ТЕСТ | G14: =IFERROR(IF(F3<>"",VLOOKUP(F3,OSS_2017_18!C3:AG241,26,FALSE),""),"") -> 21 | H14: =IF(ISNA(IF(F3<>"",VLOOKUP(F3,OSS_2017_18!C3:AG1000,25,FALSE),"")),"",IF(F3<>"",VLOOKUP(F3,OSS_2017_18!C3:AG1000,25,FALSE),"")) -> 2018-09-12 | T14: =OSS_2017_18!C15 -> Вуловић Вања
D15: Испит (усмени) | G15: =IFERROR(IF(F3<>"",VLOOKUP(F3,OSS_2017_18!C3:AG1000,28,FALSE),""),"") -> 10 | H15: =IF(ISNA(IF(F3<>"",VLOOKUP(F3,OSS_2017_18!C3:AG1000,31,FALSE),"")),"",IF(F3<>"",VLOOKUP(F3,OSS_2017_18!C3:AG1000,31,FALSE),"")) -> 2018-09-12 | T15: =OSS_2017_18!C16 -> Вушуровић Милош
D16: Испит | G16: =IFERROR(IF(F3<>"",VLOOKUP(F3,OSS_2017_18!C3:AG1000,29,FALSE),""),"") -> 70 | H16: =IF(ISNA(IF(F3<>"",VLOOKUP(F3,OSS_2017_18!C3:AG1000,30,FALSE),"")),"",IF(F3<>"",VLOOKUP(F3,OSS_2017_18!C3:AG1000,31,FALSE),"")) -> 2018-09-12 | T16: =OSS_2017_18!C17 -> Гребић Никола
D17: Закључна оцена | G17: =IF(G16<>"",VLOOKUP(F3,OSS_2017_18!C3:AG1000,30,FALSE),"") -> 7 | I17: =IF(G17<>""," (","")&IF(G17<>"",VLOOKUP(G17,OCENA!$V$3:$W$7,2),"")&IF(G17<>"",")","") -> (седам) | T17: =OSS_2017_18!C18 -> Димитријевић Александар
D18: Наставник | T18: =OSS_2017_18!C19 -> Димитријевић Велисав
T19: =OSS_2017_18!C20 -> Дмитровић Иван
T20: =OSS_2017_18!C21 -> Драгојевић Андреј
T21: =OSS_2017_18!C22 -> Ђорђевић Невена
T22: =OSS_2017_18!C23 -> Ђурановић Милан
T23: =OSS_2017_18!C24 -> Ера Борис
T24: =OSS_2017_18!C25 -> Ерић Марко
T25: =OSS_2017_18!C26 -> Жарковић Игор
T26: =OSS_2017_18!C27 -> Живановић Зоран
T27: =OSS_2017_18!C28 -> Зуровац Сергеј
T28: =OSS_2017_18!C29 -> Игић Димитрије
T29: =OSS_2017_18!C30 -> Илић Никола
T30: =OSS_2017_18!C31 -> Јовановић Борис
T31: =OSS_2017_18!C32 -> Јовановић Марко
T32: =OSS_2017_18!C33 -> Јовановић Саша
T33: =OSS_2017_18!C34 -> Јовановић Филип
T34: =OSS_2017_18!C35 -> Јовановћ Марко
T35: =OSS_2017_18!C36 -> Јочовић Димитрије
T36: =OSS_2017_18!C37 -> Комазец Жељана
T37: =OSS_2017_18!C38 -> Копривица Давид
T38: =OSS_2017_18!C39 -> Коџић Сара
T39: =OSS_2017_18!C40 -> Кулић Филип
T40: =OSS_2017_18!C41 -> Куруц Никола
T41: =OSS_2017_18!C42 -> Кухут Даниела
T42: =OSS_2017_18!C43 -> Лазаревић Катарина
T43: =OSS_2017_18!C44 -> Лазић Виктор Симеон
T44: =OSS_2017_18!C45 -> Лазић Јована
T45: =OSS_2017_18!C46 -> Лазић Милица
T46: =OSS_2017_18!C47 -> Лаушевић Ђорђе
T47: =OSS_2017_18!C48 -> Лончаревић Далибор
T48: =OSS_2017_18!C49 -> Мајсторовић Милош
T49: =OSS_2017_18!C50 -> Манојловић Кристина
T50: =OSS_2017_18!C51 -> Марковић Алекса
T51: =OSS_2017_18!C52 -> Милашиновић Милица
T52: =OSS_2017_18!C53 -> Милићевић Марко
T53: =OSS_2017_18!C54 -> Мимовић Урош
T54: =OSS_2017_18!C55 -> Мирјанић Данило
T55: =OSS_2017_18!C56 -> Митровић Никола
T56: =OSS_2017_18!C57 -> Нешић Лука
T57: =OSS_2017_18!C58 -> Нешовановић Ђорђе
T58: =OSS_2017_18!C59 -> Николић Вук
T59: =OSS_2017_18!C60 -> Николић Марија
T60: =OSS_2017_18!C61 -> Петровић Јован
T61: =OSS_2017_18!C62 -> Пузовић Лазар
T62: =OSS_2017_18!C63 -> Радевић Барбара
T63: =OSS_2017_18!C64 -> Ранковић Александар
T64: =OSS_2017_18!C65 -> Рилак Алекса
T65: =OSS_2017_18!C66 -> Савковић Ђорђе
T66: =OSS_2017_18!C67 -> Смиљковић Милица
T67: =OSS_2017_18!C68 -> Соломун Дина
T68: =OSS_2017_18!C69 -> Станић Нина
T69: =OSS_2017_18!C70 -> Стојановић Јанко
T70: =OSS_2017_18!C71 -> Стојановић Милош
T71: =OSS_2017_18!C72 -> Стојановић Павле
T72: =OSS_2017_18!C73 -> Стојимиров Александар
T73: =OSS_2017_18!C74 -> Терзић Милош
T74: =OSS_2017_18!C75 -> Тешић Николина
T75: =OSS_2017_18!C76 -> Тешовић Александар
T76: =OSS_2017_18!C77 -> Франета Милош
T77: =OSS_2017_18!C78 -> Цветановић Лазар
T78: =OSS_2017_18!C79 -> Цветановић Никола
T79: =OSS_2017_18!C80 -> Цветиновић Ивана
T80: =OSS_2017_18!C81 -> Целин Немања
T81: =OSS_2017_18!C82 -> Ценић Филип
T82: =OSS_2017_18!C83 -> Цупаћ Милош
T83: =OSS_2017_18!C84 -> Чапљић Никола
T84: =OSS_2017_18!C85 -> Чобанин Милица
T85: =OSS_2017_18!C86 -> Шолаја Милош
T86: =OSS_2017_18!C87 -> Алексић Петар
T87: =OSS_2017_18!C88 -> Антанасковић Теодора
T88: =OSS_2017_18!C89 -> Арсић Рајко
T89: =OSS_2017_18!C90 -> Бајић Алекса
T90: =OSS_2017_18!C91 -> Банковић Александар
T91: =OSS_2017_18!C92 -> Баша Јанош
T92: =OSS_2017_18!C93 -> Билбија Лука
T93: =OSS_2017_18!C94 -> Богдановић Бојан
T94: =OSS_2017_18!C95 -> Богдановић Марко
T95: =OSS_2017_18!C96 -> Букарица Игор
T96: =OSS_2017_18!C97 -> Веселиновић Милана
T97: =OSS_2017_18!C98 -> Гагић Душан
T98: =OSS_2017_18!C99 -> Гарибовић Милица
T99: =OSS_2017_18!C100 -> Даковић Милош
T100: =OSS_2017_18!C101 -> Дмитровић Ксенија
T101: =OSS_2017_18!C102 -> Игњатовић Марко
T102: =OSS_2017_18!C103 -> Јанковић Милош
T103: =OSS_2017_18!C104 -> Јасински Виктор
T104: =OSS_2017_18!C105 -> Јовановић Далибор
T105: =OSS_2017_18!C106 -> Јокић Немања
T106: =OSS_2017_18!C107 -> Костић Братислав
T107: =OSS_2017_18!C108 -> Крнета Никола
T108: =OSS_2017_18!C109 -> Лечић Бојан
T109: =OSS_2017_18!C110 -> Луковић Милош
T110: =OSS_2017_18!C111 -> Маљковић Никола
T111: =OSS_2017_18!C112 -> Мартић Марко
T112: =OSS_2017_18!C113 -> Милекић Милан
T113: =OSS_2017_18!C114 -> Миљанић Алекса
T114: =OSS_2017_18!C115 -> Николић Бојана
T115: =OSS_2017_18!C116 -> Пановски Андреј
T116: =OSS_2017_18!C117 -> Петровић Александра
T117: =OSS_2017_18!C118 -> Петровић Михајло
T118: =OSS_2017_18!C119 -> Пешко Иван
T119: =OSS_2017_18!C120 -> Поповић Дуња
T120: =OSS_2017_18!C121 -> Радојичић Лука
T121: =OSS_2017_18!C122 -> Радоњић Петар
T122: =OSS_2017_18!C123 -> Радуловић Лука
T123: =OSS_2017_18!C124 -> Рајић Зоран
T124: =OSS_2017_18!C125 -> Рајичић Милорад
T125: =OSS_2017_18!C126 -> Симић Немања
T126: =OSS_2017_18!C127 -> Слипичевић Немања
T127: =OSS_2017_18!C128 -> Стојановић Милан
T128: =OSS_2017_18!C129 -> Тасић Марко
T129: =OSS_2017_18!C130 -> Тошовић Марија
T130: =OSS_2017_18!C131 -> Чучаковић Анђела
T131: =OSS_2017_18!C132 -> Џудовић Шћепан
T132: =OSS_2017_18!C133 -> Шуљагић Јован
T133: =OSS_2017_18!C134 -> Перић Марко
T134: =OSS_2017_18!C135 -> 0
T135: =OSS_2017_18!C136 -> 0
T136: =OSS_2017_18!C137 -> 0
T137: =OSS_2017_18!C138 -> 0
T138: =OSS_2017_18!C139 -> 0
T139: =OSS_2017_18!C140 -> 0
T140: =OSS_2017_18!C141 -> 0
T141: =OSS_2017_18!C142 -> 0
T142: =OSS_2017_18!C143 -> 0
T143: =OSS_2017_18!C144 -> 0
T144: =OSS_2017_18!C145 -> 0
T145: =OSS_2017_18!C146 -> 0
T146: =OSS_2017_18!C147 -> 0
T147: =OSS_2017_18!C148 -> 0
T148: =OSS_2017_18!C149 -> 0
T149: =OSS_2017_18!C150 -> 0
T150: =OSS_2017_18!C151 -> 0
T151: =OSS_2017_18!C152 -> 0
T152: =OSS_2017_18!C153 -> 0
T153: =OSS_2017_18!C154 -> 0
T154: =OSS_2017_18!C155 -> 0
T155: =OSS_2017_18!C156 -> 0
T156: =OSS_2017_18!C157 -> 0
T157: =OSS_2017_18!C158 -> 0
T158: =OSS_2017_18!C159 -> 0
T159: =OSS_2017_18!C160 -> 0
T160: =OSS_2017_18!C161 -> 0
T161: =OSS_2017_18!C162 -> 0
T162: =OSS_2017_18!C163 -> 0
T163: =OSS_2017_18!C164 -> 0
T164: =OSS_2017_18!C165 -> 0
T165: =OSS_2017_18!C166 -> 0
T166: =OSS_2017_18!C167 -> 0
T167: =OSS_2017_18!C168 -> 0
T168: =OSS_2017_18!C169 -> 0
T169: =OSS_2017_18!C170 -> 0
T170: =OSS_2017_18!C171 -> 0
T171: =OSS_2017_18!C172 -> 0
T172: =OSS_2017_18!C173 -> 0
T173: =OSS_2017_18!C174 -> 0
T174: =OSS_2017_18!C175 -> 0
T175: =OSS_2017_18!C176 -> 0
T176: =OSS_2017_18!C177 -> 0
T177: =OSS_2017_18!C178 -> 0
T178: =OSS_2017_18!C179 -> 0
T179: =OSS_2017_18!C180 -> 0
T180: =OSS_2017_18!C181 -> 0
T181: =OSS_2017_18!C182 -> 0
T182: =OSS_2017_18!C183 -> 0
T183: =OSS_2017_18!C184 -> 0
T184: =OSS_2017_18!C185 -> 0
T185: =OSS_2017_18!C186 -> 0
T186: =OSS_2017_18!C187 -> 0
T187: =OSS_2017_18!C188 -> 0
T188: =OSS_2017_18!C189 -> 0
T189: =OSS_2017_18!C190 -> 0
T190: =OSS_2017_18!C191 -> 0
T191: =OSS_2017_18!C192 -> 0
T192: =OSS_2017_18!C193 -> 0
T193: =OSS_2017_18!C194 -> 0
T194: =OSS_2017_18!C195 -> 0
T195: =OSS_2017_18!C196 -> 0
T196: =OSS_2017_18!C197 -> 0
T197: =OSS_2017_18!C198 -> 0
T198: =OSS_2017_18!C199 -> 0
T199: =OSS_2017_18!C200 -> 0
T200: =OSS_2017_18!C201 -> 0
... 799 more rows

Sheet OSS_2017_18
F1: POENI | L1: BODOVI | T1: OCENA
A2: RB | B2: Broj indeksa | C2: Prezime i ime | D2: SPORT | E2: Status | F2: WORD | G2: EXCEL | H2: STATS | I2: TEST_1 | J2: TEST_2 | K2: USLOV | L2: Akt_nast_bod | M2: Akt_vežbe_bod | N2: WORD bod | O2: EXCEL bod | P2: STATS bod | Q2: TEST_1 bod | R2: TEST_2 bod | S2: ISPIT | T2: Ukupno | U2: OCENA | V2: ROK | W2: Datum ocena | X2: PRISUTVO | Y2: Datum prisustvo | Z2: PRAKTIČNO ISPIT | AA2: Datum praktično | AB2: Test ocena | AC2: Datum test | AD2: ISPIT ocena | AE2: УКУПНО | AF2: OCENA | AG2: Datum ispit | AM2: веће и једнако од | AN2: мање | AO2: оцена | AP2: текст | AR2: РОК | AS2: Присуство | AT2: Активност | AU2: Практично | AV2: Тест | AW2: Испит
A3: =PODACI_STUDENTI!A2 -> 1 | B3: =PODACI_STUDENTI!B2 -> 2017/2503 | C3: =PODACI_STUDENTI!C2 -> Арсенијевић Милош | D3: =PODACI_STUDENTI!D2 -> Рекреација | F3: =IF(OR(Predrok_novembar!F3<>"",Predrok_decembar!F3<>"",Januar!F3<>"",Februar!F3<>"",April!F3<>"",Juni!F3<>"",Juli!F3,Septembar!F3<>"",Oktobar!F3<>"",Oktobar_2!F3<>""),MAX(Predrok_novembar!F3,Predrok_decembar!F3,Januar!F3,Februar!F3,April!F3,Juni!F3,Juli!F3,Septembar!F3,Oktobar!F3,Oktobar_2!F3),"") -> 32 | G3: =IF(OR(Predrok_novembar!G3<>"",Predrok_decembar!G3<>"",Januar!G3<>"",Februar!G3<>"",April!G3<>"",Juni!G3<>"",Juli!G3,Septembar!G3<>"",Oktobar!G3<>"",Oktobar_2!G3<>""),MAX(Predrok_novembar!G3,Predrok_decembar!G3,Januar!G3,Februar!G3,April!G3,Juni!G3,Juli!G3,Septembar!G3,Oktobar!G3,Oktobar_2!G3),"") -> 32 | H3: =IF(OR(Predrok_novembar!H3<>"",Predrok_decembar!H3<>"",Januar!H3<>"",Februar!H3<>"",April!H3<>"",Juni!H3<>"",Juli!H3,Septembar!H3<>"",Oktobar!H3<>"",Oktobar_2!H3<>""),MAX(Predrok_novembar!H3,Predrok_decembar!H3,Januar!H3,Februar!H3,April!H3,Juni!H3,Juli!H3,Septembar!H3,Oktobar!H3,Oktobar_2!H3),"") -> 17 | I3: =IF(OR(Predrok_novembar!I3<>"",Predrok_decembar!I3<>"",Januar!I3<>"",Februar!I3<>"",April!I3<>"",Juni!I3<>"",Juli!I3,Septembar!I3<>"",Oktobar!I3<>"",Oktobar_2!I3<>""),MAX(Predrok_novembar!I3,Predrok_decembar!I3,Januar!I3,Februar!I3,April!I3,Juni!I3,Juli!I3,Septembar!I3,Oktobar!I3,Oktobar_2!I3),"") -> 10 | J3: =IF(OR(Predrok_novembar!J3<>"",Predrok_decembar!J3<>"",Januar!J3<>"",Februar!J3<>"",April!J3<>"",Juni!J3<>"",Juli!J3,Septembar!J3<>"",Oktobar!J3<>"",Oktobar_2!J3<>""),MAX(Predrok_novembar!J3,Predrok_decembar!J3,Januar!J3,Februar!J3,April!J3,Juni!J3,Juli!J3,Septembar!J3,Oktobar!J3,Oktobar_2!J3),"") -> 13 | K3: =IF(B3<>"",IF(AND(F3<>"",G3<>"",H3<>"",I3<>"",J3<>""),"DA","NE"),"") -> DA | L3: =IF(S3<>"",5,"") -> 5 | M3: =IF(S3<>"",5,"") -> 5 | N3: =IF(F3<>"",IF(F3>=24,(F3/32)*14,""),"") -> 14 | O3: =IF(G3<>"",IF(G3>=24,(G3/32)*14,""),"") -> 14 | P3: =IF(H3<>"",IF(H3>=11,(H3/21)*14,""),"") -> 11 | Q3: =IF(I3<>"",IF(I3>=9,(I3/15)*14,""),"") -> 9 | R3: =IF(J3<>"",IF(J3>=9,(J3/15)*14,""),"") -> 12 | S3: =IF(V3<>"",IF(AND(N3<>"",O3<>"",P3<>"",Q3<>"",R3<>""),IF(OR(V3="Јануар",V3="Фебруар"),20,IF(OR(V3="Април",V3="Јун",V3="Јул"),15,10)),""),"") -> 20 | T3: =IF(AND(L3<>"",M3<>"",S3<>"",N3<>"",O3<>"",Q3<>"",P3<>"",R3<>""),ROUND(SUM(L3,M3,S3,N3,O3,Q3,P3,R3),0),"") -> 91 | U3: =IF(T3<>"",VLOOKUP(T3,$AM$3:$AO$7,3),"") -> 10 | V3: Јануар | W3: =IF(X3<>"",VLOOKUP(V3,$AR$2:$AW$10,6,FALSE),"") -> 2018-01-18 | X3: =IF(AND(U3<>"",V3<>""),M3+L3,"") -> 10 | Y3: =IF(X3<>"",VLOOKUP(V3,$AR$2:$AW$10,2,FALSE),"") -> 2018-01-09 | Z3: =IF(X3<>"",SUM(N3,O3,P3),"") -> 39 | AA3: =IF(X3<>"",VLOOKUP(V3,$AR$2:$AW$10,4,FALSE),"") -> 2018-01-18 | AB3: =IF(X3<>"",Q3+R3,"") -> 21 | AC3: =IF(X3<>"",VLOOKUP(V3,$AR$2:$AW$10,5,FALSE),"") -> 2018-01-18 | AD3: =IF(AND(U3<>"",V3<>""),S3,"") -> 20 | AE3: =IF(X3<>"",SUM(X3,AD3,Z3,AB3),"") -> 91 | AF3: =IF(AND(U3<>"",V3<>""),U3,"") -> 10 | AG3: =IF(X3<>"",VLOOKUP(V3,$AR$2:$AW$10,6,FALSE),"") -> 2018-01-18 | AM3: 51 | AN3: 61 | AO3: 6 | AP3: шест | AR3: Јануар | AS3: 2018-01-09 | AT3: 2018-01-09 | AU3: 2018-01-18 | AV3: 2018-01-18 | AW3: 2018-01-18
A4: =PODACI_STUDENTI!A3 -> 2 | B4: =PODACI_STUDENTI!B3 -> 2017/2057 | C4: =PODACI_STUDENTI!C3 -> Баша Јанош | D4: =PODACI_STUDENTI!D3 -> Кондиција | F4: =IF(OR(Predrok_novembar!F4<>"",Predrok_decembar!F4<>"",Januar!F4<>"",Februar!F4<>"",April!F4<>"",Juni!F4<>"",Juli!F4,Septembar!F4<>"",Oktobar!F4<>"",Oktobar_2!F4<>""),MAX(Predrok_novembar!F4,Predrok_decembar!F4,Januar!F4,Februar!F4,April!F4,Juni!F4,Juli!F4,Septembar!F4,Oktobar!F4,Oktobar_2!F4),"") ->  | G4: =IF(OR(Predrok_novembar!G4<>"",Predrok_decembar!G4<>"",Januar!G4<>"",Februar!G4<>"",April!G4<>"",Juni!G4<>"",Juli!G4,Septembar!G4<>"",Oktobar!G4<>"",Oktobar_2!G4<>""),MAX(Predrok_novembar!G4,Predrok_decembar!G4,Januar!G4,Februar!G4,April!G4,Juni!G4,Juli!G4,Septembar!G4,Oktobar!G4,Oktobar_2!G4),"") ->  | H4: =IF(OR(Predrok_novembar!H4<>"",Predrok_decembar!H4<>"",Januar!H4<>"",Februar!H4<>"",April!H4<>"",Juni!H4<>"",Juli!H4,Septembar!H4<>"",Oktobar!H4<>"",Oktobar_2!H4<>""),MAX(Predrok_novembar!H4,Predrok_decembar!H4,Januar!H4,Februar!H4,April!H4,Juni!H4,Juli!H4,Septembar!H4,Oktobar!H4,Oktobar_2!H4),"") ->  | I4: =IF(OR(Predrok_novembar!I4<>"",Predrok_decembar!I4<>"",Januar!I4<>"",Februar!I4<>"",April!I4<>"",Juni!I4<>"",Juli!I4,Septembar!I4<>"",Oktobar!I4<>"",Oktobar_2!I4<>""),MAX(Predrok_novembar!I4,Predrok_decembar!I4,Januar!I4,Februar!I4,April!I4,Juni!I4,Juli!I4,Septembar!I4,Oktobar!I4,Oktobar_2!I4),"") ->  | J4: =IF(OR(Predrok_novembar!J4<>"",Predrok_decembar!J4<>"",Januar!J4<>"",Februar!J4<>"",April!J4<>"",Juni!J4<>"",Juli!J4,Septembar!J4<>"",Oktobar!J4<>"",Oktobar_2!J4<>""),MAX(Predrok_novembar!J4,Predrok_decembar!J4,Januar!J4,Februar!J4,April!J4,Juni!J4,Juli!J4,Septembar!J4,Oktobar!J4,Oktobar_2!J4),"") ->  | K4: NE | U4: =IF(T4<>"",VLOOKUP(T4,$AM$3:$AO$7,3),"") ->  | Z4: =IF(X4<>"",SUM(N4,O4,P4),"") ->  | AD4: =IF(AND(U4<>"",V4<>""),S4,"") ->  | AE4: =IF(X4<>"",SUM(X4,AD4,Z4,AB4),"") ->  | AM4: 61 | AN4: 71 | AO4: 7 | AP4: седам | AR4: Фебруар | AS4: 2018-01-09 | AT4: 2018-01-09 | AU4: 2018-02-13 | AV4: 2018-02-15 | AW4: 2018-02-15
A5: =PODACI_STUDENTI!A4 -> 3 | B5: =PODACI_STUDENTI!B4 -> 2017/2055 | C5: =PODACI_STUDENTI!C4 -> Белоица Урош | D5: =PODACI_STUDENTI!D4 -> Тенис | F5: =IF(OR(Predrok_novembar!F5<>"",Predrok_decembar!F5<>"",Januar!F5<>"",Februar!F5<>"",April!F5<>"",Juni!F5<>"",Juli!F5,Septembar!F5<>"",Oktobar!F5<>"",Oktobar_2!F5<>""),MAX(Predrok_novembar!F5,Predrok_decembar!F5,Januar!F5,Februar!F5,April!F5,Juni!F5,Juli!F5,Septembar!F5,Oktobar!F5,Oktobar_2!F5),"") -> 32 | G5: =IF(OR(Predrok_novembar!G5<>"",Predrok_decembar!G5<>"",Januar!G5<>"",Februar!G5<>"",April!G5<>"",Juni!G5<>"",Juli!G5,Septembar!G5<>"",Oktobar!G5<>"",Oktobar_2!G5<>""),MAX(Predrok_novembar!G5,Predrok_decembar!G5,Januar!G5,Februar!G5,April!G5,Juni!G5,Juli!G5,Septembar!G5,Oktobar!G5,Oktobar_2!G5),"") -> 32 | H5: =IF(OR(Predrok_novembar!H5<>"",Predrok_decembar!H5<>"",Januar!H5<>"",Februar!H5<>"",April!H5<>"",Juni!H5<>"",Juli!H5,Septembar!H5<>"",Oktobar!H5<>"",Oktobar_2!H5<>""),MAX(Predrok_novembar!H5,Predrok_decembar!H5,Januar!H5,Februar!H5,April!H5,Juni!H5,Juli!H5,Septembar!H5,Oktobar!H5,Oktobar_2!H5),"") -> 20 | I5: =IF(OR(Predrok_novembar!I5<>"",Predrok_decembar!I5<>"",Januar!I5<>"",Februar!I5<>"",April!I5<>"",Juni!I5<>"",Juli!I5,Septembar!I5<>"",Oktobar!I5<>"",Oktobar_2!I5<>""),MAX(Predrok_novembar!I5,Predrok_decembar!I5,Januar!I5,Februar!I5,April!I5,Juni!I5,Juli!I5,Septembar!I5,Oktobar!I5,Oktobar_2!I5),"") -> 11 | J5: =IF(OR(Predrok_novembar!J5<>"",Predrok_decembar!J5<>"",Januar!J5<>"",Februar!J5<>"",April!J5<>"",Juni!J5<>"",Juli!J5,Septembar!J5<>"",Oktobar!J5<>"",Oktobar_2!J5<>""),MAX(Predrok_novembar!J5,Predrok_decembar!J5,Januar!J5,Februar!J5,April!J5,Juni!J5,Juli!J5,Septembar!J5,Oktobar!J5,Oktobar_2!J5),"") -> 11 | K5: DA | L5: 5 | M5: 5 | N5: 14 | O5: 14 | P5: 13 | Q5: 10 | R5: 10 | S5: 20 | T5: 92.0 | U5: 10 | V5: Јануар | W5: 2018-01-18 | X5: 10 | Y5: 2018-01-09 | Z5: 41 | AA5: 2018-01-18 | AB5: 21 | AC5: 2018-01-18 | AD5: 20 | AE5: 92 | AF5: 10 | AG5: 2018-01-18 | AM5: 71 | AN5: 81 | AO5: 8 | AP5: осам | AR5: Април | AS5: 2018-01-09 | AT5: 2018-01-09 | AU5: 2018-04-18 | AV5: 2018-04-20 | AW5: 2018-04-20
A6: =PODACI_STUDENTI!A5 -> 4 | B6: =PODACI_STUDENTI!B5 -> 2017/2062 | C6: =PODACI_STUDENTI!C5 -> Божовић Урош | D6: =PODACI_STUDENTI!D5 -> Фудбал | F6: =IF(OR(Predrok_novembar!F6<>"",Predrok_decembar!F6<>"",Januar!F6<>"",Februar!F6<>"",April!F6<>"",Juni!F6<>"",Juli!F6,Septembar!F6<>"",Oktobar!F6<>"",Oktobar_2!F6<>""),MAX(Predrok_novembar!F6,Predrok_decembar!F6,Januar!F6,Februar!F6,April!F6,Juni!F6,Juli!F6,Septembar!F6,Oktobar!F6,Oktobar_2!F6),"") ->  | G6: =IF(OR(Predrok_novembar!G6<>"",Predrok_decembar!G6<>"",Januar!G6<>"",Februar!G6<>"",April!G6<>"",Juni!G6<>"",Juli!G6,Septembar!G6<>"",Oktobar!G6<>"",Oktobar_2!G6<>""),MAX(Predrok_novembar!G6,Predrok_decembar!G6,Januar!G6,Februar!G6,April!G6,Juni!G6,Juli!G6,Septembar!G6,Oktobar!G6,Oktobar_2!G6),"") ->  | H6: =IF(OR(Predrok_novembar!H6<>"",Predrok_decembar!H6<>"",Januar!H6<>"",Februar!H6<>"",April!H6<>"",Juni!H6<>"",Juli!H6,Septembar!H6<>"",Oktobar!H6<>"",Oktobar_2!H6<>""),MAX(Predrok_novembar!H6,Predrok_decembar!H6,Januar!H6,Februar!H6,April!H6,Juni!H6,Juli!H6,Septembar!H6,Oktobar!H6,Oktobar_2!H6),"") ->  | I6: =IF(OR(Predrok_novembar!I6<>"",Predrok_decembar!I6<>"",Januar!I6<>"",Februar!I6<>"",April!I6<>"",Juni!I6<>"",Juli!I6,Septembar!I6<>"",Oktobar!I6<>"",Oktobar_2!I6<>""),MAX(Predrok_novembar!I6,Predrok_decembar!I6,Januar!I6,Februar!I6,April!I6,Juni!I6,Juli!I6,Septembar!I6,Oktobar!I6,Oktobar_2!I6),"") ->  | J6: =IF(OR(Predrok_novembar!J6<>"",Predrok_decembar!J6<>"",Januar!J6<>"",Februar!J6<>"",April!J6<>"",Juni!J6<>"",Juli!J6,Septembar!J6<>"",Oktobar!J6<>"",Oktobar_2!J6<>""),MAX(Predrok_novembar!J6,Predrok_decembar!J6,Januar!J6,Februar!J6,April!J6,Juni!J6,Juli!J6,Septembar!J6,Oktobar!J6,Oktobar_2!J6),"") ->  | K6: NE | AM6: 81 | AN6: 91 | AO6: 9 | AP6: девет | AR6: Јун | AS6: 2018-01-09 | AT6: 2018-01-09 | AU6: 2018-06-15 | AV6: 2018-06-15 | AW6: 2018-06-15
A7: =PODACI_STUDENTI!A6 -> 5 | B7: =PODACI_STUDENTI!B6 -> 2017/2036 | C7: =PODACI_STUDENTI!C6 -> Брајковић Сара | D7: =PODACI_STUDENTI!D6 -> Рукомет | F7: =IF(OR(Predrok_novembar!F7<>"",Predrok_decembar!F7<>"",Januar!F7<>"",Februar!F7<>"",April!F7<>"",Juni!F7<>"",Juli!F7,Septembar!F7<>"",Oktobar!F7<>"",Oktobar_2!F7<>""),MAX(Predrok_novembar!F7,Predrok_decembar!F7,Januar!F7,Februar!F7,April!F7,Juni!F7,Juli!F7,Septembar!F7,Oktobar!F7,Oktobar_2!F7),"") -> 30 | G7: =IF(OR(Predrok_novembar!G7<>"",Predrok_decembar!G7<>"",Januar!G7<>"",Februar!G7<>"",April!G7<>"",Juni!G7<>"",Juli!G7,Septembar!G7<>"",Oktobar!G7<>"",Oktobar_2!G7<>""),MAX(Predrok_novembar!G7,Predrok_decembar!G7,Januar!G7,Februar!G7,April!G7,Juni!G7,Juli!G7,Septembar!G7,Oktobar!G7,Oktobar_2!G7),"") -> 28 | H7: 14 | I7: 9 | J7: =IF(OR(Predrok_novembar!J7<>"",Predrok_decembar!J7<>"",Januar!J7<>"",Februar!J7<>"",April!J7<>"",Juni!J7<>"",Juli!J7,Septembar!J7<>"",Oktobar!J7<>"",Oktobar_2!J7<>""),MAX(Predrok_novembar!J7,Predrok_decembar!J7,Januar!J7,Februar!J7,April!J7,Juni!J7,Juli!J7,Septembar!J7,Oktobar!J7,Oktobar_2!J7),"") -> 13 | K7: DA | L7: 5 | M7: 5 | N7: 13 | O7: 12 | P7: 9 | Q7: 8 | R7: 12 | S7: 15 | T7: 80.0 | U7: 8 | V7: Април | W7: 2018-04-20 | X7: 10 | Y7: 2018-01-09 | Z7: 35 | AA7: 2018-04-18 | AB7: 21 | AC7: 2018-04-20 | AD7: 15 | AE7: 80 | AF7: 8 | AG7: 2018-04-20 | AM7: 91 | AN7: 100 | AO7: 10 | AP7: десет | AR7: Јул | AS7: 2018-01-09 | AT7: 2018-01-09 | AU7: 2018-07-09 | AV7: 2018-07-11 | AW7: 2018-07-11
A8: =PODACI_STUDENTI!A7 -> 6 | B8: =PODACI_STUDENTI!B7 -> 2017/2045 | C8: =PODACI_STUDENTI!C7 -> Васић Павле | D8: =PODACI_STUDENTI!D7 -> Кошарка | F8: =IF(OR(Predrok_novembar!F8<>"",Predrok_decembar!F8<>"",Januar!F8<>"",Februar!F8<>"",April!F8<>"",Juni!F8<>"",Juli!F8,Septembar!F8<>"",Oktobar!F8<>"",Oktobar_2!F8<>""),MAX(Predrok_novembar!F8,Predrok_decembar!F8,Januar!F8,Februar!F8,April!F8,Juni!F8,Juli!F8,Septembar!F8,Oktobar!F8,Oktobar_2!F8),"") ->  | G8: =IF(OR(Predrok_novembar!G8<>"",Predrok_decembar!G8<>"",Januar!G8<>"",Februar!G8<>"",April!G8<>"",Juni!G8<>"",Juli!G8,Septembar!G8<>"",Oktobar!G8<>"",Oktobar_2!G8<>""),MAX(Predrok_novembar!G8,Predrok_decembar!G8,Januar!G8,Februar!G8,April!G8,Juni!G8,Juli!G8,Septembar!G8,Oktobar!G8,Oktobar_2!G8),"") -> 32 | H8: =IF(OR(Predrok_novembar!H8<>"",Predrok_decembar!H8<>"",Januar!H8<>"",Februar!H8<>"",April!H8<>"",Juni!H8<>"",Juli!H8,Septembar!H8<>"",Oktobar!H8<>"",Oktobar_2!H8<>""),MAX(Predrok_novembar!H8,Predrok_decembar!H8,Januar!H8,Februar!H8,April!H8,Juni!H8,Juli!H8,Septembar!H8,Oktobar!H8,Oktobar_2!H8),"") ->  | I8: 10 | J8: 13 | K8: NE | O8: 14 | Q8: 9 | R8: 12 | AR8: Септембар | AS8: 2018-01-09 | AT8: 2018-01-09 | AU8: 2018-09-04 | AV8: 2018-09-01 | AW8: 2018-09-01
A9: =PODACI_STUDENTI!A8 -> 7 | B9: =PODACI_STUDENTI!B8 -> 2017/2038 | C9: =PODACI_STUDENTI!C8 -> Веселиновић Вук | D9: =PODACI_STUDENTI!D8 -> Кондиција | F9: =IF(OR(Predrok_novembar!F9<>"",Predrok_decembar!F9<>"",Januar!F9<>"",Februar!F9<>"",April!F9<>"",Juni!F9<>"",Juli!F9,Septembar!F9<>"",Oktobar!F9<>"",Oktobar_2!F9<>""),MAX(Predrok_novembar!F9,Predrok_decembar!F9,Januar!F9,Februar!F9,April!F9,Juni!F9,Juli!F9,Septembar!F9,Oktobar!F9,Oktobar_2!F9),"") -> 29 | G9: =IF(OR(Predrok_novembar!G9<>"",Predrok_decembar!G9<>"",Januar!G9<>"",Februar!G9<>"",April!G9<>"",Juni!G9<>"",Juli!G9,Septembar!G9<>"",Oktobar!G9<>"",Oktobar_2!G9<>""),MAX(Predrok_novembar!G9,Predrok_decembar!G9,Januar!G9,Februar!G9,April!G9,Juni!G9,Juli!G9,Septembar!G9,Oktobar!G9,Oktobar_2!G9),"") -> 31 | H9: =IF(OR(Predrok_novembar!H9<>"",Predrok_decembar!H9<>"",Januar!H9<>"",Februar!H9<>"",April!H9<>"",Juni!H9<>"",Juli!H9,Septembar!H9<>"",Oktobar!H9<>"",Oktobar_2!H9<>""),MAX(Predrok_novembar!H9,Predrok_decembar!H9,Januar!H9,Februar!H9,April!H9,Juni!H9,Juli!H9,Septembar!H9,Oktobar!H9,Oktobar_2!H9),"") -> 21 | I9: =IF(OR(Predrok_novembar!I9<>"",Predrok_decembar!I9<>"",Januar!I9<>"",Februar!I9<>"",April!I9<>"",Juni!I9<>"",Juli!I9,Septembar!I9<>"",Oktobar!I9<>"",Oktobar_2!I9<>""),MAX(Predrok_novembar!I9,Predrok_decembar!I9,Januar!I9,Februar!I9,April!I9,Juni!I9,Juli!I9,Septembar!I9,Oktobar!I9,Oktobar_2!I9),"") -> 11 | J9: =IF(OR(Predrok_novembar!J9<>"",Predrok_decembar!J9<>"",Januar!J9<>"",Februar!J9<>"",April!J9<>"",Juni!J9<>"",Juli!J9,Septembar!J9<>"",Oktobar!J9<>"",Oktobar_2!J9<>""),MAX(Predrok_novembar!J9,Predrok_decembar!J9,Januar!J9,Februar!J9,April!J9,Juni!J9,Juli!J9,Septembar!J9,Oktobar!J9,Oktobar_2!J9),"") -> 11 | K9: DA | L9: 5 | M9: 5 | N9: 13 | O9: 14 | P9: 14 | Q9: 10 | R9: 10 | S9: 20 | T9: 91.0 | U9: 10 | V9: Јануар | W9: 2018-01-18 | X9: 10 | Y9: 2018-01-09 | Z9: 40 | AA9: 2018-01-18 | AB9: 21 | AC9: 2018-01-18 | AD9: 20 | AE9: 91 | AF9: 10 | AG9: 2018-01-18 | AR9: Октобар | AS9: 2018-01-09 | AT9: 2018-01-09 | AU9: 2018-09-12 | AV9: 2018-09-12 | AW9: 2018-09-12
A10: =PODACI_STUDENTI!A9 -> 8 | B10: =PODACI_STUDENTI!B9 -> 2017/2058 | C10: =PODACI_STUDENTI!C9 -> Весковић Миа | D10: =PODACI_STUDENTI!D9 -> Одбојка | F10: =IF(OR(Predrok_novembar!F10<>"",Predrok_decembar!F10<>"",Januar!F10<>"",Februar!F10<>"",April!F10<>"",Juni!F10<>"",Juli!F10,Septembar!F10<>"",Oktobar!F10<>"",Oktobar_2!F10<>""),MAX(Predrok_novembar!F10,Predrok_decembar!F10,Januar!F10,Februar!F10,April!F10,Juni!F10,Juli!F10,Septembar!F10,Oktobar!F10,Oktobar_2!F10),"") -> 29 | G10: =IF(OR(Predrok_novembar!G10<>"",Predrok_decembar!G10<>"",Januar!G10<>"",Februar!G10<>"",April!G10<>"",Juni!G10<>"",Juli!G10,Septembar!G10<>"",Oktobar!G10<>"",Oktobar_2!G10<>""),MAX(Predrok_novembar!G10,Predrok_decembar!G10,Januar!G10,Februar!G10,April!G10,Juni!G10,Juli!G10,Septembar!G10,Oktobar!G10,Oktobar_2!G10),"") -> 26 | H10: =IF(OR(Predrok_novembar!H10<>"",Predrok_decembar!H10<>"",Januar!H10<>"",Februar!H10<>"",April!H10<>"",Juni!H10<>"",Juli!H10,Septembar!H10<>"",Oktobar!H10<>"",Oktobar_2!H10<>""),MAX(Predrok_novembar!H10,Predrok_decembar!H10,Januar!H10,Februar!H10,April!H10,Juni!H10,Juli!H10,Septembar!H10,Oktobar!H10,Oktobar_2!H10),"") -> 16 | I10: 9 | J10: =IF(OR(Predrok_novembar!J10<>"",Predrok_decembar!J10<>"",Januar!J10<>"",Februar!J10<>"",April!J10<>"",Juni!J10<>"",Juli!J10,Septembar!J10<>"",Oktobar!J10<>"",Oktobar_2!J10<>""),MAX(Predrok_novembar!J10,Predrok_decembar!J10,Januar!J10,Februar!J10,April!J10,Juni!J10,Juli!J10,Septembar!J10,Oktobar!J10,Oktobar_2!J10),"") -> 15 | K10: DA | L10: 5 | M10: 5 | N10: 13 | O10: 11 | P10: 11 | Q10: 8 | R10: 14 | S10: 15 | T10: 82.0 | U10: 9 | V10: Април | W10: 2018-04-20 | X10: 10 | Y10: 2018-01-09 | Z10: 35 | AA10: 2018-04-18 | AB10: 22 | AC10: 2018-04-20 | AD10: 15 | AE10: 82 | AF10: 9 | AG10: 2018-04-20 | AR10: Октобар (2) | AS10: 2018-01-09 | AT10: 2018-01-09 | AU10: 2018-09-23 | AV10: 2018-09-25 | AW10: 2018-09-25
A11: =PODACI_STUDENTI!A10 -> 9 | B11: =PODACI_STUDENTI!B10 -> 2017/2005 | C11: =PODACI_STUDENTI!C10 -> Воденичар Сања | D11: =PODACI_STUDENTI!D10 -> Кондиција | F11: =IF(OR(Predrok_novembar!F11<>"",Predrok_decembar!F11<>"",Januar!F11<>"",Februar!F11<>"",April!F11<>"",Juni!F11<>"",Juli!F11,Septembar!F11<>"",Oktobar!F11<>"",Oktobar_2!F11<>""),MAX(Predrok_novembar!F11,Predrok_decembar!F11,Januar!F11,Februar!F11,April!F11,Juni!F11,Juli!F11,Septembar!F11,Oktobar!F11,Oktobar_2!F11),"") -> 29 | G11: =IF(OR(Predrok_novembar!G11<>"",Predrok_decembar!G11<>"",Januar!G11<>"",Februar!G11<>"",April!G11<>"",Juni!G11<>"",Juli!G11,Septembar!G11<>"",Oktobar!G11<>"",Oktobar_2!G11<>""),MAX(Predrok_novembar!G11,Predrok_decembar!G11,Januar!G11,Februar!G11,April!G11,Juni!G11,Juli!G11,Septembar!G11,Oktobar!G11,Oktobar_2!G11),"") -> 26 | H11: 13 | I11: 11 | J11: =IF(OR(Predrok_novembar!J11<>"",Predrok_decembar!J11<>"",Januar!J11<>"",Februar!J11<>"",April!J11<>"",Juni!J11<>"",Juli!J11,Septembar!J11<>"",Oktobar!J11<>"",Oktobar_2!J11<>""),MAX(Predrok_novembar!J11,Predrok_decembar!J11,Januar!J11,Februar!J11,April!J11,Juni!J11,Juli!J11,Septembar!J11,Oktobar!J11,Oktobar_2!J11),"") -> 14 | K11: DA | L11: 5 | M11: 5 | N11: 13 | O11: 11 | P11: 9 | Q11: 10 | R11: 13 | S11: 15 | T11: 81.0 | U11: 9 | V11: Април | W11: 2018-04-20 | X11: 10 | Y11: 2018-01-09 | Z11: 33 | AA11: 2018-04-18 | AB11: 23 | AC11: 2018-04-20 | AD11: 15 | AE11: 81 | AF11: 9 | AG11: 2018-04-20
A12: =PODACI_STUDENTI!A11 -> 10 | B12: =PODACI_STUDENTI!B11 -> 2017/2037 | C12: =PODACI_STUDENTI!C11 -> Вујотић Миња | D12: =PODACI_STUDENTI!D11 -> Кондиција | F12: =IF(OR(Predrok_novembar!F12<>"",Predrok_decembar!F12<>"",Januar!F12<>"",Februar!F12<>"",April!F12<>"",Juni!F12<>"",Juli!F12,Septembar!F12<>"",Oktobar!F12<>"",Oktobar_2!F12<>""),MAX(Predrok_novembar!F12,Predrok_decembar!F12,Januar!F12,Februar!F12,April!F12,Juni!F12,Juli!F12,Septembar!F12,Oktobar!F12,Oktobar_2!F12),"") -> 31 | G12: =IF(OR(Predrok_novembar!G12<>"",Predrok_decembar!G12<>"",Januar!G12<>"",Februar!G12<>"",April!G12<>"",Juni!G12<>"",Juli!G12,Septembar!G12<>"",Oktobar!G12<>"",Oktobar_2!G12<>""),MAX(Predrok_novembar!G12,Predrok_decembar!G12,Januar!G12,Februar!G12,April!G12,Juni!G12,Juli!G12,Septembar!G12,Oktobar!G12,Oktobar_2!G12),"") -> 28 | H12: =IF(OR(Predrok_novembar!H12<>"",Predrok_decembar!H12<>"",Januar!H12<>"",Februar!H12<>"",April!H12<>"",Juni!H12<>"",Juli!H12,Septembar!H12<>"",Oktobar!H12<>"",Oktobar_2!H12<>""),MAX(Predrok_novembar!H12,Predrok_decembar!H12,Januar!H12,Februar!H12,April!H12,Juni!H12,Juli!H12,Septembar!H12,Oktobar!H12,Oktobar_2!H12),"") -> 19 | I12: =IF(OR(Predrok_novembar!I12<>"",Predrok_decembar!I12<>"",Januar!I12<>"",Februar!I12<>"",April!I12<>"",Juni!I12<>"",Juli!I12,Septembar!I12<>"",Oktobar!I12<>"",Oktobar_2!I12<>""),MAX(Predrok_novembar!I12,Predrok_decembar!I12,Januar!I12,Februar!I12,April!I12,Juni!I12,Juli!I12,Septembar!I12,Oktobar!I12,Oktobar_2!I12),"") -> 11 | J12: =IF(OR(Predrok_novembar!J12<>"",Predrok_decembar!J12<>"",Januar!J12<>"",Februar!J12<>"",April!J12<>"",Juni!J12<>"",Juli!J12,Septembar!J12<>"",Oktobar!J12<>"",Oktobar_2!J12<>""),MAX(Predrok_novembar!J12,Predrok_decembar!J12,Januar!J12,Februar!J12,April!J12,Juni!J12,Juli!J12,Septembar!J12,Oktobar!J12,Oktobar_2!J12),"") -> 15 | K12: DA | L12: 5 | M12: 5 | N12: 14 | O12: 12 | P12: 13 | Q12: 10 | R12: 14 | S12: 20 | T12: 93.0 | U12: 10 | V12: Јануар | W12: 2018-01-18 | X12: 10 | Y12: 2018-01-09 | Z12: 38 | AA12: 2018-01-18 | AB12: 24 | AC12: 2018-01-18 | AD12: 20 | AE12: 93 | AF12: 10 | AG12: 2018-01-18
A13: =PODACI_STUDENTI!A12 -> 11 | B13: =PODACI_STUDENTI!B12 -> 2017/2060 | C13: =PODACI_STUDENTI!C12 -> Вуковић Огњен | D13: =PODACI_STUDENTI!D12 -> Фудбал | F13: =IF(OR(Predrok_novembar!F13<>"",Predrok_decembar!F13<>"",Januar!F13<>"",Februar!F13<>"",April!F13<>"",Juni!F13<>"",Juli!F13,Septembar!F13<>"",Oktobar!F13<>"",Oktobar_2!F13<>""),MAX(Predrok_novembar!F13,Predrok_decembar!F13,Januar!F13,Februar!F13,April!F13,Juni!F13,Juli!F13,Septembar!F13,Oktobar!F13,Oktobar_2!F13),"") -> 26 | G13: =IF(OR(Predrok_novembar!G13<>"",Predrok_decembar!G13<>"",Januar!G13<>"",Februar!G13<>"",April!G13<>"",Juni!G13<>"",Juli!G13,Septembar!G13<>"",Oktobar!G13<>"",Oktobar_2!G13<>""),MAX(Predrok_novembar!G13,Predrok_decembar!G13,Januar!G13,Februar!G13,April!G13,Juni!G13,Juli!G13,Septembar!G13,Oktobar!G13,Oktobar_2!G13),"") ->  | H13: =IF(OR(Predrok_novembar!H13<>"",Predrok_decembar!H13<>"",Januar!H13<>"",Februar!H13<>"",April!H13<>"",Juni!H13<>"",Juli!H13,Septembar!H13<>"",Oktobar!H13<>"",Oktobar_2!H13<>""),MAX(Predrok_novembar!H13,Predrok_decembar!H13,Januar!H13,Februar!H13,April!H13,Juni!H13,Juli!H13,Septembar!H13,Oktobar!H13,Oktobar_2!H13),"") ->  | I13: =IF(OR(Predrok_novembar!I13<>"",Predrok_decembar!I13<>"",Januar!I13<>"",Februar!I13<>"",April!I13<>"",Juni!I13<>"",Juli!I13,Septembar!I13<>"",Oktobar!I13<>"",Oktobar_2!I13<>""),MAX(Predrok_novembar!I13,Predrok_decembar!I13,Januar!I13,Februar!I13,April!I13,Juni!I13,Juli!I13,Septembar!I13,Oktobar!I13,Oktobar_2!I13),"") ->  | J13: =IF(OR(Predrok_novembar!J13<>"",Predrok_decembar!J13<>"",Januar!J13<>"",Februar!J13<>"",April!J13<>"",Juni!J13<>"",Juli!J13,Septembar!J13<>"",Oktobar!J13<>"",Oktobar_2!J13<>""),MAX(Predrok_novembar!J13,Predrok_decembar!J13,Januar!J13,Februar!J13,April!J13,Juni!J13,Juli!J13,Septembar!J13,Oktobar!J13,Oktobar_2!J13),"") ->  | K13: NE | N13: 11
A14: =PODACI_STUDENTI!A13 -> 12 | B14: =PODACI_STUDENTI!B13 -> 2017/2043 | C14: =PODACI_STUDENTI!C13 -> Вукотић Шћепан | D14: =PODACI_STUDENTI!D13 -> Кондиција | F14: 24 | G14: =IF(OR(Predrok_novembar!G14<>"",Predrok_decembar!G14<>"",Januar!G14<>"",Februar!G14<>"",April!G14<>"",Juni!G14<>"",Juli!G14,Septembar!G14<>"",Oktobar!G14<>"",Oktobar_2!G14<>""),MAX(Predrok_novembar!G14,Predrok_decembar!G14,Januar!G14,Februar!G14,April!G14,Juni!G14,Juli!G14,Septembar!G14,Oktobar!G14,Oktobar_2!G14),"") -> 25 | H14: =IF(OR(Predrok_novembar!H14<>"",Predrok_decembar!H14<>"",Januar!H14<>"",Februar!H14<>"",April!H14<>"",Juni!H14<>"",Juli!H14,Septembar!H14<>"",Oktobar!H14<>"",Oktobar_2!H14<>""),MAX(Predrok_novembar!H14,Predrok_decembar!H14,Januar!H14,Februar!H14,April!H14,Juni!H14,Juli!H14,Septembar!H14,Oktobar!H14,Oktobar_2!H14),"") -> 12 | I14: =IF(OR(Predrok_novembar!I14<>"",Predrok_decembar!I14<>"",Januar!I14<>"",Februar!I14<>"",April!I14<>"",Juni!I14<>"",Juli!I14,Septembar!I14<>"",Oktobar!I14<>"",Oktobar_2!I14<>""),MAX(Predrok_novembar!I14,Predrok_decembar!I14,Januar!I14,Februar!I14,April!I14,Juni!I14,Juli!I14,Septembar!I14,Oktobar!I14,Oktobar_2!I14),"") -> 9 | J14: =IF(OR(Predrok_novembar!J14<>"",Predrok_decembar!J14<>"",Januar!J14<>"",Februar!J14<>"",April!J14<>"",Juni!J14<>"",Juli!J14,Septembar!J14<>"",Oktobar!J14<>"",Oktobar_2!J14<>""),MAX(Predrok_novembar!J14,Predrok_decembar!J14,Januar!J14,Februar!J14,April!J14,Juni!J14,Juli!J14,Septembar!J14,Oktobar!J14,Oktobar_2!J14),"") -> 11 | K14: DA | L14: 5 | M14: 5 | N14: 11 | O14: 11 | P14: 8 | Q14: 8 | R14: 10 | S14: 20 | T14: 78.0 | U14: 8 | V14: Јануар | W14: 2018-01-18 | X14: 10 | Y14: 2018-01-09 | Z14: 29 | AA14: 2018-01-18 | AB14: 19 | AC14: 2018-01-18 | AD14: 20 | AE14: 78 | AF14: 8 | AG14: 2018-01-18
A15: =PODACI_STUDENTI!A14 -> 13 | B15: =PODACI_STUDENTI!B14 -> 2017/2516 | C15: =PODACI_STUDENTI!C14 -> Вуловић Вања | D15: =PODACI_STUDENTI!D14 -> Рекреација | F15: =IF(OR(Predrok_novembar!F15<>"",Predrok_decembar!F15<>"",Januar!F15<>"",Februar!F15<>"",April!F15<>"",Juni!F15<>"",Juli!F15,Septembar!F15<>"",Oktobar!F15<>"",Oktobar_2!F15<>""),MAX(Predrok_novembar!F15,Predrok_decembar!F15,Januar!F15,Februar!F15,April!F15,Juni!F15,Juli!F15,Septembar!F15,Oktobar!F15,Oktobar_2!F15),"") -> 32 | G15: =IF(OR(Predrok_novembar!G15<>"",Predrok_decembar!G15<>"",Januar!G15<>"",Februar!G15<>"",April!G15<>"",Juni!G15<>"",Juli!G15,Septembar!G15<>"",Oktobar!G15<>"",Oktobar_2!G15<>""),MAX(Predrok_novembar!G15,Predrok_decembar!G15,Januar!G15,Februar!G15,April!G15,Juni!G15,Juli!G15,Septembar!G15,Oktobar!G15,Oktobar_2!G15),"") -> 30 | H15: 21 | I15: =IF(OR(Predrok_novembar!I15<>"",Predrok_decembar!I15<>"",Januar!I15<>"",Februar!I15<>"",April!I15<>"",Juni!I15<>"",Juli!I15,Septembar!I15<>"",Oktobar!I15<>"",Oktobar_2!I15<>""),MAX(Predrok_novembar!I15,Predrok_decembar!I15,Januar!I15,Februar!I15,April!I15,Juni!I15,Juli!I15,Septembar!I15,Oktobar!I15,Oktobar_2!I15),"") -> 9 | J15: =IF(OR(Predrok_novembar!J15<>"",Predrok_decembar!J15<>"",Januar!J15<>"",Februar!J15<>"",April!J15<>"",Juni!J15<>"",Juli!J15,Septembar!J15<>"",Oktobar!J15<>"",Oktobar_2!J15<>""),MAX(Predrok_novembar!J15,Predrok_decembar!J15,Januar!J15,Februar!J15,April!J15,Juni!J15,Juli!J15,Septembar!J15,Oktobar!J15,Oktobar_2!J15),"") -> 14 | K15: DA | L15: 5 | M15: 5 | N15: 14 | O15: 13 | P15: 14 | Q15: 8 | R15: 13 | S15: 20 | T15: 93.0 | U15: 10 | V15: Јануар | W15: 2018-01-18 | X15: 10 | Y15: 2018-01-09 | Z15: 41 | AA15: 2018-01-18 | AB15: 21 | AC15: 2018-01-18 | AD15: 20 | AE15: 93 | AF15: 10 | AG15: 2018-01-18
A16: =PODACI_STUDENTI!A15 -> 14 | B16: =PODACI_STUDENTI!B15 -> 2017/2041 | C16: =PODACI_STUDENTI!C15 -> Вушуровић Милош | D16: =PODACI_STUDENTI!D15 -> Бокс | F16: =IF(OR(Predrok_novembar!F16<>"",Predrok_decembar!F16<>"",Januar!F16<>"",Februar!F16<>"",April!F16<>"",Juni!F16<>"",Juli!F16,Septembar!F16<>"",Oktobar!F16<>"",Oktobar_2!F16<>""),MAX(Predrok_novembar!F16,Predrok_decembar!F16,Januar!F16,Februar!F16,April!F16,Juni!F16,Juli!F16,Septembar!F16,Oktobar!F16,Oktobar_2!F16),"") -> 32 | G16: 24 | H16: =IF(OR(Predrok_novembar!H16<>"",Predrok_decembar!H16<>"",Januar!H16<>"",Februar!H16<>"",April!H16<>"",Juni!H16<>"",Juli!H16,Septembar!H16<>"",Oktobar!H16<>"",Oktobar_2!H16<>""),MAX(Predrok_novembar!H16,Predrok_decembar!H16,Januar!H16,Februar!H16,April!H16,Juni!H16,Juli!H16,Septembar!H16,Oktobar!H16,Oktobar_2!H16),"") -> 19 | I16: 10 | J16: 13 | K16: DA | L16: 5 | M16: 5 | N16: 14 | O16: 11 | P16: 13 | Q16: 9 | R16: 12 | S16: 15 | T16: 84.0 | U16: 9 | V16: Април | W16: 2018-04-20 | X16: 10 | Y16: 2018-01-09 | Z16: 37 | AA16: 2018-04-18 | AB16: 21 | AC16: 2018-04-20 | AD16: 15 | AE16: 84 | AF16: 9 | AG16: 2018-04-20
A17: =PODACI_STUDENTI!A16 -> 15 | B17: =PODACI_STUDENTI!B16 -> 2017/2052 | C17: =PODACI_STUDENTI!C16 -> Гребић Никола | D17: =PODACI_STUDENTI!D16 -> Фудбал | F17: =IF(OR(Predrok_novembar!F17<>"",Predrok_decembar!F17<>"",Januar!F17<>"",Februar!F17<>"",April!F17<>"",Juni!F17<>"",Juli!F17,Septembar!F17<>"",Oktobar!F17<>"",Oktobar_2!F17<>""),MAX(Predrok_novembar!F17,Predrok_decembar!F17,Januar!F17,Februar!F17,April!F17,Juni!F17,Juli!F17,Septembar!F17,Oktobar!F17,Oktobar_2!F17),"") -> 27 | G17: =IF(OR(Predrok_novembar!G17<>"",Predrok_decembar!G17<>"",Januar!G17<>"",Februar!G17<>"",April!G17<>"",Juni!G17<>"",Juli!G17,Septembar!G17<>"",Oktobar!G17<>"",Oktobar_2!G17<>""),MAX(Predrok_novembar!G17,Predrok_decembar!G17,Januar!G17,Februar!G17,April!G17,Juni!G17,Juli!G17,Septembar!G17,Oktobar!G17,Oktobar_2!G17),"") -> 32 | H17: =IF(OR(Predrok_novembar!H17<>"",Predrok_decembar!H17<>"",Januar!H17<>"",Februar!H17<>"",April!H17<>"",Juni!H17<>"",Juli!H17,Septembar!H17<>"",Oktobar!H17<>"",Oktobar_2!H17<>""),MAX(Predrok_novembar!H17,Predrok_decembar!H17,Januar!H17,Februar!H17,April!H17,Juni!H17,Juli!H17,Septembar!H17,Oktobar!H17,Oktobar_2!H17),"") -> 18 | I17: =IF(OR(Predrok_novembar!I17<>"",Predrok_decembar!I17<>"",Januar!I17<>"",Februar!I17<>"",April!I17<>"",Juni!I17<>"",Juli!I17,Septembar!I17<>"",Oktobar!I17<>"",Oktobar_2!I17<>""),MAX(Predrok_novembar!I17,Predrok_decembar!I17,Januar!I17,Februar!I17,April!I17,Juni!I17,Juli!I17,Septembar!I17,Oktobar!I17,Oktobar_2!I17),"") -> 11 | J17: =IF(OR(Predrok_novembar!J17<>"",Predrok_decembar!J17<>"",Januar!J17<>"",Februar!J17<>"",April!J17<>"",Juni!J17<>"",Juli!J17,Septembar!J17<>"",Oktobar!J17<>"",Oktobar_2!J17<>""),MAX(Predrok_novembar!J17,Predrok_decembar!J17,Januar!J17,Februar!J17,April!J17,Juni!J17,Juli!J17,Septembar!J17,Oktobar!J17,Oktobar_2!J17),"") -> 14 | K17: DA | L17: 5 | M17: 5 | N17: 12 | O17: 14 | P17: 12 | Q17: 10 | R17: 13 | S17: 20 | T17: 91.0 | U17: 10 | V17: Јануар | W17: 2018-01-18 | X17: 10 | Y17: 2018-01-09 | Z17: 38 | AA17: 2018-01-18 | AB17: 23 | AC17: 2018-01-18 | AD17: 20 | AE17: 91 | AF17: 10 | AG17: 2018-01-18
A18: =PODACI_STUDENTI!A17 -> 16 | B18: =PODACI_STUDENTI!B17 -> 2017/2024 | C18: =PODACI_STUDENTI!C17 -> Димитријевић Александар | D18: =PODACI_STUDENTI!D17 -> Кошарка | F18: =IF(OR(Predrok_novembar!F18<>"",Predrok_decembar!F18<>"",Januar!F18<>"",Februar!F18<>"",April!F18<>"",Juni!F18<>"",Juli!F18,Septembar!F18<>"",Oktobar!F18<>"",Oktobar_2!F18<>""),MAX(Predrok_novembar!F18,Predrok_decembar!F18,Januar!F18,Februar!F18,April!F18,Juni!F18,Juli!F18,Septembar!F18,Oktobar!F18,Oktobar_2!F18),"") ->  | G18: =IF(OR(Predrok_novembar!G18<>"",Predrok_decembar!G18<>"",Januar!G18<>"",Februar!G18<>"",April!G18<>"",Juni!G18<>"",Juli!G18,Septembar!G18<>"",Oktobar!G18<>"",Oktobar_2!G18<>""),MAX(Predrok_novembar!G18,Predrok_decembar!G18,Januar!G18,Februar!G18,April!G18,Juni!G18,Juli!G18,Septembar!G18,Oktobar!G18,Oktobar_2!G18),"") ->  | H18: =IF(OR(Predrok_novembar!H18<>"",Predrok_decembar!H18<>"",Januar!H18<>"",Februar!H18<>"",April!H18<>"",Juni!H18<>"",Juli!H18,Septembar!H18<>"",Oktobar!H18<>"",Oktobar_2!H18<>""),MAX(Predrok_novembar!H18,Predrok_decembar!H18,Januar!H18,Februar!H18,April!H18,Juni!H18,Juli!H18,Septembar!H18,Oktobar!H18,Oktobar_2!H18),"") ->  | I18: =IF(OR(Predrok_novembar!I18<>"",Predrok_decembar!I18<>"",Januar!I18<>"",Februar!I18<>"",April!I18<>"",Juni!I18<>"",Juli!I18,Septembar!I18<>"",Oktobar!I18<>"",Oktobar_2!I18<>""),MAX(Predrok_novembar!I18,Predrok_decembar!I18,Januar!I18,Februar!I18,April!I18,Juni!I18,Juli!I18,Septembar!I18,Oktobar!I18,Oktobar_2!I18),"") ->  | J18: =IF(OR(Predrok_novembar!J18<>"",Predrok_decembar!J18<>"",Januar!J18<>"",Februar!J18<>"",April!J18<>"",Juni!J18<>"",Juli!J18,Septembar!J18<>"",Oktobar!J18<>"",Oktobar_2!J18<>""),MAX(Predrok_novembar!J18,Predrok_decembar!J18,Januar!J18,Februar!J18,April!J18,Juni!J18,Juli!J18,Septembar!J18,Oktobar!J18,Oktobar_2!J18),"") ->  | K18: NE
A19: =PODACI_STUDENTI!A18 -> 17 | B19: =PODACI_STUDENTI!B18 -> 2017/2017 | C19: =PODACI_STUDENTI!C18 -> Димитријевић Велисав | D19: =PODACI_STUDENTI!D18 -> Кондиција | F19: =IF(OR(Predrok_novembar!F19<>"",Predrok_decembar!F19<>"",Januar!F19<>"",Februar!F19<>"",April!F19<>"",Juni!F19<>"",Juli!F19,Septembar!F19<>"",Oktobar!F19<>"",Oktobar_2!F19<>""),MAX(Predrok_novembar!F19,Predrok_decembar!F19,Januar!F19,Februar!F19,April!F19,Juni!F19,Juli!F19,Septembar!F19,Oktobar!F19,Oktobar_2!F19),"") -> 31 | G19: =IF(OR(Predrok_novembar!G19<>"",Predrok_decembar!G19<>"",Januar!G19<>"",Februar!G19<>"",April!G19<>"",Juni!G19<>"",Juli!G19,Septembar!G19<>"",Oktobar!G19<>"",Oktobar_2!G19<>""),MAX(Predrok_novembar!G19,Predrok_decembar!G19,Januar!G19,Februar!G19,April!G19,Juni!G19,Juli!G19,Septembar!G19,Oktobar!G19,Oktobar_2!G19),"") -> 28 | H19: =IF(OR(Predrok_novembar!H19<>"",Predrok_decembar!H19<>"",Januar!H19<>"",Februar!H19<>"",April!H19<>"",Juni!H19<>"",Juli!H19,Septembar!H19<>"",Oktobar!H19<>"",Oktobar_2!H19<>""),MAX(Predrok_novembar!H19,Predrok_decembar!H19,Januar!H19,Februar!H19,April!H19,Juni!H19,Juli!H19,Septembar!H19,Oktobar!H19,Oktobar_2!H19),"") -> 11 | I19: =IF(OR(Predrok_novembar!I19<>"",Predrok_decembar!I19<>"",Januar!I19<>"",Februar!I19<>"",April!I19<>"",Juni!I19<>"",Juli!I19,Septembar!I19<>"",Oktobar!I19<>"",Oktobar_2!I19<>""),MAX(Predrok_novembar!I19,Predrok_decembar!I19,Januar!I19,Februar!I19,April!I19,Juni!I19,Juli!I19,Septembar!I19,Oktobar!I19,Oktobar_2!I19),"") -> 10 | J19: =IF(OR(Predrok_novembar!J19<>"",Predrok_decembar!J19<>"",Januar!J19<>"",Februar!J19<>"",April!J19<>"",Juni!J19<>"",Juli!J19,Septembar!J19<>"",Oktobar!J19<>"",Oktobar_2!J19<>""),MAX(Predrok_novembar!J19,Predrok_decembar!J19,Januar!J19,Februar!J19,April!J19,Juni!J19,Juli!J19,Septembar!J19,Oktobar!J19,Oktobar_2!J19),"") -> 13 | K19: DA | L19: 5 | M19: 5 | N19: 14 | O19: 12 | P19: 7 | Q19: 9 | R19: 12 | S19: 20 | T19: 85.0 | U19: 9 | V19: Јануар | W19: 2018-01-18 | X19: 10 | Y19: 2018-01-09 | Z19: 33 | AA19: 2018-01-18 | AB19: 21 | AC19: 2018-01-18 | AD19: 20 | AE19: 85 | AF19: 9 | AG19: 2018-01-18
A20: =PODACI_STUDENTI!A19 -> 18 | B20: =PODACI_STUDENTI!B19 -> 2017/2049 | C20: =PODACI_STUDENTI!C19 -> Дмитровић Иван | D20: =PODACI_STUDENTI!D19 -> Фудбал | F20: =IF(OR(Predrok_novembar!F20<>"",Predrok_decembar!F20<>"",Januar!F20<>"",Februar!F20<>"",April!F20<>"",Juni!F20<>"",Juli!F20,Septembar!F20<>"",Oktobar!F20<>"",Oktobar_2!F20<>""),MAX(Predrok_novembar!F20,Predrok_decembar!F20,Januar!F20,Februar!F20,April!F20,Juni!F20,Juli!F20,Septembar!F20,Oktobar!F20,Oktobar_2!F20),"") -> 25 | G20: 30 | H20: 13 | I20: =IF(OR(Predrok_novembar!I20<>"",Predrok_decembar!I20<>"",Januar!I20<>"",Februar!I20<>"",April!I20<>"",Juni!I20<>"",Juli!I20,Septembar!I20<>"",Oktobar!I20<>"",Oktobar_2!I20<>""),MAX(Predrok_novembar!I20,Predrok_decembar!I20,Januar!I20,Februar!I20,April!I20,Juni!I20,Juli!I20,Septembar!I20,Oktobar!I20,Oktobar_2!I20),"") -> 10 | J20: =IF(OR(Predrok_novembar!J20<>"",Predrok_decembar!J20<>"",Januar!J20<>"",Februar!J20<>"",April!J20<>"",Juni!J20<>"",Juli!J20,Septembar!J20<>"",Oktobar!J20<>"",Oktobar_2!J20<>""),MAX(Predrok_novembar!J20,Predrok_decembar!J20,Januar!J20,Februar!J20,April!J20,Juni!J20,Juli!J20,Septembar!J20,Oktobar!J20,Oktobar_2!J20),"") ->  | K20: NE | N20: 11 | O20: 13 | P20: 9 | Q20: 9
A21: =PODACI_STUDENTI!A20 -> 19 | B21: =PODACI_STUDENTI!B20 -> 2017/2507 | C21: =PODACI_STUDENTI!C20 -> Драгојевић Андреј | D21: =PODACI_STUDENTI!D20 -> Рекреација | F21: =IF(OR(Predrok_novembar!F21<>"",Predrok_decembar!F21<>"",Januar!F21<>"",Februar!F21<>"",April!F21<>"",Juni!F21<>"",Juli!F21,Septembar!F21<>"",Oktobar!F21<>"",Oktobar_2!F21<>""),MAX(Predrok_novembar!F21,Predrok_decembar!F21,Januar!F21,Februar!F21,April!F21,Juni!F21,Juli!F21,Septembar!F21,Oktobar!F21,Oktobar_2!F21),"") -> 27 | G21: =IF(OR(Predrok_novembar!G21<>"",Predrok_decembar!G21<>"",Januar!G21<>"",Februar!G21<>"",April!G21<>"",Juni!G21<>"",Juli!G21,Septembar!G21<>"",Oktobar!G21<>"",Oktobar_2!G21<>""),MAX(Predrok_novembar!G21,Predrok_decembar!G21,Januar!G21,Februar!G21,April!G21,Juni!G21,Juli!G21,Septembar!G21,Oktobar!G21,Oktobar_2!G21),"") -> 29 | H21: =IF(OR(Predrok_novembar!H21<>"",Predrok_decembar!H21<>"",Januar!H21<>"",Februar!H21<>"",April!H21<>"",Juni!H21<>"",Juli!H21,Septembar!H21<>"",Oktobar!H21<>"",Oktobar_2!H21<>""),MAX(Predrok_novembar!H21,Predrok_decembar!H21,Januar!H21,Februar!H21,April!H21,Juni!H21,Juli!H21,Septembar!H21,Oktobar!H21,Oktobar_2!H21),"") -> 11 | I21: =IF(OR(Predrok_novembar!I21<>"",Predrok_decembar!I21<>"",Januar!I21<>"",Februar!I21<>"",April!I21<>"",Juni!I21<>"",Juli!I21,Septembar!I21<>"",Oktobar!I21<>"",Oktobar_2!I21<>""),MAX(Predrok_novembar!I21,Predrok_decembar!I21,Januar!I21,Februar!I21,April!I21,Juni!I21,Juli!I21,Septembar!I21,Oktobar!I21,Oktobar_2!I21),"") -> 10 | J21: =IF(OR(Predrok_novembar!J21<>"",Predrok_decembar!J21<>"",Januar!J21<>"",Februar!J21<>"",April!J21<>"",Juni!J21<>"",Juli!J21,Septembar!J21<>"",Oktobar!J21<>"",Oktobar_2!J21<>""),MAX(Predrok_novembar!J21,Predrok_decembar!J21,Januar!J21,Februar!J21,April!J21,Juni!J21,Juli!J21,Septembar!J21,Oktobar!J21,Oktobar_2!J21),"") -> 13 | K21: DA | L21: 5 | M21: 5 | N21: 12 | O21: 13 | P21: 7 | Q21: 9 | R21: 12 | S21: 20 | T21: 83.0 | U21: 9 | V21: Јануар | W21: 2018-01-18 | X21: 10 | Y21: 2018-01-09 | Z21: 32 | AA21: 2018-01-18 | AB21: 21 | AC21: 2018-01-18 | AD21: 20 | AE21: 83 | AF21: 9 | AG21: 2018-01-18
A22: =PODACI_STUDENTI!A21 -> 20 | B22: =PODACI_STUDENTI!B21 -> 2017/2519 | C22: =PODACI_STUDENTI!C21 -> Ђорђевић Невена | D22: =PODACI_STUDENTI!D21 -> Рекреација | F22: =IF(OR(Predrok_novembar!F22<>"",Predrok_decembar!F22<>"",Januar!F22<>"",Februar!F22<>"",April!F22<>"",Juni!F22<>"",Juli!F22,Septembar!F22<>"",Oktobar!F22<>"",Oktobar_2!F22<>""),MAX(Predrok_novembar!F22,Predrok_decembar!F22,Januar!F22,Februar!F22,April!F22,Juni!F22,Juli!F22,Septembar!F22,Oktobar!F22,Oktobar_2!F22),"") ->  | G22: =IF(OR(Predrok_novembar!G22<>"",Predrok_decembar!G22<>"",Januar!G22<>"",Februar!G22<>"",April!G22<>"",Juni!G22<>"",Juli!G22,Septembar!G22<>"",Oktobar!G22<>"",Oktobar_2!G22<>""),MAX(Predrok_novembar!G22,Predrok_decembar!G22,Januar!G22,Februar!G22,April!G22,Juni!G22,Juli!G22,Septembar!G22,Oktobar!G22,Oktobar_2!G22),"") ->  | H22: =IF(OR(Predrok_novembar!H22<>"",Predrok_decembar!H22<>"",Januar!H22<>"",Februar!H22<>"",April!H22<>"",Juni!H22<>"",Juli!H22,Septembar!H22<>"",Oktobar!H22<>"",Oktobar_2!H22<>""),MAX(Predrok_novembar!H22,Predrok_decembar!H22,Januar!H22,Februar!H22,April!H22,Juni!H22,Juli!H22,Septembar!H22,Oktobar!H22,Oktobar_2!H22),"") ->  | I22: =IF(OR(Predrok_novembar!I22<>"",Predrok_decembar!I22<>"",Januar!I22<>"",Februar!I22<>"",April!I22<>"",Juni!I22<>"",Juli!I22,Septembar!I22<>"",Oktobar!I22<>"",Oktobar_2!I22<>""),MAX(Predrok_novembar!I22,Predrok_decembar!I22,Januar!I22,Februar!I22,April!I22,Juni!I22,Juli!I22,Septembar!I22,Oktobar!I22,Oktobar_2!I22),"") ->  | J22: =IF(OR(Predrok_novembar!J22<>"",Predrok_decembar!J22<>"",Januar!J22<>"",Februar!J22<>"",April!J22<>"",Juni!J22<>"",Juli!J22,Septembar!J22<>"",Oktobar!J22<>"",Oktobar_2!J22<>""),MAX(Predrok_novembar!J22,Predrok_decembar!J22,Januar!J22,Februar!J22,April!J22,Juni!J22,Juli!J22,Septembar!J22,Oktobar!J22,Oktobar_2!J22),"") ->  | K22: NE
A23: =PODACI_STUDENTI!A22 -> 21 | B23: =PODACI_STUDENTI!B22 -> 2017/2050 | C23: =PODACI_STUDENTI!C22 -> Ђурановић Милан | D23: =PODACI_STUDENTI!D22 -> Кондиција | F23: =IF(OR(Predrok_novembar!F23<>"",Predrok_decembar!F23<>"",Januar!F23<>"",Februar!F23<>"",April!F23<>"",Juni!F23<>"",Juli!F23,Septembar!F23<>"",Oktobar!F23<>"",Oktobar_2!F23<>""),MAX(Predrok_novembar!F23,Predrok_decembar!F23,Januar!F23,Februar!F23,April!F23,Juni!F23,Juli!F23,Septembar!F23,Oktobar!F23,Oktobar_2!F23),"") -> 32 | G23: =IF(OR(Predrok_novembar!G23<>"",Predrok_decembar!G23<>"",Januar!G23<>"",Februar!G23<>"",April!G23<>"",Juni!G23<>"",Juli!G23,Septembar!G23<>"",Oktobar!G23<>"",Oktobar_2!G23<>""),MAX(Predrok_novembar!G23,Predrok_decembar!G23,Januar!G23,Februar!G23,April!G23,Juni!G23,Juli!G23,Septembar!G23,Oktobar!G23,Oktobar_2!G23),"") -> 31 | H23: 20 | I23: =IF(OR(Predrok_novembar!I23<>"",Predrok_decembar!I23<>"",Januar!I23<>"",Februar!I23<>"",April!I23<>"",Juni!I23<>"",Juli!I23,Septembar!I23<>"",Oktobar!I23<>"",Oktobar_2!I23<>""),MAX(Predrok_novembar!I23,Predrok_decembar!I23,Januar!I23,Februar!I23,April!I23,Juni!I23,Juli!I23,Septembar!I23,Oktobar!I23,Oktobar_2!I23),"") -> 10 | J23: =IF(OR(Predrok_novembar!J23<>"",Predrok_decembar!J23<>"",Januar!J23<>"",Februar!J23<>"",April!J23<>"",Juni!J23<>"",Juli!J23,Septembar!J23<>"",Oktobar!J23<>"",Oktobar_2!J23<>""),MAX(Predrok_novembar!J23,Predrok_decembar!J23,Januar!J23,Februar!J23,April!J23,Juni!J23,Juli!J23,Septembar!J23,Oktobar!J23,Oktobar_2!J23),"") -> 12 | K23: DA | L23: 5 | M23: 5 | N23: 14 | O23: 14 | P23: 13 | Q23: 9 | R23: 11 | S23: 20 | T23: 91.0 | U23: 10 | V23: Јануар | W23: 2018-01-18 | X23: 10 | Y23: 2018-01-09 | Z23: 41 | AA23: 2018-01-18 | AB23: 21 | AC23: 2018-01-18 | AD23: 20 | AE23: 91 | AF23: 10 | AG23: 2018-01-18
A24: =PODACI_STUDENTI!A23 -> 22 | B24: =PODACI_STUDENTI!B23 -> 2017/2056 | C24: =PODACI_STUDENTI!C23 -> Ера Борис | D24: =PODACI_STUDENTI!D23 -> Фудбал | F24: =IF(OR(Predrok_novembar!F24<>"",Predrok_decembar!F24<>"",Januar!F24<>"",Februar!F24<>"",April!F24<>"",Juni!F24<>"",Juli!F24,Septembar!F24<>"",Oktobar!F24<>"",Oktobar_2!F24<>""),MAX(Predrok_novembar!F24,Predrok_decembar!F24,Januar!F24,Februar!F24,April!F24,Juni!F24,Juli!F24,Septembar!F24,Oktobar!F24,Oktobar_2!F24),"") ->  | G24: =IF(OR(Predrok_novembar!G24<>"",Predrok_decembar!G24<>"",Januar!G24<>"",Februar!G24<>"",April!G24<>"",Juni!G24<>"",Juli!G24,Septembar!G24<>"",Oktobar!G24<>"",Oktobar_2!G24<>""),MAX(Predrok_novembar!G24,Predrok_decembar!G24,Januar!G24,Februar!G24,April!G24,Juni!G24,Juli!G24,Septembar!G24,Oktobar!G24,Oktobar_2!G24),"") ->  | H24: =IF(OR(Predrok_novembar!H24<>"",Predrok_decembar!H24<>"",Januar!H24<>"",Februar!H24<>"",April!H24<>"",Juni!H24<>"",Juli!H24,Septembar!H24<>"",Oktobar!H24<>"",Oktobar_2!H24<>""),MAX(Predrok_novembar!H24,Predrok_decembar!H24,Januar!H24,Februar!H24,April!H24,Juni!H24,Juli!H24,Septembar!H24,Oktobar!H24,Oktobar_2!H24),"") ->  | I24: =IF(OR(Predrok_novembar!I24<>"",Predrok_decembar!I24<>"",Januar!I24<>"",Februar!I24<>"",April!I24<>"",Juni!I24<>"",Juli!I24,Septembar!I24<>"",Oktobar!I24<>"",Oktobar_2!I24<>""),MAX(Predrok_novembar!I24,Predrok_decembar!I24,Januar!I24,Februar!I24,April!I24,Juni!I24,Juli!I24,Septembar!I24,Oktobar!I24,Oktobar_2!I24),"") ->  | J24: =IF(OR(Predrok_novembar!J24<>"",Predrok_decembar!J24<>"",Januar!J24<>"",Februar!J24<>"",April!J24<>"",Juni!J24<>"",Juli!J24,Septembar!J24<>"",Oktobar!J24<>"",Oktobar_2!J24<>""),MAX(Predrok_novembar!J24,Predrok_decembar!J24,Januar!J24,Februar!J24,April!J24,Juni!J24,Juli!J24,Septembar!J24,Oktobar!J24,Oktobar_2!J24),"") ->  | K24: NE
A25: =PODACI_STUDENTI!A24 -> 23 | B25: =PODACI_STUDENTI!B24 -> 2017/2001 | C25: =PODACI_STUDENTI!C24 -> Ерић Марко | D25: =PODACI_STUDENTI!D24 -> Кошарка | F25: =IF(OR(Predrok_novembar!F25<>"",Predrok_decembar!F25<>"",Januar!F25<>"",Februar!F25<>"",April!F25<>"",Juni!F25<>"",Juli!F25,Septembar!F25<>"",Oktobar!F25<>"",Oktobar_2!F25<>""),MAX(Predrok_novembar!F25,Predrok_decembar!F25,Januar!F25,Februar!F25,April!F25,Juni!F25,Juli!F25,Septembar!F25,Oktobar!F25,Oktobar_2!F25),"") -> 31 | G25: =IF(OR(Predrok_novembar!G25<>"",Predrok_decembar!G25<>"",Januar!G25<>"",Februar!G25<>"",April!G25<>"",Juni!G25<>"",Juli!G25,Septembar!G25<>"",Oktobar!G25<>"",Oktobar_2!G25<>""),MAX(Predrok_novembar!G25,Predrok_decembar!G25,Januar!G25,Februar!G25,April!G25,Juni!G25,Juli!G25,Septembar!G25,Oktobar!G25,Oktobar_2!G25),"") -> 30 | H25: 12 | I25: =IF(OR(Predrok_novembar!I25<>"",Predrok_decembar!I25<>"",Januar!I25<>"",Februar!I25<>"",April!I25<>"",Juni!I25<>"",Juli!I25,Septembar!I25<>"",Oktobar!I25<>"",Oktobar_2!I25<>""),MAX(Predrok_novembar!I25,Predrok_decembar!I25,Januar!I25,Februar!I25,April!I25,Juni!I25,Juli!I25,Septembar!I25,Oktobar!I25,Oktobar_2!I25),"") -> 10 | J25: =IF(OR(Predrok_novembar!J25<>"",Predrok_decembar!J25<>"",Januar!J25<>"",Februar!J25<>"",April!J25<>"",Juni!J25<>"",Juli!J25,Septembar!J25<>"",Oktobar!J25<>"",Oktobar_2!J25<>""),MAX(Predrok_novembar!J25,Predrok_decembar!J25,Januar!J25,Februar!J25,April!J25,Juni!J25,Juli!J25,Septembar!J25,Oktobar!J25,Oktobar_2!J25),"") -> 10 | K25: DA | L25: 5 | M25: 5 | N25: 14 | O25: 13 | P25: 8 | Q25: 9 | R25: 9 | S25: 20 | T25: 83.0 | U25: 9 | V25: Јануар | W25: 2018-01-18 | X25: 10 | Y25: 2018-01-09 | Z25: 35 | AA25: 2018-01-18 | AB25: 19 | AC25: 2018-01-18 | AD25: 20 | AE25: 83 | AF25: 9 | AG25: 2018-01-18
A26: =PODACI_STUDENTI!A25 -> 24 | B26: =PODACI_STUDENTI!B25 -> 2017/2051 | C26: =PODACI_STUDENTI!C25 -> Жарковић Игор | D26: =PODACI_STUDENTI!D25 -> Кондиција | F26: 29 | G26: =IF(OR(Predrok_novembar!G26<>"",Predrok_decembar!G26<>"",Januar!G26<>"",Februar!G26<>"",April!G26<>"",Juni!G26<>"",Juli!G26,Septembar!G26<>"",Oktobar!G26<>"",Oktobar_2!G26<>""),MAX(Predrok_novembar!G26,Predrok_decembar!G26,Januar!G26,Februar!G26,April!G26,Juni!G26,Juli!G26,Septembar!G26,Oktobar!G26,Oktobar_2!G26),"") -> 30 | H26: =IF(OR(Predrok_novembar!H26<>"",Predrok_decembar!H26<>"",Januar!H26<>"",Februar!H26<>"",April!H26<>"",Juni!H26<>"",Juli!H26,Septembar!H26<>"",Oktobar!H26<>"",Oktobar_2!H26<>""),MAX(Predrok_novembar!H26,Predrok_decembar!H26,Januar!H26,Februar!H26,April!H26,Juni!H26,Juli!H26,Septembar!H26,Oktobar!H26,Oktobar_2!H26),"") ->  | I26: =IF(OR(Predrok_novembar!I26<>"",Predrok_decembar!I26<>"",Januar!I26<>"",Februar!I26<>"",April!I26<>"",Juni!I26<>"",Juli!I26,Septembar!I26<>"",Oktobar!I26<>"",Oktobar_2!I26<>""),MAX(Predrok_novembar!I26,Predrok_decembar!I26,Januar!I26,Februar!I26,April!I26,Juni!I26,Juli!I26,Septembar!I26,Oktobar!I26,Oktobar_2!I26),"") -> 11 | J26: =IF(OR(Predrok_novembar!J26<>"",Predrok_decembar!J26<>"",Januar!J26<>"",Februar!J26<>"",April!J26<>"",Juni!J26<>"",Juli!J26,Septembar!J26<>"",Oktobar!J26<>"",Oktobar_2!J26<>""),MAX(Predrok_novembar!J26,Predrok_decembar!J26,Januar!J26,Februar!J26,April!J26,Juni!J26,Juli!J26,Septembar!J26,Oktobar!J26,Oktobar_2!J26),"") ->  | K26: NE | N26: 13 | O26: 13 | Q26: 10
A27: =PODACI_STUDENTI!A26 -> 25 | B27: =PODACI_STUDENTI!B26 -> 2017/2039 | C27: =PODACI_STUDENTI!C26 -> Живановић Зоран | D27: =PODACI_STUDENTI!D26 -> Фудбал | F27: =IF(OR(Predrok_novembar!F27<>"",Predrok_decembar!F27<>"",Januar!F27<>"",Februar!F27<>"",April!F27<>"",Juni!F27<>"",Juli!F27,Septembar!F27<>"",Oktobar!F27<>"",Oktobar_2!F27<>""),MAX(Predrok_novembar!F27,Predrok_decembar!F27,Januar!F27,Februar!F27,April!F27,Juni!F27,Juli!F27,Septembar!F27,Oktobar!F27,Oktobar_2!F27),"") -> 24 | G27: =IF(OR(Predrok_novembar!G27<>"",Predrok_decembar!G27<>"",Januar!G27<>"",Februar!G27<>"",April!G27<>"",Juni!G27<>"",Juli!G27,Septembar!G27<>"",Oktobar!G27<>"",Oktobar_2!G27<>""),MAX(Predrok_novembar!G27,Predrok_decembar!G27,Januar!G27,Februar!G27,April!G27,Juni!G27,Juli!G27,Septembar!G27,Oktobar!G27,Oktobar_2!G27),"") ->  | H27: =IF(OR(Predrok_novembar!H27<>"",Predrok_decembar!H27<>"",Januar!H27<>"",Februar!H27<>"",April!H27<>"",Juni!H27<>"",Juli!H27,Septembar!H27<>"",Oktobar!H27<>"",Oktobar_2!H27<>""),MAX(Predrok_novembar!H27,Predrok_decembar!H27,Januar!H27,Februar!H27,April!H27,Juni!H27,Juli!H27,Septembar!H27,Oktobar!H27,Oktobar_2!H27),"") ->  | I27: =IF(OR(Predrok_novembar!I27<>"",Predrok_decembar!I27<>"",Januar!I27<>"",Februar!I27<>"",April!I27<>"",Juni!I27<>"",Juli!I27,Septembar!I27<>"",Oktobar!I27<>"",Oktobar_2!I27<>""),MAX(Predrok_novembar!I27,Predrok_decembar!I27,Januar!I27,Februar!I27,April!I27,Juni!I27,Juli!I27,Septembar!I27,Oktobar!I27,Oktobar_2!I27),"") ->  | J27: =IF(OR(Predrok_novembar!J27<>"",Predrok_decembar!J27<>"",Januar!J27<>"",Februar!J27<>"",April!J27<>"",Juni!J27<>"",Juli!J27,Septembar!J27<>"",Oktobar!J27<>"",Oktobar_2!J27<>""),MAX(Predrok_novembar!J27,Predrok_decembar!J27,Januar!J27,Februar!J27,April!J27,Juni!J27,Juli!J27,Septembar!J27,Oktobar!J27,Oktobar_2!J27),"") -> 9 | K27: NE | N27: 11 | R27: 8
A28: =PODACI_STUDENTI!A27 -> 26 | B28: =PODACI_STUDENTI!B27 -> 2017/2025 | C28: =PODACI_STUDENTI!C27 -> Зуровац Сергеј | D28: =PODACI_STUDENTI!D27 -> Кошарка | F28: 24 | G28: 24 | H28: =IF(OR(Predrok_novembar!H28<>"",Predrok_decembar!H28<>"",Januar!H28<>"",Februar!H28<>"",April!H28<>"",Juni!H28<>"",Juli!H28,Septembar!H28<>"",Oktobar!H28<>"",Oktobar_2!H28<>""),MAX(Predrok_novembar!H28,Predrok_decembar!H28,Januar!H28,Februar!H28,April!H28,Juni!H28,Juli!H28,Septembar!H28,Oktobar!H28,Oktobar_2!H28),"") ->  | I28: =IF(OR(Predrok_novembar!I28<>"",Predrok_decembar!I28<>"",Januar!I28<>"",Februar!I28<>"",April!I28<>"",Juni!I28<>"",Juli!I28,Septembar!I28<>"",Oktobar!I28<>"",Oktobar_2!I28<>""),MAX(Predrok_novembar!I28,Predrok_decembar!I28,Januar!I28,Februar!I28,April!I28,Juni!I28,Juli!I28,Septembar!I28,Oktobar!I28,Oktobar_2!I28),"") -> 9 | J28: =IF(OR(Predrok_novembar!J28<>"",Predrok_decembar!J28<>"",Januar!J28<>"",Februar!J28<>"",April!J28<>"",Juni!J28<>"",Juli!J28,Septembar!J28<>"",Oktobar!J28<>"",Oktobar_2!J28<>""),MAX(Predrok_novembar!J28,Predrok_decembar!J28,Januar!J28,Februar!J28,April!J28,Juni!J28,Juli!J28,Septembar!J28,Oktobar!J28,Oktobar_2!J28),"") ->  | K28: NE | N28: 11 | O28: 11 | Q28: 8
A29: =PODACI_STUDENTI!A28 -> 27 | B29: =PODACI_STUDENTI!B28 -> 2017/2059 | C29: =PODACI_STUDENTI!C28 -> Игић Димитрије | D29: =PODACI_STUDENTI!D28 -> Кошарка | F29: =IF(OR(Predrok_novembar!F29<>"",Predrok_decembar!F29<>"",Januar!F29<>"",Februar!F29<>"",April!F29<>"",Juni!F29<>"",Juli!F29,Septembar!F29<>"",Oktobar!F29<>"",Oktobar_2!F29<>""),MAX(Predrok_novembar!F29,Predrok_decembar!F29,Januar!F29,Februar!F29,April!F29,Juni!F29,Juli!F29,Septembar!F29,Oktobar!F29,Oktobar_2!F29),"") -> 30 | G29: =IF(OR(Predrok_novembar!G29<>"",Predrok_decembar!G29<>"",Januar!G29<>"",Februar!G29<>"",April!G29<>"",Juni!G29<>"",Juli!G29,Septembar!G29<>"",Oktobar!G29<>"",Oktobar_2!G29<>""),MAX(Predrok_novembar!G29,Predrok_decembar!G29,Januar!G29,Februar!G29,April!G29,Juni!G29,Juli!G29,Septembar!G29,Oktobar!G29,Oktobar_2!G29),"") -> 29 | H29: =IF(OR(Predrok_novembar!H29<>"",Predrok_decembar!H29<>"",Januar!H29<>"",Februar!H29<>"",April!H29<>"",Juni!H29<>"",Juli!H29,Septembar!H29<>"",Oktobar!H29<>"",Oktobar_2!H29<>""),MAX(Predrok_novembar!H29,Predrok_decembar!H29,Januar!H29,Februar!H29,April!H29,Juni!H29,Juli!H29,Septembar!H29,Oktobar!H29,Oktobar_2!H29),"") -> 18 | I29: =IF(OR(Predrok_novembar!I29<>"",Predrok_decembar!I29<>"",Januar!I29<>"",Februar!I29<>"",April!I29<>"",Juni!I29<>"",Juli!I29,Septembar!I29<>"",Oktobar!I29<>"",Oktobar_2!I29<>""),MAX(Predrok_novembar!I29,Predrok_decembar!I29,Januar!I29,Februar!I29,April!I29,Juni!I29,Juli!I29,Septembar!I29,Oktobar!I29,Oktobar_2!I29),"") -> 11 | J29: =IF(OR(Predrok_novembar!J29<>"",Predrok_decembar!J29<>"",Januar!J29<>"",Februar!J29<>"",April!J29<>"",Juni!J29<>"",Juli!J29,Septembar!J29<>"",Oktobar!J29<>"",Oktobar_2!J29<>""),MAX(Predrok_novembar!J29,Predrok_decembar!J29,Januar!J29,Februar!J29,April!J29,Juni!J29,Juli!J29,Septembar!J29,Oktobar!J29,Oktobar_2!J29),"") -> 14 | K29: DA | L29: 5 | M29: 5 | N29: 13 | O29: 13 | P29: 12 | Q29: 10 | R29: 13 | S29: 20 | T29: 91.0 | U29: 10 | V29: Јануар | W29: 2018-01-18 | X29: 10 | Y29: 2018-01-09 | Z29: 38 | AA29: 2018-01-18 | AB29: 23 | AC29: 2018-01-18 | AD29: 20 | AE29: 91 | AF29: 10 | AG29: 2018-01-18
A30: =PODACI_STUDENTI!A29 -> 28 | B30: =PODACI_STUDENTI!B29 -> 2017/2021 | C30: =PODACI_STUDENTI!C29 -> Илић Никола | D30: =PODACI_STUDENTI!D29 -> Кондиција | F30: =IF(OR(Predrok_novembar!F30<>"",Predrok_decembar!F30<>"",Januar!F30<>"",Februar!F30<>"",April!F30<>"",Juni!F30<>"",Juli!F30,Septembar!F30<>"",Oktobar!F30<>"",Oktobar_2!F30<>""),MAX(Predrok_novembar!F30,Predrok_decembar!F30,Januar!F30,Februar!F30,April!F30,Juni!F30,Juli!F30,Septembar!F30,Oktobar!F30,Oktobar_2!F30),"") -> 30 | G30: =IF(OR(Predrok_novembar!G30<>"",Predrok_decembar!G30<>"",Januar!G30<>"",Februar!G30<>"",April!G30<>"",Juni!G30<>"",Juli!G30,Septembar!G30<>"",Oktobar!G30<>"",Oktobar_2!G30<>""),MAX(Predrok_novembar!G30,Predrok_decembar!G30,Januar!G30,Februar!G30,April!G30,Juni!G30,Juli!G30,Septembar!G30,Oktobar!G30,Oktobar_2!G30),"") -> 30 | H30: 13 | I30: =IF(OR(Predrok_novembar!I30<>"",Predrok_decembar!I30<>"",Januar!I30<>"",Februar!I30<>"",April!I30<>"",Juni!I30<>"",Juli!I30,Septembar!I30<>"",Oktobar!I30<>"",Oktobar_2!I30<>""),MAX(Predrok_novembar!I30,Predrok_decembar!I30,Januar!I30,Februar!I30,April!I30,Juni!I30,Juli!I30,Septembar!I30,Oktobar!I30,Oktobar_2!I30),"") -> 9 | J30: 9 | K30: DA | L30: 5 | M30: 5 | N30: 13 | O30: 13 | P30: 9 | Q30: 8 | R30: 8 | S30: 15 | T30: 77.0 | U30: 8 | V30: Април | W30: 2018-04-20 | X30: 10 | Y30: 2018-01-09 | Z30: 35 | AA30: 2018-04-18 | AB30: 17 | AC30: 2018-04-20 | AD30: 15 | AE30: 77 | AF30: 8 | AG30: 2018-04-20
A31: =PODACI_STUDENTI!A30 -> 29 | B31: =PODACI_STUDENTI!B30 -> 2017/2031 | C31: =PODACI_STUDENTI!C30 -> Јовановић Борис | D31: =PODACI_STUDENTI!D30 -> Кошарка | F31: =IF(OR(Predrok_novembar!F31<>"",Predrok_decembar!F31<>"",Januar!F31<>"",Februar!F31<>"",April!F31<>"",Juni!F31<>"",Juli!F31,Septembar!F31<>"",Oktobar!F31<>"",Oktobar_2!F31<>""),MAX(Predrok_novembar!F31,Predrok_decembar!F31,Januar!F31,Februar!F31,April!F31,Juni!F31,Juli!F31,Septembar!F31,Oktobar!F31,Oktobar_2!F31),"") -> 28 | G31: =IF(OR(Predrok_novembar!G31<>"",Predrok_decembar!G31<>"",Januar!G31<>"",Februar!G31<>"",April!G31<>"",Juni!G31<>"",Juli!G31,Septembar!G31<>"",Oktobar!G31<>"",Oktobar_2!G31<>""),MAX(Predrok_novembar!G31,Predrok_decembar!G31,Januar!G31,Februar!G31,April!G31,Juni!G31,Juli!G31,Septembar!G31,Oktobar!G31,Oktobar_2!G31),"") -> 31 | H31: =IF(OR(Predrok_novembar!H31<>"",Predrok_decembar!H31<>"",Januar!H31<>"",Februar!H31<>"",April!H31<>"",Juni!H31<>"",Juli!H31,Septembar!H31<>"",Oktobar!H31<>"",Oktobar_2!H31<>""),MAX(Predrok_novembar!H31,Predrok_decembar!H31,Januar!H31,Februar!H31,April!H31,Juni!H31,Juli!H31,Septembar!H31,Oktobar!H31,Oktobar_2!H31),"") -> 13 | I31: =IF(OR(Predrok_novembar!I31<>"",Predrok_decembar!I31<>"",Januar!I31<>"",Februar!I31<>"",April!I31<>"",Juni!I31<>"",Juli!I31,Septembar!I31<>"",Oktobar!I31<>"",Oktobar_2!I31<>""),MAX(Predrok_novembar!I31,Predrok_decembar!I31,Januar!I31,Februar!I31,April!I31,Juni!I31,Juli!I31,Septembar!I31,Oktobar!I31,Oktobar_2!I31),"") -> 10 | J31: =IF(OR(Predrok_novembar!J31<>"",Predrok_decembar!J31<>"",Januar!J31<>"",Februar!J31<>"",April!J31<>"",Juni!J31<>"",Juli!J31,Septembar!J31<>"",Oktobar!J31<>"",Oktobar_2!J31<>""),MAX(Predrok_novembar!J31,Predrok_decembar!J31,Januar!J31,Februar!J31,April!J31,Juni!J31,Juli!J31,Septembar!J31,Oktobar!J31,Oktobar_2!J31),"") -> 13 | K31: DA | L31: 5 | M31: 5 | N31: 12 | O31: 14 | P31: 9 | Q31: 9 | R31: 12 | S31: 20 | T31: 86.0 | U31: 9 | V31: Јануар | W31: 2018-01-18 | X31: 10 | Y31: 2018-01-09 | Z31: 34 | AA31: 2018-01-18 | AB31: 21 | AC31: 2018-01-18 | AD31: 20 | AE31: 86 | AF31: 9 | AG31: 2018-01-18
A32: =PODACI_STUDENTI!A31 -> 30 | B32: =PODACI_STUDENTI!B31 -> 2017/2508 | C32: =PODACI_STUDENTI!C31 -> Јовановић Марко | D32: =PODACI_STUDENTI!D31 -> Рекреација | F32: =IF(OR(Predrok_novembar!F32<>"",Predrok_decembar!F32<>"",Januar!F32<>"",Februar!F32<>"",April!F32<>"",Juni!F32<>"",Juli!F32,Septembar!F32<>"",Oktobar!F32<>"",Oktobar_2!F32<>""),MAX(Predrok_novembar!F32,Predrok_decembar!F32,Januar!F32,Februar!F32,April!F32,Juni!F32,Juli!F32,Septembar!F32,Oktobar!F32,Oktobar_2!F32),"") -> 29 | G32: =IF(OR(Predrok_novembar!G32<>"",Predrok_decembar!G32<>"",Januar!G32<>"",Februar!G32<>"",April!G32<>"",Juni!G32<>"",Juli!G32,Septembar!G32<>"",Oktobar!G32<>"",Oktobar_2!G32<>""),MAX(Predrok_novembar!G32,Predrok_decembar!G32,Januar!G32,Februar!G32,April!G32,Juni!G32,Juli!G32,Septembar!G32,Oktobar!G32,Oktobar_2!G32),"") -> 29 | H32: =IF(OR(Predrok_novembar!H32<>"",Predrok_decembar!H32<>"",Januar!H32<>"",Februar!H32<>"",April!H32<>"",Juni!H32<>"",Juli!H32,Septembar!H32<>"",Oktobar!H32<>"",Oktobar_2!H32<>""),MAX(Predrok_novembar!H32,Predrok_decembar!H32,Januar!H32,Februar!H32,April!H32,Juni!H32,Juli!H32,Septembar!H32,Oktobar!H32,Oktobar_2!H32),"") -> 20 | I32: =IF(OR(Predrok_novembar!I32<>"",Predrok_decembar!I32<>"",Januar!I32<>"",Februar!I32<>"",April!I32<>"",Juni!I32<>"",Juli!I32,Septembar!I32<>"",Oktobar!I32<>"",Oktobar_2!I32<>""),MAX(Predrok_novembar!I32,Predrok_decembar!I32,Januar!I32,Februar!I32,April!I32,Juni!I32,Juli!I32,Septembar!I32,Oktobar!I32,Oktobar_2!I32),"") -> 12 | J32: =IF(OR(Predrok_novembar!J32<>"",Predrok_decembar!J32<>"",Januar!J32<>"",Februar!J32<>"",April!J32<>"",Juni!J32<>"",Juli!J32,Septembar!J32<>"",Oktobar!J32<>"",Oktobar_2!J32<>""),MAX(Predrok_novembar!J32,Predrok_decembar!J32,Januar!J32,Februar!J32,April!J32,Juni!J32,Juli!J32,Septembar!J32,Oktobar!J32,Oktobar_2!J32),"") -> 13 | K32: DA | L32: 5 | M32: 5 | N32: 13 | O32: 13 | P32: 13 | Q32: 11 | R32: 12 | S32: 20 | T32: 92.0 | U32: 10 | V32: Јануар | W32: 2018-01-18 | X32: 10 | Y32: 2018-01-09 | Z32: 39 | AA32: 2018-01-18 | AB32: 23 | AC32: 2018-01-18 | AD32: 20 | AE32: 92 | AF32: 10 | AG32: 2018-01-18
A33: =PODACI_STUDENTI!A32 -> 31 | B33: =PODACI_STUDENTI!B32 -> 2017/2520 | C33: =PODACI_STUDENTI!C32 -> Јовановић Саша | D33: =PODACI_STUDENTI!D32 -> Рекреација | F33: =IF(OR(Predrok_novembar!F33<>"",Predrok_decembar!F33<>"",Januar!F33<>"",Februar!F33<>"",April!F33<>"",Juni!F33<>"",Juli!F33,Septembar!F33<>"",Oktobar!F33<>"",Oktobar_2!F33<>""),MAX(Predrok_novembar!F33,Predrok_decembar!F33,Januar!F33,Februar!F33,April!F33,Juni!F33,Juli!F33,Septembar!F33,Oktobar!F33,Oktobar_2!F33),"") -> 31 | G33: =IF(OR(Predrok_novembar!G33<>"",Predrok_decembar!G33<>"",Januar!G33<>"",Februar!G33<>"",April!G33<>"",Juni!G33<>"",Juli!G33,Septembar!G33<>"",Oktobar!G33<>"",Oktobar_2!G33<>""),MAX(Predrok_novembar!G33,Predrok_decembar!G33,Januar!G33,Februar!G33,April!G33,Juni!G33,Juli!G33,Septembar!G33,Oktobar!G33,Oktobar_2!G33),"") -> 31 | H33: 19 | I33: =IF(OR(Predrok_novembar!I33<>"",Predrok_decembar!I33<>"",Januar!I33<>"",Februar!I33<>"",April!I33<>"",Juni!I33<>"",Juli!I33,Septembar!I33<>"",Oktobar!I33<>"",Oktobar_2!I33<>""),MAX(Predrok_novembar!I33,Predrok_decembar!I33,Januar!I33,Februar!I33,April!I33,Juni!I33,Juli!I33,Septembar!I33,Oktobar!I33,Oktobar_2!I33),"") -> 12 | J33: =IF(OR(Predrok_novembar!J33<>"",Predrok_decembar!J33<>"",Januar!J33<>"",Februar!J33<>"",April!J33<>"",Juni!J33<>"",Juli!J33,Septembar!J33<>"",Oktobar!J33<>"",Oktobar_2!J33<>""),MAX(Predrok_novembar!J33,Predrok_decembar!J33,Januar!J33,Februar!J33,April!J33,Juni!J33,Juli!J33,Septembar!J33,Oktobar!J33,Oktobar_2!J33),"") -> 14 | K33: DA | L33: 5 | M33: 5 | N33: 14 | O33: 14 | P33: 13 | Q33: 11 | R33: 13 | S33: 20 | T33: 94.0 | U33: 10 | V33: Јануар | W33: 2018-01-18 | X33: 10 | Y33: 2018-01-09 | Z33: 40 | AA33: 2018-01-18 | AB33: 24 | AC33: 2018-01-18 | AD33: 20 | AE33: 94 | AF33: 10 | AG33: 2018-01-18
A34: =PODACI_STUDENTI!A33 -> 32 | B34: =PODACI_STUDENTI!B33 -> 2017/2002 | C34: =PODACI_STUDENTI!C33 -> Јовановић Филип | D34: =PODACI_STUDENTI!D33 -> Кондиција | F34: =IF(OR(Predrok_novembar!F34<>"",Predrok_decembar!F34<>"",Januar!F34<>"",Februar!F34<>"",April!F34<>"",Juni!F34<>"",Juli!F34,Septembar!F34<>"",Oktobar!F34<>"",Oktobar_2!F34<>""),MAX(Predrok_novembar!F34,Predrok_decembar!F34,Januar!F34,Februar!F34,April!F34,Juni!F34,Juli!F34,Septembar!F34,Oktobar!F34,Oktobar_2!F34),"") -> 31 | G34: =IF(OR(Predrok_novembar!G34<>"",Predrok_decembar!G34<>"",Januar!G34<>"",Februar!G34<>"",April!G34<>"",Juni!G34<>"",Juli!G34,Septembar!G34<>"",Oktobar!G34<>"",Oktobar_2!G34<>""),MAX(Predrok_novembar!G34,Predrok_decembar!G34,Januar!G34,Februar!G34,April!G34,Juni!G34,Juli!G34,Septembar!G34,Oktobar!G34,Oktobar_2!G34),"") -> 27 | H34: 19 | I34: 10 | J34: 13 | K34: DA | L34: 5 | M34: 5 | N34: 14 | O34: 12 | P34: 13 | Q34: 9 | R34: 12 | S34: 15 | T34: 85.0 | U34: 9 | V34: Април | W34: 2018-04-20 | X34: 10 | Y34: 2018-01-09 | Z34: 38 | AA34: 2018-04-18 | AB34: 21 | AC34: 2018-04-20 | AD34: 15 | AE34: 85 | AF34: 9 | AG34: 2018-04-20
A35: =PODACI_STUDENTI!A34 -> 33 | B35: =PODACI_STUDENTI!B34 -> 2017/2007 | C35: =PODACI_STUDENTI!C34 -> Јовановћ Марко | D35: =PODACI_STUDENTI!D34 -> Рукомет | F35: =IF(OR(Predrok_novembar!F35<>"",Predrok_decembar!F35<>"",Januar!F35<>"",Februar!F35<>"",April!F35<>"",Juni!F35<>"",Juli!F35,Septembar!F35<>"",Oktobar!F35<>"",Oktobar_2!F35<>""),MAX(Predrok_novembar!F35,Predrok_decembar!F35,Januar!F35,Februar!F35,April!F35,Juni!F35,Juli!F35,Septembar!F35,Oktobar!F35,Oktobar_2!F35),"") -> 31 | G35: =IF(OR(Predrok_novembar!G35<>"",Predrok_decembar!G35<>"",Januar!G35<>"",Februar!G35<>"",April!G35<>"",Juni!G35<>"",Juli!G35,Septembar!G35<>"",Oktobar!G35<>"",Oktobar_2!G35<>""),MAX(Predrok_novembar!G35,Predrok_decembar!G35,Januar!G35,Februar!G35,April!G35,Juni!G35,Juli!G35,Septembar!G35,Oktobar!G35,Oktobar_2!G35),"") -> 31 | H35: 19 | I35: =IF(OR(Predrok_novembar!I35<>"",Predrok_decembar!I35<>"",Januar!I35<>"",Februar!I35<>"",April!I35<>"",Juni!I35<>"",Juli!I35,Septembar!I35<>"",Oktobar!I35<>"",Oktobar_2!I35<>""),MAX(Predrok_novembar!I35,Predrok_decembar!I35,Januar!I35,Februar!I35,April!I35,Juni!I35,Juli!I35,Septembar!I35,Oktobar!I35,Oktobar_2!I35),"") -> 10 | J35: 13 | K35: =IF(B35<>"",IF(AND(F35<>"",G35<>"",H35<>"",I35<>"",J35<>""),"DA","NE"),"") -> DA | L35: 5 | M35: 5 | N35: 14 | O35: 14 | P35: 13 | Q35: 9 | R35: 12 | S35: =IF(V35<>"",IF(AND(N35<>"",O35<>"",P35<>"",Q35<>"",R35<>""),IF(OR(V35="Јануар",V35="Фебруар"),20,IF(OR(V35="Април",V35="Јун",V35="Јул"),15,10)),""),"") -> 15 | T35: 86.0 | U35: =IF(T35<>"",VLOOKUP(T35,$AM$3:$AO$7,3),"") -> 9 | V35: Април | W35: 2018-04-20 | X35: 10 | Y35: 2018-01-09 | Z35: =IF(X35<>"",SUM(N35,O35,P35),"") -> 40 | AA35: 2018-04-18 | AB35: =IF(X35<>"",Q35+R35,"") -> 21 | AC35: 2018-04-20 | AD35: =IF(AND(U35<>"",V35<>""),S35,"") -> 15 | AE35: 86 | AF35: =IF(AND(U35<>"",V35<>""),U35,"") -> 9 | AG35: 2018-04-20
A36: =PODACI_STUDENTI!A35 -> 34 | B36: =PODACI_STUDENTI!B35 -> 2017/2014 | C36: =PODACI_STUDENTI!C35 -> Јочовић Димитрије | D36: =PODACI_STUDENTI!D35 -> Фудбал | F36: =IF(OR(Predrok_novembar!F36<>"",Predrok_decembar!F36<>"",Januar!F36<>"",Februar!F36<>"",April!F36<>"",Juni!F36<>"",Juli!F36,Septembar!F36<>"",Oktobar!F36<>"",Oktobar_2!F36<>""),MAX(Predrok_novembar!F36,Predrok_decembar!F36,Januar!F36,Februar!F36,April!F36,Juni!F36,Juli!F36,Septembar!F36,Oktobar!F36,Oktobar_2!F36),"") -> 32 | G36: =IF(OR(Predrok_novembar!G36<>"",Predrok_decembar!G36<>"",Januar!G36<>"",Februar!G36<>"",April!G36<>"",Juni!G36<>"",Juli!G36,Septembar!G36<>"",Oktobar!G36<>"",Oktobar_2!G36<>""),MAX(Predrok_novembar!G36,Predrok_decembar!G36,Januar!G36,Februar!G36,April!G36,Juni!G36,Juli!G36,Septembar!G36,Oktobar!G36,Oktobar_2!G36),"") -> 32 | H36: =IF(OR(Predrok_novembar!H36<>"",Predrok_decembar!H36<>"",Januar!H36<>"",Februar!H36<>"",April!H36<>"",Juni!H36<>"",Juli!H36,Septembar!H36<>"",Oktobar!H36<>"",Oktobar_2!H36<>""),MAX(Predrok_novembar!H36,Predrok_decembar!H36,Januar!H36,Februar!H36,April!H36,Juni!H36,Juli!H36,Septembar!H36,Oktobar!H36,Oktobar_2!H36),"") -> 19 | I36: =IF(OR(Predrok_novembar!I36<>"",Predrok_decembar!I36<>"",Januar!I36<>"",Februar!I36<>"",April!I36<>"",Juni!I36<>"",Juli!I36,Septembar!I36<>"",Oktobar!I36<>"",Oktobar_2!I36<>""),MAX(Predrok_novembar!I36,Predrok_decembar!I36,Januar!I36,Februar!I36,April!I36,Juni!I36,Juli!I36,Septembar!I36,Oktobar!I36,Oktobar_2!I36),"") -> 10 | J36: =IF(OR(Predrok_novembar!J36<>"",Predrok_decembar!J36<>"",Januar!J36<>"",Februar!J36<>"",April!J36<>"",Juni!J36<>"",Juli!J36,Septembar!J36<>"",Oktobar!J36<>"",Oktobar_2!J36<>""),MAX(Predrok_novembar!J36,Predrok_decembar!J36,Januar!J36,Februar!J36,April!J36,Juni!J36,Juli!J36,Septembar!J36,Oktobar!J36,Oktobar_2!J36),"") -> 13 | K36: DA | L36: 5 | M36: 5 | N36: 14 | O36: 14 | P36: 13 | Q36: 9 | R36: 12 | S36: 20 | T36: 92.0 | U36: 10 | V36: Јануар | W36: 2018-01-18 | X36: 10 | Y36: 2018-01-09 | Z36: 41 | AA36: 2018-01-18 | AB36: 21 | AC36: 2018-01-18 | AD36: 20 | AE36: 92 | AF36: 10 | AG36: 2018-01-18
A37: =PODACI_STUDENTI!A36 -> 35 | B37: =PODACI_STUDENTI!B36 -> 2017/2022 | C37: =PODACI_STUDENTI!C36 -> Комазец Жељана | D37: =PODACI_STUDENTI!D36 -> Кошарка | F37: =IF(OR(Predrok_novembar!F37<>"",Predrok_decembar!F37<>"",Januar!F37<>"",Februar!F37<>"",April!F37<>"",Juni!F37<>"",Juli!F37,Septembar!F37<>"",Oktobar!F37<>"",Oktobar_2!F37<>""),MAX(Predrok_novembar!F37,Predrok_decembar!F37,Januar!F37,Februar!F37,April!F37,Juni!F37,Juli!F37,Septembar!F37,Oktobar!F37,Oktobar_2!F37),"") -> 28 | G37: =IF(OR(Predrok_novembar!G37<>"",Predrok_decembar!G37<>"",Januar!G37<>"",Februar!G37<>"",April!G37<>"",Juni!G37<>"",Juli!G37,Septembar!G37<>"",Oktobar!G37<>"",Oktobar_2!G37<>""),MAX(Predrok_novembar!G37,Predrok_decembar!G37,Januar!G37,Februar!G37,April!G37,Juni!G37,Juli!G37,Septembar!G37,Oktobar!G37,Oktobar_2!G37),"") -> 26 | H37: =IF(OR(Predrok_novembar!H37<>"",Predrok_decembar!H37<>"",Januar!H37<>"",Februar!H37<>"",April!H37<>"",Juni!H37<>"",Juli!H37,Septembar!H37<>"",Oktobar!H37<>"",Oktobar_2!H37<>""),MAX(Predrok_novembar!H37,Predrok_decembar!H37,Januar!H37,Februar!H37,April!H37,Juni!H37,Juli!H37,Septembar!H37,Oktobar!H37,Oktobar_2!H37),"") -> 19 | I37: =IF(OR(Predrok_novembar!I37<>"",Predrok_decembar!I37<>"",Januar!I37<>"",Februar!I37<>"",April!I37<>"",Juni!I37<>"",Juli!I37,Septembar!I37<>"",Oktobar!I37<>"",Oktobar_2!I37<>""),MAX(Predrok_novembar!I37,Predrok_decembar!I37,Januar!I37,Februar!I37,April!I37,Juni!I37,Juli!I37,Septembar!I37,Oktobar!I37,Oktobar_2!I37),"") -> 10 | J37: =IF(OR(Predrok_novembar!J37<>"",Predrok_decembar!J37<>"",Januar!J37<>"",Februar!J37<>"",April!J37<>"",Juni!J37<>"",Juli!J37,Septembar!J37<>"",Oktobar!J37<>"",Oktobar_2!J37<>""),MAX(Predrok_novembar!J37,Predrok_decembar!J37,Januar!J37,Februar!J37,April!J37,Juni!J37,Juli!J37,Septembar!J37,Oktobar!J37,Oktobar_2!J37),"") -> 9 | K37: DA | L37: 5 | M37: 5 | N37: 12 | O37: 11 | P37: 13 | Q37: 9 | R37: 8 | S37: 20 | T37: 84.0 | U37: 9 | V37: Јануар | W37: 2018-01-18 | X37: 10 | Y37: 2018-01-09 | Z37: 36 | AA37: 2018-01-18 | AB37: 18 | AC37: 2018-01-18 | AD37: 20 | AE37: 84 | AF37: 9 | AG37: 2018-01-18
A38: =PODACI_STUDENTI!A37 -> 36 | B38: =PODACI_STUDENTI!B37 -> 2017/2061 | C38: =PODACI_STUDENTI!C37 -> Копривица Давид | D38: =PODACI_STUDENTI!D37 -> Кондиција | F38: =IF(OR(Predrok_novembar!F38<>"",Predrok_decembar!F38<>"",Januar!F38<>"",Februar!F38<>"",April!F38<>"",Juni!F38<>"",Juli!F38,Septembar!F38<>"",Oktobar!F38<>"",Oktobar_2!F38<>""),MAX(Predrok_novembar!F38,Predrok_decembar!F38,Januar!F38,Februar!F38,April!F38,Juni!F38,Juli!F38,Septembar!F38,Oktobar!F38,Oktobar_2!F38),"") -> 29 | G38: =IF(OR(Predrok_novembar!G38<>"",Predrok_decembar!G38<>"",Januar!G38<>"",Februar!G38<>"",April!G38<>"",Juni!G38<>"",Juli!G38,Septembar!G38<>"",Oktobar!G38<>"",Oktobar_2!G38<>""),MAX(Predrok_novembar!G38,Predrok_decembar!G38,Januar!G38,Februar!G38,April!G38,Juni!G38,Juli!G38,Septembar!G38,Oktobar!G38,Oktobar_2!G38),"") -> 24 | H38: =IF(OR(Predrok_novembar!H38<>"",Predrok_decembar!H38<>"",Januar!H38<>"",Februar!H38<>"",April!H38<>"",Juni!H38<>"",Juli!H38,Septembar!H38<>"",Oktobar!H38<>"",Oktobar_2!H38<>""),MAX(Predrok_novembar!H38,Predrok_decembar!H38,Januar!H38,Februar!H38,April!H38,Juni!H38,Juli!H38,Septembar!H38,Oktobar!H38,Oktobar_2!H38),"") ->  | I38: =IF(OR(Predrok_novembar!I38<>"",Predrok_decembar!I38<>"",Januar!I38<>"",Februar!I38<>"",April!I38<>"",Juni!I38<>"",Juli!I38,Septembar!I38<>"",Oktobar!I38<>"",Oktobar_2!I38<>""),MAX(Predrok_novembar!I38,Predrok_decembar!I38,Januar!I38,Februar!I38,April!I38,Juni!I38,Juli!I38,Septembar!I38,Oktobar!I38,Oktobar_2!I38),"") ->  | J38: =IF(OR(Predrok_novembar!J38<>"",Predrok_decembar!J38<>"",Januar!J38<>"",Februar!J38<>"",April!J38<>"",Juni!J38<>"",Juli!J38,Septembar!J38<>"",Oktobar!J38<>"",Oktobar_2!J38<>""),MAX(Predrok_novembar!J38,Predrok_decembar!J38,Januar!J38,Februar!J38,April!J38,Juni!J38,Juli!J38,Septembar!J38,Oktobar!J38,Oktobar_2!J38),"") ->  | K38: NE | N38: 13 | O38: 11
A39: =PODACI_STUDENTI!A38 -> 37 | B39: =PODACI_STUDENTI!B38 -> 2017/2512 | C39: =PODACI_STUDENTI!C38 -> Коџић Сара | D39: =PODACI_STUDENTI!D38 -> Рекреација | F39: =IF(OR(Predrok_novembar!F39<>"",Predrok_decembar!F39<>"",Januar!F39<>"",Februar!F39<>"",April!F39<>"",Juni!F39<>"",Juli!F39,Septembar!F39<>"",Oktobar!F39<>"",Oktobar_2!F39<>""),MAX(Predrok_novembar!F39,Predrok_decembar!F39,Januar!F39,Februar!F39,April!F39,Juni!F39,Juli!F39,Septembar!F39,Oktobar!F39,Oktobar_2!F39),"") -> 24 | G39: =IF(OR(Predrok_novembar!G39<>"",Predrok_decembar!G39<>"",Januar!G39<>"",Februar!G39<>"",April!G39<>"",Juni!G39<>"",Juli!G39,Septembar!G39<>"",Oktobar!G39<>"",Oktobar_2!G39<>""),MAX(Predrok_novembar!G39,Predrok_decembar!G39,Januar!G39,Februar!G39,April!G39,Juni!G39,Juli!G39,Septembar!G39,Oktobar!G39,Oktobar_2!G39),"") -> 24 | H39: =IF(OR(Predrok_novembar!H39<>"",Predrok_decembar!H39<>"",Januar!H39<>"",Februar!H39<>"",April!H39<>"",Juni!H39<>"",Juli!H39,Septembar!H39<>"",Oktobar!H39<>"",Oktobar_2!H39<>""),MAX(Predrok_novembar!H39,Predrok_decembar!H39,Januar!H39,Februar!H39,April!H39,Juni!H39,Juli!H39,Septembar!H39,Oktobar!H39,Oktobar_2!H39),"") -> 13 | I39: =IF(OR(Predrok_novembar!I39<>"",Predrok_decembar!I39<>"",Januar!I39<>"",Februar!I39<>"",April!I39<>"",Juni!I39<>"",Juli!I39,Septembar!I39<>"",Oktobar!I39<>"",Oktobar_2!I39<>""),MAX(Predrok_novembar!I39,Predrok_decembar!I39,Januar!I39,Februar!I39,April!I39,Juni!I39,Juli!I39,Septembar!I39,Oktobar!I39,Oktobar_2!I39),"") -> 9 | J39: =IF(OR(Predrok_novembar!J39<>"",Predrok_decembar!J39<>"",Januar!J39<>"",Februar!J39<>"",April!J39<>"",Juni!J39<>"",Juli!J39,Septembar!J39<>"",Oktobar!J39<>"",Oktobar_2!J39<>""),MAX(Predrok_novembar!J39,Predrok_decembar!J39,Januar!J39,Februar!J39,April!J39,Juni!J39,Juli!J39,Septembar!J39,Oktobar!J39,Oktobar_2!J39),"") -> 13 | K39: DA | L39: 5 | M39: 5 | N39: 11 | O39: 11 | P39: 9 | Q39: 8 | R39: 12 | S39: 10 | T39: 70.0 | U39: 7 | V39: Октобар | W39: 2018-09-12 | X39: 10 | Y39: 2018-01-09 | Z39: 30 | AA39: 2018-09-12 | AB39: 21 | AC39: 2018-09-12 | AD39: 10 | AE39: 70 | AF39: 7 | AG39: 2018-09-12
A40: =PODACI_STUDENTI!A39 -> 38 | B40: =PODACI_STUDENTI!B39 -> 2017/2032 | C40: =PODACI_STUDENTI!C39 -> Кулић Филип | D40: =PODACI_STUDENTI!D39 -> Кошарка | F40: =IF(OR(Predrok_novembar!F40<>"",Predrok_decembar!F40<>"",Januar!F40<>"",Februar!F40<>"",April!F40<>"",Juni!F40<>"",Juli!F40,Septembar!F40<>"",Oktobar!F40<>"",Oktobar_2!F40<>""),MAX(Predrok_novembar!F40,Predrok_decembar!F40,Januar!F40,Februar!F40,April!F40,Juni!F40,Juli!F40,Septembar!F40,Oktobar!F40,Oktobar_2!F40),"") -> 32 | G40: =IF(OR(Predrok_novembar!G40<>"",Predrok_decembar!G40<>"",Januar!G40<>"",Februar!G40<>"",April!G40<>"",Juni!G40<>"",Juli!G40,Septembar!G40<>"",Oktobar!G40<>"",Oktobar_2!G40<>""),MAX(Predrok_novembar!G40,Predrok_decembar!G40,Januar!G40,Februar!G40,April!G40,Juni!G40,Juli!G40,Septembar!G40,Oktobar!G40,Oktobar_2!G40),"") -> 31 | H40: =IF(OR(Predrok_novembar!H40<>"",Predrok_decembar!H40<>"",Januar!H40<>"",Februar!H40<>"",April!H40<>"",Juni!H40<>"",Juli!H40,Septembar!H40<>"",Oktobar!H40<>"",Oktobar_2!H40<>""),MAX(Predrok_novembar!H40,Predrok_decembar!H40,Januar!H40,Februar!H40,April!H40,Juni!H40,Juli!H40,Septembar!H40,Oktobar!H40,Oktobar_2!H40),"") -> 19 | I40: =IF(OR(Predrok_novembar!I40<>"",Predrok_decembar!I40<>"",Januar!I40<>"",Februar!I40<>"",April!I40<>"",Juni!I40<>"",Juli!I40,Septembar!I40<>"",Oktobar!I40<>"",Oktobar_2!I40<>""),MAX(Predrok_novembar!I40,Predrok_decembar!I40,Januar!I40,Februar!I40,April!I40,Juni!I40,Juli!I40,Septembar!I40,Oktobar!I40,Oktobar_2!I40),"") -> 10 | J40: =IF(OR(Predrok_novembar!J40<>"",Predrok_decembar!J40<>"",Januar!J40<>"",Februar!J40<>"",April!J40<>"",Juni!J40<>"",Juli!J40,Septembar!J40<>"",Oktobar!J40<>"",Oktobar_2!J40<>""),MAX(Predrok_novembar!J40,Predrok_decembar!J40,Januar!J40,Februar!J40,April!J40,Juni!J40,Juli!J40,Septembar!J40,Oktobar!J40,Oktobar_2!J40),"") -> 14 | K40: DA | L40: 5 | M40: 5 | N40: 14 | O40: 14 | P40: 13 | Q40: 9 | R40: 13 | S40: 20 | T40: 93.0 | U40: 10 | V40: Јануар | W40: 2018-01-18 | X40: 10 | Y40: 2018-01-09 | Z40: 40 | AA40: 2018-01-18 | AB40: 22 | AC40: 2018-01-18 | AD40: 20 | AE40: 93 | AF40: 10 | AG40: 2018-01-18
A41: =PODACI_STUDENTI!A40 -> 39 | B41: =PODACI_STUDENTI!B40 -> 2017/2040 | C41: =PODACI_STUDENTI!C40 -> Куруц Никола | D41: =PODACI_STUDENTI!D40 -> Кондиција | F41: =IF(OR(Predrok_novembar!F41<>"",Predrok_decembar!F41<>"",Januar!F41<>"",Februar!F41<>"",April!F41<>"",Juni!F41<>"",Juli!F41,Septembar!F41<>"",Oktobar!F41<>"",Oktobar_2!F41<>""),MAX(Predrok_novembar!F41,Predrok_decembar!F41,Januar!F41,Februar!F41,April!F41,Juni!F41,Juli!F41,Septembar!F41,Oktobar!F41,Oktobar_2!F41),"") -> 25 | G41: =IF(OR(Predrok_novembar!G41<>"",Predrok_decembar!G41<>"",Januar!G41<>"",Februar!G41<>"",April!G41<>"",Juni!G41<>"",Juli!G41,Septembar!G41<>"",Oktobar!G41<>"",Oktobar_2!G41<>""),MAX(Predrok_novembar!G41,Predrok_decembar!G41,Januar!G41,Februar!G41,April!G41,Juni!G41,Juli!G41,Septembar!G41,Oktobar!G41,Oktobar_2!G41),"") ->  | H41: =IF(OR(Predrok_novembar!H41<>"",Predrok_decembar!H41<>"",Januar!H41<>"",Februar!H41<>"",April!H41<>"",Juni!H41<>"",Juli!H41,Septembar!H41<>"",Oktobar!H41<>"",Oktobar_2!H41<>""),MAX(Predrok_novembar!H41,Predrok_decembar!H41,Januar!H41,Februar!H41,April!H41,Juni!H41,Juli!H41,Septembar!H41,Oktobar!H41,Oktobar_2!H41),"") ->  | I41: =IF(OR(Predrok_novembar!I41<>"",Predrok_decembar!I41<>"",Januar!I41<>"",Februar!I41<>"",April!I41<>"",Juni!I41<>"",Juli!I41,Septembar!I41<>"",Oktobar!I41<>"",Oktobar_2!I41<>""),MAX(Predrok_novembar!I41,Predrok_decembar!I41,Januar!I41,Februar!I41,April!I41,Juni!I41,Juli!I41,Septembar!I41,Oktobar!I41,Oktobar_2!I41),"") ->  | J41: =IF(OR(Predrok_novembar!J41<>"",Predrok_decembar!J41<>"",Januar!J41<>"",Februar!J41<>"",April!J41<>"",Juni!J41<>"",Juli!J41,Septembar!J41<>"",Oktobar!J41<>"",Oktobar_2!J41<>""),MAX(Predrok_novembar!J41,Predrok_decembar!J41,Januar!J41,Februar!J41,April!J41,Juni!J41,Juli!J41,Septembar!J41,Oktobar!J41,Oktobar_2!J41),"") ->  | K41: NE | N41: 11
A42: =PODACI_STUDENTI!A41 -> 40 | B42: =PODACI_STUDENTI!B41 -> 2017/2030 | C42: =PODACI_STUDENTI!C41 -> Кухут Даниела | D42: =PODACI_STUDENTI!D41 -> Фудбал | F42: =IF(OR(Predrok_novembar!F42<>"",Predrok_decembar!F42<>"",Januar!F42<>"",Februar!F42<>"",April!F42<>"",Juni!F42<>"",Juli!F42,Septembar!F42<>"",Oktobar!F42<>"",Oktobar_2!F42<>""),MAX(Predrok_novembar!F42,Predrok_decembar!F42,Januar!F42,Februar!F42,April!F42,Juni!F42,Juli!F42,Septembar!F42,Oktobar!F42,Oktobar_2!F42),"") -> 32 | G42: =IF(OR(Predrok_novembar!G42<>"",Predrok_decembar!G42<>"",Januar!G42<>"",Februar!G42<>"",April!G42<>"",Juni!G42<>"",Juli!G42,Septembar!G42<>"",Oktobar!G42<>"",Oktobar_2!G42<>""),MAX(Predrok_novembar!G42,Predrok_decembar!G42,Januar!G42,Februar!G42,April!G42,Juni!G42,Juli!G42,Septembar!G42,Oktobar!G42,Oktobar_2!G42),"") -> 32 | H42: =IF(OR(Predrok_novembar!H42<>"",Predrok_decembar!H42<>"",Januar!H42<>"",Februar!H42<>"",April!H42<>"",Juni!H42<>"",Juli!H42,Septembar!H42<>"",Oktobar!H42<>"",Oktobar_2!H42<>""),MAX(Predrok_novembar!H42,Predrok_decembar!H42,Januar!H42,Februar!H42,April!H42,Juni!H42,Juli!H42,Septembar!H42,Oktobar!H42,Oktobar_2!H42),"") -> 19 | I42: =IF(OR(Predrok_novembar!I42<>"",Predrok_decembar!I42<>"",Januar!I42<>"",Februar!I42<>"",April!I42<>"",Juni!I42<>"",Juli!I42,Septembar!I42<>"",Oktobar!I42<>"",Oktobar_2!I42<>""),MAX(Predrok_novembar!I42,Predrok_decembar!I42,Januar!I42,Februar!I42,April!I42,Juni!I42,Juli!I42,Septembar!I42,Oktobar!I42,Oktobar_2!I42),"") -> 11 | J42: =IF(OR(Predrok_novembar!J42<>"",Predrok_decembar!J42<>"",Januar!J42<>"",Februar!J42<>"",April!J42<>"",Juni!J42<>"",Juli!J42,Septembar!J42<>"",Oktobar!J42<>"",Oktobar_2!J42<>""),MAX(Predrok_novembar!J42,Predrok_decembar!J42,Januar!J42,Februar!J42,April!J42,Juni!J42,Juli!J42,Septembar!J42,Oktobar!J42,Oktobar_2!J42),"") -> 11 | K42: DA | L42: 5 | M42: 5 | N42: 14 | O42: 14 | P42: 13 | Q42: 10 | R42: 10 | S42: 20 | T42: 91.0 | U42: 10 | V42: Јануар | W42: 2018-01-18 | X42: 10 | Y42: 2018-01-09 | Z42: 41 | AA42: 2018-01-18 | AB42: 21 | AC42: 2018-01-18 | AD42: 20 | AE42: 91 | AF42: 10 | AG42: 2018-01-18
A43: =PODACI_STUDENTI!A42 -> 41 | B43: =PODACI_STUDENTI!B42 -> 2017/2502 | C43: =PODACI_STUDENTI!C42 -> Лазаревић Катарина | D43: =PODACI_STUDENTI!D42 -> Рекреација | F43: =IF(OR(Predrok_novembar!F43<>"",Predrok_decembar!F43<>"",Januar!F43<>"",Februar!F43<>"",April!F43<>"",Juni!F43<>"",Juli!F43,Septembar!F43<>"",Oktobar!F43<>"",Oktobar_2!F43<>""),MAX(Predrok_novembar!F43,Predrok_decembar!F43,Januar!F43,Februar!F43,April!F43,Juni!F43,Juli!F43,Septembar!F43,Oktobar!F43,Oktobar_2!F43),"") -> 28 | G43: =IF(OR(Predrok_novembar!G43<>"",Predrok_decembar!G43<>"",Januar!G43<>"",Februar!G43<>"",April!G43<>"",Juni!G43<>"",Juli!G43,Septembar!G43<>"",Oktobar!G43<>"",Oktobar_2!G43<>""),MAX(Predrok_novembar!G43,Predrok_decembar!G43,Januar!G43,Februar!G43,April!G43,Juni!G43,Juli!G43,Septembar!G43,Oktobar!G43,Oktobar_2!G43),"") ->  | H43: =IF(OR(Predrok_novembar!H43<>"",Predrok_decembar!H43<>"",Januar!H43<>"",Februar!H43<>"",April!H43<>"",Juni!H43<>"",Juli!H43,Septembar!H43<>"",Oktobar!H43<>"",Oktobar_2!H43<>""),MAX(Predrok_novembar!H43,Predrok_decembar!H43,Januar!H43,Februar!H43,April!H43,Juni!H43,Juli!H43,Septembar!H43,Oktobar!H43,Oktobar_2!H43),"") ->  | I43: =IF(OR(Predrok_novembar!I43<>"",Predrok_decembar!I43<>"",Januar!I43<>"",Februar!I43<>"",April!I43<>"",Juni!I43<>"",Juli!I43,Septembar!I43<>"",Oktobar!I43<>"",Oktobar_2!I43<>""),MAX(Predrok_novembar!I43,Predrok_decembar!I43,Januar!I43,Februar!I43,April!I43,Juni!I43,Juli!I43,Septembar!I43,Oktobar!I43,Oktobar_2!I43),"") ->  | J43: =IF(OR(Predrok_novembar!J43<>"",Predrok_decembar!J43<>"",Januar!J43<>"",Februar!J43<>"",April!J43<>"",Juni!J43<>"",Juli!J43,Septembar!J43<>"",Oktobar!J43<>"",Oktobar_2!J43<>""),MAX(Predrok_novembar!J43,Predrok_decembar!J43,Januar!J43,Februar!J43,April!J43,Juni!J43,Juli!J43,Septembar!J43,Oktobar!J43,Oktobar_2!J43),"") ->  | K43: NE | N43: 12
A44: =PODACI_STUDENTI!A43 -> 42 | B44: =PODACI_STUDENTI!B43 -> 2017/2009 | C44: =PODACI_STUDENTI!C43 -> Лазић Виктор Симеон | D44: =PODACI_STUDENTI!D43 -> Тенис | F44: =IF(OR(Predrok_novembar!F44<>"",Predrok_decembar!F44<>"",Januar!F44<>"",Februar!F44<>"",April!F44<>"",Juni!F44<>"",Juli!F44,Septembar!F44<>"",Oktobar!F44<>"",Oktobar_2!F44<>""),MAX(Predrok_novembar!F44,Predrok_decembar!F44,Januar!F44,Februar!F44,April!F44,Juni!F44,Juli!F44,Septembar!F44,Oktobar!F44,Oktobar_2!F44),"") -> 30 | G44: =IF(OR(Predrok_novembar!G44<>"",Predrok_decembar!G44<>"",Januar!G44<>"",Februar!G44<>"",April!G44<>"",Juni!G44<>"",Juli!G44,Septembar!G44<>"",Oktobar!G44<>"",Oktobar_2!G44<>""),MAX(Predrok_novembar!G44,Predrok_decembar!G44,Januar!G44,Februar!G44,April!G44,Juni!G44,Juli!G44,Septembar!G44,Oktobar!G44,Oktobar_2!G44),"") -> 32 | H44: 19 | I44: =IF(OR(Predrok_novembar!I44<>"",Predrok_decembar!I44<>"",Januar!I44<>"",Februar!I44<>"",April!I44<>"",Juni!I44<>"",Juli!I44,Septembar!I44<>"",Oktobar!I44<>"",Oktobar_2!I44<>""),MAX(Predrok_novembar!I44,Predrok_decembar!I44,Januar!I44,Februar!I44,April!I44,Juni!I44,Juli!I44,Septembar!I44,Oktobar!I44,Oktobar_2!I44),"") -> 10 | J44: 11 | K44: DA | L44: 5 | M44: 5 | N44: 13 | O44: 14 | P44: 13 | Q44: 9 | R44: 10 | S44: 15 | T44: 84.0 | U44: 9 | V44: Април | W44: 2018-04-20 | X44: 10 | Y44: 2018-01-09 | Z44: 40 | AA44: 2018-04-18 | AB44: 20 | AC44: 2018-04-20 | AD44: 15 | AE44: 84 | AF44: 9 | AG44: 2018-04-20
A45: =PODACI_STUDENTI!A44 -> 43 | B45: =PODACI_STUDENTI!B44 -> 2017/2506 | C45: =PODACI_STUDENTI!C44 -> Лазић Јована | D45: =PODACI_STUDENTI!D44 -> Рекреација | F45: =IF(OR(Predrok_novembar!F45<>"",Predrok_decembar!F45<>"",Januar!F45<>"",Februar!F45<>"",April!F45<>"",Juni!F45<>"",Juli!F45,Septembar!F45<>"",Oktobar!F45<>"",Oktobar_2!F45<>""),MAX(Predrok_novembar!F45,Predrok_decembar!F45,Januar!F45,Februar!F45,April!F45,Juni!F45,Juli!F45,Septembar!F45,Oktobar!F45,Oktobar_2!F45),"") -> 30 | G45: =IF(OR(Predrok_novembar!G45<>"",Predrok_decembar!G45<>"",Januar!G45<>"",Februar!G45<>"",April!G45<>"",Juni!G45<>"",Juli!G45,Septembar!G45<>"",Oktobar!G45<>"",Oktobar_2!G45<>""),MAX(Predrok_novembar!G45,Predrok_decembar!G45,Januar!G45,Februar!G45,April!G45,Juni!G45,Juli!G45,Septembar!G45,Oktobar!G45,Oktobar_2!G45),"") -> 31 | H45: =IF(OR(Predrok_novembar!H45<>"",Predrok_decembar!H45<>"",Januar!H45<>"",Februar!H45<>"",April!H45<>"",Juni!H45<>"",Juli!H45,Septembar!H45<>"",Oktobar!H45<>"",Oktobar_2!H45<>""),MAX(Predrok_novembar!H45,Predrok_decembar!H45,Januar!H45,Februar!H45,April!H45,Juni!H45,Juli!H45,Septembar!H45,Oktobar!H45,Oktobar_2!H45),"") -> 20 | I45: =IF(OR(Predrok_novembar!I45<>"",Predrok_decembar!I45<>"",Januar!I45<>"",Februar!I45<>"",April!I45<>"",Juni!I45<>"",Juli!I45,Septembar!I45<>"",Oktobar!I45<>"",Oktobar_2!I45<>""),MAX(Predrok_novembar!I45,Predrok_decembar!I45,Januar!I45,Februar!I45,April!I45,Juni!I45,Juli!I45,Septembar!I45,Oktobar!I45,Oktobar_2!I45),"") -> 14 | J45: =IF(OR(Predrok_novembar!J45<>"",Predrok_decembar!J45<>"",Januar!J45<>"",Februar!J45<>"",April!J45<>"",Juni!J45<>"",Juli!J45,Septembar!J45<>"",Oktobar!J45<>"",Oktobar_2!J45<>""),MAX(Predrok_novembar!J45,Predrok_decembar!J45,Januar!J45,Februar!J45,April!J45,Juni!J45,Juli!J45,Septembar!J45,Oktobar!J45,Oktobar_2!J45),"") -> 15 | K45: DA | L45: 5 | M45: 5 | N45: 13 | O45: 14 | P45: 13 | Q45: 13 | R45: 14 | S45: 20 | T45: 97.0 | U45: 10 | V45: Јануар | W45: 2018-01-18 | X45: 10 | Y45: 2018-01-09 | Z45: 40 | AA45: 2018-01-18 | AB45: 27 | AC45: 2018-01-18 | AD45: 20 | AE45: 97 | AF45: 10 | AG45: 2018-01-18
A46: =PODACI_STUDENTI!A45 -> 44 | B46: =PODACI_STUDENTI!B45 -> 2017/2501 | C46: =PODACI_STUDENTI!C45 -> Лазић Милица | D46: =PODACI_STUDENTI!D45 -> Рекреација | F46: =IF(OR(Predrok_novembar!F46<>"",Predrok_decembar!F46<>"",Januar!F46<>"",Februar!F46<>"",April!F46<>"",Juni!F46<>"",Juli!F46,Septembar!F46<>"",Oktobar!F46<>"",Oktobar_2!F46<>""),MAX(Predrok_novembar!F46,Predrok_decembar!F46,Januar!F46,Februar!F46,April!F46,Juni!F46,Juli!F46,Septembar!F46,Oktobar!F46,Oktobar_2!F46),"") -> 29 | G46: =IF(OR(Predrok_novembar!G46<>"",Predrok_decembar!G46<>"",Januar!G46<>"",Februar!G46<>"",April!G46<>"",Juni!G46<>"",Juli!G46,Septembar!G46<>"",Oktobar!G46<>"",Oktobar_2!G46<>""),MAX(Predrok_novembar!G46,Predrok_decembar!G46,Januar!G46,Februar!G46,April!G46,Juni!G46,Juli!G46,Septembar!G46,Oktobar!G46,Oktobar_2!G46),"") -> 31 | H46: =IF(OR(Predrok_novembar!H46<>"",Predrok_decembar!H46<>"",Januar!H46<>"",Februar!H46<>"",April!H46<>"",Juni!H46<>"",Juli!H46,Septembar!H46<>"",Oktobar!H46<>"",Oktobar_2!H46<>""),MAX(Predrok_novembar!H46,Predrok_decembar!H46,Januar!H46,Februar!H46,April!H46,Juni!H46,Juli!H46,Septembar!H46,Oktobar!H46,Oktobar_2!H46),"") -> 16 | I46: =IF(OR(Predrok_novembar!I46<>"",Predrok_decembar!I46<>"",Januar!I46<>"",Februar!I46<>"",April!I46<>"",Juni!I46<>"",Juli!I46,Septembar!I46<>"",Oktobar!I46<>"",Oktobar_2!I46<>""),MAX(Predrok_novembar!I46,Predrok_decembar!I46,Januar!I46,Februar!I46,April!I46,Juni!I46,Juli!I46,Septembar!I46,Oktobar!I46,Oktobar_2!I46),"") -> 13 | J46: =IF(OR(Predrok_novembar!J46<>"",Predrok_decembar!J46<>"",Januar!J46<>"",Februar!J46<>"",April!J46<>"",Juni!J46<>"",Juli!J46,Septembar!J46<>"",Oktobar!J46<>"",Oktobar_2!J46<>""),MAX(Predrok_novembar!J46,Predrok_decembar!J46,Januar!J46,Februar!J46,April!J46,Juni!J46,Juli!J46,Septembar!J46,Oktobar!J46,Oktobar_2!J46),"") -> 13 | K46: DA | L46: 5 | M46: 5 | N46: 13 | O46: 14 | P46: 11 | Q46: 12 | R46: 12 | S46: 20 | T46: 91.0 | U46: 10 | V46: Јануар | W46: 2018-01-18 | X46: 10 | Y46: 2018-01-09 | Z46: 37 | AA46: 2018-01-18 | AB46: 24 | AC46: 2018-01-18 | AD46: 20 | AE46: 91 | AF46: 10 | AG46: 2018-01-18
A47: =PODACI_STUDENTI!A46 -> 45 | B47: =PODACI_STUDENTI!B46 -> 2017/2010 | C47: =PODACI_STUDENTI!C46 -> Лаушевић Ђорђе | D47: =PODACI_STUDENTI!D46 -> Кондиција | F47: =IF(OR(Predrok_novembar!F47<>"",Predrok_decembar!F47<>"",Januar!F47<>"",Februar!F47<>"",April!F47<>"",Juni!F47<>"",Juli!F47,Septembar!F47<>"",Oktobar!F47<>"",Oktobar_2!F47<>""),MAX(Predrok_novembar!F47,Predrok_decembar!F47,Januar!F47,Februar!F47,April!F47,Juni!F47,Juli!F47,Septembar!F47,Oktobar!F47,Oktobar_2!F47),"") -> 25 | G47: =IF(OR(Predrok_novembar!G47<>"",Predrok_decembar!G47<>"",Januar!G47<>"",Februar!G47<>"",April!G47<>"",Juni!G47<>"",Juli!G47,Septembar!G47<>"",Oktobar!G47<>"",Oktobar_2!G47<>""),MAX(Predrok_novembar!G47,Predrok_decembar!G47,Januar!G47,Februar!G47,April!G47,Juni!G47,Juli!G47,Septembar!G47,Oktobar!G47,Oktobar_2!G47),"") -> 24 | H47: 15 | I47: 11 | J47: =IF(OR(Predrok_novembar!J47<>"",Predrok_decembar!J47<>"",Januar!J47<>"",Februar!J47<>"",April!J47<>"",Juni!J47<>"",Juli!J47,Septembar!J47<>"",Oktobar!J47<>"",Oktobar_2!J47<>""),MAX(Predrok_novembar!J47,Predrok_decembar!J47,Januar!J47,Februar!J47,April!J47,Juni!J47,Juli!J47,Septembar!J47,Oktobar!J47,Oktobar_2!J47),"") -> 11 | K47: DA | L47: 5 | M47: 5 | N47: 11 | O47: 11 | P47: 10 | Q47: 10 | R47: 10 | S47: 15 | T47: 77.0 | U47: 8 | V47: Јун | W47: 2018-06-15 | X47: 10 | Y47: 2018-01-09 | Z47: 31 | AA47: 2018-06-15 | AB47: 21 | AC47: 2018-06-15 | AD47: 15 | AE47: 77 | AF47: 8 | AG47: 2018-06-15
A48: =PODACI_STUDENTI!A47 -> 46 | B48: =PODACI_STUDENTI!B47 -> 2017/2028 | C48: =PODACI_STUDENTI!C47 -> Лончаревић Далибор | D48: =PODACI_STUDENTI!D47 -> Кондиција | F48: =IF(OR(Predrok_novembar!F48<>"",Predrok_decembar!F48<>"",Januar!F48<>"",Februar!F48<>"",April!F48<>"",Juni!F48<>"",Juli!F48,Septembar!F48<>"",Oktobar!F48<>"",Oktobar_2!F48<>""),MAX(Predrok_novembar!F48,Predrok_decembar!F48,Januar!F48,Februar!F48,April!F48,Juni!F48,Juli!F48,Septembar!F48,Oktobar!F48,Oktobar_2!F48),"") -> 26 | G48: =IF(OR(Predrok_novembar!G48<>"",Predrok_decembar!G48<>"",Januar!G48<>"",Februar!G48<>"",April!G48<>"",Juni!G48<>"",Juli!G48,Septembar!G48<>"",Oktobar!G48<>"",Oktobar_2!G48<>""),MAX(Predrok_novembar!G48,Predrok_decembar!G48,Januar!G48,Februar!G48,April!G48,Juni!G48,Juli!G48,Septembar!G48,Oktobar!G48,Oktobar_2!G48),"") ->  | H48: =IF(OR(Predrok_novembar!H48<>"",Predrok_decembar!H48<>"",Januar!H48<>"",Februar!H48<>"",April!H48<>"",Juni!H48<>"",Juli!H48,Septembar!H48<>"",Oktobar!H48<>"",Oktobar_2!H48<>""),MAX(Predrok_novembar!H48,Predrok_decembar!H48,Januar!H48,Februar!H48,April!H48,Juni!H48,Juli!H48,Septembar!H48,Oktobar!H48,Oktobar_2!H48),"") -> 12 | I48: =IF(OR(Predrok_novembar!I48<>"",Predrok_decembar!I48<>"",Januar!I48<>"",Februar!I48<>"",April!I48<>"",Juni!I48<>"",Juli!I48,Septembar!I48<>"",Oktobar!I48<>"",Oktobar_2!I48<>""),MAX(Predrok_novembar!I48,Predrok_decembar!I48,Januar!I48,Februar!I48,April!I48,Juni!I48,Juli!I48,Septembar!I48,Oktobar!I48,Oktobar_2!I48),"") ->  | J48: =IF(OR(Predrok_novembar!J48<>"",Predrok_decembar!J48<>"",Januar!J48<>"",Februar!J48<>"",April!J48<>"",Juni!J48<>"",Juli!J48,Septembar!J48<>"",Oktobar!J48<>"",Oktobar_2!J48<>""),MAX(Predrok_novembar!J48,Predrok_decembar!J48,Januar!J48,Februar!J48,April!J48,Juni!J48,Juli!J48,Septembar!J48,Oktobar!J48,Oktobar_2!J48),"") ->  | K48: NE | N48: 11 | P48: 8
A49: =PODACI_STUDENTI!A48 -> 47 | B49: =PODACI_STUDENTI!B48 -> 2017/2033 | C49: =PODACI_STUDENTI!C48 -> Мајсторовић Милош | D49: =PODACI_STUDENTI!D48 -> Кондиција | F49: =IF(OR(Predrok_novembar!F49<>"",Predrok_decembar!F49<>"",Januar!F49<>"",Februar!F49<>"",April!F49<>"",Juni!F49<>"",Juli!F49,Septembar!F49<>"",Oktobar!F49<>"",Oktobar_2!F49<>""),MAX(Predrok_novembar!F49,Predrok_decembar!F49,Januar!F49,Februar!F49,April!F49,Juni!F49,Juli!F49,Septembar!F49,Oktobar!F49,Oktobar_2!F49),"") ->  | G49: =IF(OR(Predrok_novembar!G49<>"",Predrok_decembar!G49<>"",Januar!G49<>"",Februar!G49<>"",April!G49<>"",Juni!G49<>"",Juli!G49,Septembar!G49<>"",Oktobar!G49<>"",Oktobar_2!G49<>""),MAX(Predrok_novembar!G49,Predrok_decembar!G49,Januar!G49,Februar!G49,April!G49,Juni!G49,Juli!G49,Septembar!G49,Oktobar!G49,Oktobar_2!G49),"") ->  | H49: =IF(OR(Predrok_novembar!H49<>"",Predrok_decembar!H49<>"",Januar!H49<>"",Februar!H49<>"",April!H49<>"",Juni!H49<>"",Juli!H49,Septembar!H49<>"",Oktobar!H49<>"",Oktobar_2!H49<>""),MAX(Predrok_novembar!H49,Predrok_decembar!H49,Januar!H49,Februar!H49,April!H49,Juni!H49,Juli!H49,Septembar!H49,Oktobar!H49,Oktobar_2!H49),"") ->  | I49: =IF(OR(Predrok_novembar!I49<>"",Predrok_decembar!I49<>"",Januar!I49<>"",Februar!I49<>"",April!I49<>"",Juni!I49<>"",Juli!I49,Septembar!I49<>"",Oktobar!I49<>"",Oktobar_2!I49<>""),MAX(Predrok_novembar!I49,Predrok_decembar!I49,Januar!I49,Februar!I49,April!I49,Juni!I49,Juli!I49,Septembar!I49,Oktobar!I49,Oktobar_2!I49),"") ->  | J49: =IF(OR(Predrok_novembar!J49<>"",Predrok_decembar!J49<>"",Januar!J49<>"",Februar!J49<>"",April!J49<>"",Juni!J49<>"",Juli!J49,Septembar!J49<>"",Oktobar!J49<>"",Oktobar_2!J49<>""),MAX(Predrok_novembar!J49,Predrok_decembar!J49,Januar!J49,Februar!J49,April!J49,Juni!J49,Juli!J49,Septembar!J49,Oktobar!J49,Oktobar_2!J49),"") ->  | K49: NE
A50: =PODACI_STUDENTI!A49 -> 48 | B50: =PODACI_STUDENTI!B49 -> 2017/2013 | C50: =PODACI_STUDENTI!C49 -> Манојловић Кристина | D50: =PODACI_STUDENTI!D49 -> Кондиција | F50: =IF(OR(Predrok_novembar!F50<>"",Predrok_decembar!F50<>"",Januar!F50<>"",Februar!F50<>"",April!F50<>"",Juni!F50<>"",Juli!F50,Septembar!F50<>"",Oktobar!F50<>"",Oktobar_2!F50<>""),MAX(Predrok_novembar!F50,Predrok_decembar!F50,Januar!F50,Februar!F50,April!F50,Juni!F50,Juli!F50,Septembar!F50,Oktobar!F50,Oktobar_2!F50),"") -> 29 | G50: =IF(OR(Predrok_novembar!G50<>"",Predrok_decembar!G50<>"",Januar!G50<>"",Februar!G50<>"",April!G50<>"",Juni!G50<>"",Juli!G50,Septembar!G50<>"",Oktobar!G50<>"",Oktobar_2!G50<>""),MAX(Predrok_novembar!G50,Predrok_decembar!G50,Januar!G50,Februar!G50,April!G50,Juni!G50,Juli!G50,Septembar!G50,Oktobar!G50,Oktobar_2!G50),"") -> 29 | H50: =IF(OR(Predrok_novembar!H50<>"",Predrok_decembar!H50<>"",Januar!H50<>"",Februar!H50<>"",April!H50<>"",Juni!H50<>"",Juli!H50,Septembar!H50<>"",Oktobar!H50<>"",Oktobar_2!H50<>""),MAX(Predrok_novembar!H50,Predrok_decembar!H50,Januar!H50,Februar!H50,April!H50,Juni!H50,Juli!H50,Septembar!H50,Oktobar!H50,Oktobar_2!H50),"") -> 12 | I50: 11 | J50: 10 | K50: DA | L50: 5 | M50: 5 | N50: 13 | O50: 13 | P50: 8 | Q50: 10 | R50: 9 | S50: 10 | T50: 73.0 | U50: 8 | V50: Септембар | W50: 2018-09-01 | X50: 10 | Y50: 2018-01-09 | Z50: 33 | AA50: 2018-09-04 | AB50: 20 | AC50: 2018-09-01 | AD50: 10 | AE50: 73 | AF50: 8 | AG50: 2018-09-01
A51: =PODACI_STUDENTI!A50 -> 49 | B51: =PODACI_STUDENTI!B50 -> 2017/2513 | C51: =PODACI_STUDENTI!C50 -> Марковић Алекса | D51: =PODACI_STUDENTI!D50 -> Рекреација | F51: 24 | G51: =IF(OR(Predrok_novembar!G51<>"",Predrok_decembar!G51<>"",Januar!G51<>"",Februar!G51<>"",April!G51<>"",Juni!G51<>"",Juli!G51,Septembar!G51<>"",Oktobar!G51<>"",Oktobar_2!G51<>""),MAX(Predrok_novembar!G51,Predrok_decembar!G51,Januar!G51,Februar!G51,April!G51,Juni!G51,Juli!G51,Septembar!G51,Oktobar!G51,Oktobar_2!G51),"") -> 29 | H51: =IF(OR(Predrok_novembar!H51<>"",Predrok_decembar!H51<>"",Januar!H51<>"",Februar!H51<>"",April!H51<>"",Juni!H51<>"",Juli!H51,Septembar!H51<>"",Oktobar!H51<>"",Oktobar_2!H51<>""),MAX(Predrok_novembar!H51,Predrok_decembar!H51,Januar!H51,Februar!H51,April!H51,Juni!H51,Juli!H51,Septembar!H51,Oktobar!H51,Oktobar_2!H51),"") ->  | I51: =IF(OR(Predrok_novembar!I51<>"",Predrok_decembar!I51<>"",Januar!I51<>"",Februar!I51<>"",April!I51<>"",Juni!I51<>"",Juli!I51,Septembar!I51<>"",Oktobar!I51<>"",Oktobar_2!I51<>""),MAX(Predrok_novembar!I51,Predrok_decembar!I51,Januar!I51,Februar!I51,April!I51,Juni!I51,Juli!I51,Septembar!I51,Oktobar!I51,Oktobar_2!I51),"") ->  | J51: =IF(OR(Predrok_novembar!J51<>"",Predrok_decembar!J51<>"",Januar!J51<>"",Februar!J51<>"",April!J51<>"",Juni!J51<>"",Juli!J51,Septembar!J51<>"",Oktobar!J51<>"",Oktobar_2!J51<>""),MAX(Predrok_novembar!J51,Predrok_decembar!J51,Januar!J51,Februar!J51,April!J51,Juni!J51,Juli!J51,Septembar!J51,Oktobar!J51,Oktobar_2!J51),"") ->  | K51: NE | N51: 11 | O51: 13
A52: =PODACI_STUDENTI!A51 -> 50 | B52: =PODACI_STUDENTI!B51 -> 2017/2509 | C52: =PODACI_STUDENTI!C51 -> Милашиновић Милица | D52: =PODACI_STUDENTI!D51 -> Рекреација | F52: =IF(OR(Predrok_novembar!F52<>"",Predrok_decembar!F52<>"",Januar!F52<>"",Februar!F52<>"",April!F52<>"",Juni!F52<>"",Juli!F52,Septembar!F52<>"",Oktobar!F52<>"",Oktobar_2!F52<>""),MAX(Predrok_novembar!F52,Predrok_decembar!F52,Januar!F52,Februar!F52,April!F52,Juni!F52,Juli!F52,Septembar!F52,Oktobar!F52,Oktobar_2!F52),"") -> 27 | G52: =IF(OR(Predrok_novembar!G52<>"",Predrok_decembar!G52<>"",Januar!G52<>"",Februar!G52<>"",April!G52<>"",Juni!G52<>"",Juli!G52,Septembar!G52<>"",Oktobar!G52<>"",Oktobar_2!G52<>""),MAX(Predrok_novembar!G52,Predrok_decembar!G52,Januar!G52,Februar!G52,April!G52,Juni!G52,Juli!G52,Septembar!G52,Oktobar!G52,Oktobar_2!G52),"") -> 29 | H52: =IF(OR(Predrok_novembar!H52<>"",Predrok_decembar!H52<>"",Januar!H52<>"",Februar!H52<>"",April!H52<>"",Juni!H52<>"",Juli!H52,Septembar!H52<>"",Oktobar!H52<>"",Oktobar_2!H52<>""),MAX(Predrok_novembar!H52,Predrok_decembar!H52,Januar!H52,Februar!H52,April!H52,Juni!H52,Juli!H52,Septembar!H52,Oktobar!H52,Oktobar_2!H52),"") -> 15 | I52: =IF(OR(Predrok_novembar!I52<>"",Predrok_decembar!I52<>"",Januar!I52<>"",Februar!I52<>"",April!I52<>"",Juni!I52<>"",Juli!I52,Septembar!I52<>"",Oktobar!I52<>"",Oktobar_2!I52<>""),MAX(Predrok_novembar!I52,Predrok_decembar!I52,Januar!I52,Februar!I52,April!I52,Juni!I52,Juli!I52,Septembar!I52,Oktobar!I52,Oktobar_2!I52),"") -> 9 | J52: =IF(OR(Predrok_novembar!J52<>"",Predrok_decembar!J52<>"",Januar!J52<>"",Februar!J52<>"",April!J52<>"",Juni!J52<>"",Juli!J52,Septembar!J52<>"",Oktobar!J52<>"",Oktobar_2!J52<>""),MAX(Predrok_novembar!J52,Predrok_decembar!J52,Januar!J52,Februar!J52,April!J52,Juni!J52,Juli!J52,Septembar!J52,Oktobar!J52,Oktobar_2!J52),"") -> 10 | K52: DA | L52: 5 | M52: 5 | N52: 12 | O52: 13 | P52: 10 | Q52: 8 | R52: 9 | S52: 15 | T52: 77.0 | U52: 8 | V52: Јул | W52: 2018-07-11 | X52: 10 | Y52: 2018-01-09 | Z52: 35 | AA52: 2018-07-09 | AB52: 18 | AC52: 2018-07-11 | AD52: 15 | AE52: 77 | AF52: 8 | AG52: 2018-07-11
A53: =PODACI_STUDENTI!A52 -> 51 | B53: =PODACI_STUDENTI!B52 -> 2017/2515 | C53: =PODACI_STUDENTI!C52 -> Милићевић Марко | D53: =PODACI_STUDENTI!D52 -> Рекреација | F53: =IF(OR(Predrok_novembar!F53<>"",Predrok_decembar!F53<>"",Januar!F53<>"",Februar!F53<>"",April!F53<>"",Juni!F53<>"",Juli!F53,Septembar!F53<>"",Oktobar!F53<>"",Oktobar_2!F53<>""),MAX(Predrok_novembar!F53,Predrok_decembar!F53,Januar!F53,Februar!F53,April!F53,Juni!F53,Juli!F53,Septembar!F53,Oktobar!F53,Oktobar_2!F53),"") ->  | G53: =IF(OR(Predrok_novembar!G53<>"",Predrok_decembar!G53<>"",Januar!G53<>"",Februar!G53<>"",April!G53<>"",Juni!G53<>"",Juli!G53,Septembar!G53<>"",Oktobar!G53<>"",Oktobar_2!G53<>""),MAX(Predrok_novembar!G53,Predrok_decembar!G53,Januar!G53,Februar!G53,April!G53,Juni!G53,Juli!G53,Septembar!G53,Oktobar!G53,Oktobar_2!G53),"") ->  | H53: =IF(OR(Predrok_novembar!H53<>"",Predrok_decembar!H53<>"",Januar!H53<>"",Februar!H53<>"",April!H53<>"",Juni!H53<>"",Juli!H53,Septembar!H53<>"",Oktobar!H53<>"",Oktobar_2!H53<>""),MAX(Predrok_novembar!H53,Predrok_decembar!H53,Januar!H53,Februar!H53,April!H53,Juni!H53,Juli!H53,Septembar!H53,Oktobar!H53,Oktobar_2!H53),"") ->  | I53: =IF(OR(Predrok_novembar!I53<>"",Predrok_decembar!I53<>"",Januar!I53<>"",Februar!I53<>"",April!I53<>"",Juni!I53<>"",Juli!I53,Septembar!I53<>"",Oktobar!I53<>"",Oktobar_2!I53<>""),MAX(Predrok_novembar!I53,Predrok_decembar!I53,Januar!I53,Februar!I53,April!I53,Juni!I53,Juli!I53,Septembar!I53,Oktobar!I53,Oktobar_2!I53),"") ->  | J53: =IF(OR(Predrok_novembar!J53<>"",Predrok_decembar!J53<>"",Januar!J53<>"",Februar!J53<>"",April!J53<>"",Juni!J53<>"",Juli!J53,Septembar!J53<>"",Oktobar!J53<>"",Oktobar_2!J53<>""),MAX(Predrok_novembar!J53,Predrok_decembar!J53,Januar!J53,Februar!J53,April!J53,Juni!J53,Juli!J53,Septembar!J53,Oktobar!J53,Oktobar_2!J53),"") ->  | K53: NE
A54: =PODACI_STUDENTI!A53 -> 52 | B54: =PODACI_STUDENTI!B53 -> 2017/2020 | C54: =PODACI_STUDENTI!C53 -> Мимовић Урош | D54: =PODACI_STUDENTI!D53 -> Кондиција | F54: =IF(OR(Predrok_novembar!F54<>"",Predrok_decembar!F54<>"",Januar!F54<>"",Februar!F54<>"",April!F54<>"",Juni!F54<>"",Juli!F54,Septembar!F54<>"",Oktobar!F54<>"",Oktobar_2!F54<>""),MAX(Predrok_novembar!F54,Predrok_decembar!F54,Januar!F54,Februar!F54,April!F54,Juni!F54,Juli!F54,Septembar!F54,Oktobar!F54,Oktobar_2!F54),"") -> 27 | G54: =IF(OR(Predrok_novembar!G54<>"",Predrok_decembar!G54<>"",Januar!G54<>"",Februar!G54<>"",April!G54<>"",Juni!G54<>"",Juli!G54,Septembar!G54<>"",Oktobar!G54<>"",Oktobar_2!G54<>""),MAX(Predrok_novembar!G54,Predrok_decembar!G54,Januar!G54,Februar!G54,April!G54,Juni!G54,Juli!G54,Septembar!G54,Oktobar!G54,Oktobar_2!G54),"") -> 28 | H54: =IF(OR(Predrok_novembar!H54<>"",Predrok_decembar!H54<>"",Januar!H54<>"",Februar!H54<>"",April!H54<>"",Juni!H54<>"",Juli!H54,Septembar!H54<>"",Oktobar!H54<>"",Oktobar_2!H54<>""),MAX(Predrok_novembar!H54,Predrok_decembar!H54,Januar!H54,Februar!H54,April!H54,Juni!H54,Juli!H54,Septembar!H54,Oktobar!H54,Oktobar_2!H54),"") -> 14 | I54: =IF(OR(Predrok_novembar!I54<>"",Predrok_decembar!I54<>"",Januar!I54<>"",Februar!I54<>"",April!I54<>"",Juni!I54<>"",Juli!I54,Septembar!I54<>"",Oktobar!I54<>"",Oktobar_2!I54<>""),MAX(Predrok_novembar!I54,Predrok_decembar!I54,Januar!I54,Februar!I54,April!I54,Juni!I54,Juli!I54,Septembar!I54,Oktobar!I54,Oktobar_2!I54),"") -> 9 | J54: =IF(OR(Predrok_novembar!J54<>"",Predrok_decembar!J54<>"",Januar!J54<>"",Februar!J54<>"",April!J54<>"",Juni!J54<>"",Juli!J54,Septembar!J54<>"",Oktobar!J54<>"",Oktobar_2!J54<>""),MAX(Predrok_novembar!J54,Predrok_decembar!J54,Januar!J54,Februar!J54,April!J54,Juni!J54,Juli!J54,Septembar!J54,Oktobar!J54,Oktobar_2!J54),"") -> 13 | K54: DA | L54: 5 | M54: 5 | N54: 12 | O54: 12 | P54: 9 | Q54: 8 | R54: 12 | S54: 20 | T54: 84.0 | U54: 9 | V54: Јануар | W54: 2018-01-18 | X54: 10 | Y54: 2018-01-09 | Z54: 33 | AA54: 2018-01-18 | AB54: 21 | AC54: 2018-01-18 | AD54: 20 | AE54: 84 | AF54: 9 | AG54: 2018-01-18
A55: =PODACI_STUDENTI!A54 -> 53 | B55: =PODACI_STUDENTI!B54 -> 2017/2019 | C55: =PODACI_STUDENTI!C54 -> Мирјанић Данило | D55: =PODACI_STUDENTI!D54 -> Кошарка | F55: =IF(OR(Predrok_novembar!F55<>"",Predrok_decembar!F55<>"",Januar!F55<>"",Februar!F55<>"",April!F55<>"",Juni!F55<>"",Juli!F55,Septembar!F55<>"",Oktobar!F55<>"",Oktobar_2!F55<>""),MAX(Predrok_novembar!F55,Predrok_decembar!F55,Januar!F55,Februar!F55,April!F55,Juni!F55,Juli!F55,Septembar!F55,Oktobar!F55,Oktobar_2!F55),"") -> 32 | G55: =IF(OR(Predrok_novembar!G55<>"",Predrok_decembar!G55<>"",Januar!G55<>"",Februar!G55<>"",April!G55<>"",Juni!G55<>"",Juli!G55,Septembar!G55<>"",Oktobar!G55<>"",Oktobar_2!G55<>""),MAX(Predrok_novembar!G55,Predrok_decembar!G55,Januar!G55,Februar!G55,April!G55,Juni!G55,Juli!G55,Septembar!G55,Oktobar!G55,Oktobar_2!G55),"") -> 28 | H55: =IF(OR(Predrok_novembar!H55<>"",Predrok_decembar!H55<>"",Januar!H55<>"",Februar!H55<>"",April!H55<>"",Juni!H55<>"",Juli!H55,Septembar!H55<>"",Oktobar!H55<>"",Oktobar_2!H55<>""),MAX(Predrok_novembar!H55,Predrok_decembar!H55,Januar!H55,Februar!H55,April!H55,Juni!H55,Juli!H55,Septembar!H55,Oktobar!H55,Oktobar_2!H55),"") -> 20 | I55: =IF(OR(Predrok_novembar!I55<>"",Predrok_decembar!I55<>"",Januar!I55<>"",Februar!I55<>"",April!I55<>"",Juni!I55<>"",Juli!I55,Septembar!I55<>"",Oktobar!I55<>"",Oktobar_2!I55<>""),MAX(Predrok_novembar!I55,Predrok_decembar!I55,Januar!I55,Februar!I55,April!I55,Juni!I55,Juli!I55,Septembar!I55,Oktobar!I55,Oktobar_2!I55),"") -> 11 | J55: =IF(OR(Predrok_novembar!J55<>"",Predrok_decembar!J55<>"",Januar!J55<>"",Februar!J55<>"",April!J55<>"",Juni!J55<>"",Juli!J55,Septembar!J55<>"",Oktobar!J55<>"",Oktobar_2!J55<>""),MAX(Predrok_novembar!J55,Predrok_decembar!J55,Januar!J55,Februar!J55,April!J55,Juni!J55,Juli!J55,Septembar!J55,Oktobar!J55,Oktobar_2!J55),"") -> 12 | K55: DA | L55: 5 | M55: 5 | N55: 14 | O55: 12 | P55: 13 | Q55: 10 | R55: 11 | S55: 20 | T55: 91.0 | U55: 10 | V55: Јануар | W55: 2018-01-18 | X55: 10 | Y55: 2018-01-09 | Z55: 40 | AA55: 2018-01-18 | AB55: 21 | AC55: 2018-01-18 | AD55: 20 | AE55: 91 | AF55: 10 | AG55: 2018-01-18
A56: =PODACI_STUDENTI!A55 -> 54 | B56: =PODACI_STUDENTI!B55 -> 2017/2023 | C56: =PODACI_STUDENTI!C55 -> Митровић Никола | D56: =PODACI_STUDENTI!D55 -> Рукомет | F56: =IF(OR(Predrok_novembar!F56<>"",Predrok_decembar!F56<>"",Januar!F56<>"",Februar!F56<>"",April!F56<>"",Juni!F56<>"",Juli!F56,Septembar!F56<>"",Oktobar!F56<>"",Oktobar_2!F56<>""),MAX(Predrok_novembar!F56,Predrok_decembar!F56,Januar!F56,Februar!F56,April!F56,Juni!F56,Juli!F56,Septembar!F56,Oktobar!F56,Oktobar_2!F56),"") ->  | G56: =IF(OR(Predrok_novembar!G56<>"",Predrok_decembar!G56<>"",Januar!G56<>"",Februar!G56<>"",April!G56<>"",Juni!G56<>"",Juli!G56,Septembar!G56<>"",Oktobar!G56<>"",Oktobar_2!G56<>""),MAX(Predrok_novembar!G56,Predrok_decembar!G56,Januar!G56,Februar!G56,April!G56,Juni!G56,Juli!G56,Septembar!G56,Oktobar!G56,Oktobar_2!G56),"") ->  | H56: =IF(OR(Predrok_novembar!H56<>"",Predrok_decembar!H56<>"",Januar!H56<>"",Februar!H56<>"",April!H56<>"",Juni!H56<>"",Juli!H56,Septembar!H56<>"",Oktobar!H56<>"",Oktobar_2!H56<>""),MAX(Predrok_novembar!H56,Predrok_decembar!H56,Januar!H56,Februar!H56,April!H56,Juni!H56,Juli!H56,Septembar!H56,Oktobar!H56,Oktobar_2!H56),"") ->  | I56: =IF(OR(Predrok_novembar!I56<>"",Predrok_decembar!I56<>"",Januar!I56<>"",Februar!I56<>"",April!I56<>"",Juni!I56<>"",Juli!I56,Septembar!I56<>"",Oktobar!I56<>"",Oktobar_2!I56<>""),MAX(Predrok_novembar!I56,Predrok_decembar!I56,Januar!I56,Februar!I56,April!I56,Juni!I56,Juli!I56,Septembar!I56,Oktobar!I56,Oktobar_2!I56),"") ->  | J56: =IF(OR(Predrok_novembar!J56<>"",Predrok_decembar!J56<>"",Januar!J56<>"",Februar!J56<>"",April!J56<>"",Juni!J56<>"",Juli!J56,Septembar!J56<>"",Oktobar!J56<>"",Oktobar_2!J56<>""),MAX(Predrok_novembar!J56,Predrok_decembar!J56,Januar!J56,Februar!J56,April!J56,Juni!J56,Juli!J56,Septembar!J56,Oktobar!J56,Oktobar_2!J56),"") ->  | K56: NE
A57: =PODACI_STUDENTI!A56 -> 55 | B57: =PODACI_STUDENTI!B56 -> 2017/2048 | C57: =PODACI_STUDENTI!C56 -> Нешић Лука | D57: =PODACI_STUDENTI!D56 -> Кондиција | F57: =IF(OR(Predrok_novembar!F57<>"",Predrok_decembar!F57<>"",Januar!F57<>"",Februar!F57<>"",April!F57<>"",Juni!F57<>"",Juli!F57,Septembar!F57<>"",Oktobar!F57<>"",Oktobar_2!F57<>""),MAX(Predrok_novembar!F57,Predrok_decembar!F57,Januar!F57,Februar!F57,April!F57,Juni!F57,Juli!F57,Septembar!F57,Oktobar!F57,Oktobar_2!F57),"") -> 27 | G57: =IF(OR(Predrok_novembar!G57<>"",Predrok_decembar!G57<>"",Januar!G57<>"",Februar!G57<>"",April!G57<>"",Juni!G57<>"",Juli!G57,Septembar!G57<>"",Oktobar!G57<>"",Oktobar_2!G57<>""),MAX(Predrok_novembar!G57,Predrok_decembar!G57,Januar!G57,Februar!G57,April!G57,Juni!G57,Juli!G57,Septembar!G57,Oktobar!G57,Oktobar_2!G57),"") -> 27 | H57: =IF(OR(Predrok_novembar!H57<>"",Predrok_decembar!H57<>"",Januar!H57<>"",Februar!H57<>"",April!H57<>"",Juni!H57<>"",Juli!H57,Septembar!H57<>"",Oktobar!H57<>"",Oktobar_2!H57<>""),MAX(Predrok_novembar!H57,Predrok_decembar!H57,Januar!H57,Februar!H57,April!H57,Juni!H57,Juli!H57,Septembar!H57,Oktobar!H57,Oktobar_2!H57),"") -> 12 | I57: =IF(OR(Predrok_novembar!I57<>"",Predrok_decembar!I57<>"",Januar!I57<>"",Februar!I57<>"",April!I57<>"",Juni!I57<>"",Juli!I57,Septembar!I57<>"",Oktobar!I57<>"",Oktobar_2!I57<>""),MAX(Predrok_novembar!I57,Predrok_decembar!I57,Januar!I57,Februar!I57,April!I57,Juni!I57,Juli!I57,Septembar!I57,Oktobar!I57,Oktobar_2!I57),"") -> 9 | J57: =IF(OR(Predrok_novembar!J57<>"",Predrok_decembar!J57<>"",Januar!J57<>"",Februar!J57<>"",April!J57<>"",Juni!J57<>"",Juli!J57,Septembar!J57<>"",Oktobar!J57<>"",Oktobar_2!J57<>""),MAX(Predrok_novembar!J57,Predrok_decembar!J57,Januar!J57,Februar!J57,April!J57,Juni!J57,Juli!J57,Septembar!J57,Oktobar!J57,Oktobar_2!J57),"") -> 9 | K57: DA | L57: 5 | M57: 5 | N57: 12 | O57: 12 | P57: 8 | Q57: 8 | R57: 8 | S57: 20 | T57: 78.0 | U57: 8 | V57: Јануар | W57: 2018-01-18 | X57: 10 | Y57: 2018-01-09 | Z57: 32 | AA57: 2018-01-18 | AB57: 17 | AC57: 2018-01-18 | AD57: 20 | AE57: 78 | AF57: 8 | AG57: 2018-01-18
A58: =PODACI_STUDENTI!A57 -> 56 | B58: =PODACI_STUDENTI!B57 -> 2017/2042 | C58: =PODACI_STUDENTI!C57 -> Нешовановић Ђорђе | D58: =PODACI_STUDENTI!D57 -> Кондиција | F58: 25 | G58: =IF(OR(Predrok_novembar!G58<>"",Predrok_decembar!G58<>"",Januar!G58<>"",Februar!G58<>"",April!G58<>"",Juni!G58<>"",Juli!G58,Septembar!G58<>"",Oktobar!G58<>"",Oktobar_2!G58<>""),MAX(Predrok_novembar!G58,Predrok_decembar!G58,Januar!G58,Februar!G58,April!G58,Juni!G58,Juli!G58,Septembar!G58,Oktobar!G58,Oktobar_2!G58),"") -> 28 | H58: =IF(OR(Predrok_novembar!H58<>"",Predrok_decembar!H58<>"",Januar!H58<>"",Februar!H58<>"",April!H58<>"",Juni!H58<>"",Juli!H58,Septembar!H58<>"",Oktobar!H58<>"",Oktobar_2!H58<>""),MAX(Predrok_novembar!H58,Predrok_decembar!H58,Januar!H58,Februar!H58,April!H58,Juni!H58,Juli!H58,Septembar!H58,Oktobar!H58,Oktobar_2!H58),"") -> 11 | I58: =IF(OR(Predrok_novembar!I58<>"",Predrok_decembar!I58<>"",Januar!I58<>"",Februar!I58<>"",April!I58<>"",Juni!I58<>"",Juli!I58,Septembar!I58<>"",Oktobar!I58<>"",Oktobar_2!I58<>""),MAX(Predrok_novembar!I58,Predrok_decembar!I58,Januar!I58,Februar!I58,April!I58,Juni!I58,Juli!I58,Septembar!I58,Oktobar!I58,Oktobar_2!I58),"") ->  | J58: =IF(OR(Predrok_novembar!J58<>"",Predrok_decembar!J58<>"",Januar!J58<>"",Februar!J58<>"",April!J58<>"",Juni!J58<>"",Juli!J58,Septembar!J58<>"",Oktobar!J58<>"",Oktobar_2!J58<>""),MAX(Predrok_novembar!J58,Predrok_decembar!J58,Januar!J58,Februar!J58,April!J58,Juni!J58,Juli!J58,Septembar!J58,Oktobar!J58,Oktobar_2!J58),"") -> 13 | K58: NE | N58: 11 | O58: 12 | P58: 7 | R58: 12
A59: =PODACI_STUDENTI!A58 -> 57 | B59: =PODACI_STUDENTI!B58 -> 2017/2514 | C59: =PODACI_STUDENTI!C58 -> Николић Вук | D59: =PODACI_STUDENTI!D58 -> Рекреација | F59: =IF(OR(Predrok_novembar!F59<>"",Predrok_decembar!F59<>"",Januar!F59<>"",Februar!F59<>"",April!F59<>"",Juni!F59<>"",Juli!F59,Septembar!F59<>"",Oktobar!F59<>"",Oktobar_2!F59<>""),MAX(Predrok_novembar!F59,Predrok_decembar!F59,Januar!F59,Februar!F59,April!F59,Juni!F59,Juli!F59,Septembar!F59,Oktobar!F59,Oktobar_2!F59),"") -> 32 | G59: =IF(OR(Predrok_novembar!G59<>"",Predrok_decembar!G59<>"",Januar!G59<>"",Februar!G59<>"",April!G59<>"",Juni!G59<>"",Juli!G59,Septembar!G59<>"",Oktobar!G59<>"",Oktobar_2!G59<>""),MAX(Predrok_novembar!G59,Predrok_decembar!G59,Januar!G59,Februar!G59,April!G59,Juni!G59,Juli!G59,Septembar!G59,Oktobar!G59,Oktobar_2!G59),"") -> 30 | H59: 19 | I59: =IF(OR(Predrok_novembar!I59<>"",Predrok_decembar!I59<>"",Januar!I59<>"",Februar!I59<>"",April!I59<>"",Juni!I59<>"",Juli!I59,Septembar!I59<>"",Oktobar!I59<>"",Oktobar_2!I59<>""),MAX(Predrok_novembar!I59,Predrok_decembar!I59,Januar!I59,Februar!I59,April!I59,Juni!I59,Juli!I59,Septembar!I59,Oktobar!I59,Oktobar_2!I59),"") -> 12 | J59: =IF(OR(Predrok_novembar!J59<>"",Predrok_decembar!J59<>"",Januar!J59<>"",Februar!J59<>"",April!J59<>"",Juni!J59<>"",Juli!J59,Septembar!J59<>"",Oktobar!J59<>"",Oktobar_2!J59<>""),MAX(Predrok_novembar!J59,Predrok_decembar!J59,Januar!J59,Februar!J59,April!J59,Juni!J59,Juli!J59,Septembar!J59,Oktobar!J59,Oktobar_2!J59),"") -> 12 | K59: DA | L59: 5 | M59: 5 | N59: 14 | O59: 13 | P59: 13 | Q59: 11 | R59: 11 | S59: 20 | T59: 92.0 | U59: 10 | V59: Јануар | W59: 2018-01-18 | X59: 10 | Y59: 2018-01-09 | Z59: 40 | AA59: 2018-01-18 | AB59: 22 | AC59: 2018-01-18 | AD59: 20 | AE59: 92 | AF59: 10 | AG59: 2018-01-18
A60: =PODACI_STUDENTI!A59 -> 58 | B60: =PODACI_STUDENTI!B59 -> 2017/2504 | C60: =PODACI_STUDENTI!C59 -> Николић Марија | D60: =PODACI_STUDENTI!D59 -> Рекреација | F60: =IF(OR(Predrok_novembar!F60<>"",Predrok_decembar!F60<>"",Januar!F60<>"",Februar!F60<>"",April!F60<>"",Juni!F60<>"",Juli!F60,Septembar!F60<>"",Oktobar!F60<>"",Oktobar_2!F60<>""),MAX(Predrok_novembar!F60,Predrok_decembar!F60,Januar!F60,Februar!F60,April!F60,Juni!F60,Juli!F60,Septembar!F60,Oktobar!F60,Oktobar_2!F60),"") -> 28 | G60: =IF(OR(Predrok_novembar!G60<>"",Predrok_decembar!G60<>"",Januar!G60<>"",Februar!G60<>"",April!G60<>"",Juni!G60<>"",Juli!G60,Septembar!G60<>"",Oktobar!G60<>"",Oktobar_2!G60<>""),MAX(Predrok_novembar!G60,Predrok_decembar!G60,Januar!G60,Februar!G60,April!G60,Juni!G60,Juli!G60,Septembar!G60,Oktobar!G60,Oktobar_2!G60),"") -> 31 | H60: =IF(OR(Predrok_novembar!H60<>"",Predrok_decembar!H60<>"",Januar!H60<>"",Februar!H60<>"",April!H60<>"",Juni!H60<>"",Juli!H60,Septembar!H60<>"",Oktobar!H60<>"",Oktobar_2!H60<>""),MAX(Predrok_novembar!H60,Predrok_decembar!H60,Januar!H60,Februar!H60,April!H60,Juni!H60,Juli!H60,Septembar!H60,Oktobar!H60,Oktobar_2!H60),"") -> 12 | I60: =IF(OR(Predrok_novembar!I60<>"",Predrok_decembar!I60<>"",Januar!I60<>"",Februar!I60<>"",April!I60<>"",Juni!I60<>"",Juli!I60,Septembar!I60<>"",Oktobar!I60<>"",Oktobar_2!I60<>""),MAX(Predrok_novembar!I60,Predrok_decembar!I60,Januar!I60,Februar!I60,April!I60,Juni!I60,Juli!I60,Septembar!I60,Oktobar!I60,Oktobar_2!I60),"") -> 10 | J60: =IF(OR(Predrok_novembar!J60<>"",Predrok_decembar!J60<>"",Januar!J60<>"",Februar!J60<>"",April!J60<>"",Juni!J60<>"",Juli!J60,Septembar!J60<>"",Oktobar!J60<>"",Oktobar_2!J60<>""),MAX(Predrok_novembar!J60,Predrok_decembar!J60,Januar!J60,Februar!J60,April!J60,Juni!J60,Juli!J60,Septembar!J60,Oktobar!J60,Oktobar_2!J60),"") -> 13 | K60: DA | L60: 5 | M60: 5 | N60: 12 | O60: 14 | P60: 8 | Q60: 9 | R60: 12 | S60: 20 | T60: 85.0 | U60: 9 | V60: Јануар | W60: 2018-01-18 | X60: 10 | Y60: 2018-01-09 | Z60: 34 | AA60: 2018-01-18 | AB60: 21 | AC60: 2018-01-18 | AD60: 20 | AE60: 85 | AF60: 9 | AG60: 2018-01-18
A61: =PODACI_STUDENTI!A60 -> 59 | B61: =PODACI_STUDENTI!B60 -> 2017/2034 | C61: =PODACI_STUDENTI!C60 -> Петровић Јован | D61: =PODACI_STUDENTI!D60 -> Карате | F61: 24 | G61: =IF(OR(Predrok_novembar!G61<>"",Predrok_decembar!G61<>"",Januar!G61<>"",Februar!G61<>"",April!G61<>"",Juni!G61<>"",Juli!G61,Septembar!G61<>"",Oktobar!G61<>"",Oktobar_2!G61<>""),MAX(Predrok_novembar!G61,Predrok_decembar!G61,Januar!G61,Februar!G61,April!G61,Juni!G61,Juli!G61,Septembar!G61,Oktobar!G61,Oktobar_2!G61),"") ->  | H61: =IF(OR(Predrok_novembar!H61<>"",Predrok_decembar!H61<>"",Januar!H61<>"",Februar!H61<>"",April!H61<>"",Juni!H61<>"",Juli!H61,Septembar!H61<>"",Oktobar!H61<>"",Oktobar_2!H61<>""),MAX(Predrok_novembar!H61,Predrok_decembar!H61,Januar!H61,Februar!H61,April!H61,Juni!H61,Juli!H61,Septembar!H61,Oktobar!H61,Oktobar_2!H61),"") ->  | I61: 9 | J61: =IF(OR(Predrok_novembar!J61<>"",Predrok_decembar!J61<>"",Januar!J61<>"",Februar!J61<>"",April!J61<>"",Juni!J61<>"",Juli!J61,Septembar!J61<>"",Oktobar!J61<>"",Oktobar_2!J61<>""),MAX(Predrok_novembar!J61,Predrok_decembar!J61,Januar!J61,Februar!J61,April!J61,Juni!J61,Juli!J61,Septembar!J61,Oktobar!J61,Oktobar_2!J61),"") ->  | K61: NE | N61: 11 | Q61: 8
A62: =PODACI_STUDENTI!A61 -> 60 | B62: =PODACI_STUDENTI!B61 -> 2017/2047 | C62: =PODACI_STUDENTI!C61 -> Пузовић Лазар | D62: =PODACI_STUDENTI!D61 -> Кондиција | F62: =IF(OR(Predrok_novembar!F62<>"",Predrok_decembar!F62<>"",Januar!F62<>"",Februar!F62<>"",April!F62<>"",Juni!F62<>"",Juli!F62,Septembar!F62<>"",Oktobar!F62<>"",Oktobar_2!F62<>""),MAX(Predrok_novembar!F62,Predrok_decembar!F62,Januar!F62,Februar!F62,April!F62,Juni!F62,Juli!F62,Septembar!F62,Oktobar!F62,Oktobar_2!F62),"") -> 27 | G62: =IF(OR(Predrok_novembar!G62<>"",Predrok_decembar!G62<>"",Januar!G62<>"",Februar!G62<>"",April!G62<>"",Juni!G62<>"",Juli!G62,Septembar!G62<>"",Oktobar!G62<>"",Oktobar_2!G62<>""),MAX(Predrok_novembar!G62,Predrok_decembar!G62,Januar!G62,Februar!G62,April!G62,Juni!G62,Juli!G62,Septembar!G62,Oktobar!G62,Oktobar_2!G62),"") ->  | H62: =IF(OR(Predrok_novembar!H62<>"",Predrok_decembar!H62<>"",Januar!H62<>"",Februar!H62<>"",April!H62<>"",Juni!H62<>"",Juli!H62,Septembar!H62<>"",Oktobar!H62<>"",Oktobar_2!H62<>""),MAX(Predrok_novembar!H62,Predrok_decembar!H62,Januar!H62,Februar!H62,April!H62,Juni!H62,Juli!H62,Septembar!H62,Oktobar!H62,Oktobar_2!H62),"") ->  | I62: =IF(OR(Predrok_novembar!I62<>"",Predrok_decembar!I62<>"",Januar!I62<>"",Februar!I62<>"",April!I62<>"",Juni!I62<>"",Juli!I62,Septembar!I62<>"",Oktobar!I62<>"",Oktobar_2!I62<>""),MAX(Predrok_novembar!I62,Predrok_decembar!I62,Januar!I62,Februar!I62,April!I62,Juni!I62,Juli!I62,Septembar!I62,Oktobar!I62,Oktobar_2!I62),"") ->  | J62: =IF(OR(Predrok_novembar!J62<>"",Predrok_decembar!J62<>"",Januar!J62<>"",Februar!J62<>"",April!J62<>"",Juni!J62<>"",Juli!J62,Septembar!J62<>"",Oktobar!J62<>"",Oktobar_2!J62<>""),MAX(Predrok_novembar!J62,Predrok_decembar!J62,Januar!J62,Februar!J62,April!J62,Juni!J62,Juli!J62,Septembar!J62,Oktobar!J62,Oktobar_2!J62),"") ->  | K62: NE | N62: 12
A63: =PODACI_STUDENTI!A62 -> 61 | B63: =PODACI_STUDENTI!B62 -> 2017/2521 | C63: =PODACI_STUDENTI!C62 -> Радевић Барбара | D63: =PODACI_STUDENTI!D62 -> Рекреација | F63: =IF(OR(Predrok_novembar!F63<>"",Predrok_decembar!F63<>"",Januar!F63<>"",Februar!F63<>"",April!F63<>"",Juni!F63<>"",Juli!F63,Septembar!F63<>"",Oktobar!F63<>"",Oktobar_2!F63<>""),MAX(Predrok_novembar!F63,Predrok_decembar!F63,Januar!F63,Februar!F63,April!F63,Juni!F63,Juli!F63,Septembar!F63,Oktobar!F63,Oktobar_2!F63),"") ->  | G63: =IF(OR(Predrok_novembar!G63<>"",Predrok_decembar!G63<>"",Januar!G63<>"",Februar!G63<>"",April!G63<>"",Juni!G63<>"",Juli!G63,Septembar!G63<>"",Oktobar!G63<>"",Oktobar_2!G63<>""),MAX(Predrok_novembar!G63,Predrok_decembar!G63,Januar!G63,Februar!G63,April!G63,Juni!G63,Juli!G63,Septembar!G63,Oktobar!G63,Oktobar_2!G63),"") ->  | H63: =IF(OR(Predrok_novembar!H63<>"",Predrok_decembar!H63<>"",Januar!H63<>"",Februar!H63<>"",April!H63<>"",Juni!H63<>"",Juli!H63,Septembar!H63<>"",Oktobar!H63<>"",Oktobar_2!H63<>""),MAX(Predrok_novembar!H63,Predrok_decembar!H63,Januar!H63,Februar!H63,April!H63,Juni!H63,Juli!H63,Septembar!H63,Oktobar!H63,Oktobar_2!H63),"") ->  | I63: =IF(OR(Predrok_novembar!I63<>"",Predrok_decembar!I63<>"",Januar!I63<>"",Februar!I63<>"",April!I63<>"",Juni!I63<>"",Juli!I63,Septembar!I63<>"",Oktobar!I63<>"",Oktobar_2!I63<>""),MAX(Predrok_novembar!I63,Predrok_decembar!I63,Januar!I63,Februar!I63,April!I63,Juni!I63,Juli!I63,Septembar!I63,Oktobar!I63,Oktobar_2!I63),"") ->  | J63: =IF(OR(Predrok_novembar!J63<>"",Predrok_decembar!J63<>"",Januar!J63<>"",Februar!J63<>"",April!J63<>"",Juni!J63<>"",Juli!J63,Septembar!J63<>"",Oktobar!J63<>"",Oktobar_2!J63<>""),MAX(Predrok_novembar!J63,Predrok_decembar!J63,Januar!J63,Februar!J63,April!J63,Juni!J63,Juli!J63,Septembar!J63,Oktobar!J63,Oktobar_2!J63),"") ->  | K63: NE
A64: =PODACI_STUDENTI!A63 -> 62 | B64: =PODACI_STUDENTI!B63 -> 2017/2015 | C64: =PODACI_STUDENTI!C63 -> Ранковић Александар | D64: =PODACI_STUDENTI!D63 -> Кондиција | F64: =IF(OR(Predrok_novembar!F64<>"",Predrok_decembar!F64<>"",Januar!F64<>"",Februar!F64<>"",April!F64<>"",Juni!F64<>"",Juli!F64,Septembar!F64<>"",Oktobar!F64<>"",Oktobar_2!F64<>""),MAX(Predrok_novembar!F64,Predrok_decembar!F64,Januar!F64,Februar!F64,April!F64,Juni!F64,Juli!F64,Septembar!F64,Oktobar!F64,Oktobar_2!F64),"") -> 30 | G64: =IF(OR(Predrok_novembar!G64<>"",Predrok_decembar!G64<>"",Januar!G64<>"",Februar!G64<>"",April!G64<>"",Juni!G64<>"",Juli!G64,Septembar!G64<>"",Oktobar!G64<>"",Oktobar_2!G64<>""),MAX(Predrok_novembar!G64,Predrok_decembar!G64,Januar!G64,Februar!G64,April!G64,Juni!G64,Juli!G64,Septembar!G64,Oktobar!G64,Oktobar_2!G64),"") -> 29 | H64: =IF(OR(Predrok_novembar!H64<>"",Predrok_decembar!H64<>"",Januar!H64<>"",Februar!H64<>"",April!H64<>"",Juni!H64<>"",Juli!H64,Septembar!H64<>"",Oktobar!H64<>"",Oktobar_2!H64<>""),MAX(Predrok_novembar!H64,Predrok_decembar!H64,Januar!H64,Februar!H64,April!H64,Juni!H64,Juli!H64,Septembar!H64,Oktobar!H64,Oktobar_2!H64),"") -> 17 | I64: =IF(OR(Predrok_novembar!I64<>"",Predrok_decembar!I64<>"",Januar!I64<>"",Februar!I64<>"",April!I64<>"",Juni!I64<>"",Juli!I64,Septembar!I64<>"",Oktobar!I64<>"",Oktobar_2!I64<>""),MAX(Predrok_novembar!I64,Predrok_decembar!I64,Januar!I64,Februar!I64,April!I64,Juni!I64,Juli!I64,Septembar!I64,Oktobar!I64,Oktobar_2!I64),"") -> 9 | J64: =IF(OR(Predrok_novembar!J64<>"",Predrok_decembar!J64<>"",Januar!J64<>"",Februar!J64<>"",April!J64<>"",Juni!J64<>"",Juli!J64,Septembar!J64<>"",Oktobar!J64<>"",Oktobar_2!J64<>""),MAX(Predrok_novembar!J64,Predrok_decembar!J64,Januar!J64,Februar!J64,April!J64,Juni!J64,Juli!J64,Septembar!J64,Oktobar!J64,Oktobar_2!J64),"") -> 12 | K64: DA | L64: 5 | M64: 5 | N64: 13 | O64: 13 | P64: 11 | Q64: 8 | R64: 11 | S64: 20 | T64: 87.0 | U64: 9 | V64: Јануар | W64: 2018-01-18 | X64: 10 | Y64: 2018-01-09 | Z64: 37 | AA64: 2018-01-18 | AB64: 20 | AC64: 2018-01-18 | AD64: 20 | AE64: 87 | AF64: 9 | AG64: 2018-01-18
A65: =PODACI_STUDENTI!A64 -> 63 | B65: =PODACI_STUDENTI!B64 -> 2017/2053 | C65: =PODACI_STUDENTI!C64 -> Рилак Алекса | D65: =PODACI_STUDENTI!D64 -> Кондиција | F65: =IF(OR(Predrok_novembar!F65<>"",Predrok_decembar!F65<>"",Januar!F65<>"",Februar!F65<>"",April!F65<>"",Juni!F65<>"",Juli!F65,Septembar!F65<>"",Oktobar!F65<>"",Oktobar_2!F65<>""),MAX(Predrok_novembar!F65,Predrok_decembar!F65,Januar!F65,Februar!F65,April!F65,Juni!F65,Juli!F65,Septembar!F65,Oktobar!F65,Oktobar_2!F65),"") -> 29 | G65: =IF(OR(Predrok_novembar!G65<>"",Predrok_decembar!G65<>"",Januar!G65<>"",Februar!G65<>"",April!G65<>"",Juni!G65<>"",Juli!G65,Septembar!G65<>"",Oktobar!G65<>"",Oktobar_2!G65<>""),MAX(Predrok_novembar!G65,Predrok_decembar!G65,Januar!G65,Februar!G65,April!G65,Juni!G65,Juli!G65,Septembar!G65,Oktobar!G65,Oktobar_2!G65),"") -> 32 | H65: =IF(OR(Predrok_novembar!H65<>"",Predrok_decembar!H65<>"",Januar!H65<>"",Februar!H65<>"",April!H65<>"",Juni!H65<>"",Juli!H65,Septembar!H65<>"",Oktobar!H65<>"",Oktobar_2!H65<>""),MAX(Predrok_novembar!H65,Predrok_decembar!H65,Januar!H65,Februar!H65,April!H65,Juni!H65,Juli!H65,Septembar!H65,Oktobar!H65,Oktobar_2!H65),"") -> 20 | I65: =IF(OR(Predrok_novembar!I65<>"",Predrok_decembar!I65<>"",Januar!I65<>"",Februar!I65<>"",April!I65<>"",Juni!I65<>"",Juli!I65,Septembar!I65<>"",Oktobar!I65<>"",Oktobar_2!I65<>""),MAX(Predrok_novembar!I65,Predrok_decembar!I65,Januar!I65,Februar!I65,April!I65,Juni!I65,Juli!I65,Septembar!I65,Oktobar!I65,Oktobar_2!I65),"") -> 13 | J65: =IF(OR(Predrok_novembar!J65<>"",Predrok_decembar!J65<>"",Januar!J65<>"",Februar!J65<>"",April!J65<>"",Juni!J65<>"",Juli!J65,Septembar!J65<>"",Oktobar!J65<>"",Oktobar_2!J65<>""),MAX(Predrok_novembar!J65,Predrok_decembar!J65,Januar!J65,Februar!J65,April!J65,Juni!J65,Juli!J65,Septembar!J65,Oktobar!J65,Oktobar_2!J65),"") -> 12 | K65: DA | L65: 5 | M65: 5 | N65: 13 | O65: 14 | P65: 13 | Q65: 12 | R65: 11 | S65: 20 | T65: 93.0 | U65: 10 | V65: Јануар | W65: 2018-01-18 | X65: 10 | Y65: 2018-01-09 | Z65: 40 | AA65: 2018-01-18 | AB65: 23 | AC65: 2018-01-18 | AD65: 20 | AE65: 93 | AF65: 10 | AG65: 2018-01-18
A66: =PODACI_STUDENTI!A65 -> 64 | B66: =PODACI_STUDENTI!B65 -> 2017/2011 | C66: =PODACI_STUDENTI!C65 -> Савковић Ђорђе | D66: =PODACI_STUDENTI!D65 -> Кондиција | F66: =IF(OR(Predrok_novembar!F66<>"",Predrok_decembar!F66<>"",Januar!F66<>"",Februar!F66<>"",April!F66<>"",Juni!F66<>"",Juli!F66,Septembar!F66<>"",Oktobar!F66<>"",Oktobar_2!F66<>""),MAX(Predrok_novembar!F66,Predrok_decembar!F66,Januar!F66,Februar!F66,April!F66,Juni!F66,Juli!F66,Septembar!F66,Oktobar!F66,Oktobar_2!F66),"") ->  | G66: =IF(OR(Predrok_novembar!G66<>"",Predrok_decembar!G66<>"",Januar!G66<>"",Februar!G66<>"",April!G66<>"",Juni!G66<>"",Juli!G66,Septembar!G66<>"",Oktobar!G66<>"",Oktobar_2!G66<>""),MAX(Predrok_novembar!G66,Predrok_decembar!G66,Januar!G66,Februar!G66,April!G66,Juni!G66,Juli!G66,Septembar!G66,Oktobar!G66,Oktobar_2!G66),"") ->  | H66: =IF(OR(Predrok_novembar!H66<>"",Predrok_decembar!H66<>"",Januar!H66<>"",Februar!H66<>"",April!H66<>"",Juni!H66<>"",Juli!H66,Septembar!H66<>"",Oktobar!H66<>"",Oktobar_2!H66<>""),MAX(Predrok_novembar!H66,Predrok_decembar!H66,Januar!H66,Februar!H66,April!H66,Juni!H66,Juli!H66,Septembar!H66,Oktobar!H66,Oktobar_2!H66),"") ->  | I66: =IF(OR(Predrok_novembar!I66<>"",Predrok_decembar!I66<>"",Januar!I66<>"",Februar!I66<>"",April!I66<>"",Juni!I66<>"",Juli!I66,Septembar!I66<>"",Oktobar!I66<>"",Oktobar_2!I66<>""),MAX(Predrok_novembar!I66,Predrok_decembar!I66,Januar!I66,Februar!I66,April!I66,Juni!I66,Juli!I66,Septembar!I66,Oktobar!I66,Oktobar_2!I66),"") ->  | J66: =IF(OR(Predrok_novembar!J66<>"",Predrok_decembar!J66<>"",Januar!J66<>"",Februar!J66<>"",April!J66<>"",Juni!J66<>"",Juli!J66,Septembar!J66<>"",Oktobar!J66<>"",Oktobar_2!J66<>""),MAX(Predrok_novembar!J66,Predrok_decembar!J66,Januar!J66,Februar!J66,April!J66,Juni!J66,Juli!J66,Septembar!J66,Oktobar!J66,Oktobar_2!J66),"") ->  | K66: NE
A67: =PODACI_STUDENTI!A66 -> 65 | B67: =PODACI_STUDENTI!B66 -> 2017/2505 | C67: =PODACI_STUDENTI!C66 -> Смиљковић Милица | D67: =PODACI_STUDENTI!D66 -> Рекреација | F67: =IF(OR(Predrok_novembar!F67<>"",Predrok_decembar!F67<>"",Januar!F67<>"",Februar!F67<>"",April!F67<>"",Juni!F67<>"",Juli!F67,Septembar!F67<>"",Oktobar!F67<>"",Oktobar_2!F67<>""),MAX(Predrok_novembar!F67,Predrok_decembar!F67,Januar!F67,Februar!F67,April!F67,Juni!F67,Juli!F67,Septembar!F67,Oktobar!F67,Oktobar_2!F67),"") -> 30 | G67: =IF(OR(Predrok_novembar!G67<>"",Predrok_decembar!G67<>"",Januar!G67<>"",Februar!G67<>"",April!G67<>"",Juni!G67<>"",Juli!G67,Septembar!G67<>"",Oktobar!G67<>"",Oktobar_2!G67<>""),MAX(Predrok_novembar!G67,Predrok_decembar!G67,Januar!G67,Februar!G67,April!G67,Juni!G67,Juli!G67,Septembar!G67,Oktobar!G67,Oktobar_2!G67),"") -> 28 | H67: =IF(OR(Predrok_novembar!H67<>"",Predrok_decembar!H67<>"",Januar!H67<>"",Februar!H67<>"",April!H67<>"",Juni!H67<>"",Juli!H67,Septembar!H67<>"",Oktobar!H67<>"",Oktobar_2!H67<>""),MAX(Predrok_novembar!H67,Predrok_decembar!H67,Januar!H67,Februar!H67,April!H67,Juni!H67,Juli!H67,Septembar!H67,Oktobar!H67,Oktobar_2!H67),"") -> 11 | I67: =IF(OR(Predrok_novembar!I67<>"",Predrok_decembar!I67<>"",Januar!I67<>"",Februar!I67<>"",April!I67<>"",Juni!I67<>"",Juli!I67,Septembar!I67<>"",Oktobar!I67<>"",Oktobar_2!I67<>""),MAX(Predrok_novembar!I67,Predrok_decembar!I67,Januar!I67,Februar!I67,April!I67,Juni!I67,Juli!I67,Septembar!I67,Oktobar!I67,Oktobar_2!I67),"") -> 10 | J67: =IF(OR(Predrok_novembar!J67<>"",Predrok_decembar!J67<>"",Januar!J67<>"",Februar!J67<>"",April!J67<>"",Juni!J67<>"",Juli!J67,Septembar!J67<>"",Oktobar!J67<>"",Oktobar_2!J67<>""),MAX(Predrok_novembar!J67,Predrok_decembar!J67,Januar!J67,Februar!J67,April!J67,Juni!J67,Juli!J67,Septembar!J67,Oktobar!J67,Oktobar_2!J67),"") -> 10 | K67: =IF(B67<>"",IF(AND(F67<>"",G67<>"",H67<>"",I67<>"",J67<>""),"DA","NE"),"") -> DA | L67: =IF(S67<>"",5,"") -> 5 | M67: =IF(S67<>"",5,"") -> 5 | N67: =IF(F67<>"",IF(F67>=24,(F67/32)*14,""),"") -> 13 | O67: =IF(G67<>"",IF(G67>=24,(G67/32)*14,""),"") -> 12 | P67: =IF(H67<>"",IF(H67>=11,(H67/21)*14,""),"") -> 7 | Q67: =IF(I67<>"",IF(I67>=9,(I67/15)*14,""),"") -> 9 | R67: =IF(J67<>"",IF(J67>=9,(J67/15)*14,""),"") -> 9 | S67: =IF(V67<>"",IF(AND(N67<>"",O67<>"",P67<>"",Q67<>"",R67<>""),IF(OR(V67="Јануар",V67="Фебруар"),20,IF(OR(V67="Април",V67="Јун",V67="Јул"),15,10)),""),"") -> 20 | T67: =IF(AND(L67<>"",M67<>"",S67<>"",N67<>"",O67<>"",Q67<>"",P67<>"",R67<>""),ROUND(SUM(L67,M67,S67,N67,O67,Q67,P67,R67),0),"") -> 81.0 | U67: =IF(T67<>"",VLOOKUP(T67,$AM$3:$AO$7,3),"") -> 9 | V67: Јануар | W67: =IF(X67<>"",VLOOKUP(V67,$AR$2:$AW$10,6,FALSE),"") -> 2018-01-18 | X67: =IF(AND(U67<>"",V67<>""),M67+L67,"") -> 10 | Y67: =IF(X67<>"",VLOOKUP(V67,$AR$2:$AW$10,2,FALSE),"") -> 2018-01-09 | Z67: =IF(X67<>"",SUM(N67,O67,P67),"") -> 33 | AA67: =IF(X67<>"",VLOOKUP(V67,$AR$2:$AW$10,4,FALSE),"") -> 2018-01-18 | AB67: =IF(X67<>"",Q67+R67,"") -> 19 | AC67: =IF(X67<>"",VLOOKUP(V67,$AR$2:$AW$10,5,FALSE),"") -> 2018-01-18 | AD67: =IF(AND(U67<>"",V67<>""),S67,"") -> 20 | AE67: =IF(X67<>"",SUM(X67,AD67,Z67,AB67),"") -> 81 | AF67: =IF(AND(U67<>"",V67<>""),U67,"") -> 9 | AG67: =IF(X67<>"",VLOOKUP(V67,$AR$2:$AW$10,6,FALSE),"") -> 2018-01-18
A68: =PODACI_STUDENTI!A67 -> 66 | B68: =PODACI_STUDENTI!B67 -> 2017/2029 | C68: =PODACI_STUDENTI!C67 -> Соломун Дина | D68: =PODACI_STUDENTI!D67 -> Кондиција | F68: =IF(OR(Predrok_novembar!F68<>"",Predrok_decembar!F68<>"",Januar!F68<>"",Februar!F68<>"",April!F68<>"",Juni!F68<>"",Juli!F68,Septembar!F68<>"",Oktobar!F68<>"",Oktobar_2!F68<>""),MAX(Predrok_novembar!F68,Predrok_decembar!F68,Januar!F68,Februar!F68,April!F68,Juni!F68,Juli!F68,Septembar!F68,Oktobar!F68,Oktobar_2!F68),"") -> 29 | G68: =IF(OR(Predrok_novembar!G68<>"",Predrok_decembar!G68<>"",Januar!G68<>"",Februar!G68<>"",April!G68<>"",Juni!G68<>"",Juli!G68,Septembar!G68<>"",Oktobar!G68<>"",Oktobar_2!G68<>""),MAX(Predrok_novembar!G68,Predrok_decembar!G68,Januar!G68,Februar!G68,April!G68,Juni!G68,Juli!G68,Septembar!G68,Oktobar!G68,Oktobar_2!G68),"") ->  | H68: =IF(OR(Predrok_novembar!H68<>"",Predrok_decembar!H68<>"",Januar!H68<>"",Februar!H68<>"",April!H68<>"",Juni!H68<>"",Juli!H68,Septembar!H68<>"",Oktobar!H68<>"",Oktobar_2!H68<>""),MAX(Predrok_novembar!H68,Predrok_decembar!H68,Januar!H68,Februar!H68,April!H68,Juni!H68,Juli!H68,Septembar!H68,Oktobar!H68,Oktobar_2!H68),"") ->  | I68: =IF(OR(Predrok_novembar!I68<>"",Predrok_decembar!I68<>"",Januar!I68<>"",Februar!I68<>"",April!I68<>"",Juni!I68<>"",Juli!I68,Septembar!I68<>"",Oktobar!I68<>"",Oktobar_2!I68<>""),MAX(Predrok_novembar!I68,Predrok_decembar!I68,Januar!I68,Februar!I68,April!I68,Juni!I68,Juli!I68,Septembar!I68,Oktobar!I68,Oktobar_2!I68),"") ->  | J68: =IF(OR(Predrok_novembar!J68<>"",Predrok_decembar!J68<>"",Januar!J68<>"",Februar!J68<>"",April!J68<>"",Juni!J68<>"",Juli!J68,Septembar!J68<>"",Oktobar!J68<>"",Oktobar_2!J68<>""),MAX(Predrok_novembar!J68,Predrok_decembar!J68,Januar!J68,Februar!J68,April!J68,Juni!J68,Juli!J68,Septembar!J68,Oktobar!J68,Oktobar_2!J68),"") ->  | K68: NE | N68: 13
A69: =PODACI_STUDENTI!A68 -> 67 | B69: =PODACI_STUDENTI!B68 -> 2017/2004 | C69: =PODACI_STUDENTI!C68 -> Станић Нина | D69: =PODACI_STUDENTI!D68 -> Кондиција | F69: =IF(OR(Predrok_novembar!F69<>"",Predrok_decembar!F69<>"",Januar!F69<>"",Februar!F69<>"",April!F69<>"",Juni!F69<>"",Juli!F69,Septembar!F69<>"",Oktobar!F69<>"",Oktobar_2!F69<>""),MAX(Predrok_novembar!F69,Predrok_decembar!F69,Januar!F69,Februar!F69,April!F69,Juni!F69,Juli!F69,Septembar!F69,Oktobar!F69,Oktobar_2!F69),"") -> 30 | G69: =IF(OR(Predrok_novembar!G69<>"",Predrok_decembar!G69<>"",Januar!G69<>"",Februar!G69<>"",April!G69<>"",Juni!G69<>"",Juli!G69,Septembar!G69<>"",Oktobar!G69<>"",Oktobar_2!G69<>""),MAX(Predrok_novembar!G69,Predrok_decembar!G69,Januar!G69,Februar!G69,April!G69,Juni!G69,Juli!G69,Septembar!G69,Oktobar!G69,Oktobar_2!G69),"") -> 31 | H69: 11 | I69: =IF(OR(Predrok_novembar!I69<>"",Predrok_decembar!I69<>"",Januar!I69<>"",Februar!I69<>"",April!I69<>"",Juni!I69<>"",Juli!I69,Septembar!I69<>"",Oktobar!I69<>"",Oktobar_2!I69<>""),MAX(Predrok_novembar!I69,Predrok_decembar!I69,Januar!I69,Februar!I69,April!I69,Juni!I69,Juli!I69,Septembar!I69,Oktobar!I69,Oktobar_2!I69),"") -> 9 | J69: =IF(OR(Predrok_novembar!J69<>"",Predrok_decembar!J69<>"",Januar!J69<>"",Februar!J69<>"",April!J69<>"",Juni!J69<>"",Juli!J69,Septembar!J69<>"",Oktobar!J69<>"",Oktobar_2!J69<>""),MAX(Predrok_novembar!J69,Predrok_decembar!J69,Januar!J69,Februar!J69,April!J69,Juni!J69,Juli!J69,Septembar!J69,Oktobar!J69,Oktobar_2!J69),"") -> 14 | K69: DA | L69: 5 | M69: 5 | N69: 13 | O69: 14 | P69: 7 | Q69: 8 | R69: 13 | S69: 15 | T69: 80.0 | U69: 8 | V69: Јун | W69: 2018-06-15 | X69: 10 | Y69: 2018-01-09 | Z69: 34 | AA69: 2018-06-15 | AB69: 21 | AC69: 2018-06-15 | AD69: 15 | AE69: 80 | AF69: 8 | AG69: 2018-06-15
A70: =PODACI_STUDENTI!A69 -> 68 | B70: =PODACI_STUDENTI!B69 -> 2017/2035 | C70: =PODACI_STUDENTI!C69 -> Стојановић Јанко | D70: =PODACI_STUDENTI!D69 -> Фудбал | F70: =IF(OR(Predrok_novembar!F70<>"",Predrok_decembar!F70<>"",Januar!F70<>"",Februar!F70<>"",April!F70<>"",Juni!F70<>"",Juli!F70,Septembar!F70<>"",Oktobar!F70<>"",Oktobar_2!F70<>""),MAX(Predrok_novembar!F70,Predrok_decembar!F70,Januar!F70,Februar!F70,April!F70,Juni!F70,Juli!F70,Septembar!F70,Oktobar!F70,Oktobar_2!F70),"") -> 30 | G70: =IF(OR(Predrok_novembar!G70<>"",Predrok_decembar!G70<>"",Januar!G70<>"",Februar!G70<>"",April!G70<>"",Juni!G70<>"",Juli!G70,Septembar!G70<>"",Oktobar!G70<>"",Oktobar_2!G70<>""),MAX(Predrok_novembar!G70,Predrok_decembar!G70,Januar!G70,Februar!G70,April!G70,Juni!G70,Juli!G70,Septembar!G70,Oktobar!G70,Oktobar_2!G70),"") -> 31 | H70: =IF(OR(Predrok_novembar!H70<>"",Predrok_decembar!H70<>"",Januar!H70<>"",Februar!H70<>"",April!H70<>"",Juni!H70<>"",Juli!H70,Septembar!H70<>"",Oktobar!H70<>"",Oktobar_2!H70<>""),MAX(Predrok_novembar!H70,Predrok_decembar!H70,Januar!H70,Februar!H70,April!H70,Juni!H70,Juli!H70,Septembar!H70,Oktobar!H70,Oktobar_2!H70),"") -> 18 | I70: =IF(OR(Predrok_novembar!I70<>"",Predrok_decembar!I70<>"",Januar!I70<>"",Februar!I70<>"",April!I70<>"",Juni!I70<>"",Juli!I70,Septembar!I70<>"",Oktobar!I70<>"",Oktobar_2!I70<>""),MAX(Predrok_novembar!I70,Predrok_decembar!I70,Januar!I70,Februar!I70,April!I70,Juni!I70,Juli!I70,Septembar!I70,Oktobar!I70,Oktobar_2!I70),"") -> 9 | J70: 13 | K70: DA | L70: 5 | M70: 5 | N70: 13 | O70: 14 | P70: 12 | Q70: 8 | R70: 12 | S70: 15 | T70: 84.0 | U70: 9 | V70: Април | W70: 2018-04-20 | X70: 10 | Y70: 2018-01-09 | Z70: 39 | AA70: 2018-04-18 | AB70: 21 | AC70: 2018-04-20 | AD70: 15 | AE70: 84 | AF70: 9 | AG70: 2018-04-20
A71: =PODACI_STUDENTI!A70 -> 69 | B71: =PODACI_STUDENTI!B70 -> 2017/2518 | C71: =PODACI_STUDENTI!C70 -> Стојановић Милош | D71: =PODACI_STUDENTI!D70 -> Рекреација | F71: =IF(OR(Predrok_novembar!F71<>"",Predrok_decembar!F71<>"",Januar!F71<>"",Februar!F71<>"",April!F71<>"",Juni!F71<>"",Juli!F71,Septembar!F71<>"",Oktobar!F71<>"",Oktobar_2!F71<>""),MAX(Predrok_novembar!F71,Predrok_decembar!F71,Januar!F71,Februar!F71,April!F71,Juni!F71,Juli!F71,Septembar!F71,Oktobar!F71,Oktobar_2!F71),"") -> 30 | G71: =IF(OR(Predrok_novembar!G71<>"",Predrok_decembar!G71<>"",Januar!G71<>"",Februar!G71<>"",April!G71<>"",Juni!G71<>"",Juli!G71,Septembar!G71<>"",Oktobar!G71<>"",Oktobar_2!G71<>""),MAX(Predrok_novembar!G71,Predrok_decembar!G71,Januar!G71,Februar!G71,April!G71,Juni!G71,Juli!G71,Septembar!G71,Oktobar!G71,Oktobar_2!G71),"") -> 32 | H71: =IF(OR(Predrok_novembar!H71<>"",Predrok_decembar!H71<>"",Januar!H71<>"",Februar!H71<>"",April!H71<>"",Juni!H71<>"",Juli!H71,Septembar!H71<>"",Oktobar!H71<>"",Oktobar_2!H71<>""),MAX(Predrok_novembar!H71,Predrok_decembar!H71,Januar!H71,Februar!H71,April!H71,Juni!H71,Juli!H71,Septembar!H71,Oktobar!H71,Oktobar_2!H71),"") -> 20 | I71: =IF(OR(Predrok_novembar!I71<>"",Predrok_decembar!I71<>"",Januar!I71<>"",Februar!I71<>"",April!I71<>"",Juni!I71<>"",Juli!I71,Septembar!I71<>"",Oktobar!I71<>"",Oktobar_2!I71<>""),MAX(Predrok_novembar!I71,Predrok_decembar!I71,Januar!I71,Februar!I71,April!I71,Juni!I71,Juli!I71,Septembar!I71,Oktobar!I71,Oktobar_2!I71),"") -> 12 | J71: =IF(OR(Predrok_novembar!J71<>"",Predrok_decembar!J71<>"",Januar!J71<>"",Februar!J71<>"",April!J71<>"",Juni!J71<>"",Juli!J71,Septembar!J71<>"",Oktobar!J71<>"",Oktobar_2!J71<>""),MAX(Predrok_novembar!J71,Predrok_decembar!J71,Januar!J71,Februar!J71,April!J71,Juni!J71,Juli!J71,Septembar!J71,Oktobar!J71,Oktobar_2!J71),"") -> 10 | K71: DA | L71: 5 | M71: 5 | N71: 13 | O71: 14 | P71: 13 | Q71: 11 | R71: 9 | S71: 20 | T71: 91.0 | U71: 10 | V71: Јануар | W71: 2018-01-18 | X71: 10 | Y71: 2018-01-09 | Z71: 40 | AA71: 2018-01-18 | AB71: 21 | AC71: 2018-01-18 | AD71: 20 | AE71: 91 | AF71: 10 | AG71: 2018-01-18
A72: =PODACI_STUDENTI!A71 -> 70 | B72: =PODACI_STUDENTI!B71 -> 2017/2012 | C72: =PODACI_STUDENTI!C71 -> Стојановић Павле | D72: =PODACI_STUDENTI!D71 -> Кондиција | F72: =IF(OR(Predrok_novembar!F72<>"",Predrok_decembar!F72<>"",Januar!F72<>"",Februar!F72<>"",April!F72<>"",Juni!F72<>"",Juli!F72,Septembar!F72<>"",Oktobar!F72<>"",Oktobar_2!F72<>""),MAX(Predrok_novembar!F72,Predrok_decembar!F72,Januar!F72,Februar!F72,April!F72,Juni!F72,Juli!F72,Septembar!F72,Oktobar!F72,Oktobar_2!F72),"") -> 30 | G72: =IF(OR(Predrok_novembar!G72<>"",Predrok_decembar!G72<>"",Januar!G72<>"",Februar!G72<>"",April!G72<>"",Juni!G72<>"",Juli!G72,Septembar!G72<>"",Oktobar!G72<>"",Oktobar_2!G72<>""),MAX(Predrok_novembar!G72,Predrok_decembar!G72,Januar!G72,Februar!G72,April!G72,Juni!G72,Juli!G72,Septembar!G72,Oktobar!G72,Oktobar_2!G72),"") -> 32 | H72: =IF(OR(Predrok_novembar!H72<>"",Predrok_decembar!H72<>"",Januar!H72<>"",Februar!H72<>"",April!H72<>"",Juni!H72<>"",Juli!H72,Septembar!H72<>"",Oktobar!H72<>"",Oktobar_2!H72<>""),MAX(Predrok_novembar!H72,Predrok_decembar!H72,Januar!H72,Februar!H72,April!H72,Juni!H72,Juli!H72,Septembar!H72,Oktobar!H72,Oktobar_2!H72),"") -> 12 | I72: =IF(OR(Predrok_novembar!I72<>"",Predrok_decembar!I72<>"",Januar!I72<>"",Februar!I72<>"",April!I72<>"",Juni!I72<>"",Juli!I72,Septembar!I72<>"",Oktobar!I72<>"",Oktobar_2!I72<>""),MAX(Predrok_novembar!I72,Predrok_decembar!I72,Januar!I72,Februar!I72,April!I72,Juni!I72,Juli!I72,Septembar!I72,Oktobar!I72,Oktobar_2!I72),"") -> 10 | J72: =IF(OR(Predrok_novembar!J72<>"",Predrok_decembar!J72<>"",Januar!J72<>"",Februar!J72<>"",April!J72<>"",Juni!J72<>"",Juli!J72,Septembar!J72<>"",Oktobar!J72<>"",Oktobar_2!J72<>""),MAX(Predrok_novembar!J72,Predrok_decembar!J72,Januar!J72,Februar!J72,April!J72,Juni!J72,Juli!J72,Septembar!J72,Oktobar!J72,Oktobar_2!J72),"") -> 9 | K72: DA | L72: 5 | M72: 5 | N72: 13 | O72: 14 | P72: 8 | Q72: 9 | R72: 8 | S72: 20 | T72: 83.0 | U72: 9 | V72: Јануар | W72: 2018-01-18 | X72: 10 | Y72: 2018-01-09 | Z72: 35 | AA72: 2018-01-18 | AB72: 18 | AC72: 2018-01-18 | AD72: 20 | AE72: 83 | AF72: 9 | AG72: 2018-01-18
A73: =PODACI_STUDENTI!A72 -> 71 | B73: =PODACI_STUDENTI!B72 -> 2017/2003 | C73: =PODACI_STUDENTI!C72 -> Стојимиров Александар | D73: =PODACI_STUDENTI!D72 -> Фудбал | F73: =IF(OR(Predrok_novembar!F73<>"",Predrok_decembar!F73<>"",Januar!F73<>"",Februar!F73<>"",April!F73<>"",Juni!F73<>"",Juli!F73,Septembar!F73<>"",Oktobar!F73<>"",Oktobar_2!F73<>""),MAX(Predrok_novembar!F73,Predrok_decembar!F73,Januar!F73,Februar!F73,April!F73,Juni!F73,Juli!F73,Septembar!F73,Oktobar!F73,Oktobar_2!F73),"") -> 31 | G73: =IF(OR(Predrok_novembar!G73<>"",Predrok_decembar!G73<>"",Januar!G73<>"",Februar!G73<>"",April!G73<>"",Juni!G73<>"",Juli!G73,Septembar!G73<>"",Oktobar!G73<>"",Oktobar_2!G73<>""),MAX(Predrok_novembar!G73,Predrok_decembar!G73,Januar!G73,Februar!G73,April!G73,Juni!G73,Juli!G73,Septembar!G73,Oktobar!G73,Oktobar_2!G73),"") -> 32 | H73: =IF(OR(Predrok_novembar!H73<>"",Predrok_decembar!H73<>"",Januar!H73<>"",Februar!H73<>"",April!H73<>"",Juni!H73<>"",Juli!H73,Septembar!H73<>"",Oktobar!H73<>"",Oktobar_2!H73<>""),MAX(Predrok_novembar!H73,Predrok_decembar!H73,Januar!H73,Februar!H73,April!H73,Juni!H73,Juli!H73,Septembar!H73,Oktobar!H73,Oktobar_2!H73),"") -> 17 | I73: =IF(OR(Predrok_novembar!I73<>"",Predrok_decembar!I73<>"",Januar!I73<>"",Februar!I73<>"",April!I73<>"",Juni!I73<>"",Juli!I73,Septembar!I73<>"",Oktobar!I73<>"",Oktobar_2!I73<>""),MAX(Predrok_novembar!I73,Predrok_decembar!I73,Januar!I73,Februar!I73,April!I73,Juni!I73,Juli!I73,Septembar!I73,Oktobar!I73,Oktobar_2!I73),"") -> 10 | J73: =IF(OR(Predrok_novembar!J73<>"",Predrok_decembar!J73<>"",Januar!J73<>"",Februar!J73<>"",April!J73<>"",Juni!J73<>"",Juli!J73,Septembar!J73<>"",Oktobar!J73<>"",Oktobar_2!J73<>""),MAX(Predrok_novembar!J73,Predrok_decembar!J73,Januar!J73,Februar!J73,April!J73,Juni!J73,Juli!J73,Septembar!J73,Oktobar!J73,Oktobar_2!J73),"") -> 12 | K73: DA | L73: 5 | M73: 5 | N73: 14 | O73: 14 | P73: 11 | Q73: 9 | R73: 11 | S73: 20 | T73: 89.0 | U73: 9 | V73: Јануар | W73: 2018-01-18 | X73: 10 | Y73: 2018-01-09 | Z73: 39 | AA73: 2018-01-18 | AB73: 21 | AC73: 2018-01-18 | AD73: 20 | AE73: 89 | AF73: 9 | AG73: 2018-01-18
A74: =PODACI_STUDENTI!A73 -> 72 | B74: =PODACI_STUDENTI!B73 -> 2017/2054 | C74: =PODACI_STUDENTI!C73 -> Терзић Милош | D74: =PODACI_STUDENTI!D73 -> Одбојка | F74: =IF(OR(Predrok_novembar!F74<>"",Predrok_decembar!F74<>"",Januar!F74<>"",Februar!F74<>"",April!F74<>"",Juni!F74<>"",Juli!F74,Septembar!F74<>"",Oktobar!F74<>"",Oktobar_2!F74<>""),MAX(Predrok_novembar!F74,Predrok_decembar!F74,Januar!F74,Februar!F74,April!F74,Juni!F74,Juli!F74,Septembar!F74,Oktobar!F74,Oktobar_2!F74),"") -> 32 | G74: =IF(OR(Predrok_novembar!G74<>"",Predrok_decembar!G74<>"",Januar!G74<>"",Februar!G74<>"",April!G74<>"",Juni!G74<>"",Juli!G74,Septembar!G74<>"",Oktobar!G74<>"",Oktobar_2!G74<>""),MAX(Predrok_novembar!G74,Predrok_decembar!G74,Januar!G74,Februar!G74,April!G74,Juni!G74,Juli!G74,Septembar!G74,Oktobar!G74,Oktobar_2!G74),"") -> 30 | H74: =IF(OR(Predrok_novembar!H74<>"",Predrok_decembar!H74<>"",Januar!H74<>"",Februar!H74<>"",April!H74<>"",Juni!H74<>"",Juli!H74,Septembar!H74<>"",Oktobar!H74<>"",Oktobar_2!H74<>""),MAX(Predrok_novembar!H74,Predrok_decembar!H74,Januar!H74,Februar!H74,April!H74,Juni!H74,Juli!H74,Septembar!H74,Oktobar!H74,Oktobar_2!H74),"") -> 18 | I74: =IF(OR(Predrok_novembar!I74<>"",Predrok_decembar!I74<>"",Januar!I74<>"",Februar!I74<>"",April!I74<>"",Juni!I74<>"",Juli!I74,Septembar!I74<>"",Oktobar!I74<>"",Oktobar_2!I74<>""),MAX(Predrok_novembar!I74,Predrok_decembar!I74,Januar!I74,Februar!I74,April!I74,Juni!I74,Juli!I74,Septembar!I74,Oktobar!I74,Oktobar_2!I74),"") -> 11 | J74: =IF(OR(Predrok_novembar!J74<>"",Predrok_decembar!J74<>"",Januar!J74<>"",Februar!J74<>"",April!J74<>"",Juni!J74<>"",Juli!J74,Septembar!J74<>"",Oktobar!J74<>"",Oktobar_2!J74<>""),MAX(Predrok_novembar!J74,Predrok_decembar!J74,Januar!J74,Februar!J74,April!J74,Juni!J74,Juli!J74,Septembar!J74,Oktobar!J74,Oktobar_2!J74),"") -> 9 | K74: DA | L74: 5 | M74: 5 | N74: 14 | O74: 13 | P74: 12 | Q74: 10 | R74: 8 | S74: 20 | T74: 88.0 | U74: 9 | V74: Јануар | W74: 2018-01-18 | X74: 10 | Y74: 2018-01-09 | Z74: 39 | AA74: 2018-01-18 | AB74: 19 | AC74: 2018-01-18 | AD74: 20 | AE74: 88 | AF74: 9 | AG74: 2018-01-18
A75: =PODACI_STUDENTI!A74 -> 73 | B75: =PODACI_STUDENTI!B74 -> 2017/2018 | C75: =PODACI_STUDENTI!C74 -> Тешић Николина | D75: =PODACI_STUDENTI!D74 -> Тенис | F75: =IF(OR(Predrok_novembar!F75<>"",Predrok_decembar!F75<>"",Januar!F75<>"",Februar!F75<>"",April!F75<>"",Juni!F75<>"",Juli!F75,Septembar!F75<>"",Oktobar!F75<>"",Oktobar_2!F75<>""),MAX(Predrok_novembar!F75,Predrok_decembar!F75,Januar!F75,Februar!F75,April!F75,Juni!F75,Juli!F75,Septembar!F75,Oktobar!F75,Oktobar_2!F75),"") -> 31 | G75: =IF(OR(Predrok_novembar!G75<>"",Predrok_decembar!G75<>"",Januar!G75<>"",Februar!G75<>"",April!G75<>"",Juni!G75<>"",Juli!G75,Septembar!G75<>"",Oktobar!G75<>"",Oktobar_2!G75<>""),MAX(Predrok_novembar!G75,Predrok_decembar!G75,Januar!G75,Februar!G75,April!G75,Juni!G75,Juli!G75,Septembar!G75,Oktobar!G75,Oktobar_2!G75),"") -> 31 | H75: =IF(OR(Predrok_novembar!H75<>"",Predrok_decembar!H75<>"",Januar!H75<>"",Februar!H75<>"",April!H75<>"",Juni!H75<>"",Juli!H75,Septembar!H75<>"",Oktobar!H75<>"",Oktobar_2!H75<>""),MAX(Predrok_novembar!H75,Predrok_decembar!H75,Januar!H75,Februar!H75,April!H75,Juni!H75,Juli!H75,Septembar!H75,Oktobar!H75,Oktobar_2!H75),"") -> 20 | I75: =IF(OR(Predrok_novembar!I75<>"",Predrok_decembar!I75<>"",Januar!I75<>"",Februar!I75<>"",April!I75<>"",Juni!I75<>"",Juli!I75,Septembar!I75<>"",Oktobar!I75<>"",Oktobar_2!I75<>""),MAX(Predrok_novembar!I75,Predrok_decembar!I75,Januar!I75,Februar!I75,April!I75,Juni!I75,Juli!I75,Septembar!I75,Oktobar!I75,Oktobar_2!I75),"") -> 11 | J75: =IF(OR(Predrok_novembar!J75<>"",Predrok_decembar!J75<>"",Januar!J75<>"",Februar!J75<>"",April!J75<>"",Juni!J75<>"",Juli!J75,Septembar!J75<>"",Oktobar!J75<>"",Oktobar_2!J75<>""),MAX(Predrok_novembar!J75,Predrok_decembar!J75,Januar!J75,Februar!J75,April!J75,Juni!J75,Juli!J75,Septembar!J75,Oktobar!J75,Oktobar_2!J75),"") -> 11 | K75: DA | L75: 5 | M75: 5 | N75: 14 | O75: 14 | P75: 13 | Q75: 10 | R75: 10 | S75: 20 | T75: 91.0 | U75: 10 | V75: Јануар | W75: 2018-01-18 | X75: 10 | Y75: 2018-01-09 | Z75: 40 | AA75: 2018-01-18 | AB75: 21 | AC75: 2018-01-18 | AD75: 20 | AE75: 91 | AF75: 10 | AG75: 2018-01-18
A76: =PODACI_STUDENTI!A75 -> 74 | B76: =PODACI_STUDENTI!B75 -> 2017/2008 | C76: =PODACI_STUDENTI!C75 -> Тешовић Александар | D76: =PODACI_STUDENTI!D75 -> Кондиција | F76: =IF(OR(Predrok_novembar!F76<>"",Predrok_decembar!F76<>"",Januar!F76<>"",Februar!F76<>"",April!F76<>"",Juni!F76<>"",Juli!F76,Septembar!F76<>"",Oktobar!F76<>"",Oktobar_2!F76<>""),MAX(Predrok_novembar!F76,Predrok_decembar!F76,Januar!F76,Februar!F76,April!F76,Juni!F76,Juli!F76,Septembar!F76,Oktobar!F76,Oktobar_2!F76),"") -> 31 | G76: =IF(OR(Predrok_novembar!G76<>"",Predrok_decembar!G76<>"",Januar!G76<>"",Februar!G76<>"",April!G76<>"",Juni!G76<>"",Juli!G76,Septembar!G76<>"",Oktobar!G76<>"",Oktobar_2!G76<>""),MAX(Predrok_novembar!G76,Predrok_decembar!G76,Januar!G76,Februar!G76,April!G76,Juni!G76,Juli!G76,Septembar!G76,Oktobar!G76,Oktobar_2!G76),"") -> 31 | H76: =IF(OR(Predrok_novembar!H76<>"",Predrok_decembar!H76<>"",Januar!H76<>"",Februar!H76<>"",April!H76<>"",Juni!H76<>"",Juli!H76,Septembar!H76<>"",Oktobar!H76<>"",Oktobar_2!H76<>""),MAX(Predrok_novembar!H76,Predrok_decembar!H76,Januar!H76,Februar!H76,April!H76,Juni!H76,Juli!H76,Septembar!H76,Oktobar!H76,Oktobar_2!H76),"") -> 19 | I76: =IF(OR(Predrok_novembar!I76<>"",Predrok_decembar!I76<>"",Januar!I76<>"",Februar!I76<>"",April!I76<>"",Juni!I76<>"",Juli!I76,Septembar!I76<>"",Oktobar!I76<>"",Oktobar_2!I76<>""),MAX(Predrok_novembar!I76,Predrok_decembar!I76,Januar!I76,Februar!I76,April!I76,Juni!I76,Juli!I76,Septembar!I76,Oktobar!I76,Oktobar_2!I76),"") ->  | J76: =IF(OR(Predrok_novembar!J76<>"",Predrok_decembar!J76<>"",Januar!J76<>"",Februar!J76<>"",April!J76<>"",Juni!J76<>"",Juli!J76,Septembar!J76<>"",Oktobar!J76<>"",Oktobar_2!J76<>""),MAX(Predrok_novembar!J76,Predrok_decembar!J76,Januar!J76,Februar!J76,April!J76,Juni!J76,Juli!J76,Septembar!J76,Oktobar!J76,Oktobar_2!J76),"") ->  | K76: NE | N76: 14 | O76: 14 | P76: 13
A77: =PODACI_STUDENTI!A76 -> 75 | B77: =PODACI_STUDENTI!B76 -> 2017/2046 | C77: =PODACI_STUDENTI!C76 -> Франета Милош | D77: =PODACI_STUDENTI!D76 -> Ватерполо | F77: =IF(OR(Predrok_novembar!F77<>"",Predrok_decembar!F77<>"",Januar!F77<>"",Februar!F77<>"",April!F77<>"",Juni!F77<>"",Juli!F77,Septembar!F77<>"",Oktobar!F77<>"",Oktobar_2!F77<>""),MAX(Predrok_novembar!F77,Predrok_decembar!F77,Januar!F77,Februar!F77,April!F77,Juni!F77,Juli!F77,Septembar!F77,Oktobar!F77,Oktobar_2!F77),"") ->  | G77: =IF(OR(Predrok_novembar!G77<>"",Predrok_decembar!G77<>"",Januar!G77<>"",Februar!G77<>"",April!G77<>"",Juni!G77<>"",Juli!G77,Septembar!G77<>"",Oktobar!G77<>"",Oktobar_2!G77<>""),MAX(Predrok_novembar!G77,Predrok_decembar!G77,Januar!G77,Februar!G77,April!G77,Juni!G77,Juli!G77,Septembar!G77,Oktobar!G77,Oktobar_2!G77),"") ->  | H77: =IF(OR(Predrok_novembar!H77<>"",Predrok_decembar!H77<>"",Januar!H77<>"",Februar!H77<>"",April!H77<>"",Juni!H77<>"",Juli!H77,Septembar!H77<>"",Oktobar!H77<>"",Oktobar_2!H77<>""),MAX(Predrok_novembar!H77,Predrok_decembar!H77,Januar!H77,Februar!H77,April!H77,Juni!H77,Juli!H77,Septembar!H77,Oktobar!H77,Oktobar_2!H77),"") ->  | I77: =IF(OR(Predrok_novembar!I77<>"",Predrok_decembar!I77<>"",Januar!I77<>"",Februar!I77<>"",April!I77<>"",Juni!I77<>"",Juli!I77,Septembar!I77<>"",Oktobar!I77<>"",Oktobar_2!I77<>""),MAX(Predrok_novembar!I77,Predrok_decembar!I77,Januar!I77,Februar!I77,April!I77,Juni!I77,Juli!I77,Septembar!I77,Oktobar!I77,Oktobar_2!I77),"") ->  | J77: =IF(OR(Predrok_novembar!J77<>"",Predrok_decembar!J77<>"",Januar!J77<>"",Februar!J77<>"",April!J77<>"",Juni!J77<>"",Juli!J77,Septembar!J77<>"",Oktobar!J77<>"",Oktobar_2!J77<>""),MAX(Predrok_novembar!J77,Predrok_decembar!J77,Januar!J77,Februar!J77,April!J77,Juni!J77,Juli!J77,Septembar!J77,Oktobar!J77,Oktobar_2!J77),"") ->  | K77: NE
A78: =PODACI_STUDENTI!A77 -> 76 | B78: =PODACI_STUDENTI!B77 -> 2017/2026 | C78: =PODACI_STUDENTI!C77 -> Цветановић Лазар | D78: =PODACI_STUDENTI!D77 -> Кондиција | F78: 24 | G78: =IF(OR(Predrok_novembar!G78<>"",Predrok_decembar!G78<>"",Januar!G78<>"",Februar!G78<>"",April!G78<>"",Juni!G78<>"",Juli!G78,Septembar!G78<>"",Oktobar!G78<>"",Oktobar_2!G78<>""),MAX(Predrok_novembar!G78,Predrok_decembar!G78,Januar!G78,Februar!G78,April!G78,Juni!G78,Juli!G78,Septembar!G78,Oktobar!G78,Oktobar_2!G78),"") -> 24 | H78: 14 | I78: =IF(OR(Predrok_novembar!I78<>"",Predrok_decembar!I78<>"",Januar!I78<>"",Februar!I78<>"",April!I78<>"",Juni!I78<>"",Juli!I78,Septembar!I78<>"",Oktobar!I78<>"",Oktobar_2!I78<>""),MAX(Predrok_novembar!I78,Predrok_decembar!I78,Januar!I78,Februar!I78,April!I78,Juni!I78,Juli!I78,Septembar!I78,Oktobar!I78,Oktobar_2!I78),"") -> 9 | J78: 12 | K78: DA | L78: 5 | M78: 5 | N78: 11 | O78: 11 | P78: 9 | Q78: 8 | R78: 11 | S78: 15 | T78: 75.0 | U78: 8 | V78: Јун | W78: 2018-06-15 | X78: 10 | Y78: 2018-01-09 | Z78: 30 | AA78: 2018-06-15 | AB78: 20 | AC78: 2018-06-15 | AD78: 15 | AE78: 75 | AF78: 8 | AG78: 2018-06-15
A79: =PODACI_STUDENTI!A78 -> 77 | B79: =PODACI_STUDENTI!B78 -> 2017/2027 | C79: =PODACI_STUDENTI!C78 -> Цветановић Никола | D79: =PODACI_STUDENTI!D78 -> Кондиција | F79: =IF(OR(Predrok_novembar!F79<>"",Predrok_decembar!F79<>"",Januar!F79<>"",Februar!F79<>"",April!F79<>"",Juni!F79<>"",Juli!F79,Septembar!F79<>"",Oktobar!F79<>"",Oktobar_2!F79<>""),MAX(Predrok_novembar!F79,Predrok_decembar!F79,Januar!F79,Februar!F79,April!F79,Juni!F79,Juli!F79,Septembar!F79,Oktobar!F79,Oktobar_2!F79),"") -> 25 | G79: =IF(OR(Predrok_novembar!G79<>"",Predrok_decembar!G79<>"",Januar!G79<>"",Februar!G79<>"",April!G79<>"",Juni!G79<>"",Juli!G79,Septembar!G79<>"",Oktobar!G79<>"",Oktobar_2!G79<>""),MAX(Predrok_novembar!G79,Predrok_decembar!G79,Januar!G79,Februar!G79,April!G79,Juni!G79,Juli!G79,Septembar!G79,Oktobar!G79,Oktobar_2!G79),"") -> 28 | H79: 11 | I79: 9 | J79: =IF(OR(Predrok_novembar!J79<>"",Predrok_decembar!J79<>"",Januar!J79<>"",Februar!J79<>"",April!J79<>"",Juni!J79<>"",Juli!J79,Septembar!J79<>"",Oktobar!J79<>"",Oktobar_2!J79<>""),MAX(Predrok_novembar!J79,Predrok_decembar!J79,Januar!J79,Februar!J79,April!J79,Juni!J79,Juli!J79,Septembar!J79,Oktobar!J79,Oktobar_2!J79),"") -> 10 | K79: DA | L79: 5 | M79: 5 | N79: 11 | O79: 12 | P79: 7 | Q79: 8 | R79: 9 | S79: 15 | T79: 73.0 | U79: 8 | V79: Април | W79: 2018-04-20 | X79: 10 | Y79: 2018-01-09 | Z79: 31 | AA79: 2018-04-18 | AB79: 18 | AC79: 2018-04-20 | AD79: 15 | AE79: 73 | AF79: 8 | AG79: 2018-04-20
A80: =PODACI_STUDENTI!A79 -> 78 | B80: =PODACI_STUDENTI!B79 -> 2017/2511 | C80: =PODACI_STUDENTI!C79 -> Цветиновић Ивана | D80: =PODACI_STUDENTI!D79 -> Рекреација | F80: =IF(OR(Predrok_novembar!F80<>"",Predrok_decembar!F80<>"",Januar!F80<>"",Februar!F80<>"",April!F80<>"",Juni!F80<>"",Juli!F80,Septembar!F80<>"",Oktobar!F80<>"",Oktobar_2!F80<>""),MAX(Predrok_novembar!F80,Predrok_decembar!F80,Januar!F80,Februar!F80,April!F80,Juni!F80,Juli!F80,Septembar!F80,Oktobar!F80,Oktobar_2!F80),"") -> 25 | G80: =IF(OR(Predrok_novembar!G80<>"",Predrok_decembar!G80<>"",Januar!G80<>"",Februar!G80<>"",April!G80<>"",Juni!G80<>"",Juli!G80,Septembar!G80<>"",Oktobar!G80<>"",Oktobar_2!G80<>""),MAX(Predrok_novembar!G80,Predrok_decembar!G80,Januar!G80,Februar!G80,April!G80,Juni!G80,Juli!G80,Septembar!G80,Oktobar!G80,Oktobar_2!G80),"") -> 27 | H80: =IF(OR(Predrok_novembar!H80<>"",Predrok_decembar!H80<>"",Januar!H80<>"",Februar!H80<>"",April!H80<>"",Juni!H80<>"",Juli!H80,Septembar!H80<>"",Oktobar!H80<>"",Oktobar_2!H80<>""),MAX(Predrok_novembar!H80,Predrok_decembar!H80,Januar!H80,Februar!H80,April!H80,Juni!H80,Juli!H80,Septembar!H80,Oktobar!H80,Oktobar_2!H80),"") -> 13 | I80: =IF(OR(Predrok_novembar!I80<>"",Predrok_decembar!I80<>"",Januar!I80<>"",Februar!I80<>"",April!I80<>"",Juni!I80<>"",Juli!I80,Septembar!I80<>"",Oktobar!I80<>"",Oktobar_2!I80<>""),MAX(Predrok_novembar!I80,Predrok_decembar!I80,Januar!I80,Februar!I80,April!I80,Juni!I80,Juli!I80,Septembar!I80,Oktobar!I80,Oktobar_2!I80),"") -> 15 | J80: =IF(OR(Predrok_novembar!J80<>"",Predrok_decembar!J80<>"",Januar!J80<>"",Februar!J80<>"",April!J80<>"",Juni!J80<>"",Juli!J80,Septembar!J80<>"",Oktobar!J80<>"",Oktobar_2!J80<>""),MAX(Predrok_novembar!J80,Predrok_decembar!J80,Januar!J80,Februar!J80,April!J80,Juni!J80,Juli!J80,Septembar!J80,Oktobar!J80,Oktobar_2!J80),"") -> 9 | K80: DA | L80: 5 | M80: 5 | N80: 11 | O80: 12 | P80: 9 | Q80: 14 | R80: 8 | S80: 10 | T80: 74.0 | U80: 8 | V80: Октобар | W80: 2018-09-12 | X80: 10 | Y80: 2018-01-09 | Z80: 31 | AA80: 2018-09-12 | AB80: 22 | AC80: 2018-09-12 | AD80: 10 | AE80: 74 | AF80: 8 | AG80: 2018-09-12
A81: =PODACI_STUDENTI!A80 -> 79 | B81: =PODACI_STUDENTI!B80 -> 2017/2006 | C81: =PODACI_STUDENTI!C80 -> Целин Немања | D81: =PODACI_STUDENTI!D80 -> Кондиција | F81: =IF(OR(Predrok_novembar!F81<>"",Predrok_decembar!F81<>"",Januar!F81<>"",Februar!F81<>"",April!F81<>"",Juni!F81<>"",Juli!F81,Septembar!F81<>"",Oktobar!F81<>"",Oktobar_2!F81<>""),MAX(Predrok_novembar!F81,Predrok_decembar!F81,Januar!F81,Februar!F81,April!F81,Juni!F81,Juli!F81,Septembar!F81,Oktobar!F81,Oktobar_2!F81),"") -> 31 | G81: =IF(OR(Predrok_novembar!G81<>"",Predrok_decembar!G81<>"",Januar!G81<>"",Februar!G81<>"",April!G81<>"",Juni!G81<>"",Juli!G81,Septembar!G81<>"",Oktobar!G81<>"",Oktobar_2!G81<>""),MAX(Predrok_novembar!G81,Predrok_decembar!G81,Januar!G81,Februar!G81,April!G81,Juni!G81,Juli!G81,Septembar!G81,Oktobar!G81,Oktobar_2!G81),"") -> 28 | H81: =IF(OR(Predrok_novembar!H81<>"",Predrok_decembar!H81<>"",Januar!H81<>"",Februar!H81<>"",April!H81<>"",Juni!H81<>"",Juli!H81,Septembar!H81<>"",Oktobar!H81<>"",Oktobar_2!H81<>""),MAX(Predrok_novembar!H81,Predrok_decembar!H81,Januar!H81,Februar!H81,April!H81,Juni!H81,Juli!H81,Septembar!H81,Oktobar!H81,Oktobar_2!H81),"") -> 11 | I81: =IF(OR(Predrok_novembar!I81<>"",Predrok_decembar!I81<>"",Januar!I81<>"",Februar!I81<>"",April!I81<>"",Juni!I81<>"",Juli!I81,Septembar!I81<>"",Oktobar!I81<>"",Oktobar_2!I81<>""),MAX(Predrok_novembar!I81,Predrok_decembar!I81,Januar!I81,Februar!I81,April!I81,Juni!I81,Juli!I81,Septembar!I81,Oktobar!I81,Oktobar_2!I81),"") -> 12 | J81: =IF(OR(Predrok_novembar!J81<>"",Predrok_decembar!J81<>"",Januar!J81<>"",Februar!J81<>"",April!J81<>"",Juni!J81<>"",Juli!J81,Septembar!J81<>"",Oktobar!J81<>"",Oktobar_2!J81<>""),MAX(Predrok_novembar!J81,Predrok_decembar!J81,Januar!J81,Februar!J81,April!J81,Juni!J81,Juli!J81,Septembar!J81,Oktobar!J81,Oktobar_2!J81),"") -> 14 | K81: DA | L81: 5 | M81: 5 | N81: 14 | O81: 12 | P81: 7 | Q81: 11 | R81: 13 | S81: 20 | T81: 87.0 | U81: 9 | V81: Јануар | W81: 2018-01-18 | X81: 10 | Y81: 2018-01-09 | Z81: 33 | AA81: 2018-01-18 | AB81: 24 | AC81: 2018-01-18 | AD81: 20 | AE81: 87 | AF81: 9 | AG81: 2018-01-18
A82: =PODACI_STUDENTI!A81 -> 80 | B82: =PODACI_STUDENTI!B81 -> 2017/2522 | C82: =PODACI_STUDENTI!C81 -> Ценић Филип | D82: =PODACI_STUDENTI!D81 -> Рекреација | F82: =IF(OR(Predrok_novembar!F82<>"",Predrok_decembar!F82<>"",Januar!F82<>"",Februar!F82<>"",April!F82<>"",Juni!F82<>"",Juli!F82,Septembar!F82<>"",Oktobar!F82<>"",Oktobar_2!F82<>""),MAX(Predrok_novembar!F82,Predrok_decembar!F82,Januar!F82,Februar!F82,April!F82,Juni!F82,Juli!F82,Septembar!F82,Oktobar!F82,Oktobar_2!F82),"") -> 25 | G82: =IF(OR(Predrok_novembar!G82<>"",Predrok_decembar!G82<>"",Januar!G82<>"",Februar!G82<>"",April!G82<>"",Juni!G82<>"",Juli!G82,Septembar!G82<>"",Oktobar!G82<>"",Oktobar_2!G82<>""),MAX(Predrok_novembar!G82,Predrok_decembar!G82,Januar!G82,Februar!G82,April!G82,Juni!G82,Juli!G82,Septembar!G82,Oktobar!G82,Oktobar_2!G82),"") -> 24 | H82: =IF(OR(Predrok_novembar!H82<>"",Predrok_decembar!H82<>"",Januar!H82<>"",Februar!H82<>"",April!H82<>"",Juni!H82<>"",Juli!H82,Septembar!H82<>"",Oktobar!H82<>"",Oktobar_2!H82<>""),MAX(Predrok_novembar!H82,Predrok_decembar!H82,Januar!H82,Februar!H82,April!H82,Juni!H82,Juli!H82,Septembar!H82,Oktobar!H82,Oktobar_2!H82),"") -> 17 | I82: =IF(OR(Predrok_novembar!I82<>"",Predrok_decembar!I82<>"",Januar!I82<>"",Februar!I82<>"",April!I82<>"",Juni!I82<>"",Juli!I82,Septembar!I82<>"",Oktobar!I82<>"",Oktobar_2!I82<>""),MAX(Predrok_novembar!I82,Predrok_decembar!I82,Januar!I82,Februar!I82,April!I82,Juni!I82,Juli!I82,Septembar!I82,Oktobar!I82,Oktobar_2!I82),"") -> 9 | J82: 11 | K82: DA | L82: 5 | M82: 5 | N82: 11 | O82: 11 | P82: 11 | Q82: 8 | R82: 10 | S82: 15 | T82: 76.0 | U82: 8 | V82: Јун | W82: 2018-06-15 | X82: 10 | Y82: 2018-01-09 | Z82: 33 | AA82: 2018-06-15 | AB82: 19 | AC82: 2018-06-15 | AD82: 15 | AE82: 76 | AF82: 8 | AG82: 2018-06-15
A83: =PODACI_STUDENTI!A82 -> 81 | B83: =PODACI_STUDENTI!B82 -> 2017/2016 | C83: =PODACI_STUDENTI!C82 -> Цупаћ Милош | D83: =PODACI_STUDENTI!D82 -> Фудбал | F83: =IF(OR(Predrok_novembar!F83<>"",Predrok_decembar!F83<>"",Januar!F83<>"",Februar!F83<>"",April!F83<>"",Juni!F83<>"",Juli!F83,Septembar!F83<>"",Oktobar!F83<>"",Oktobar_2!F83<>""),MAX(Predrok_novembar!F83,Predrok_decembar!F83,Januar!F83,Februar!F83,April!F83,Juni!F83,Juli!F83,Septembar!F83,Oktobar!F83,Oktobar_2!F83),"") -> 32 | G83: =IF(OR(Predrok_novembar!G83<>"",Predrok_decembar!G83<>"",Januar!G83<>"",Februar!G83<>"",April!G83<>"",Juni!G83<>"",Juli!G83,Septembar!G83<>"",Oktobar!G83<>"",Oktobar_2!G83<>""),MAX(Predrok_novembar!G83,Predrok_decembar!G83,Januar!G83,Februar!G83,April!G83,Juni!G83,Juli!G83,Septembar!G83,Oktobar!G83,Oktobar_2!G83),"") -> 28 | H83: =IF(OR(Predrok_novembar!H83<>"",Predrok_decembar!H83<>"",Januar!H83<>"",Februar!H83<>"",April!H83<>"",Juni!H83<>"",Juli!H83,Septembar!H83<>"",Oktobar!H83<>"",Oktobar_2!H83<>""),MAX(Predrok_novembar!H83,Predrok_decembar!H83,Januar!H83,Februar!H83,April!H83,Juni!H83,Juli!H83,Septembar!H83,Oktobar!H83,Oktobar_2!H83),"") -> 20 | I83: =IF(OR(Predrok_novembar!I83<>"",Predrok_decembar!I83<>"",Januar!I83<>"",Februar!I83<>"",April!I83<>"",Juni!I83<>"",Juli!I83,Septembar!I83<>"",Oktobar!I83<>"",Oktobar_2!I83<>""),MAX(Predrok_novembar!I83,Predrok_decembar!I83,Januar!I83,Februar!I83,April!I83,Juni!I83,Juli!I83,Septembar!I83,Oktobar!I83,Oktobar_2!I83),"") -> 11 | J83: =IF(OR(Predrok_novembar!J83<>"",Predrok_decembar!J83<>"",Januar!J83<>"",Februar!J83<>"",April!J83<>"",Juni!J83<>"",Juli!J83,Septembar!J83<>"",Oktobar!J83<>"",Oktobar_2!J83<>""),MAX(Predrok_novembar!J83,Predrok_decembar!J83,Januar!J83,Februar!J83,April!J83,Juni!J83,Juli!J83,Septembar!J83,Oktobar!J83,Oktobar_2!J83),"") -> 14 | K83: DA | L83: 5 | M83: 5 | N83: 14 | O83: 12 | P83: 13 | Q83: 10 | R83: 13 | S83: 20 | T83: 93.0 | U83: 10 | V83: Јануар | W83: 2018-01-18 | X83: 10 | Y83: 2018-01-09 | Z83: 40 | AA83: 2018-01-18 | AB83: 23 | AC83: 2018-01-18 | AD83: 20 | AE83: 93 | AF83: 10 | AG83: 2018-01-18
A84: =PODACI_STUDENTI!A83 -> 82 | B84: =PODACI_STUDENTI!B83 -> 2017/2517 | C84: =PODACI_STUDENTI!C83 -> Чапљић Никола | D84: =PODACI_STUDENTI!D83 -> Рекреација | F84: =IF(OR(Predrok_novembar!F84<>"",Predrok_decembar!F84<>"",Januar!F84<>"",Februar!F84<>"",April!F84<>"",Juni!F84<>"",Juli!F84,Septembar!F84<>"",Oktobar!F84<>"",Oktobar_2!F84<>""),MAX(Predrok_novembar!F84,Predrok_decembar!F84,Januar!F84,Februar!F84,April!F84,Juni!F84,Juli!F84,Septembar!F84,Oktobar!F84,Oktobar_2!F84),"") -> 30 | G84: =IF(OR(Predrok_novembar!G84<>"",Predrok_decembar!G84<>"",Januar!G84<>"",Februar!G84<>"",April!G84<>"",Juni!G84<>"",Juli!G84,Septembar!G84<>"",Oktobar!G84<>"",Oktobar_2!G84<>""),MAX(Predrok_novembar!G84,Predrok_decembar!G84,Januar!G84,Februar!G84,April!G84,Juni!G84,Juli!G84,Septembar!G84,Oktobar!G84,Oktobar_2!G84),"") -> 25 | H84: 16 | I84: =IF(OR(Predrok_novembar!I84<>"",Predrok_decembar!I84<>"",Januar!I84<>"",Februar!I84<>"",April!I84<>"",Juni!I84<>"",Juli!I84,Septembar!I84<>"",Oktobar!I84<>"",Oktobar_2!I84<>""),MAX(Predrok_novembar!I84,Predrok_decembar!I84,Januar!I84,Februar!I84,April!I84,Juni!I84,Juli!I84,Septembar!I84,Oktobar!I84,Oktobar_2!I84),"") -> 10 | J84: =IF(OR(Predrok_novembar!J84<>"",Predrok_decembar!J84<>"",Januar!J84<>"",Februar!J84<>"",April!J84<>"",Juni!J84<>"",Juli!J84,Septembar!J84<>"",Oktobar!J84<>"",Oktobar_2!J84<>""),MAX(Predrok_novembar!J84,Predrok_decembar!J84,Januar!J84,Februar!J84,April!J84,Juni!J84,Juli!J84,Septembar!J84,Oktobar!J84,Oktobar_2!J84),"") -> 14 | K84: DA | L84: 5 | M84: 5 | N84: 13 | O84: 11 | P84: 11 | Q84: 9 | R84: 13 | S84: 20 | T84: 87.0 | U84: 9 | V84: Јануар | W84: 2018-01-18 | X84: 10 | Y84: 2018-01-09 | Z84: 35 | AA84: 2018-01-18 | AB84: 22 | AC84: 2018-01-18 | AD84: 20 | AE84: 87 | AF84: 9 | AG84: 2018-01-18
A85: =PODACI_STUDENTI!A84 -> 83 | B85: =PODACI_STUDENTI!B84 -> 2017/2510 | C85: =PODACI_STUDENTI!C84 -> Чобанин Милица | D85: =PODACI_STUDENTI!D84 -> Рекреација | F85: =IF(OR(Predrok_novembar!F85<>"",Predrok_decembar!F85<>"",Januar!F85<>"",Februar!F85<>"",April!F85<>"",Juni!F85<>"",Juli!F85,Septembar!F85<>"",Oktobar!F85<>"",Oktobar_2!F85<>""),MAX(Predrok_novembar!F85,Predrok_decembar!F85,Januar!F85,Februar!F85,April!F85,Juni!F85,Juli!F85,Septembar!F85,Oktobar!F85,Oktobar_2!F85),"") -> 27 | G85: =IF(OR(Predrok_novembar!G85<>"",Predrok_decembar!G85<>"",Januar!G85<>"",Februar!G85<>"",April!G85<>"",Juni!G85<>"",Juli!G85,Septembar!G85<>"",Oktobar!G85<>"",Oktobar_2!G85<>""),MAX(Predrok_novembar!G85,Predrok_decembar!G85,Januar!G85,Februar!G85,April!G85,Juni!G85,Juli!G85,Septembar!G85,Oktobar!G85,Oktobar_2!G85),"") -> 28 | H85: =IF(OR(Predrok_novembar!H85<>"",Predrok_decembar!H85<>"",Januar!H85<>"",Februar!H85<>"",April!H85<>"",Juni!H85<>"",Juli!H85,Septembar!H85<>"",Oktobar!H85<>"",Oktobar_2!H85<>""),MAX(Predrok_novembar!H85,Predrok_decembar!H85,Januar!H85,Februar!H85,April!H85,Juni!H85,Juli!H85,Septembar!H85,Oktobar!H85,Oktobar_2!H85),"") -> 11 | I85: =IF(OR(Predrok_novembar!I85<>"",Predrok_decembar!I85<>"",Januar!I85<>"",Februar!I85<>"",April!I85<>"",Juni!I85<>"",Juli!I85,Septembar!I85<>"",Oktobar!I85<>"",Oktobar_2!I85<>""),MAX(Predrok_novembar!I85,Predrok_decembar!I85,Januar!I85,Februar!I85,April!I85,Juni!I85,Juli!I85,Septembar!I85,Oktobar!I85,Oktobar_2!I85),"") -> 9 | J85: =IF(OR(Predrok_novembar!J85<>"",Predrok_decembar!J85<>"",Januar!J85<>"",Februar!J85<>"",April!J85<>"",Juni!J85<>"",Juli!J85,Septembar!J85<>"",Oktobar!J85<>"",Oktobar_2!J85<>""),MAX(Predrok_novembar!J85,Predrok_decembar!J85,Januar!J85,Februar!J85,April!J85,Juni!J85,Juli!J85,Septembar!J85,Oktobar!J85,Oktobar_2!J85),"") -> 9 | K85: DA | L85: 5 | M85: 5 | N85: 12 | O85: 12 | P85: 7 | Q85: 8 | R85: 8 | S85: 20 | T85: 78.0 | U85: 8 | V85: Јануар | W85: 2018-01-18 | X85: 10 | Y85: 2018-01-09 | Z85: 31 | AA85: 2018-01-18 | AB85: 17 | AC85: 2018-01-18 | AD85: 20 | AE85: 78 | AF85: 8 | AG85: 2018-01-18
A86: =PODACI_STUDENTI!A85 -> 84 | B86: =PODACI_STUDENTI!B85 -> 2017/2044 | C86: =PODACI_STUDENTI!C85 -> Шолаја Милош | D86: =PODACI_STUDENTI!D85 -> Кондиција | F86: =IF(OR(Predrok_novembar!F86<>"",Predrok_decembar!F86<>"",Januar!F86<>"",Februar!F86<>"",April!F86<>"",Juni!F86<>"",Juli!F86,Septembar!F86<>"",Oktobar!F86<>"",Oktobar_2!F86<>""),MAX(Predrok_novembar!F86,Predrok_decembar!F86,Januar!F86,Februar!F86,April!F86,Juni!F86,Juli!F86,Septembar!F86,Oktobar!F86,Oktobar_2!F86),"") -> 29 | G86: =IF(OR(Predrok_novembar!G86<>"",Predrok_decembar!G86<>"",Januar!G86<>"",Februar!G86<>"",April!G86<>"",Juni!G86<>"",Juli!G86,Septembar!G86<>"",Oktobar!G86<>"",Oktobar_2!G86<>""),MAX(Predrok_novembar!G86,Predrok_decembar!G86,Januar!G86,Februar!G86,April!G86,Juni!G86,Juli!G86,Septembar!G86,Oktobar!G86,Oktobar_2!G86),"") -> 27 | H86: =IF(OR(Predrok_novembar!H86<>"",Predrok_decembar!H86<>"",Januar!H86<>"",Februar!H86<>"",April!H86<>"",Juni!H86<>"",Juli!H86,Septembar!H86<>"",Oktobar!H86<>"",Oktobar_2!H86<>""),MAX(Predrok_novembar!H86,Predrok_decembar!H86,Januar!H86,Februar!H86,April!H86,Juni!H86,Juli!H86,Septembar!H86,Oktobar!H86,Oktobar_2!H86),"") -> 12 | I86: 9 | J86: =IF(OR(Predrok_novembar!J86<>"",Predrok_decembar!J86<>"",Januar!J86<>"",Februar!J86<>"",April!J86<>"",Juni!J86<>"",Juli!J86,Septembar!J86<>"",Oktobar!J86<>"",Oktobar_2!J86<>""),MAX(Predrok_novembar!J86,Predrok_decembar!J86,Januar!J86,Februar!J86,April!J86,Juni!J86,Juli!J86,Septembar!J86,Oktobar!J86,Oktobar_2!J86),"") ->  | K86: NE | N86: 13 | O86: 12 | P86: 8 | Q86: 8
A87: =PODACI_STUDENTI!A86 -> 85 | B87: =PODACI_STUDENTI!B86 -> 2016/2030 | C87: =PODACI_STUDENTI!C86 -> Алексић Петар | D87: =PODACI_STUDENTI!D86 -> кошарка | F87: =IF(OR(Predrok_novembar!F87<>"",Predrok_decembar!F87<>"",Januar!F87<>"",Februar!F87<>"",April!F87<>"",Juni!F87<>"",Juli!F87,Septembar!F87<>"",Oktobar!F87<>"",Oktobar_2!F87<>""),MAX(Predrok_novembar!F87,Predrok_decembar!F87,Januar!F87,Februar!F87,April!F87,Juni!F87,Juli!F87,Septembar!F87,Oktobar!F87,Oktobar_2!F87),"") -> 30 | G87: =IF(OR(Predrok_novembar!G87<>"",Predrok_decembar!G87<>"",Januar!G87<>"",Februar!G87<>"",April!G87<>"",Juni!G87<>"",Juli!G87,Septembar!G87<>"",Oktobar!G87<>"",Oktobar_2!G87<>""),MAX(Predrok_novembar!G87,Predrok_decembar!G87,Januar!G87,Februar!G87,April!G87,Juni!G87,Juli!G87,Septembar!G87,Oktobar!G87,Oktobar_2!G87),"") -> 25 | H87: =IF(OR(Predrok_novembar!H87<>"",Predrok_decembar!H87<>"",Januar!H87<>"",Februar!H87<>"",April!H87<>"",Juni!H87<>"",Juli!H87,Septembar!H87<>"",Oktobar!H87<>"",Oktobar_2!H87<>""),MAX(Predrok_novembar!H87,Predrok_decembar!H87,Januar!H87,Februar!H87,April!H87,Juni!H87,Juli!H87,Septembar!H87,Oktobar!H87,Oktobar_2!H87),"") -> 15 | I87: =IF(OR(Predrok_novembar!I87<>"",Predrok_decembar!I87<>"",Januar!I87<>"",Februar!I87<>"",April!I87<>"",Juni!I87<>"",Juli!I87,Septembar!I87<>"",Oktobar!I87<>"",Oktobar_2!I87<>""),MAX(Predrok_novembar!I87,Predrok_decembar!I87,Januar!I87,Februar!I87,April!I87,Juni!I87,Juli!I87,Septembar!I87,Oktobar!I87,Oktobar_2!I87),"") -> 9 | J87: =IF(OR(Predrok_novembar!J87<>"",Predrok_decembar!J87<>"",Januar!J87<>"",Februar!J87<>"",April!J87<>"",Juni!J87<>"",Juli!J87,Septembar!J87<>"",Oktobar!J87<>"",Oktobar_2!J87<>""),MAX(Predrok_novembar!J87,Predrok_decembar!J87,Januar!J87,Februar!J87,April!J87,Juni!J87,Juli!J87,Septembar!J87,Oktobar!J87,Oktobar_2!J87),"") -> 12 | K87: DA | L87: 5 | M87: 5 | N87: 13 | O87: 11 | P87: 10 | Q87: 8 | R87: 11 | S87: 20 | T87: 84.0 | U87: 9 | V87: Јануар | W87: 2018-01-18 | X87: 10 | Y87: 2018-01-09 | Z87: 34 | AA87: 2018-01-18 | AB87: 20 | AC87: 2018-01-18 | AD87: 20 | AE87: 84 | AF87: 9 | AG87: 2018-01-18
A88: =PODACI_STUDENTI!A87 -> 86 | B88: =PODACI_STUDENTI!B87 -> 2016/2517 | C88: =PODACI_STUDENTI!C87 -> Антанасковић Теодора | D88: =PODACI_STUDENTI!D87 -> рекреација | F88: =IF(OR(Predrok_novembar!F88<>"",Predrok_decembar!F88<>"",Januar!F88<>"",Februar!F88<>"",April!F88<>"",Juni!F88<>"",Juli!F88,Septembar!F88<>"",Oktobar!F88<>"",Oktobar_2!F88<>""),MAX(Predrok_novembar!F88,Predrok_decembar!F88,Januar!F88,Februar!F88,April!F88,Juni!F88,Juli!F88,Septembar!F88,Oktobar!F88,Oktobar_2!F88),"") -> 26 | G88: =IF(OR(Predrok_novembar!G88<>"",Predrok_decembar!G88<>"",Januar!G88<>"",Februar!G88<>"",April!G88<>"",Juni!G88<>"",Juli!G88,Septembar!G88<>"",Oktobar!G88<>"",Oktobar_2!G88<>""),MAX(Predrok_novembar!G88,Predrok_decembar!G88,Januar!G88,Februar!G88,April!G88,Juni!G88,Juli!G88,Septembar!G88,Oktobar!G88,Oktobar_2!G88),"") ->  | H88: =IF(OR(Predrok_novembar!H88<>"",Predrok_decembar!H88<>"",Januar!H88<>"",Februar!H88<>"",April!H88<>"",Juni!H88<>"",Juli!H88,Septembar!H88<>"",Oktobar!H88<>"",Oktobar_2!H88<>""),MAX(Predrok_novembar!H88,Predrok_decembar!H88,Januar!H88,Februar!H88,April!H88,Juni!H88,Juli!H88,Septembar!H88,Oktobar!H88,Oktobar_2!H88),"") ->  | I88: =IF(OR(Predrok_novembar!I88<>"",Predrok_decembar!I88<>"",Januar!I88<>"",Februar!I88<>"",April!I88<>"",Juni!I88<>"",Juli!I88,Septembar!I88<>"",Oktobar!I88<>"",Oktobar_2!I88<>""),MAX(Predrok_novembar!I88,Predrok_decembar!I88,Januar!I88,Februar!I88,April!I88,Juni!I88,Juli!I88,Septembar!I88,Oktobar!I88,Oktobar_2!I88),"") -> 15 | J88: =IF(OR(Predrok_novembar!J88<>"",Predrok_decembar!J88<>"",Januar!J88<>"",Februar!J88<>"",April!J88<>"",Juni!J88<>"",Juli!J88,Septembar!J88<>"",Oktobar!J88<>"",Oktobar_2!J88<>""),MAX(Predrok_novembar!J88,Predrok_decembar!J88,Januar!J88,Februar!J88,April!J88,Juni!J88,Juli!J88,Septembar!J88,Oktobar!J88,Oktobar_2!J88),"") ->  | K88: NE | N88: 11 | Q88: 14
A89: =PODACI_STUDENTI!A88 -> 87 | B89: =PODACI_STUDENTI!B88 -> 2016/2503 | C89: =PODACI_STUDENTI!C88 -> Арсић Рајко | D89: =PODACI_STUDENTI!D88 -> рекреација | F89: =IF(OR(Predrok_novembar!F89<>"",Predrok_decembar!F89<>"",Januar!F89<>"",Februar!F89<>"",April!F89<>"",Juni!F89<>"",Juli!F89,Septembar!F89<>"",Oktobar!F89<>"",Oktobar_2!F89<>""),MAX(Predrok_novembar!F89,Predrok_decembar!F89,Januar!F89,Februar!F89,April!F89,Juni!F89,Juli!F89,Septembar!F89,Oktobar!F89,Oktobar_2!F89),"") ->  | G89: =IF(OR(Predrok_novembar!G89<>"",Predrok_decembar!G89<>"",Januar!G89<>"",Februar!G89<>"",April!G89<>"",Juni!G89<>"",Juli!G89,Septembar!G89<>"",Oktobar!G89<>"",Oktobar_2!G89<>""),MAX(Predrok_novembar!G89,Predrok_decembar!G89,Januar!G89,Februar!G89,April!G89,Juni!G89,Juli!G89,Septembar!G89,Oktobar!G89,Oktobar_2!G89),"") ->  | H89: =IF(OR(Predrok_novembar!H89<>"",Predrok_decembar!H89<>"",Januar!H89<>"",Februar!H89<>"",April!H89<>"",Juni!H89<>"",Juli!H89,Septembar!H89<>"",Oktobar!H89<>"",Oktobar_2!H89<>""),MAX(Predrok_novembar!H89,Predrok_decembar!H89,Januar!H89,Februar!H89,April!H89,Juni!H89,Juli!H89,Septembar!H89,Oktobar!H89,Oktobar_2!H89),"") ->  | I89: =IF(OR(Predrok_novembar!I89<>"",Predrok_decembar!I89<>"",Januar!I89<>"",Februar!I89<>"",April!I89<>"",Juni!I89<>"",Juli!I89,Septembar!I89<>"",Oktobar!I89<>"",Oktobar_2!I89<>""),MAX(Predrok_novembar!I89,Predrok_decembar!I89,Januar!I89,Februar!I89,April!I89,Juni!I89,Juli!I89,Septembar!I89,Oktobar!I89,Oktobar_2!I89),"") ->  | J89: =IF(OR(Predrok_novembar!J89<>"",Predrok_decembar!J89<>"",Januar!J89<>"",Februar!J89<>"",April!J89<>"",Juni!J89<>"",Juli!J89,Septembar!J89<>"",Oktobar!J89<>"",Oktobar_2!J89<>""),MAX(Predrok_novembar!J89,Predrok_decembar!J89,Januar!J89,Februar!J89,April!J89,Juni!J89,Juli!J89,Septembar!J89,Oktobar!J89,Oktobar_2!J89),"") ->  | K89: NE
A90: =PODACI_STUDENTI!A89 -> 88 | B90: =PODACI_STUDENTI!B89 -> 2016/2067 | C90: =PODACI_STUDENTI!C89 -> Бајић Алекса | D90: =PODACI_STUDENTI!D89 -> кондиција | F90: =IF(OR(Predrok_novembar!F90<>"",Predrok_decembar!F90<>"",Januar!F90<>"",Februar!F90<>"",April!F90<>"",Juni!F90<>"",Juli!F90,Septembar!F90<>"",Oktobar!F90<>"",Oktobar_2!F90<>""),MAX(Predrok_novembar!F90,Predrok_decembar!F90,Januar!F90,Februar!F90,April!F90,Juni!F90,Juli!F90,Septembar!F90,Oktobar!F90,Oktobar_2!F90),"") -> 24 | G90: =IF(OR(Predrok_novembar!G90<>"",Predrok_decembar!G90<>"",Januar!G90<>"",Februar!G90<>"",April!G90<>"",Juni!G90<>"",Juli!G90,Septembar!G90<>"",Oktobar!G90<>"",Oktobar_2!G90<>""),MAX(Predrok_novembar!G90,Predrok_decembar!G90,Januar!G90,Februar!G90,April!G90,Juni!G90,Juli!G90,Septembar!G90,Oktobar!G90,Oktobar_2!G90),"") ->  | H90: =IF(OR(Predrok_novembar!H90<>"",Predrok_decembar!H90<>"",Januar!H90<>"",Februar!H90<>"",April!H90<>"",Juni!H90<>"",Juli!H90,Septembar!H90<>"",Oktobar!H90<>"",Oktobar_2!H90<>""),MAX(Predrok_novembar!H90,Predrok_decembar!H90,Januar!H90,Februar!H90,April!H90,Juni!H90,Juli!H90,Septembar!H90,Oktobar!H90,Oktobar_2!H90),"") ->  | I90: =IF(OR(Predrok_novembar!I90<>"",Predrok_decembar!I90<>"",Januar!I90<>"",Februar!I90<>"",April!I90<>"",Juni!I90<>"",Juli!I90,Septembar!I90<>"",Oktobar!I90<>"",Oktobar_2!I90<>""),MAX(Predrok_novembar!I90,Predrok_decembar!I90,Januar!I90,Februar!I90,April!I90,Juni!I90,Juli!I90,Septembar!I90,Oktobar!I90,Oktobar_2!I90),"") ->  | J90: =IF(OR(Predrok_novembar!J90<>"",Predrok_decembar!J90<>"",Januar!J90<>"",Februar!J90<>"",April!J90<>"",Juni!J90<>"",Juli!J90,Septembar!J90<>"",Oktobar!J90<>"",Oktobar_2!J90<>""),MAX(Predrok_novembar!J90,Predrok_decembar!J90,Januar!J90,Februar!J90,April!J90,Juni!J90,Juli!J90,Septembar!J90,Oktobar!J90,Oktobar_2!J90),"") ->  | K90: NE | N90: 11
A91: =PODACI_STUDENTI!A90 -> 89 | B91: =PODACI_STUDENTI!B90 -> 2016/2507 | C91: =PODACI_STUDENTI!C90 -> Банковић Александар | D91: =PODACI_STUDENTI!D90 -> рекреација | F91: =IF(OR(Predrok_novembar!F91<>"",Predrok_decembar!F91<>"",Januar!F91<>"",Februar!F91<>"",April!F91<>"",Juni!F91<>"",Juli!F91,Septembar!F91<>"",Oktobar!F91<>"",Oktobar_2!F91<>""),MAX(Predrok_novembar!F91,Predrok_decembar!F91,Januar!F91,Februar!F91,April!F91,Juni!F91,Juli!F91,Septembar!F91,Oktobar!F91,Oktobar_2!F91),"") ->  | G91: =IF(OR(Predrok_novembar!G91<>"",Predrok_decembar!G91<>"",Januar!G91<>"",Februar!G91<>"",April!G91<>"",Juni!G91<>"",Juli!G91,Septembar!G91<>"",Oktobar!G91<>"",Oktobar_2!G91<>""),MAX(Predrok_novembar!G91,Predrok_decembar!G91,Januar!G91,Februar!G91,April!G91,Juni!G91,Juli!G91,Septembar!G91,Oktobar!G91,Oktobar_2!G91),"") ->  | H91: =IF(OR(Predrok_novembar!H91<>"",Predrok_decembar!H91<>"",Januar!H91<>"",Februar!H91<>"",April!H91<>"",Juni!H91<>"",Juli!H91,Septembar!H91<>"",Oktobar!H91<>"",Oktobar_2!H91<>""),MAX(Predrok_novembar!H91,Predrok_decembar!H91,Januar!H91,Februar!H91,April!H91,Juni!H91,Juli!H91,Septembar!H91,Oktobar!H91,Oktobar_2!H91),"") ->  | I91: =IF(OR(Predrok_novembar!I91<>"",Predrok_decembar!I91<>"",Januar!I91<>"",Februar!I91<>"",April!I91<>"",Juni!I91<>"",Juli!I91,Septembar!I91<>"",Oktobar!I91<>"",Oktobar_2!I91<>""),MAX(Predrok_novembar!I91,Predrok_decembar!I91,Januar!I91,Februar!I91,April!I91,Juni!I91,Juli!I91,Septembar!I91,Oktobar!I91,Oktobar_2!I91),"") ->  | J91: =IF(OR(Predrok_novembar!J91<>"",Predrok_decembar!J91<>"",Januar!J91<>"",Februar!J91<>"",April!J91<>"",Juni!J91<>"",Juli!J91,Septembar!J91<>"",Oktobar!J91<>"",Oktobar_2!J91<>""),MAX(Predrok_novembar!J91,Predrok_decembar!J91,Januar!J91,Februar!J91,April!J91,Juni!J91,Juli!J91,Septembar!J91,Oktobar!J91,Oktobar_2!J91),"") ->  | K91: NE
A92: =PODACI_STUDENTI!A91 -> 90 | B92: =PODACI_STUDENTI!B91 -> 2016/2019 | C92: =PODACI_STUDENTI!C91 -> Баша Јанош | D92: =PODACI_STUDENTI!D91 -> кондиција | F92: =IF(OR(Predrok_novembar!F92<>"",Predrok_decembar!F92<>"",Januar!F92<>"",Februar!F92<>"",April!F92<>"",Juni!F92<>"",Juli!F92,Septembar!F92<>"",Oktobar!F92<>"",Oktobar_2!F92<>""),MAX(Predrok_novembar!F92,Predrok_decembar!F92,Januar!F92,Februar!F92,April!F92,Juni!F92,Juli!F92,Septembar!F92,Oktobar!F92,Oktobar_2!F92),"") ->  | G92: =IF(OR(Predrok_novembar!G92<>"",Predrok_decembar!G92<>"",Januar!G92<>"",Februar!G92<>"",April!G92<>"",Juni!G92<>"",Juli!G92,Septembar!G92<>"",Oktobar!G92<>"",Oktobar_2!G92<>""),MAX(Predrok_novembar!G92,Predrok_decembar!G92,Januar!G92,Februar!G92,April!G92,Juni!G92,Juli!G92,Septembar!G92,Oktobar!G92,Oktobar_2!G92),"") ->  | H92: =IF(OR(Predrok_novembar!H92<>"",Predrok_decembar!H92<>"",Januar!H92<>"",Februar!H92<>"",April!H92<>"",Juni!H92<>"",Juli!H92,Septembar!H92<>"",Oktobar!H92<>"",Oktobar_2!H92<>""),MAX(Predrok_novembar!H92,Predrok_decembar!H92,Januar!H92,Februar!H92,April!H92,Juni!H92,Juli!H92,Septembar!H92,Oktobar!H92,Oktobar_2!H92),"") ->  | I92: =IF(OR(Predrok_novembar!I92<>"",Predrok_decembar!I92<>"",Januar!I92<>"",Februar!I92<>"",April!I92<>"",Juni!I92<>"",Juli!I92,Septembar!I92<>"",Oktobar!I92<>"",Oktobar_2!I92<>""),MAX(Predrok_novembar!I92,Predrok_decembar!I92,Januar!I92,Februar!I92,April!I92,Juni!I92,Juli!I92,Septembar!I92,Oktobar!I92,Oktobar_2!I92),"") ->  | J92: =IF(OR(Predrok_novembar!J92<>"",Predrok_decembar!J92<>"",Januar!J92<>"",Februar!J92<>"",April!J92<>"",Juni!J92<>"",Juli!J92,Septembar!J92<>"",Oktobar!J92<>"",Oktobar_2!J92<>""),MAX(Predrok_novembar!J92,Predrok_decembar!J92,Januar!J92,Februar!J92,April!J92,Juni!J92,Juli!J92,Septembar!J92,Oktobar!J92,Oktobar_2!J92),"") ->  | K92: NE
A93: =PODACI_STUDENTI!A92 -> 91 | B93: =PODACI_STUDENTI!B92 -> 2016/2050 | C93: =PODACI_STUDENTI!C92 -> Билбија Лука | D93: =PODACI_STUDENTI!D92 -> кондиција | F93: =IF(OR(Predrok_novembar!F93<>"",Predrok_decembar!F93<>"",Januar!F93<>"",Februar!F93<>"",April!F93<>"",Juni!F93<>"",Juli!F93,Septembar!F93<>"",Oktobar!F93<>"",Oktobar_2!F93<>""),MAX(Predrok_novembar!F93,Predrok_decembar!F93,Januar!F93,Februar!F93,April!F93,Juni!F93,Juli!F93,Septembar!F93,Oktobar!F93,Oktobar_2!F93),"") -> 28 | G93: =IF(OR(Predrok_novembar!G93<>"",Predrok_decembar!G93<>"",Januar!G93<>"",Februar!G93<>"",April!G93<>"",Juni!G93<>"",Juli!G93,Septembar!G93<>"",Oktobar!G93<>"",Oktobar_2!G93<>""),MAX(Predrok_novembar!G93,Predrok_decembar!G93,Januar!G93,Februar!G93,April!G93,Juni!G93,Juli!G93,Septembar!G93,Oktobar!G93,Oktobar_2!G93),"") ->  | H93: =IF(OR(Predrok_novembar!H93<>"",Predrok_decembar!H93<>"",Januar!H93<>"",Februar!H93<>"",April!H93<>"",Juni!H93<>"",Juli!H93,Septembar!H93<>"",Oktobar!H93<>"",Oktobar_2!H93<>""),MAX(Predrok_novembar!H93,Predrok_decembar!H93,Januar!H93,Februar!H93,April!H93,Juni!H93,Juli!H93,Septembar!H93,Oktobar!H93,Oktobar_2!H93),"") ->  | I93: =IF(OR(Predrok_novembar!I93<>"",Predrok_decembar!I93<>"",Januar!I93<>"",Februar!I93<>"",April!I93<>"",Juni!I93<>"",Juli!I93,Septembar!I93<>"",Oktobar!I93<>"",Oktobar_2!I93<>""),MAX(Predrok_novembar!I93,Predrok_decembar!I93,Januar!I93,Februar!I93,April!I93,Juni!I93,Juli!I93,Septembar!I93,Oktobar!I93,Oktobar_2!I93),"") -> 9 | J93: =IF(OR(Predrok_novembar!J93<>"",Predrok_decembar!J93<>"",Januar!J93<>"",Februar!J93<>"",April!J93<>"",Juni!J93<>"",Juli!J93,Septembar!J93<>"",Oktobar!J93<>"",Oktobar_2!J93<>""),MAX(Predrok_novembar!J93,Predrok_decembar!J93,Januar!J93,Februar!J93,April!J93,Juni!J93,Juli!J93,Septembar!J93,Oktobar!J93,Oktobar_2!J93),"") ->  | K93: NE | N93: 12 | Q93: 8
A94: =PODACI_STUDENTI!A93 -> 92 | B94: =PODACI_STUDENTI!B93 -> 2016/2007 | C94: =PODACI_STUDENTI!C93 -> Богдановић Бојан | D94: =PODACI_STUDENTI!D93 -> кондиција | F94: =IF(OR(Predrok_novembar!F94<>"",Predrok_decembar!F94<>"",Januar!F94<>"",Februar!F94<>"",April!F94<>"",Juni!F94<>"",Juli!F94,Septembar!F94<>"",Oktobar!F94<>"",Oktobar_2!F94<>""),MAX(Predrok_novembar!F94,Predrok_decembar!F94,Januar!F94,Februar!F94,April!F94,Juni!F94,Juli!F94,Septembar!F94,Oktobar!F94,Oktobar_2!F94),"") ->  | G94: =IF(OR(Predrok_novembar!G94<>"",Predrok_decembar!G94<>"",Januar!G94<>"",Februar!G94<>"",April!G94<>"",Juni!G94<>"",Juli!G94,Septembar!G94<>"",Oktobar!G94<>"",Oktobar_2!G94<>""),MAX(Predrok_novembar!G94,Predrok_decembar!G94,Januar!G94,Februar!G94,April!G94,Juni!G94,Juli!G94,Septembar!G94,Oktobar!G94,Oktobar_2!G94),"") ->  | H94: =IF(OR(Predrok_novembar!H94<>"",Predrok_decembar!H94<>"",Januar!H94<>"",Februar!H94<>"",April!H94<>"",Juni!H94<>"",Juli!H94,Septembar!H94<>"",Oktobar!H94<>"",Oktobar_2!H94<>""),MAX(Predrok_novembar!H94,Predrok_decembar!H94,Januar!H94,Februar!H94,April!H94,Juni!H94,Juli!H94,Septembar!H94,Oktobar!H94,Oktobar_2!H94),"") ->  | I94: =IF(OR(Predrok_novembar!I94<>"",Predrok_decembar!I94<>"",Januar!I94<>"",Februar!I94<>"",April!I94<>"",Juni!I94<>"",Juli!I94,Septembar!I94<>"",Oktobar!I94<>"",Oktobar_2!I94<>""),MAX(Predrok_novembar!I94,Predrok_decembar!I94,Januar!I94,Februar!I94,April!I94,Juni!I94,Juli!I94,Septembar!I94,Oktobar!I94,Oktobar_2!I94),"") ->  | J94: =IF(OR(Predrok_novembar!J94<>"",Predrok_decembar!J94<>"",Januar!J94<>"",Februar!J94<>"",April!J94<>"",Juni!J94<>"",Juli!J94,Septembar!J94<>"",Oktobar!J94<>"",Oktobar_2!J94<>""),MAX(Predrok_novembar!J94,Predrok_decembar!J94,Januar!J94,Februar!J94,April!J94,Juni!J94,Juli!J94,Septembar!J94,Oktobar!J94,Oktobar_2!J94),"") ->  | K94: NE
A95: =PODACI_STUDENTI!A94 -> 93 | B95: =PODACI_STUDENTI!B94 -> 2016/2508 | C95: =PODACI_STUDENTI!C94 -> Богдановић Марко | D95: =PODACI_STUDENTI!D94 -> рекреација | F95: =IF(OR(Predrok_novembar!F95<>"",Predrok_decembar!F95<>"",Januar!F95<>"",Februar!F95<>"",April!F95<>"",Juni!F95<>"",Juli!F95,Septembar!F95<>"",Oktobar!F95<>"",Oktobar_2!F95<>""),MAX(Predrok_novembar!F95,Predrok_decembar!F95,Januar!F95,Februar!F95,April!F95,Juni!F95,Juli!F95,Septembar!F95,Oktobar!F95,Oktobar_2!F95),"") -> 24 | G95: =IF(OR(Predrok_novembar!G95<>"",Predrok_decembar!G95<>"",Januar!G95<>"",Februar!G95<>"",April!G95<>"",Juni!G95<>"",Juli!G95,Septembar!G95<>"",Oktobar!G95<>"",Oktobar_2!G95<>""),MAX(Predrok_novembar!G95,Predrok_decembar!G95,Januar!G95,Februar!G95,April!G95,Juni!G95,Juli!G95,Septembar!G95,Oktobar!G95,Oktobar_2!G95),"") ->  | H95: =IF(OR(Predrok_novembar!H95<>"",Predrok_decembar!H95<>"",Januar!H95<>"",Februar!H95<>"",April!H95<>"",Juni!H95<>"",Juli!H95,Septembar!H95<>"",Oktobar!H95<>"",Oktobar_2!H95<>""),MAX(Predrok_novembar!H95,Predrok_decembar!H95,Januar!H95,Februar!H95,April!H95,Juni!H95,Juli!H95,Septembar!H95,Oktobar!H95,Oktobar_2!H95),"") ->  | I95: =IF(OR(Predrok_novembar!I95<>"",Predrok_decembar!I95<>"",Januar!I95<>"",Februar!I95<>"",April!I95<>"",Juni!I95<>"",Juli!I95,Septembar!I95<>"",Oktobar!I95<>"",Oktobar_2!I95<>""),MAX(Predrok_novembar!I95,Predrok_decembar!I95,Januar!I95,Februar!I95,April!I95,Juni!I95,Juli!I95,Septembar!I95,Oktobar!I95,Oktobar_2!I95),"") ->  | J95: =IF(OR(Predrok_novembar!J95<>"",Predrok_decembar!J95<>"",Januar!J95<>"",Februar!J95<>"",April!J95<>"",Juni!J95<>"",Juli!J95,Septembar!J95<>"",Oktobar!J95<>"",Oktobar_2!J95<>""),MAX(Predrok_novembar!J95,Predrok_decembar!J95,Januar!J95,Februar!J95,April!J95,Juni!J95,Juli!J95,Septembar!J95,Oktobar!J95,Oktobar_2!J95),"") ->  | K95: NE | N95: 11
A96: =PODACI_STUDENTI!A95 -> 94 | B96: =PODACI_STUDENTI!B95 -> 2016/2080 | C96: =PODACI_STUDENTI!C95 -> Букарица Игор | D96: =PODACI_STUDENTI!D95 -> кошарка | F96: =IF(OR(Predrok_novembar!F96<>"",Predrok_decembar!F96<>"",Januar!F96<>"",Februar!F96<>"",April!F96<>"",Juni!F96<>"",Juli!F96,Septembar!F96<>"",Oktobar!F96<>"",Oktobar_2!F96<>""),MAX(Predrok_novembar!F96,Predrok_decembar!F96,Januar!F96,Februar!F96,April!F96,Juni!F96,Juli!F96,Septembar!F96,Oktobar!F96,Oktobar_2!F96),"") -> 25 | G96: =IF(OR(Predrok_novembar!G96<>"",Predrok_decembar!G96<>"",Januar!G96<>"",Februar!G96<>"",April!G96<>"",Juni!G96<>"",Juli!G96,Septembar!G96<>"",Oktobar!G96<>"",Oktobar_2!G96<>""),MAX(Predrok_novembar!G96,Predrok_decembar!G96,Januar!G96,Februar!G96,April!G96,Juni!G96,Juli!G96,Septembar!G96,Oktobar!G96,Oktobar_2!G96),"") ->  | H96: =IF(OR(Predrok_novembar!H96<>"",Predrok_decembar!H96<>"",Januar!H96<>"",Februar!H96<>"",April!H96<>"",Juni!H96<>"",Juli!H96,Septembar!H96<>"",Oktobar!H96<>"",Oktobar_2!H96<>""),MAX(Predrok_novembar!H96,Predrok_decembar!H96,Januar!H96,Februar!H96,April!H96,Juni!H96,Juli!H96,Septembar!H96,Oktobar!H96,Oktobar_2!H96),"") ->  | I96: =IF(OR(Predrok_novembar!I96<>"",Predrok_decembar!I96<>"",Januar!I96<>"",Februar!I96<>"",April!I96<>"",Juni!I96<>"",Juli!I96,Septembar!I96<>"",Oktobar!I96<>"",Oktobar_2!I96<>""),MAX(Predrok_novembar!I96,Predrok_decembar!I96,Januar!I96,Februar!I96,April!I96,Juni!I96,Juli!I96,Septembar!I96,Oktobar!I96,Oktobar_2!I96),"") -> 9 | J96: =IF(OR(Predrok_novembar!J96<>"",Predrok_decembar!J96<>"",Januar!J96<>"",Februar!J96<>"",April!J96<>"",Juni!J96<>"",Juli!J96,Septembar!J96<>"",Oktobar!J96<>"",Oktobar_2!J96<>""),MAX(Predrok_novembar!J96,Predrok_decembar!J96,Januar!J96,Februar!J96,April!J96,Juni!J96,Juli!J96,Septembar!J96,Oktobar!J96,Oktobar_2!J96),"") -> 12 | K96: NE | N96: 11 | Q96: 8 | R96: 11
A97: =PODACI_STUDENTI!A96 -> 95 | B97: =PODACI_STUDENTI!B96 -> 2016/2512 | C97: =PODACI_STUDENTI!C96 -> Веселиновић Милана | D97: =PODACI_STUDENTI!D96 -> рекреација | F97: =IF(OR(Predrok_novembar!F97<>"",Predrok_decembar!F97<>"",Januar!F97<>"",Februar!F97<>"",April!F97<>"",Juni!F97<>"",Juli!F97,Septembar!F97<>"",Oktobar!F97<>"",Oktobar_2!F97<>""),MAX(Predrok_novembar!F97,Predrok_decembar!F97,Januar!F97,Februar!F97,April!F97,Juni!F97,Juli!F97,Septembar!F97,Oktobar!F97,Oktobar_2!F97),"") -> 25 | G97: =IF(OR(Predrok_novembar!G97<>"",Predrok_decembar!G97<>"",Januar!G97<>"",Februar!G97<>"",April!G97<>"",Juni!G97<>"",Juli!G97,Septembar!G97<>"",Oktobar!G97<>"",Oktobar_2!G97<>""),MAX(Predrok_novembar!G97,Predrok_decembar!G97,Januar!G97,Februar!G97,April!G97,Juni!G97,Juli!G97,Septembar!G97,Oktobar!G97,Oktobar_2!G97),"") ->  | H97: =IF(OR(Predrok_novembar!H97<>"",Predrok_decembar!H97<>"",Januar!H97<>"",Februar!H97<>"",April!H97<>"",Juni!H97<>"",Juli!H97,Septembar!H97<>"",Oktobar!H97<>"",Oktobar_2!H97<>""),MAX(Predrok_novembar!H97,Predrok_decembar!H97,Januar!H97,Februar!H97,April!H97,Juni!H97,Juli!H97,Septembar!H97,Oktobar!H97,Oktobar_2!H97),"") ->  | I97: =IF(OR(Predrok_novembar!I97<>"",Predrok_decembar!I97<>"",Januar!I97<>"",Februar!I97<>"",April!I97<>"",Juni!I97<>"",Juli!I97,Septembar!I97<>"",Oktobar!I97<>"",Oktobar_2!I97<>""),MAX(Predrok_novembar!I97,Predrok_decembar!I97,Januar!I97,Februar!I97,April!I97,Juni!I97,Juli!I97,Septembar!I97,Oktobar!I97,Oktobar_2!I97),"") ->  | J97: =IF(OR(Predrok_novembar!J97<>"",Predrok_decembar!J97<>"",Januar!J97<>"",Februar!J97<>"",April!J97<>"",Juni!J97<>"",Juli!J97,Septembar!J97<>"",Oktobar!J97<>"",Oktobar_2!J97<>""),MAX(Predrok_novembar!J97,Predrok_decembar!J97,Januar!J97,Februar!J97,April!J97,Juni!J97,Juli!J97,Septembar!J97,Oktobar!J97,Oktobar_2!J97),"") ->  | K97: NE | N97: 11
A98: =PODACI_STUDENTI!A97 -> 96 | B98: =PODACI_STUDENTI!B97 -> 2016/2069 | C98: =PODACI_STUDENTI!C97 -> Гагић Душан | D98: =PODACI_STUDENTI!D97 -> фудбал | F98: =IF(OR(Predrok_novembar!F98<>"",Predrok_decembar!F98<>"",Januar!F98<>"",Februar!F98<>"",April!F98<>"",Juni!F98<>"",Juli!F98,Septembar!F98<>"",Oktobar!F98<>"",Oktobar_2!F98<>""),MAX(Predrok_novembar!F98,Predrok_decembar!F98,Januar!F98,Februar!F98,April!F98,Juni!F98,Juli!F98,Septembar!F98,Oktobar!F98,Oktobar_2!F98),"") ->  | G98: =IF(OR(Predrok_novembar!G98<>"",Predrok_decembar!G98<>"",Januar!G98<>"",Februar!G98<>"",April!G98<>"",Juni!G98<>"",Juli!G98,Septembar!G98<>"",Oktobar!G98<>"",Oktobar_2!G98<>""),MAX(Predrok_novembar!G98,Predrok_decembar!G98,Januar!G98,Februar!G98,April!G98,Juni!G98,Juli!G98,Septembar!G98,Oktobar!G98,Oktobar_2!G98),"") ->  | H98: =IF(OR(Predrok_novembar!H98<>"",Predrok_decembar!H98<>"",Januar!H98<>"",Februar!H98<>"",April!H98<>"",Juni!H98<>"",Juli!H98,Septembar!H98<>"",Oktobar!H98<>"",Oktobar_2!H98<>""),MAX(Predrok_novembar!H98,Predrok_decembar!H98,Januar!H98,Februar!H98,April!H98,Juni!H98,Juli!H98,Septembar!H98,Oktobar!H98,Oktobar_2!H98),"") ->  | I98: =IF(OR(Predrok_novembar!I98<>"",Predrok_decembar!I98<>"",Januar!I98<>"",Februar!I98<>"",April!I98<>"",Juni!I98<>"",Juli!I98,Septembar!I98<>"",Oktobar!I98<>"",Oktobar_2!I98<>""),MAX(Predrok_novembar!I98,Predrok_decembar!I98,Januar!I98,Februar!I98,April!I98,Juni!I98,Juli!I98,Septembar!I98,Oktobar!I98,Oktobar_2!I98),"") ->  | J98: =IF(OR(Predrok_novembar!J98<>"",Predrok_decembar!J98<>"",Januar!J98<>"",Februar!J98<>"",April!J98<>"",Juni!J98<>"",Juli!J98,Septembar!J98<>"",Oktobar!J98<>"",Oktobar_2!J98<>""),MAX(Predrok_novembar!J98,Predrok_decembar!J98,Januar!J98,Februar!J98,April!J98,Juni!J98,Juli!J98,Septembar!J98,Oktobar!J98,Oktobar_2!J98),"") ->  | K98: NE
A99: =PODACI_STUDENTI!A98 -> 97 | B99: =PODACI_STUDENTI!B98 -> 2015/2081 | C99: =PODACI_STUDENTI!C98 -> Гарибовић Милица | D99: =PODACI_STUDENTI!D98 -> 0 | F99: =IF(OR(Predrok_novembar!F99<>"",Predrok_decembar!F99<>"",Januar!F99<>"",Februar!F99<>"",April!F99<>"",Juni!F99<>"",Juli!F99,Septembar!F99<>"",Oktobar!F99<>"",Oktobar_2!F99<>""),MAX(Predrok_novembar!F99,Predrok_decembar!F99,Januar!F99,Februar!F99,April!F99,Juni!F99,Juli!F99,Septembar!F99,Oktobar!F99,Oktobar_2!F99),"") ->  | G99: =IF(OR(Predrok_novembar!G99<>"",Predrok_decembar!G99<>"",Januar!G99<>"",Februar!G99<>"",April!G99<>"",Juni!G99<>"",Juli!G99,Septembar!G99<>"",Oktobar!G99<>"",Oktobar_2!G99<>""),MAX(Predrok_novembar!G99,Predrok_decembar!G99,Januar!G99,Februar!G99,April!G99,Juni!G99,Juli!G99,Septembar!G99,Oktobar!G99,Oktobar_2!G99),"") ->  | H99: =IF(OR(Predrok_novembar!H99<>"",Predrok_decembar!H99<>"",Januar!H99<>"",Februar!H99<>"",April!H99<>"",Juni!H99<>"",Juli!H99,Septembar!H99<>"",Oktobar!H99<>"",Oktobar_2!H99<>""),MAX(Predrok_novembar!H99,Predrok_decembar!H99,Januar!H99,Februar!H99,April!H99,Juni!H99,Juli!H99,Septembar!H99,Oktobar!H99,Oktobar_2!H99),"") ->  | I99: =IF(OR(Predrok_novembar!I99<>"",Predrok_decembar!I99<>"",Januar!I99<>"",Februar!I99<>"",April!I99<>"",Juni!I99<>"",Juli!I99,Septembar!I99<>"",Oktobar!I99<>"",Oktobar_2!I99<>""),MAX(Predrok_novembar!I99,Predrok_decembar!I99,Januar!I99,Februar!I99,April!I99,Juni!I99,Juli!I99,Septembar!I99,Oktobar!I99,Oktobar_2!I99),"") ->  | J99: =IF(OR(Predrok_novembar!J99<>"",Predrok_decembar!J99<>"",Januar!J99<>"",Februar!J99<>"",April!J99<>"",Juni!J99<>"",Juli!J99,Septembar!J99<>"",Oktobar!J99<>"",Oktobar_2!J99<>""),MAX(Predrok_novembar!J99,Predrok_decembar!J99,Januar!J99,Februar!J99,April!J99,Juni!J99,Juli!J99,Septembar!J99,Oktobar!J99,Oktobar_2!J99),"") ->  | K99: =IF(B99<>"",IF(AND(F99<>"",G99<>"",H99<>"",I99<>"",J99<>""),"DA","NE"),"") -> NE | S99: =IF(V99<>"",IF(AND(N99<>"",O99<>"",P99<>"",Q99<>"",R99<>""),IF(OR(V99="Јануар",V99="Фебруар"),20,IF(OR(V99="Април",V99="Јун",V99="Јул"),15,10)),""),"") ->  | U99: =IF(T99<>"",VLOOKUP(T99,$AM$3:$AO$7,3),"") ->  | Z99: =IF(X99<>"",SUM(N99,O99,P99),"") ->  | AB99: =IF(X99<>"",Q99+R99,"") ->  | AD99: =IF(AND(U99<>"",V99<>""),S99,"") ->  | AF99: =IF(AND(U99<>"",V99<>""),U99,"") -> 
A100: =PODACI_STUDENTI!A99 -> 98 | B100: =PODACI_STUDENTI!B99 -> 2016/2031 | C100: =PODACI_STUDENTI!C99 -> Даковић Милош | D100: =PODACI_STUDENTI!D99 -> бокс | F100: =IF(OR(Predrok_novembar!F100<>"",Predrok_decembar!F100<>"",Januar!F100<>"",Februar!F100<>"",April!F100<>"",Juni!F100<>"",Juli!F100,Septembar!F100<>"",Oktobar!F100<>"",Oktobar_2!F100<>""),MAX(Predrok_novembar!F100,Predrok_decembar!F100,Januar!F100,Februar!F100,April!F100,Juni!F100,Juli!F100,Septembar!F100,Oktobar!F100,Oktobar_2!F100),"") -> 26 | G100: =IF(OR(Predrok_novembar!G100<>"",Predrok_decembar!G100<>"",Januar!G100<>"",Februar!G100<>"",April!G100<>"",Juni!G100<>"",Juli!G100,Septembar!G100<>"",Oktobar!G100<>"",Oktobar_2!G100<>""),MAX(Predrok_novembar!G100,Predrok_decembar!G100,Januar!G100,Februar!G100,April!G100,Juni!G100,Juli!G100,Septembar!G100,Oktobar!G100,Oktobar_2!G100),"") ->  | H100: =IF(OR(Predrok_novembar!H100<>"",Predrok_decembar!H100<>"",Januar!H100<>"",Februar!H100<>"",April!H100<>"",Juni!H100<>"",Juli!H100,Septembar!H100<>"",Oktobar!H100<>"",Oktobar_2!H100<>""),MAX(Predrok_novembar!H100,Predrok_decembar!H100,Januar!H100,Februar!H100,April!H100,Juni!H100,Juli!H100,Septembar!H100,Oktobar!H100,Oktobar_2!H100),"") ->  | I100: =IF(OR(Predrok_novembar!I100<>"",Predrok_decembar!I100<>"",Januar!I100<>"",Februar!I100<>"",April!I100<>"",Juni!I100<>"",Juli!I100,Septembar!I100<>"",Oktobar!I100<>"",Oktobar_2!I100<>""),MAX(Predrok_novembar!I100,Predrok_decembar!I100,Januar!I100,Februar!I100,April!I100,Juni!I100,Juli!I100,Septembar!I100,Oktobar!I100,Oktobar_2!I100),"") ->  | J100: =IF(OR(Predrok_novembar!J100<>"",Predrok_decembar!J100<>"",Januar!J100<>"",Februar!J100<>"",April!J100<>"",Juni!J100<>"",Juli!J100,Septembar!J100<>"",Oktobar!J100<>"",Oktobar_2!J100<>""),MAX(Predrok_novembar!J100,Predrok_decembar!J100,Januar!J100,Februar!J100,April!J100,Juni!J100,Juli!J100,Septembar!J100,Oktobar!J100,Oktobar_2!J100),"") ->  | K100: NE | N100: 11
A101: =PODACI_STUDENTI!A100 -> 99 | B101: =PODACI_STUDENTI!B100 -> 2016/2057 | C101: =PODACI_STUDENTI!C100 -> Дмитровић Ксенија | D101: =PODACI_STUDENTI!D100 -> тенис | F101: =IF(OR(Predrok_novembar!F101<>"",Predrok_decembar!F101<>"",Januar!F101<>"",Februar!F101<>"",April!F101<>"",Juni!F101<>"",Juli!F101,Septembar!F101<>"",Oktobar!F101<>"",Oktobar_2!F101<>""),MAX(Predrok_novembar!F101,Predrok_decembar!F101,Januar!F101,Februar!F101,April!F101,Juni!F101,Juli!F101,Septembar!F101,Oktobar!F101,Oktobar_2!F101),"") -> 24 | G101: =IF(OR(Predrok_novembar!G101<>"",Predrok_decembar!G101<>"",Januar!G101<>"",Februar!G101<>"",April!G101<>"",Juni!G101<>"",Juli!G101,Septembar!G101<>"",Oktobar!G101<>"",Oktobar_2!G101<>""),MAX(Predrok_novembar!G101,Predrok_decembar!G101,Januar!G101,Februar!G101,April!G101,Juni!G101,Juli!G101,Septembar!G101,Oktobar!G101,Oktobar_2!G101),"") ->  | H101: =IF(OR(Predrok_novembar!H101<>"",Predrok_decembar!H101<>"",Januar!H101<>"",Februar!H101<>"",April!H101<>"",Juni!H101<>"",Juli!H101,Septembar!H101<>"",Oktobar!H101<>"",Oktobar_2!H101<>""),MAX(Predrok_novembar!H101,Predrok_decembar!H101,Januar!H101,Februar!H101,April!H101,Juni!H101,Juli!H101,Septembar!H101,Oktobar!H101,Oktobar_2!H101),"") ->  | I101: =IF(OR(Predrok_novembar!I101<>"",Predrok_decembar!I101<>"",Januar!I101<>"",Februar!I101<>"",April!I101<>"",Juni!I101<>"",Juli!I101,Septembar!I101<>"",Oktobar!I101<>"",Oktobar_2!I101<>""),MAX(Predrok_novembar!I101,Predrok_decembar!I101,Januar!I101,Februar!I101,April!I101,Juni!I101,Juli!I101,Septembar!I101,Oktobar!I101,Oktobar_2!I101),"") ->  | J101: =IF(OR(Predrok_novembar!J101<>"",Predrok_decembar!J101<>"",Januar!J101<>"",Februar!J101<>"",April!J101<>"",Juni!J101<>"",Juli!J101,Septembar!J101<>"",Oktobar!J101<>"",Oktobar_2!J101<>""),MAX(Predrok_novembar!J101,Predrok_decembar!J101,Januar!J101,Februar!J101,April!J101,Juni!J101,Juli!J101,Septembar!J101,Oktobar!J101,Oktobar_2!J101),"") ->  | K101: NE | N101: 11
A102: =PODACI_STUDENTI!A101 -> 100 | B102: =PODACI_STUDENTI!B101 -> 2016/2001 | C102: =PODACI_STUDENTI!C101 -> Игњатовић Марко | D102: =PODACI_STUDENTI!D101 -> кондиција | F102: =IF(OR(Predrok_novembar!F102<>"",Predrok_decembar!F102<>"",Januar!F102<>"",Februar!F102<>"",April!F102<>"",Juni!F102<>"",Juli!F102,Septembar!F102<>"",Oktobar!F102<>"",Oktobar_2!F102<>""),MAX(Predrok_novembar!F102,Predrok_decembar!F102,Januar!F102,Februar!F102,April!F102,Juni!F102,Juli!F102,Septembar!F102,Oktobar!F102,Oktobar_2!F102),"") -> 32 | G102: =IF(OR(Predrok_novembar!G102<>"",Predrok_decembar!G102<>"",Januar!G102<>"",Februar!G102<>"",April!G102<>"",Juni!G102<>"",Juli!G102,Septembar!G102<>"",Oktobar!G102<>"",Oktobar_2!G102<>""),MAX(Predrok_novembar!G102,Predrok_decembar!G102,Januar!G102,Februar!G102,April!G102,Juni!G102,Juli!G102,Septembar!G102,Oktobar!G102,Oktobar_2!G102),"") -> 32 | H102: =IF(OR(Predrok_novembar!H102<>"",Predrok_decembar!H102<>"",Januar!H102<>"",Februar!H102<>"",April!H102<>"",Juni!H102<>"",Juli!H102,Septembar!H102<>"",Oktobar!H102<>"",Oktobar_2!H102<>""),MAX(Predrok_novembar!H102,Predrok_decembar!H102,Januar!H102,Februar!H102,April!H102,Juni!H102,Juli!H102,Septembar!H102,Oktobar!H102,Oktobar_2!H102),"") -> 21 | I102: =IF(OR(Predrok_novembar!I102<>"",Predrok_decembar!I102<>"",Januar!I102<>"",Februar!I102<>"",April!I102<>"",Juni!I102<>"",Juli!I102,Septembar!I102<>"",Oktobar!I102<>"",Oktobar_2!I102<>""),MAX(Predrok_novembar!I102,Predrok_decembar!I102,Januar!I102,Februar!I102,April!I102,Juni!I102,Juli!I102,Septembar!I102,Oktobar!I102,Oktobar_2!I102),"") -> 15 | J102: =IF(OR(Predrok_novembar!J102<>"",Predrok_decembar!J102<>"",Januar!J102<>"",Februar!J102<>"",April!J102<>"",Juni!J102<>"",Juli!J102,Septembar!J102<>"",Oktobar!J102<>"",Oktobar_2!J102<>""),MAX(Predrok_novembar!J102,Predrok_decembar!J102,Januar!J102,Februar!J102,April!J102,Juni!J102,Juli!J102,Septembar!J102,Oktobar!J102,Oktobar_2!J102),"") ->  | K102: NE | N102: 14 | O102: 14 | P102: 14 | Q102: 14
A103: =PODACI_STUDENTI!A102 -> 101 | B103: =PODACI_STUDENTI!B102 -> 2016/2082 | C103: =PODACI_STUDENTI!C102 -> Јанковић Милош | D103: =PODACI_STUDENTI!D102 -> фудбал | F103: =IF(OR(Predrok_novembar!F103<>"",Predrok_decembar!F103<>"",Januar!F103<>"",Februar!F103<>"",April!F103<>"",Juni!F103<>"",Juli!F103,Septembar!F103<>"",Oktobar!F103<>"",Oktobar_2!F103<>""),MAX(Predrok_novembar!F103,Predrok_decembar!F103,Januar!F103,Februar!F103,April!F103,Juni!F103,Juli!F103,Septembar!F103,Oktobar!F103,Oktobar_2!F103),"") -> 24 | G103: =IF(OR(Predrok_novembar!G103<>"",Predrok_decembar!G103<>"",Januar!G103<>"",Februar!G103<>"",April!G103<>"",Juni!G103<>"",Juli!G103,Septembar!G103<>"",Oktobar!G103<>"",Oktobar_2!G103<>""),MAX(Predrok_novembar!G103,Predrok_decembar!G103,Januar!G103,Februar!G103,April!G103,Juni!G103,Juli!G103,Septembar!G103,Oktobar!G103,Oktobar_2!G103),"") ->  | H103: =IF(OR(Predrok_novembar!H103<>"",Predrok_decembar!H103<>"",Januar!H103<>"",Februar!H103<>"",April!H103<>"",Juni!H103<>"",Juli!H103,Septembar!H103<>"",Oktobar!H103<>"",Oktobar_2!H103<>""),MAX(Predrok_novembar!H103,Predrok_decembar!H103,Januar!H103,Februar!H103,April!H103,Juni!H103,Juli!H103,Septembar!H103,Oktobar!H103,Oktobar_2!H103),"") -> 13 | I103: =IF(OR(Predrok_novembar!I103<>"",Predrok_decembar!I103<>"",Januar!I103<>"",Februar!I103<>"",April!I103<>"",Juni!I103<>"",Juli!I103,Septembar!I103<>"",Oktobar!I103<>"",Oktobar_2!I103<>""),MAX(Predrok_novembar!I103,Predrok_decembar!I103,Januar!I103,Februar!I103,April!I103,Juni!I103,Juli!I103,Septembar!I103,Oktobar!I103,Oktobar_2!I103),"") -> 9 | J103: =IF(OR(Predrok_novembar!J103<>"",Predrok_decembar!J103<>"",Januar!J103<>"",Februar!J103<>"",April!J103<>"",Juni!J103<>"",Juli!J103,Septembar!J103<>"",Oktobar!J103<>"",Oktobar_2!J103<>""),MAX(Predrok_novembar!J103,Predrok_decembar!J103,Januar!J103,Februar!J103,April!J103,Juni!J103,Juli!J103,Septembar!J103,Oktobar!J103,Oktobar_2!J103),"") -> 9 | K103: NE | N103: 11 | P103: 9 | Q103: 8 | R103: 8
A104: =PODACI_STUDENTI!A103 -> 102 | B104: =PODACI_STUDENTI!B103 -> 2016/2065 | C104: =PODACI_STUDENTI!C103 -> Јасински Виктор | D104: =PODACI_STUDENTI!D103 -> кондиција | F104: =IF(OR(Predrok_novembar!F104<>"",Predrok_decembar!F104<>"",Januar!F104<>"",Februar!F104<>"",April!F104<>"",Juni!F104<>"",Juli!F104,Septembar!F104<>"",Oktobar!F104<>"",Oktobar_2!F104<>""),MAX(Predrok_novembar!F104,Predrok_decembar!F104,Januar!F104,Februar!F104,April!F104,Juni!F104,Juli!F104,Septembar!F104,Oktobar!F104,Oktobar_2!F104),"") ->  | G104: =IF(OR(Predrok_novembar!G104<>"",Predrok_decembar!G104<>"",Januar!G104<>"",Februar!G104<>"",April!G104<>"",Juni!G104<>"",Juli!G104,Septembar!G104<>"",Oktobar!G104<>"",Oktobar_2!G104<>""),MAX(Predrok_novembar!G104,Predrok_decembar!G104,Januar!G104,Februar!G104,April!G104,Juni!G104,Juli!G104,Septembar!G104,Oktobar!G104,Oktobar_2!G104),"") ->  | H104: =IF(OR(Predrok_novembar!H104<>"",Predrok_decembar!H104<>"",Januar!H104<>"",Februar!H104<>"",April!H104<>"",Juni!H104<>"",Juli!H104,Septembar!H104<>"",Oktobar!H104<>"",Oktobar_2!H104<>""),MAX(Predrok_novembar!H104,Predrok_decembar!H104,Januar!H104,Februar!H104,April!H104,Juni!H104,Juli!H104,Septembar!H104,Oktobar!H104,Oktobar_2!H104),"") ->  | I104: =IF(OR(Predrok_novembar!I104<>"",Predrok_decembar!I104<>"",Januar!I104<>"",Februar!I104<>"",April!I104<>"",Juni!I104<>"",Juli!I104,Septembar!I104<>"",Oktobar!I104<>"",Oktobar_2!I104<>""),MAX(Predrok_novembar!I104,Predrok_decembar!I104,Januar!I104,Februar!I104,April!I104,Juni!I104,Juli!I104,Septembar!I104,Oktobar!I104,Oktobar_2!I104),"") ->  | J104: =IF(OR(Predrok_novembar!J104<>"",Predrok_decembar!J104<>"",Januar!J104<>"",Februar!J104<>"",April!J104<>"",Juni!J104<>"",Juli!J104,Septembar!J104<>"",Oktobar!J104<>"",Oktobar_2!J104<>""),MAX(Predrok_novembar!J104,Predrok_decembar!J104,Januar!J104,Februar!J104,April!J104,Juni!J104,Juli!J104,Septembar!J104,Oktobar!J104,Oktobar_2!J104),"") ->  | K104: NE
A105: =PODACI_STUDENTI!A104 -> 103 | B105: =PODACI_STUDENTI!B104 -> 2016/2029 | C105: =PODACI_STUDENTI!C104 -> Јовановић Далибор | D105: =PODACI_STUDENTI!D104 -> кондиција | F105: =IF(OR(Predrok_novembar!F105<>"",Predrok_decembar!F105<>"",Januar!F105<>"",Februar!F105<>"",April!F105<>"",Juni!F105<>"",Juli!F105,Septembar!F105<>"",Oktobar!F105<>"",Oktobar_2!F105<>""),MAX(Predrok_novembar!F105,Predrok_decembar!F105,Januar!F105,Februar!F105,April!F105,Juni!F105,Juli!F105,Septembar!F105,Oktobar!F105,Oktobar_2!F105),"") ->  | G105: =IF(OR(Predrok_novembar!G105<>"",Predrok_decembar!G105<>"",Januar!G105<>"",Februar!G105<>"",April!G105<>"",Juni!G105<>"",Juli!G105,Septembar!G105<>"",Oktobar!G105<>"",Oktobar_2!G105<>""),MAX(Predrok_novembar!G105,Predrok_decembar!G105,Januar!G105,Februar!G105,April!G105,Juni!G105,Juli!G105,Septembar!G105,Oktobar!G105,Oktobar_2!G105),"") ->  | H105: =IF(OR(Predrok_novembar!H105<>"",Predrok_decembar!H105<>"",Januar!H105<>"",Februar!H105<>"",April!H105<>"",Juni!H105<>"",Juli!H105,Septembar!H105<>"",Oktobar!H105<>"",Oktobar_2!H105<>""),MAX(Predrok_novembar!H105,Predrok_decembar!H105,Januar!H105,Februar!H105,April!H105,Juni!H105,Juli!H105,Septembar!H105,Oktobar!H105,Oktobar_2!H105),"") ->  | I105: =IF(OR(Predrok_novembar!I105<>"",Predrok_decembar!I105<>"",Januar!I105<>"",Februar!I105<>"",April!I105<>"",Juni!I105<>"",Juli!I105,Septembar!I105<>"",Oktobar!I105<>"",Oktobar_2!I105<>""),MAX(Predrok_novembar!I105,Predrok_decembar!I105,Januar!I105,Februar!I105,April!I105,Juni!I105,Juli!I105,Septembar!I105,Oktobar!I105,Oktobar_2!I105),"") ->  | J105: =IF(OR(Predrok_novembar!J105<>"",Predrok_decembar!J105<>"",Januar!J105<>"",Februar!J105<>"",April!J105<>"",Juni!J105<>"",Juli!J105,Septembar!J105<>"",Oktobar!J105<>"",Oktobar_2!J105<>""),MAX(Predrok_novembar!J105,Predrok_decembar!J105,Januar!J105,Februar!J105,April!J105,Juni!J105,Juli!J105,Septembar!J105,Oktobar!J105,Oktobar_2!J105),"") ->  | K105: NE
A106: =PODACI_STUDENTI!A105 -> 104 | B106: =PODACI_STUDENTI!B105 -> 2015/2526 | C106: =PODACI_STUDENTI!C105 -> Јокић Немања | D106: =PODACI_STUDENTI!D105 -> 0 | F106: =IF(OR(Predrok_novembar!F106<>"",Predrok_decembar!F106<>"",Januar!F106<>"",Februar!F106<>"",April!F106<>"",Juni!F106<>"",Juli!F106,Septembar!F106<>"",Oktobar!F106<>"",Oktobar_2!F106<>""),MAX(Predrok_novembar!F106,Predrok_decembar!F106,Januar!F106,Februar!F106,April!F106,Juni!F106,Juli!F106,Septembar!F106,Oktobar!F106,Oktobar_2!F106),"") -> 27 | G106: =IF(OR(Predrok_novembar!G106<>"",Predrok_decembar!G106<>"",Januar!G106<>"",Februar!G106<>"",April!G106<>"",Juni!G106<>"",Juli!G106,Septembar!G106<>"",Oktobar!G106<>"",Oktobar_2!G106<>""),MAX(Predrok_novembar!G106,Predrok_decembar!G106,Januar!G106,Februar!G106,April!G106,Juni!G106,Juli!G106,Septembar!G106,Oktobar!G106,Oktobar_2!G106),"") ->  | H106: =IF(OR(Predrok_novembar!H106<>"",Predrok_decembar!H106<>"",Januar!H106<>"",Februar!H106<>"",April!H106<>"",Juni!H106<>"",Juli!H106,Septembar!H106<>"",Oktobar!H106<>"",Oktobar_2!H106<>""),MAX(Predrok_novembar!H106,Predrok_decembar!H106,Januar!H106,Februar!H106,April!H106,Juni!H106,Juli!H106,Septembar!H106,Oktobar!H106,Oktobar_2!H106),"") ->  | I106: =IF(OR(Predrok_novembar!I106<>"",Predrok_decembar!I106<>"",Januar!I106<>"",Februar!I106<>"",April!I106<>"",Juni!I106<>"",Juli!I106,Septembar!I106<>"",Oktobar!I106<>"",Oktobar_2!I106<>""),MAX(Predrok_novembar!I106,Predrok_decembar!I106,Januar!I106,Februar!I106,April!I106,Juni!I106,Juli!I106,Septembar!I106,Oktobar!I106,Oktobar_2!I106),"") -> 12 | J106: =IF(OR(Predrok_novembar!J106<>"",Predrok_decembar!J106<>"",Januar!J106<>"",Februar!J106<>"",April!J106<>"",Juni!J106<>"",Juli!J106,Septembar!J106<>"",Oktobar!J106<>"",Oktobar_2!J106<>""),MAX(Predrok_novembar!J106,Predrok_decembar!J106,Januar!J106,Februar!J106,April!J106,Juni!J106,Juli!J106,Septembar!J106,Oktobar!J106,Oktobar_2!J106),"") ->  | K106: NE | N106: 12 | Q106: 11
A107: =PODACI_STUDENTI!A106 -> 105 | B107: =PODACI_STUDENTI!B106 -> 2016/2013 | C107: =PODACI_STUDENTI!C106 -> Костић Братислав | D107: =PODACI_STUDENTI!D106 -> кошарка | F107: =IF(OR(Predrok_novembar!F107<>"",Predrok_decembar!F107<>"",Januar!F107<>"",Februar!F107<>"",April!F107<>"",Juni!F107<>"",Juli!F107,Septembar!F107<>"",Oktobar!F107<>"",Oktobar_2!F107<>""),MAX(Predrok_novembar!F107,Predrok_decembar!F107,Januar!F107,Februar!F107,April!F107,Juni!F107,Juli!F107,Septembar!F107,Oktobar!F107,Oktobar_2!F107),"") -> 26 | G107: =IF(OR(Predrok_novembar!G107<>"",Predrok_decembar!G107<>"",Januar!G107<>"",Februar!G107<>"",April!G107<>"",Juni!G107<>"",Juli!G107,Septembar!G107<>"",Oktobar!G107<>"",Oktobar_2!G107<>""),MAX(Predrok_novembar!G107,Predrok_decembar!G107,Januar!G107,Februar!G107,April!G107,Juni!G107,Juli!G107,Septembar!G107,Oktobar!G107,Oktobar_2!G107),"") ->  | H107: =IF(OR(Predrok_novembar!H107<>"",Predrok_decembar!H107<>"",Januar!H107<>"",Februar!H107<>"",April!H107<>"",Juni!H107<>"",Juli!H107,Septembar!H107<>"",Oktobar!H107<>"",Oktobar_2!H107<>""),MAX(Predrok_novembar!H107,Predrok_decembar!H107,Januar!H107,Februar!H107,April!H107,Juni!H107,Juli!H107,Septembar!H107,Oktobar!H107,Oktobar_2!H107),"") ->  | I107: =IF(OR(Predrok_novembar!I107<>"",Predrok_decembar!I107<>"",Januar!I107<>"",Februar!I107<>"",April!I107<>"",Juni!I107<>"",Juli!I107,Septembar!I107<>"",Oktobar!I107<>"",Oktobar_2!I107<>""),MAX(Predrok_novembar!I107,Predrok_decembar!I107,Januar!I107,Februar!I107,April!I107,Juni!I107,Juli!I107,Septembar!I107,Oktobar!I107,Oktobar_2!I107),"") ->  | J107: =IF(OR(Predrok_novembar!J107<>"",Predrok_decembar!J107<>"",Januar!J107<>"",Februar!J107<>"",April!J107<>"",Juni!J107<>"",Juli!J107,Septembar!J107<>"",Oktobar!J107<>"",Oktobar_2!J107<>""),MAX(Predrok_novembar!J107,Predrok_decembar!J107,Januar!J107,Februar!J107,April!J107,Juni!J107,Juli!J107,Septembar!J107,Oktobar!J107,Oktobar_2!J107),"") ->  | K107: NE | N107: 11
A108: =PODACI_STUDENTI!A107 -> 106 | B108: =PODACI_STUDENTI!B107 -> 2016/2040 | C108: =PODACI_STUDENTI!C107 -> Крнета Никола | D108: =PODACI_STUDENTI!D107 -> кондиција | F108: =IF(OR(Predrok_novembar!F108<>"",Predrok_decembar!F108<>"",Januar!F108<>"",Februar!F108<>"",April!F108<>"",Juni!F108<>"",Juli!F108,Septembar!F108<>"",Oktobar!F108<>"",Oktobar_2!F108<>""),MAX(Predrok_novembar!F108,Predrok_decembar!F108,Januar!F108,Februar!F108,April!F108,Juni!F108,Juli!F108,Septembar!F108,Oktobar!F108,Oktobar_2!F108),"") -> 27 | G108: =IF(OR(Predrok_novembar!G108<>"",Predrok_decembar!G108<>"",Januar!G108<>"",Februar!G108<>"",April!G108<>"",Juni!G108<>"",Juli!G108,Septembar!G108<>"",Oktobar!G108<>"",Oktobar_2!G108<>""),MAX(Predrok_novembar!G108,Predrok_decembar!G108,Januar!G108,Februar!G108,April!G108,Juni!G108,Juli!G108,Septembar!G108,Oktobar!G108,Oktobar_2!G108),"") -> 30 | H108: =IF(OR(Predrok_novembar!H108<>"",Predrok_decembar!H108<>"",Januar!H108<>"",Februar!H108<>"",April!H108<>"",Juni!H108<>"",Juli!H108,Septembar!H108<>"",Oktobar!H108<>"",Oktobar_2!H108<>""),MAX(Predrok_novembar!H108,Predrok_decembar!H108,Januar!H108,Februar!H108,April!H108,Juni!H108,Juli!H108,Septembar!H108,Oktobar!H108,Oktobar_2!H108),"") ->  | I108: =IF(OR(Predrok_novembar!I108<>"",Predrok_decembar!I108<>"",Januar!I108<>"",Februar!I108<>"",April!I108<>"",Juni!I108<>"",Juli!I108,Septembar!I108<>"",Oktobar!I108<>"",Oktobar_2!I108<>""),MAX(Predrok_novembar!I108,Predrok_decembar!I108,Januar!I108,Februar!I108,April!I108,Juni!I108,Juli!I108,Septembar!I108,Oktobar!I108,Oktobar_2!I108),"") -> 15 | J108: =IF(OR(Predrok_novembar!J108<>"",Predrok_decembar!J108<>"",Januar!J108<>"",Februar!J108<>"",April!J108<>"",Juni!J108<>"",Juli!J108,Septembar!J108<>"",Oktobar!J108<>"",Oktobar_2!J108<>""),MAX(Predrok_novembar!J108,Predrok_decembar!J108,Januar!J108,Februar!J108,April!J108,Juni!J108,Juli!J108,Septembar!J108,Oktobar!J108,Oktobar_2!J108),"") ->  | K108: NE | N108: 12 | O108: 13 | Q108: 14
A109: =PODACI_STUDENTI!A108 -> 107 | B109: =PODACI_STUDENTI!B108 -> 2016/2005 | C109: =PODACI_STUDENTI!C108 -> Лечић Бојан | D109: =PODACI_STUDENTI!D108 -> фудбал | F109: =IF(OR(Predrok_novembar!F109<>"",Predrok_decembar!F109<>"",Januar!F109<>"",Februar!F109<>"",April!F109<>"",Juni!F109<>"",Juli!F109,Septembar!F109<>"",Oktobar!F109<>"",Oktobar_2!F109<>""),MAX(Predrok_novembar!F109,Predrok_decembar!F109,Januar!F109,Februar!F109,April!F109,Juni!F109,Juli!F109,Septembar!F109,Oktobar!F109,Oktobar_2!F109),"") ->  | G109: =IF(OR(Predrok_novembar!G109<>"",Predrok_decembar!G109<>"",Januar!G109<>"",Februar!G109<>"",April!G109<>"",Juni!G109<>"",Juli!G109,Septembar!G109<>"",Oktobar!G109<>"",Oktobar_2!G109<>""),MAX(Predrok_novembar!G109,Predrok_decembar!G109,Januar!G109,Februar!G109,April!G109,Juni!G109,Juli!G109,Septembar!G109,Oktobar!G109,Oktobar_2!G109),"") -> 30 | H109: =IF(OR(Predrok_novembar!H109<>"",Predrok_decembar!H109<>"",Januar!H109<>"",Februar!H109<>"",April!H109<>"",Juni!H109<>"",Juli!H109,Septembar!H109<>"",Oktobar!H109<>"",Oktobar_2!H109<>""),MAX(Predrok_novembar!H109,Predrok_decembar!H109,Januar!H109,Februar!H109,April!H109,Juni!H109,Juli!H109,Septembar!H109,Oktobar!H109,Oktobar_2!H109),"") ->  | I109: =IF(OR(Predrok_novembar!I109<>"",Predrok_decembar!I109<>"",Januar!I109<>"",Februar!I109<>"",April!I109<>"",Juni!I109<>"",Juli!I109,Septembar!I109<>"",Oktobar!I109<>"",Oktobar_2!I109<>""),MAX(Predrok_novembar!I109,Predrok_decembar!I109,Januar!I109,Februar!I109,April!I109,Juni!I109,Juli!I109,Septembar!I109,Oktobar!I109,Oktobar_2!I109),"") ->  | J109: =IF(OR(Predrok_novembar!J109<>"",Predrok_decembar!J109<>"",Januar!J109<>"",Februar!J109<>"",April!J109<>"",Juni!J109<>"",Juli!J109,Septembar!J109<>"",Oktobar!J109<>"",Oktobar_2!J109<>""),MAX(Predrok_novembar!J109,Predrok_decembar!J109,Januar!J109,Februar!J109,April!J109,Juni!J109,Juli!J109,Septembar!J109,Oktobar!J109,Oktobar_2!J109),"") ->  | K109: NE | O109: 13
A110: =PODACI_STUDENTI!A109 -> 108 | B110: =PODACI_STUDENTI!B109 -> 2016/2037 | C110: =PODACI_STUDENTI!C109 -> Луковић Милош | D110: =PODACI_STUDENTI!D109 -> фудбал | F110: =IF(OR(Predrok_novembar!F110<>"",Predrok_decembar!F110<>"",Januar!F110<>"",Februar!F110<>"",April!F110<>"",Juni!F110<>"",Juli!F110,Septembar!F110<>"",Oktobar!F110<>"",Oktobar_2!F110<>""),MAX(Predrok_novembar!F110,Predrok_decembar!F110,Januar!F110,Februar!F110,April!F110,Juni!F110,Juli!F110,Septembar!F110,Oktobar!F110,Oktobar_2!F110),"") ->  | G110: =IF(OR(Predrok_novembar!G110<>"",Predrok_decembar!G110<>"",Januar!G110<>"",Februar!G110<>"",April!G110<>"",Juni!G110<>"",Juli!G110,Septembar!G110<>"",Oktobar!G110<>"",Oktobar_2!G110<>""),MAX(Predrok_novembar!G110,Predrok_decembar!G110,Januar!G110,Februar!G110,April!G110,Juni!G110,Juli!G110,Septembar!G110,Oktobar!G110,Oktobar_2!G110),"") -> 31 | H110: =IF(OR(Predrok_novembar!H110<>"",Predrok_decembar!H110<>"",Januar!H110<>"",Februar!H110<>"",April!H110<>"",Juni!H110<>"",Juli!H110,Septembar!H110<>"",Oktobar!H110<>"",Oktobar_2!H110<>""),MAX(Predrok_novembar!H110,Predrok_decembar!H110,Januar!H110,Februar!H110,April!H110,Juni!H110,Juli!H110,Septembar!H110,Oktobar!H110,Oktobar_2!H110),"") ->  | I110: =IF(OR(Predrok_novembar!I110<>"",Predrok_decembar!I110<>"",Januar!I110<>"",Februar!I110<>"",April!I110<>"",Juni!I110<>"",Juli!I110,Septembar!I110<>"",Oktobar!I110<>"",Oktobar_2!I110<>""),MAX(Predrok_novembar!I110,Predrok_decembar!I110,Januar!I110,Februar!I110,April!I110,Juni!I110,Juli!I110,Septembar!I110,Oktobar!I110,Oktobar_2!I110),"") ->  | J110: =IF(OR(Predrok_novembar!J110<>"",Predrok_decembar!J110<>"",Januar!J110<>"",Februar!J110<>"",April!J110<>"",Juni!J110<>"",Juli!J110,Septembar!J110<>"",Oktobar!J110<>"",Oktobar_2!J110<>""),MAX(Predrok_novembar!J110,Predrok_decembar!J110,Januar!J110,Februar!J110,April!J110,Juni!J110,Juli!J110,Septembar!J110,Oktobar!J110,Oktobar_2!J110),"") ->  | K110: NE | O110: 14
A111: =PODACI_STUDENTI!A110 -> 109 | B111: =PODACI_STUDENTI!B110 -> 2016/2021 | C111: =PODACI_STUDENTI!C110 -> Маљковић Никола | D111: =PODACI_STUDENTI!D110 -> кошарка | F111: =IF(OR(Predrok_novembar!F111<>"",Predrok_decembar!F111<>"",Januar!F111<>"",Februar!F111<>"",April!F111<>"",Juni!F111<>"",Juli!F111,Septembar!F111<>"",Oktobar!F111<>"",Oktobar_2!F111<>""),MAX(Predrok_novembar!F111,Predrok_decembar!F111,Januar!F111,Februar!F111,April!F111,Juni!F111,Juli!F111,Septembar!F111,Oktobar!F111,Oktobar_2!F111),"") -> 27 | G111: =IF(OR(Predrok_novembar!G111<>"",Predrok_decembar!G111<>"",Januar!G111<>"",Februar!G111<>"",April!G111<>"",Juni!G111<>"",Juli!G111,Septembar!G111<>"",Oktobar!G111<>"",Oktobar_2!G111<>""),MAX(Predrok_novembar!G111,Predrok_decembar!G111,Januar!G111,Februar!G111,April!G111,Juni!G111,Juli!G111,Septembar!G111,Oktobar!G111,Oktobar_2!G111),"") -> 24 | H111: =IF(OR(Predrok_novembar!H111<>"",Predrok_decembar!H111<>"",Januar!H111<>"",Februar!H111<>"",April!H111<>"",Juni!H111<>"",Juli!H111,Septembar!H111<>"",Oktobar!H111<>"",Oktobar_2!H111<>""),MAX(Predrok_novembar!H111,Predrok_decembar!H111,Januar!H111,Februar!H111,April!H111,Juni!H111,Juli!H111,Septembar!H111,Oktobar!H111,Oktobar_2!H111),"") -> 17 | I111: =IF(OR(Predrok_novembar!I111<>"",Predrok_decembar!I111<>"",Januar!I111<>"",Februar!I111<>"",April!I111<>"",Juni!I111<>"",Juli!I111,Septembar!I111<>"",Oktobar!I111<>"",Oktobar_2!I111<>""),MAX(Predrok_novembar!I111,Predrok_decembar!I111,Januar!I111,Februar!I111,April!I111,Juni!I111,Juli!I111,Septembar!I111,Oktobar!I111,Oktobar_2!I111),"") -> 10 | J111: =IF(OR(Predrok_novembar!J111<>"",Predrok_decembar!J111<>"",Januar!J111<>"",Februar!J111<>"",April!J111<>"",Juni!J111<>"",Juli!J111,Septembar!J111<>"",Oktobar!J111<>"",Oktobar_2!J111<>""),MAX(Predrok_novembar!J111,Predrok_decembar!J111,Januar!J111,Februar!J111,April!J111,Juni!J111,Juli!J111,Septembar!J111,Oktobar!J111,Oktobar_2!J111),"") ->  | K111: NE | N111: 12 | O111: 11 | P111: 11 | Q111: 9
A112: =PODACI_STUDENTI!A111 -> 110 | B112: =PODACI_STUDENTI!B111 -> 2016/2093 | C112: =PODACI_STUDENTI!C111 -> Мартић Марко | D112: =PODACI_STUDENTI!D111 -> кондиција | F112: =IF(OR(Predrok_novembar!F112<>"",Predrok_decembar!F112<>"",Januar!F112<>"",Februar!F112<>"",April!F112<>"",Juni!F112<>"",Juli!F112,Septembar!F112<>"",Oktobar!F112<>"",Oktobar_2!F112<>""),MAX(Predrok_novembar!F112,Predrok_decembar!F112,Januar!F112,Februar!F112,April!F112,Juni!F112,Juli!F112,Septembar!F112,Oktobar!F112,Oktobar_2!F112),"") -> 26 | G112: =IF(OR(Predrok_novembar!G112<>"",Predrok_decembar!G112<>"",Januar!G112<>"",Februar!G112<>"",April!G112<>"",Juni!G112<>"",Juli!G112,Septembar!G112<>"",Oktobar!G112<>"",Oktobar_2!G112<>""),MAX(Predrok_novembar!G112,Predrok_decembar!G112,Januar!G112,Februar!G112,April!G112,Juni!G112,Juli!G112,Septembar!G112,Oktobar!G112,Oktobar_2!G112),"") ->  | H112: =IF(OR(Predrok_novembar!H112<>"",Predrok_decembar!H112<>"",Januar!H112<>"",Februar!H112<>"",April!H112<>"",Juni!H112<>"",Juli!H112,Septembar!H112<>"",Oktobar!H112<>"",Oktobar_2!H112<>""),MAX(Predrok_novembar!H112,Predrok_decembar!H112,Januar!H112,Februar!H112,April!H112,Juni!H112,Juli!H112,Septembar!H112,Oktobar!H112,Oktobar_2!H112),"") ->  | I112: =IF(OR(Predrok_novembar!I112<>"",Predrok_decembar!I112<>"",Januar!I112<>"",Februar!I112<>"",April!I112<>"",Juni!I112<>"",Juli!I112,Septembar!I112<>"",Oktobar!I112<>"",Oktobar_2!I112<>""),MAX(Predrok_novembar!I112,Predrok_decembar!I112,Januar!I112,Februar!I112,April!I112,Juni!I112,Juli!I112,Septembar!I112,Oktobar!I112,Oktobar_2!I112),"") -> 9 | J112: =IF(OR(Predrok_novembar!J112<>"",Predrok_decembar!J112<>"",Januar!J112<>"",Februar!J112<>"",April!J112<>"",Juni!J112<>"",Juli!J112,Septembar!J112<>"",Oktobar!J112<>"",Oktobar_2!J112<>""),MAX(Predrok_novembar!J112,Predrok_decembar!J112,Januar!J112,Februar!J112,April!J112,Juni!J112,Juli!J112,Septembar!J112,Oktobar!J112,Oktobar_2!J112),"") -> 13 | K112: NE | N112: 11 | Q112: 8 | R112: 12
A113: =PODACI_STUDENTI!A112 -> 111 | B113: =PODACI_STUDENTI!B112 -> 2016/2058 | C113: =PODACI_STUDENTI!C112 -> Милекић Милан | D113: =PODACI_STUDENTI!D112 -> кондиција | F113: =IF(OR(Predrok_novembar!F113<>"",Predrok_decembar!F113<>"",Januar!F113<>"",Februar!F113<>"",April!F113<>"",Juni!F113<>"",Juli!F113,Septembar!F113<>"",Oktobar!F113<>"",Oktobar_2!F113<>""),MAX(Predrok_novembar!F113,Predrok_decembar!F113,Januar!F113,Februar!F113,April!F113,Juni!F113,Juli!F113,Septembar!F113,Oktobar!F113,Oktobar_2!F113),"") ->  | G113: =IF(OR(Predrok_novembar!G113<>"",Predrok_decembar!G113<>"",Januar!G113<>"",Februar!G113<>"",April!G113<>"",Juni!G113<>"",Juli!G113,Septembar!G113<>"",Oktobar!G113<>"",Oktobar_2!G113<>""),MAX(Predrok_novembar!G113,Predrok_decembar!G113,Januar!G113,Februar!G113,April!G113,Juni!G113,Juli!G113,Septembar!G113,Oktobar!G113,Oktobar_2!G113),"") -> 25 | H113: =IF(OR(Predrok_novembar!H113<>"",Predrok_decembar!H113<>"",Januar!H113<>"",Februar!H113<>"",April!H113<>"",Juni!H113<>"",Juli!H113,Septembar!H113<>"",Oktobar!H113<>"",Oktobar_2!H113<>""),MAX(Predrok_novembar!H113,Predrok_decembar!H113,Januar!H113,Februar!H113,April!H113,Juni!H113,Juli!H113,Septembar!H113,Oktobar!H113,Oktobar_2!H113),"") -> 12 | I113: =IF(OR(Predrok_novembar!I113<>"",Predrok_decembar!I113<>"",Januar!I113<>"",Februar!I113<>"",April!I113<>"",Juni!I113<>"",Juli!I113,Septembar!I113<>"",Oktobar!I113<>"",Oktobar_2!I113<>""),MAX(Predrok_novembar!I113,Predrok_decembar!I113,Januar!I113,Februar!I113,April!I113,Juni!I113,Juli!I113,Septembar!I113,Oktobar!I113,Oktobar_2!I113),"") -> 10 | J113: =IF(OR(Predrok_novembar!J113<>"",Predrok_decembar!J113<>"",Januar!J113<>"",Februar!J113<>"",April!J113<>"",Juni!J113<>"",Juli!J113,Septembar!J113<>"",Oktobar!J113<>"",Oktobar_2!J113<>""),MAX(Predrok_novembar!J113,Predrok_decembar!J113,Januar!J113,Februar!J113,April!J113,Juni!J113,Juli!J113,Septembar!J113,Oktobar!J113,Oktobar_2!J113),"") -> 13 | K113: NE | O113: 11 | P113: 8 | Q113: 9 | R113: 12 | AE113: =IF(X113<>"",SUM(X113,AD113,Z113,AB113),"") -> 
A114: =PODACI_STUDENTI!A113 -> 112 | B114: =PODACI_STUDENTI!B113 -> 2016/2039 | C114: =PODACI_STUDENTI!C113 -> Миљанић Алекса | D114: =PODACI_STUDENTI!D113 -> кондиција | F114: =IF(OR(Predrok_novembar!F114<>"",Predrok_decembar!F114<>"",Januar!F114<>"",Februar!F114<>"",April!F114<>"",Juni!F114<>"",Juli!F114,Septembar!F114<>"",Oktobar!F114<>"",Oktobar_2!F114<>""),MAX(Predrok_novembar!F114,Predrok_decembar!F114,Januar!F114,Februar!F114,April!F114,Juni!F114,Juli!F114,Septembar!F114,Oktobar!F114,Oktobar_2!F114),"") ->  | G114: =IF(OR(Predrok_novembar!G114<>"",Predrok_decembar!G114<>"",Januar!G114<>"",Februar!G114<>"",April!G114<>"",Juni!G114<>"",Juli!G114,Septembar!G114<>"",Oktobar!G114<>"",Oktobar_2!G114<>""),MAX(Predrok_novembar!G114,Predrok_decembar!G114,Januar!G114,Februar!G114,April!G114,Juni!G114,Juli!G114,Septembar!G114,Oktobar!G114,Oktobar_2!G114),"") ->  | H114: =IF(OR(Predrok_novembar!H114<>"",Predrok_decembar!H114<>"",Januar!H114<>"",Februar!H114<>"",April!H114<>"",Juni!H114<>"",Juli!H114,Septembar!H114<>"",Oktobar!H114<>"",Oktobar_2!H114<>""),MAX(Predrok_novembar!H114,Predrok_decembar!H114,Januar!H114,Februar!H114,April!H114,Juni!H114,Juli!H114,Septembar!H114,Oktobar!H114,Oktobar_2!H114),"") ->  | I114: =IF(OR(Predrok_novembar!I114<>"",Predrok_decembar!I114<>"",Januar!I114<>"",Februar!I114<>"",April!I114<>"",Juni!I114<>"",Juli!I114,Septembar!I114<>"",Oktobar!I114<>"",Oktobar_2!I114<>""),MAX(Predrok_novembar!I114,Predrok_decembar!I114,Januar!I114,Februar!I114,April!I114,Juni!I114,Juli!I114,Septembar!I114,Oktobar!I114,Oktobar_2!I114),"") ->  | J114: =IF(OR(Predrok_novembar!J114<>"",Predrok_decembar!J114<>"",Januar!J114<>"",Februar!J114<>"",April!J114<>"",Juni!J114<>"",Juli!J114,Septembar!J114<>"",Oktobar!J114<>"",Oktobar_2!J114<>""),MAX(Predrok_novembar!J114,Predrok_decembar!J114,Januar!J114,Februar!J114,April!J114,Juni!J114,Juli!J114,Septembar!J114,Oktobar!J114,Oktobar_2!J114),"") ->  | K114: NE
A115: =PODACI_STUDENTI!A114 -> 113 | B115: =PODACI_STUDENTI!B114 -> 2016/2513 | C115: =PODACI_STUDENTI!C114 -> Николић Бојана | D115: =PODACI_STUDENTI!D114 -> рекреација | F115: =IF(OR(Predrok_novembar!F115<>"",Predrok_decembar!F115<>"",Januar!F115<>"",Februar!F115<>"",April!F115<>"",Juni!F115<>"",Juli!F115,Septembar!F115<>"",Oktobar!F115<>"",Oktobar_2!F115<>""),MAX(Predrok_novembar!F115,Predrok_decembar!F115,Januar!F115,Februar!F115,April!F115,Juni!F115,Juli!F115,Septembar!F115,Oktobar!F115,Oktobar_2!F115),"") ->  | G115: =IF(OR(Predrok_novembar!G115<>"",Predrok_decembar!G115<>"",Januar!G115<>"",Februar!G115<>"",April!G115<>"",Juni!G115<>"",Juli!G115,Septembar!G115<>"",Oktobar!G115<>"",Oktobar_2!G115<>""),MAX(Predrok_novembar!G115,Predrok_decembar!G115,Januar!G115,Februar!G115,April!G115,Juni!G115,Juli!G115,Septembar!G115,Oktobar!G115,Oktobar_2!G115),"") ->  | H115: =IF(OR(Predrok_novembar!H115<>"",Predrok_decembar!H115<>"",Januar!H115<>"",Februar!H115<>"",April!H115<>"",Juni!H115<>"",Juli!H115,Septembar!H115<>"",Oktobar!H115<>"",Oktobar_2!H115<>""),MAX(Predrok_novembar!H115,Predrok_decembar!H115,Januar!H115,Februar!H115,April!H115,Juni!H115,Juli!H115,Septembar!H115,Oktobar!H115,Oktobar_2!H115),"") ->  | I115: =IF(OR(Predrok_novembar!I115<>"",Predrok_decembar!I115<>"",Januar!I115<>"",Februar!I115<>"",April!I115<>"",Juni!I115<>"",Juli!I115,Septembar!I115<>"",Oktobar!I115<>"",Oktobar_2!I115<>""),MAX(Predrok_novembar!I115,Predrok_decembar!I115,Januar!I115,Februar!I115,April!I115,Juni!I115,Juli!I115,Septembar!I115,Oktobar!I115,Oktobar_2!I115),"") ->  | J115: =IF(OR(Predrok_novembar!J115<>"",Predrok_decembar!J115<>"",Januar!J115<>"",Februar!J115<>"",April!J115<>"",Juni!J115<>"",Juli!J115,Septembar!J115<>"",Oktobar!J115<>"",Oktobar_2!J115<>""),MAX(Predrok_novembar!J115,Predrok_decembar!J115,Januar!J115,Februar!J115,April!J115,Juni!J115,Juli!J115,Septembar!J115,Oktobar!J115,Oktobar_2!J115),"") ->  | K115: NE
A116: =PODACI_STUDENTI!A115 -> 114 | B116: =PODACI_STUDENTI!B115 -> 2016/2058 | C116: =PODACI_STUDENTI!C115 -> Пановски Андреј | D116: =PODACI_STUDENTI!D115 -> 0 | F116: =IF(OR(Predrok_novembar!F116<>"",Predrok_decembar!F116<>"",Januar!F116<>"",Februar!F116<>"",April!F116<>"",Juni!F116<>"",Juli!F116,Septembar!F116<>"",Oktobar!F116<>"",Oktobar_2!F116<>""),MAX(Predrok_novembar!F116,Predrok_decembar!F116,Januar!F116,Februar!F116,April!F116,Juni!F116,Juli!F116,Septembar!F116,Oktobar!F116,Oktobar_2!F116),"") -> 30 | G116: =IF(OR(Predrok_novembar!G116<>"",Predrok_decembar!G116<>"",Januar!G116<>"",Februar!G116<>"",April!G116<>"",Juni!G116<>"",Juli!G116,Septembar!G116<>"",Oktobar!G116<>"",Oktobar_2!G116<>""),MAX(Predrok_novembar!G116,Predrok_decembar!G116,Januar!G116,Februar!G116,April!G116,Juni!G116,Juli!G116,Septembar!G116,Oktobar!G116,Oktobar_2!G116),"") -> 31 | H116: =IF(OR(Predrok_novembar!H116<>"",Predrok_decembar!H116<>"",Januar!H116<>"",Februar!H116<>"",April!H116<>"",Juni!H116<>"",Juli!H116,Septembar!H116<>"",Oktobar!H116<>"",Oktobar_2!H116<>""),MAX(Predrok_novembar!H116,Predrok_decembar!H116,Januar!H116,Februar!H116,April!H116,Juni!H116,Juli!H116,Septembar!H116,Oktobar!H116,Oktobar_2!H116),"") ->  | I116: =IF(OR(Predrok_novembar!I116<>"",Predrok_decembar!I116<>"",Januar!I116<>"",Februar!I116<>"",April!I116<>"",Juni!I116<>"",Juli!I116,Septembar!I116<>"",Oktobar!I116<>"",Oktobar_2!I116<>""),MAX(Predrok_novembar!I116,Predrok_decembar!I116,Januar!I116,Februar!I116,April!I116,Juni!I116,Juli!I116,Septembar!I116,Oktobar!I116,Oktobar_2!I116),"") ->  | J116: =IF(OR(Predrok_novembar!J116<>"",Predrok_decembar!J116<>"",Januar!J116<>"",Februar!J116<>"",April!J116<>"",Juni!J116<>"",Juli!J116,Septembar!J116<>"",Oktobar!J116<>"",Oktobar_2!J116<>""),MAX(Predrok_novembar!J116,Predrok_decembar!J116,Januar!J116,Februar!J116,April!J116,Juni!J116,Juli!J116,Septembar!J116,Oktobar!J116,Oktobar_2!J116),"") ->  | K116: NE | N116: 13 | O116: 14
A117: =PODACI_STUDENTI!A116 -> 115 | B117: =PODACI_STUDENTI!B116 -> 2016/2514 | C117: =PODACI_STUDENTI!C116 -> Петровић Александра | D117: =PODACI_STUDENTI!D116 -> рекреација | F117: =IF(OR(Predrok_novembar!F117<>"",Predrok_decembar!F117<>"",Januar!F117<>"",Februar!F117<>"",April!F117<>"",Juni!F117<>"",Juli!F117,Septembar!F117<>"",Oktobar!F117<>"",Oktobar_2!F117<>""),MAX(Predrok_novembar!F117,Predrok_decembar!F117,Januar!F117,Februar!F117,April!F117,Juni!F117,Juli!F117,Septembar!F117,Oktobar!F117,Oktobar_2!F117),"") -> 24 | G117: =IF(OR(Predrok_novembar!G117<>"",Predrok_decembar!G117<>"",Januar!G117<>"",Februar!G117<>"",April!G117<>"",Juni!G117<>"",Juli!G117,Septembar!G117<>"",Oktobar!G117<>"",Oktobar_2!G117<>""),MAX(Predrok_novembar!G117,Predrok_decembar!G117,Januar!G117,Februar!G117,April!G117,Juni!G117,Juli!G117,Septembar!G117,Oktobar!G117,Oktobar_2!G117),"") ->  | H117: =IF(OR(Predrok_novembar!H117<>"",Predrok_decembar!H117<>"",Januar!H117<>"",Februar!H117<>"",April!H117<>"",Juni!H117<>"",Juli!H117,Septembar!H117<>"",Oktobar!H117<>"",Oktobar_2!H117<>""),MAX(Predrok_novembar!H117,Predrok_decembar!H117,Januar!H117,Februar!H117,April!H117,Juni!H117,Juli!H117,Septembar!H117,Oktobar!H117,Oktobar_2!H117),"") ->  | I117: =IF(OR(Predrok_novembar!I117<>"",Predrok_decembar!I117<>"",Januar!I117<>"",Februar!I117<>"",April!I117<>"",Juni!I117<>"",Juli!I117,Septembar!I117<>"",Oktobar!I117<>"",Oktobar_2!I117<>""),MAX(Predrok_novembar!I117,Predrok_decembar!I117,Januar!I117,Februar!I117,April!I117,Juni!I117,Juli!I117,Septembar!I117,Oktobar!I117,Oktobar_2!I117),"") -> 15 | J117: =IF(OR(Predrok_novembar!J117<>"",Predrok_decembar!J117<>"",Januar!J117<>"",Februar!J117<>"",April!J117<>"",Juni!J117<>"",Juli!J117,Septembar!J117<>"",Oktobar!J117<>"",Oktobar_2!J117<>""),MAX(Predrok_novembar!J117,Predrok_decembar!J117,Januar!J117,Februar!J117,April!J117,Juni!J117,Juli!J117,Septembar!J117,Oktobar!J117,Oktobar_2!J117),"") ->  | K117: =IF(B117<>"",IF(AND(F117<>"",G117<>"",H117<>"",I117<>"",J117<>""),"DA","NE"),"") -> NE | N117: 11 | Q117: 14
A118: =PODACI_STUDENTI!A117 -> 116 | B118: =PODACI_STUDENTI!B117 -> 2016/2014 | C118: =PODACI_STUDENTI!C117 -> Петровић Михајло | D118: =PODACI_STUDENTI!D117 -> 0 | F118: =IF(OR(Predrok_novembar!F118<>"",Predrok_decembar!F118<>"",Januar!F118<>"",Februar!F118<>"",April!F118<>"",Juni!F118<>"",Juli!F118,Septembar!F118<>"",Oktobar!F118<>"",Oktobar_2!F118<>""),MAX(Predrok_novembar!F118,Predrok_decembar!F118,Januar!F118,Februar!F118,April!F118,Juni!F118,Juli!F118,Septembar!F118,Oktobar!F118,Oktobar_2!F118),"") ->  | G118: =IF(OR(Predrok_novembar!G118<>"",Predrok_decembar!G118<>"",Januar!G118<>"",Februar!G118<>"",April!G118<>"",Juni!G118<>"",Juli!G118,Septembar!G118<>"",Oktobar!G118<>"",Oktobar_2!G118<>""),MAX(Predrok_novembar!G118,Predrok_decembar!G118,Januar!G118,Februar!G118,April!G118,Juni!G118,Juli!G118,Septembar!G118,Oktobar!G118,Oktobar_2!G118),"") ->  | H118: =IF(OR(Predrok_novembar!H118<>"",Predrok_decembar!H118<>"",Januar!H118<>"",Februar!H118<>"",April!H118<>"",Juni!H118<>"",Juli!H118,Septembar!H118<>"",Oktobar!H118<>"",Oktobar_2!H118<>""),MAX(Predrok_novembar!H118,Predrok_decembar!H118,Januar!H118,Februar!H118,April!H118,Juni!H118,Juli!H118,Septembar!H118,Oktobar!H118,Oktobar_2!H118),"") ->  | I118: =IF(OR(Predrok_novembar!I118<>"",Predrok_decembar!I118<>"",Januar!I118<>"",Februar!I118<>"",April!I118<>"",Juni!I118<>"",Juli!I118,Septembar!I118<>"",Oktobar!I118<>"",Oktobar_2!I118<>""),MAX(Predrok_novembar!I118,Predrok_decembar!I118,Januar!I118,Februar!I118,April!I118,Juni!I118,Juli!I118,Septembar!I118,Oktobar!I118,Oktobar_2!I118),"") -> 15 | J118: =IF(OR(Predrok_novembar!J118<>"",Predrok_decembar!J118<>"",Januar!J118<>"",Februar!J118<>"",April!J118<>"",Juni!J118<>"",Juli!J118,Septembar!J118<>"",Oktobar!J118<>"",Oktobar_2!J118<>""),MAX(Predrok_novembar!J118,Predrok_decembar!J118,Januar!J118,Februar!J118,April!J118,Juni!J118,Juli!J118,Septembar!J118,Oktobar!J118,Oktobar_2!J118),"") ->  | K118: NE | Q118: 14
A119: =PODACI_STUDENTI!A118 -> 117 | B119: =PODACI_STUDENTI!B118 -> 2016/2015 | C119: =PODACI_STUDENTI!C118 -> Пешко Иван | D119: =PODACI_STUDENTI!D118 -> рукомет | F119: =IF(OR(Predrok_novembar!F119<>"",Predrok_decembar!F119<>"",Januar!F119<>"",Februar!F119<>"",April!F119<>"",Juni!F119<>"",Juli!F119,Septembar!F119<>"",Oktobar!F119<>"",Oktobar_2!F119<>""),MAX(Predrok_novembar!F119,Predrok_decembar!F119,Januar!F119,Februar!F119,April!F119,Juni!F119,Juli!F119,Septembar!F119,Oktobar!F119,Oktobar_2!F119),"") ->  | G119: =IF(OR(Predrok_novembar!G119<>"",Predrok_decembar!G119<>"",Januar!G119<>"",Februar!G119<>"",April!G119<>"",Juni!G119<>"",Juli!G119,Septembar!G119<>"",Oktobar!G119<>"",Oktobar_2!G119<>""),MAX(Predrok_novembar!G119,Predrok_decembar!G119,Januar!G119,Februar!G119,April!G119,Juni!G119,Juli!G119,Septembar!G119,Oktobar!G119,Oktobar_2!G119),"") ->  | H119: =IF(OR(Predrok_novembar!H119<>"",Predrok_decembar!H119<>"",Januar!H119<>"",Februar!H119<>"",April!H119<>"",Juni!H119<>"",Juli!H119,Septembar!H119<>"",Oktobar!H119<>"",Oktobar_2!H119<>""),MAX(Predrok_novembar!H119,Predrok_decembar!H119,Januar!H119,Februar!H119,April!H119,Juni!H119,Juli!H119,Septembar!H119,Oktobar!H119,Oktobar_2!H119),"") ->  | I119: =IF(OR(Predrok_novembar!I119<>"",Predrok_decembar!I119<>"",Januar!I119<>"",Februar!I119<>"",April!I119<>"",Juni!I119<>"",Juli!I119,Septembar!I119<>"",Oktobar!I119<>"",Oktobar_2!I119<>""),MAX(Predrok_novembar!I119,Predrok_decembar!I119,Januar!I119,Februar!I119,April!I119,Juni!I119,Juli!I119,Septembar!I119,Oktobar!I119,Oktobar_2!I119),"") ->  | J119: =IF(OR(Predrok_novembar!J119<>"",Predrok_decembar!J119<>"",Januar!J119<>"",Februar!J119<>"",April!J119<>"",Juni!J119<>"",Juli!J119,Septembar!J119<>"",Oktobar!J119<>"",Oktobar_2!J119<>""),MAX(Predrok_novembar!J119,Predrok_decembar!J119,Januar!J119,Februar!J119,April!J119,Juni!J119,Juli!J119,Septembar!J119,Oktobar!J119,Oktobar_2!J119),"") ->  | K119: NE
A120: =PODACI_STUDENTI!A119 -> 118 | B120: =PODACI_STUDENTI!B119 -> 2016/2079 | C120: =PODACI_STUDENTI!C119 -> Поповић Дуња | D120: =PODACI_STUDENTI!D119 -> атлетика | F120: =IF(OR(Predrok_novembar!F120<>"",Predrok_decembar!F120<>"",Januar!F120<>"",Februar!F120<>"",April!F120<>"",Juni!F120<>"",Juli!F120,Septembar!F120<>"",Oktobar!F120<>"",Oktobar_2!F120<>""),MAX(Predrok_novembar!F120,Predrok_decembar!F120,Januar!F120,Februar!F120,April!F120,Juni!F120,Juli!F120,Septembar!F120,Oktobar!F120,Oktobar_2!F120),"") -> 28 | G120: =IF(OR(Predrok_novembar!G120<>"",Predrok_decembar!G120<>"",Januar!G120<>"",Februar!G120<>"",April!G120<>"",Juni!G120<>"",Juli!G120,Septembar!G120<>"",Oktobar!G120<>"",Oktobar_2!G120<>""),MAX(Predrok_novembar!G120,Predrok_decembar!G120,Januar!G120,Februar!G120,April!G120,Juni!G120,Juli!G120,Septembar!G120,Oktobar!G120,Oktobar_2!G120),"") -> 27 | H120: =IF(OR(Predrok_novembar!H120<>"",Predrok_decembar!H120<>"",Januar!H120<>"",Februar!H120<>"",April!H120<>"",Juni!H120<>"",Juli!H120,Septembar!H120<>"",Oktobar!H120<>"",Oktobar_2!H120<>""),MAX(Predrok_novembar!H120,Predrok_decembar!H120,Januar!H120,Februar!H120,April!H120,Juni!H120,Juli!H120,Septembar!H120,Oktobar!H120,Oktobar_2!H120),"") -> 14 | I120: =IF(OR(Predrok_novembar!I120<>"",Predrok_decembar!I120<>"",Januar!I120<>"",Februar!I120<>"",April!I120<>"",Juni!I120<>"",Juli!I120,Septembar!I120<>"",Oktobar!I120<>"",Oktobar_2!I120<>""),MAX(Predrok_novembar!I120,Predrok_decembar!I120,Januar!I120,Februar!I120,April!I120,Juni!I120,Juli!I120,Septembar!I120,Oktobar!I120,Oktobar_2!I120),"") -> 15 | J120: =IF(OR(Predrok_novembar!J120<>"",Predrok_decembar!J120<>"",Januar!J120<>"",Februar!J120<>"",April!J120<>"",Juni!J120<>"",Juli!J120,Septembar!J120<>"",Oktobar!J120<>"",Oktobar_2!J120<>""),MAX(Predrok_novembar!J120,Predrok_decembar!J120,Januar!J120,Februar!J120,April!J120,Juni!J120,Juli!J120,Septembar!J120,Oktobar!J120,Oktobar_2!J120),"") ->  | K120: NE | N120: 12 | O120: 12 | P120: 9 | Q120: 14
A121: =PODACI_STUDENTI!A120 -> 119 | B121: =PODACI_STUDENTI!B120 -> 2016/2046 | C121: =PODACI_STUDENTI!C120 -> Радојичић Лука | D121: =PODACI_STUDENTI!D120 -> кошарка | F121: =IF(OR(Predrok_novembar!F121<>"",Predrok_decembar!F121<>"",Januar!F121<>"",Februar!F121<>"",April!F121<>"",Juni!F121<>"",Juli!F121,Septembar!F121<>"",Oktobar!F121<>"",Oktobar_2!F121<>""),MAX(Predrok_novembar!F121,Predrok_decembar!F121,Januar!F121,Februar!F121,April!F121,Juni!F121,Juli!F121,Septembar!F121,Oktobar!F121,Oktobar_2!F121),"") -> 30 | G121: =IF(OR(Predrok_novembar!G121<>"",Predrok_decembar!G121<>"",Januar!G121<>"",Februar!G121<>"",April!G121<>"",Juni!G121<>"",Juli!G121,Septembar!G121<>"",Oktobar!G121<>"",Oktobar_2!G121<>""),MAX(Predrok_novembar!G121,Predrok_decembar!G121,Januar!G121,Februar!G121,April!G121,Juni!G121,Juli!G121,Septembar!G121,Oktobar!G121,Oktobar_2!G121),"") -> 30 | H121: =IF(OR(Predrok_novembar!H121<>"",Predrok_decembar!H121<>"",Januar!H121<>"",Februar!H121<>"",April!H121<>"",Juni!H121<>"",Juli!H121,Septembar!H121<>"",Oktobar!H121<>"",Oktobar_2!H121<>""),MAX(Predrok_novembar!H121,Predrok_decembar!H121,Januar!H121,Februar!H121,April!H121,Juni!H121,Juli!H121,Septembar!H121,Oktobar!H121,Oktobar_2!H121),"") -> 13 | I121: =IF(OR(Predrok_novembar!I121<>"",Predrok_decembar!I121<>"",Januar!I121<>"",Februar!I121<>"",April!I121<>"",Juni!I121<>"",Juli!I121,Septembar!I121<>"",Oktobar!I121<>"",Oktobar_2!I121<>""),MAX(Predrok_novembar!I121,Predrok_decembar!I121,Januar!I121,Februar!I121,April!I121,Juni!I121,Juli!I121,Septembar!I121,Oktobar!I121,Oktobar_2!I121),"") -> 9 | J121: =IF(OR(Predrok_novembar!J121<>"",Predrok_decembar!J121<>"",Januar!J121<>"",Februar!J121<>"",April!J121<>"",Juni!J121<>"",Juli!J121,Septembar!J121<>"",Oktobar!J121<>"",Oktobar_2!J121<>""),MAX(Predrok_novembar!J121,Predrok_decembar!J121,Januar!J121,Februar!J121,April!J121,Juni!J121,Juli!J121,Septembar!J121,Oktobar!J121,Oktobar_2!J121),"") ->  | K121: NE | N121: 13 | O121: 13 | P121: 9 | Q121: 8
A122: =PODACI_STUDENTI!A121 -> 120 | B122: =PODACI_STUDENTI!B121 -> 2016/2051 | C122: =PODACI_STUDENTI!C121 -> Радоњић Петар | D122: =PODACI_STUDENTI!D121 -> кошарка | F122: =IF(OR(Predrok_novembar!F122<>"",Predrok_decembar!F122<>"",Januar!F122<>"",Februar!F122<>"",April!F122<>"",Juni!F122<>"",Juli!F122,Septembar!F122<>"",Oktobar!F122<>"",Oktobar_2!F122<>""),MAX(Predrok_novembar!F122,Predrok_decembar!F122,Januar!F122,Februar!F122,April!F122,Juni!F122,Juli!F122,Septembar!F122,Oktobar!F122,Oktobar_2!F122),"") -> 24 | G122: =IF(OR(Predrok_novembar!G122<>"",Predrok_decembar!G122<>"",Januar!G122<>"",Februar!G122<>"",April!G122<>"",Juni!G122<>"",Juli!G122,Septembar!G122<>"",Oktobar!G122<>"",Oktobar_2!G122<>""),MAX(Predrok_novembar!G122,Predrok_decembar!G122,Januar!G122,Februar!G122,April!G122,Juni!G122,Juli!G122,Septembar!G122,Oktobar!G122,Oktobar_2!G122),"") ->  | H122: =IF(OR(Predrok_novembar!H122<>"",Predrok_decembar!H122<>"",Januar!H122<>"",Februar!H122<>"",April!H122<>"",Juni!H122<>"",Juli!H122,Septembar!H122<>"",Oktobar!H122<>"",Oktobar_2!H122<>""),MAX(Predrok_novembar!H122,Predrok_decembar!H122,Januar!H122,Februar!H122,April!H122,Juni!H122,Juli!H122,Septembar!H122,Oktobar!H122,Oktobar_2!H122),"") -> 12 | I122: =IF(OR(Predrok_novembar!I122<>"",Predrok_decembar!I122<>"",Januar!I122<>"",Februar!I122<>"",April!I122<>"",Juni!I122<>"",Juli!I122,Septembar!I122<>"",Oktobar!I122<>"",Oktobar_2!I122<>""),MAX(Predrok_novembar!I122,Predrok_decembar!I122,Januar!I122,Februar!I122,April!I122,Juni!I122,Juli!I122,Septembar!I122,Oktobar!I122,Oktobar_2!I122),"") ->  | J122: =IF(OR(Predrok_novembar!J122<>"",Predrok_decembar!J122<>"",Januar!J122<>"",Februar!J122<>"",April!J122<>"",Juni!J122<>"",Juli!J122,Septembar!J122<>"",Oktobar!J122<>"",Oktobar_2!J122<>""),MAX(Predrok_novembar!J122,Predrok_decembar!J122,Januar!J122,Februar!J122,April!J122,Juni!J122,Juli!J122,Septembar!J122,Oktobar!J122,Oktobar_2!J122),"") ->  | K122: NE | N122: 11 | P122: 8
A123: =PODACI_STUDENTI!A122 -> 121 | B123: =PODACI_STUDENTI!B122 -> 2016/2090 | C123: =PODACI_STUDENTI!C122 -> Радуловић Лука | D123: =PODACI_STUDENTI!D122 -> одбојка | F123: =IF(OR(Predrok_novembar!F123<>"",Predrok_decembar!F123<>"",Januar!F123<>"",Februar!F123<>"",April!F123<>"",Juni!F123<>"",Juli!F123,Septembar!F123<>"",Oktobar!F123<>"",Oktobar_2!F123<>""),MAX(Predrok_novembar!F123,Predrok_decembar!F123,Januar!F123,Februar!F123,April!F123,Juni!F123,Juli!F123,Septembar!F123,Oktobar!F123,Oktobar_2!F123),"") ->  | G123: =IF(OR(Predrok_novembar!G123<>"",Predrok_decembar!G123<>"",Januar!G123<>"",Februar!G123<>"",April!G123<>"",Juni!G123<>"",Juli!G123,Septembar!G123<>"",Oktobar!G123<>"",Oktobar_2!G123<>""),MAX(Predrok_novembar!G123,Predrok_decembar!G123,Januar!G123,Februar!G123,April!G123,Juni!G123,Juli!G123,Septembar!G123,Oktobar!G123,Oktobar_2!G123),"") ->  | H123: =IF(OR(Predrok_novembar!H123<>"",Predrok_decembar!H123<>"",Januar!H123<>"",Februar!H123<>"",April!H123<>"",Juni!H123<>"",Juli!H123,Septembar!H123<>"",Oktobar!H123<>"",Oktobar_2!H123<>""),MAX(Predrok_novembar!H123,Predrok_decembar!H123,Januar!H123,Februar!H123,April!H123,Juni!H123,Juli!H123,Septembar!H123,Oktobar!H123,Oktobar_2!H123),"") ->  | I123: =IF(OR(Predrok_novembar!I123<>"",Predrok_decembar!I123<>"",Januar!I123<>"",Februar!I123<>"",April!I123<>"",Juni!I123<>"",Juli!I123,Septembar!I123<>"",Oktobar!I123<>"",Oktobar_2!I123<>""),MAX(Predrok_novembar!I123,Predrok_decembar!I123,Januar!I123,Februar!I123,April!I123,Juni!I123,Juli!I123,Septembar!I123,Oktobar!I123,Oktobar_2!I123),"") ->  | J123: =IF(OR(Predrok_novembar!J123<>"",Predrok_decembar!J123<>"",Januar!J123<>"",Februar!J123<>"",April!J123<>"",Juni!J123<>"",Juli!J123,Septembar!J123<>"",Oktobar!J123<>"",Oktobar_2!J123<>""),MAX(Predrok_novembar!J123,Predrok_decembar!J123,Januar!J123,Februar!J123,April!J123,Juni!J123,Juli!J123,Septembar!J123,Oktobar!J123,Oktobar_2!J123),"") ->  | K123: NE
A124: =PODACI_STUDENTI!A123 -> 122 | B124: =PODACI_STUDENTI!B123 -> 2016/2033 | C124: =PODACI_STUDENTI!C123 -> Рајић Зоран | D124: =PODACI_STUDENTI!D123 -> веслање | F124: =IF(OR(Predrok_novembar!F124<>"",Predrok_decembar!F124<>"",Januar!F124<>"",Februar!F124<>"",April!F124<>"",Juni!F124<>"",Juli!F124,Septembar!F124<>"",Oktobar!F124<>"",Oktobar_2!F124<>""),MAX(Predrok_novembar!F124,Predrok_decembar!F124,Januar!F124,Februar!F124,April!F124,Juni!F124,Juli!F124,Septembar!F124,Oktobar!F124,Oktobar_2!F124),"") -> 24 | G124: =IF(OR(Predrok_novembar!G124<>"",Predrok_decembar!G124<>"",Januar!G124<>"",Februar!G124<>"",April!G124<>"",Juni!G124<>"",Juli!G124,Septembar!G124<>"",Oktobar!G124<>"",Oktobar_2!G124<>""),MAX(Predrok_novembar!G124,Predrok_decembar!G124,Januar!G124,Februar!G124,April!G124,Juni!G124,Juli!G124,Septembar!G124,Oktobar!G124,Oktobar_2!G124),"") ->  | H124: =IF(OR(Predrok_novembar!H124<>"",Predrok_decembar!H124<>"",Januar!H124<>"",Februar!H124<>"",April!H124<>"",Juni!H124<>"",Juli!H124,Septembar!H124<>"",Oktobar!H124<>"",Oktobar_2!H124<>""),MAX(Predrok_novembar!H124,Predrok_decembar!H124,Januar!H124,Februar!H124,April!H124,Juni!H124,Juli!H124,Septembar!H124,Oktobar!H124,Oktobar_2!H124),"") ->  | I124: =IF(OR(Predrok_novembar!I124<>"",Predrok_decembar!I124<>"",Januar!I124<>"",Februar!I124<>"",April!I124<>"",Juni!I124<>"",Juli!I124,Septembar!I124<>"",Oktobar!I124<>"",Oktobar_2!I124<>""),MAX(Predrok_novembar!I124,Predrok_decembar!I124,Januar!I124,Februar!I124,April!I124,Juni!I124,Juli!I124,Septembar!I124,Oktobar!I124,Oktobar_2!I124),"") ->  | J124: =IF(OR(Predrok_novembar!J124<>"",Predrok_decembar!J124<>"",Januar!J124<>"",Februar!J124<>"",April!J124<>"",Juni!J124<>"",Juli!J124,Septembar!J124<>"",Oktobar!J124<>"",Oktobar_2!J124<>""),MAX(Predrok_novembar!J124,Predrok_decembar!J124,Januar!J124,Februar!J124,April!J124,Juni!J124,Juli!J124,Septembar!J124,Oktobar!J124,Oktobar_2!J124),"") -> 15 | K124: NE | N124: 11 | R124: 14
A125: =PODACI_STUDENTI!A124 -> 123 | B125: =PODACI_STUDENTI!B124 -> 2016/2056 | C125: =PODACI_STUDENTI!C124 -> Рајичић Милорад | D125: =PODACI_STUDENTI!D124 -> кондиција | F125: =IF(OR(Predrok_novembar!F125<>"",Predrok_decembar!F125<>"",Januar!F125<>"",Februar!F125<>"",April!F125<>"",Juni!F125<>"",Juli!F125,Septembar!F125<>"",Oktobar!F125<>"",Oktobar_2!F125<>""),MAX(Predrok_novembar!F125,Predrok_decembar!F125,Januar!F125,Februar!F125,April!F125,Juni!F125,Juli!F125,Septembar!F125,Oktobar!F125,Oktobar_2!F125),"") -> 25 | G125: =IF(OR(Predrok_novembar!G125<>"",Predrok_decembar!G125<>"",Januar!G125<>"",Februar!G125<>"",April!G125<>"",Juni!G125<>"",Juli!G125,Septembar!G125<>"",Oktobar!G125<>"",Oktobar_2!G125<>""),MAX(Predrok_novembar!G125,Predrok_decembar!G125,Januar!G125,Februar!G125,April!G125,Juni!G125,Juli!G125,Septembar!G125,Oktobar!G125,Oktobar_2!G125),"") -> 24 | H125: =IF(OR(Predrok_novembar!H125<>"",Predrok_decembar!H125<>"",Januar!H125<>"",Februar!H125<>"",April!H125<>"",Juni!H125<>"",Juli!H125,Septembar!H125<>"",Oktobar!H125<>"",Oktobar_2!H125<>""),MAX(Predrok_novembar!H125,Predrok_decembar!H125,Januar!H125,Februar!H125,April!H125,Juni!H125,Juli!H125,Septembar!H125,Oktobar!H125,Oktobar_2!H125),"") ->  | I125: =IF(OR(Predrok_novembar!I125<>"",Predrok_decembar!I125<>"",Januar!I125<>"",Februar!I125<>"",April!I125<>"",Juni!I125<>"",Juli!I125,Septembar!I125<>"",Oktobar!I125<>"",Oktobar_2!I125<>""),MAX(Predrok_novembar!I125,Predrok_decembar!I125,Januar!I125,Februar!I125,April!I125,Juni!I125,Juli!I125,Septembar!I125,Oktobar!I125,Oktobar_2!I125),"") -> 15 | J125: =IF(OR(Predrok_novembar!J125<>"",Predrok_decembar!J125<>"",Januar!J125<>"",Februar!J125<>"",April!J125<>"",Juni!J125<>"",Juli!J125,Septembar!J125<>"",Oktobar!J125<>"",Oktobar_2!J125<>""),MAX(Predrok_novembar!J125,Predrok_decembar!J125,Januar!J125,Februar!J125,April!J125,Juni!J125,Juli!J125,Septembar!J125,Oktobar!J125,Oktobar_2!J125),"") -> 15 | K125: NE | N125: 11 | O125: 11 | Q125: 14 | R125: 14
A126: =PODACI_STUDENTI!A125 -> 124 | B126: =PODACI_STUDENTI!B125 -> 2016/2059 | C126: =PODACI_STUDENTI!C125 -> Симић Немања | D126: =PODACI_STUDENTI!D125 -> фудбал | F126: =IF(OR(Predrok_novembar!F126<>"",Predrok_decembar!F126<>"",Januar!F126<>"",Februar!F126<>"",April!F126<>"",Juni!F126<>"",Juli!F126,Septembar!F126<>"",Oktobar!F126<>"",Oktobar_2!F126<>""),MAX(Predrok_novembar!F126,Predrok_decembar!F126,Januar!F126,Februar!F126,April!F126,Juni!F126,Juli!F126,Septembar!F126,Oktobar!F126,Oktobar_2!F126),"") ->  | G126: =IF(OR(Predrok_novembar!G126<>"",Predrok_decembar!G126<>"",Januar!G126<>"",Februar!G126<>"",April!G126<>"",Juni!G126<>"",Juli!G126,Septembar!G126<>"",Oktobar!G126<>"",Oktobar_2!G126<>""),MAX(Predrok_novembar!G126,Predrok_decembar!G126,Januar!G126,Februar!G126,April!G126,Juni!G126,Juli!G126,Septembar!G126,Oktobar!G126,Oktobar_2!G126),"") ->  | H126: =IF(OR(Predrok_novembar!H126<>"",Predrok_decembar!H126<>"",Januar!H126<>"",Februar!H126<>"",April!H126<>"",Juni!H126<>"",Juli!H126,Septembar!H126<>"",Oktobar!H126<>"",Oktobar_2!H126<>""),MAX(Predrok_novembar!H126,Predrok_decembar!H126,Januar!H126,Februar!H126,April!H126,Juni!H126,Juli!H126,Septembar!H126,Oktobar!H126,Oktobar_2!H126),"") ->  | I126: =IF(OR(Predrok_novembar!I126<>"",Predrok_decembar!I126<>"",Januar!I126<>"",Februar!I126<>"",April!I126<>"",Juni!I126<>"",Juli!I126,Septembar!I126<>"",Oktobar!I126<>"",Oktobar_2!I126<>""),MAX(Predrok_novembar!I126,Predrok_decembar!I126,Januar!I126,Februar!I126,April!I126,Juni!I126,Juli!I126,Septembar!I126,Oktobar!I126,Oktobar_2!I126),"") ->  | J126: =IF(OR(Predrok_novembar!J126<>"",Predrok_decembar!J126<>"",Januar!J126<>"",Februar!J126<>"",April!J126<>"",Juni!J126<>"",Juli!J126,Septembar!J126<>"",Oktobar!J126<>"",Oktobar_2!J126<>""),MAX(Predrok_novembar!J126,Predrok_decembar!J126,Januar!J126,Februar!J126,April!J126,Juni!J126,Juli!J126,Septembar!J126,Oktobar!J126,Oktobar_2!J126),"") ->  | K126: NE
A127: =PODACI_STUDENTI!A126 -> 125 | B127: =PODACI_STUDENTI!B126 -> 2014/2508 | C127: =PODACI_STUDENTI!C126 -> Слипичевић Немања | D127: =PODACI_STUDENTI!D126 -> 0 | F127: =IF(OR(Predrok_novembar!F127<>"",Predrok_decembar!F127<>"",Januar!F127<>"",Februar!F127<>"",April!F127<>"",Juni!F127<>"",Juli!F127,Septembar!F127<>"",Oktobar!F127<>"",Oktobar_2!F127<>""),MAX(Predrok_novembar!F127,Predrok_decembar!F127,Januar!F127,Februar!F127,April!F127,Juni!F127,Juli!F127,Septembar!F127,Oktobar!F127,Oktobar_2!F127),"") -> 24 | G127: =IF(OR(Predrok_novembar!G127<>"",Predrok_decembar!G127<>"",Januar!G127<>"",Februar!G127<>"",April!G127<>"",Juni!G127<>"",Juli!G127,Septembar!G127<>"",Oktobar!G127<>"",Oktobar_2!G127<>""),MAX(Predrok_novembar!G127,Predrok_decembar!G127,Januar!G127,Februar!G127,April!G127,Juni!G127,Juli!G127,Septembar!G127,Oktobar!G127,Oktobar_2!G127),"") ->  | H127: =IF(OR(Predrok_novembar!H127<>"",Predrok_decembar!H127<>"",Januar!H127<>"",Februar!H127<>"",April!H127<>"",Juni!H127<>"",Juli!H127,Septembar!H127<>"",Oktobar!H127<>"",Oktobar_2!H127<>""),MAX(Predrok_novembar!H127,Predrok_decembar!H127,Januar!H127,Februar!H127,April!H127,Juni!H127,Juli!H127,Septembar!H127,Oktobar!H127,Oktobar_2!H127),"") ->  | I127: =IF(OR(Predrok_novembar!I127<>"",Predrok_decembar!I127<>"",Januar!I127<>"",Februar!I127<>"",April!I127<>"",Juni!I127<>"",Juli!I127,Septembar!I127<>"",Oktobar!I127<>"",Oktobar_2!I127<>""),MAX(Predrok_novembar!I127,Predrok_decembar!I127,Januar!I127,Februar!I127,April!I127,Juni!I127,Juli!I127,Septembar!I127,Oktobar!I127,Oktobar_2!I127),"") ->  | J127: =IF(OR(Predrok_novembar!J127<>"",Predrok_decembar!J127<>"",Januar!J127<>"",Februar!J127<>"",April!J127<>"",Juni!J127<>"",Juli!J127,Septembar!J127<>"",Oktobar!J127<>"",Oktobar_2!J127<>""),MAX(Predrok_novembar!J127,Predrok_decembar!J127,Januar!J127,Februar!J127,April!J127,Juni!J127,Juli!J127,Septembar!J127,Oktobar!J127,Oktobar_2!J127),"") ->  | K127: NE | N127: 11
A128: =PODACI_STUDENTI!A127 -> 126 | B128: =PODACI_STUDENTI!B127 -> 2016/2028 | C128: =PODACI_STUDENTI!C127 -> Стојановић Милан | D128: =PODACI_STUDENTI!D127 -> фудбал | F128: =IF(OR(Predrok_novembar!F128<>"",Predrok_decembar!F128<>"",Januar!F128<>"",Februar!F128<>"",April!F128<>"",Juni!F128<>"",Juli!F128,Septembar!F128<>"",Oktobar!F128<>"",Oktobar_2!F128<>""),MAX(Predrok_novembar!F128,Predrok_decembar!F128,Januar!F128,Februar!F128,April!F128,Juni!F128,Juli!F128,Septembar!F128,Oktobar!F128,Oktobar_2!F128),"") -> 26 | G128: =IF(OR(Predrok_novembar!G128<>"",Predrok_decembar!G128<>"",Januar!G128<>"",Februar!G128<>"",April!G128<>"",Juni!G128<>"",Juli!G128,Septembar!G128<>"",Oktobar!G128<>"",Oktobar_2!G128<>""),MAX(Predrok_novembar!G128,Predrok_decembar!G128,Januar!G128,Februar!G128,April!G128,Juni!G128,Juli!G128,Septembar!G128,Oktobar!G128,Oktobar_2!G128),"") ->  | H128: =IF(OR(Predrok_novembar!H128<>"",Predrok_decembar!H128<>"",Januar!H128<>"",Februar!H128<>"",April!H128<>"",Juni!H128<>"",Juli!H128,Septembar!H128<>"",Oktobar!H128<>"",Oktobar_2!H128<>""),MAX(Predrok_novembar!H128,Predrok_decembar!H128,Januar!H128,Februar!H128,April!H128,Juni!H128,Juli!H128,Septembar!H128,Oktobar!H128,Oktobar_2!H128),"") ->  | I128: =IF(OR(Predrok_novembar!I128<>"",Predrok_decembar!I128<>"",Januar!I128<>"",Februar!I128<>"",April!I128<>"",Juni!I128<>"",Juli!I128,Septembar!I128<>"",Oktobar!I128<>"",Oktobar_2!I128<>""),MAX(Predrok_novembar!I128,Predrok_decembar!I128,Januar!I128,Februar!I128,April!I128,Juni!I128,Juli!I128,Septembar!I128,Oktobar!I128,Oktobar_2!I128),"") ->  | J128: =IF(OR(Predrok_novembar!J128<>"",Predrok_decembar!J128<>"",Januar!J128<>"",Februar!J128<>"",April!J128<>"",Juni!J128<>"",Juli!J128,Septembar!J128<>"",Oktobar!J128<>"",Oktobar_2!J128<>""),MAX(Predrok_novembar!J128,Predrok_decembar!J128,Januar!J128,Februar!J128,April!J128,Juni!J128,Juli!J128,Septembar!J128,Oktobar!J128,Oktobar_2!J128),"") ->  | K128: NE | N128: 11
A129: =PODACI_STUDENTI!A128 -> 127 | B129: =PODACI_STUDENTI!B128 -> 2016/2038 | C129: =PODACI_STUDENTI!C128 -> Тасић Марко | D129: =PODACI_STUDENTI!D128 -> фудбал | F129: =IF(OR(Predrok_novembar!F129<>"",Predrok_decembar!F129<>"",Januar!F129<>"",Februar!F129<>"",April!F129<>"",Juni!F129<>"",Juli!F129,Septembar!F129<>"",Oktobar!F129<>"",Oktobar_2!F129<>""),MAX(Predrok_novembar!F129,Predrok_decembar!F129,Januar!F129,Februar!F129,April!F129,Juni!F129,Juli!F129,Septembar!F129,Oktobar!F129,Oktobar_2!F129),"") ->  | G129: =IF(OR(Predrok_novembar!G129<>"",Predrok_decembar!G129<>"",Januar!G129<>"",Februar!G129<>"",April!G129<>"",Juni!G129<>"",Juli!G129,Septembar!G129<>"",Oktobar!G129<>"",Oktobar_2!G129<>""),MAX(Predrok_novembar!G129,Predrok_decembar!G129,Januar!G129,Februar!G129,April!G129,Juni!G129,Juli!G129,Septembar!G129,Oktobar!G129,Oktobar_2!G129),"") ->  | H129: =IF(OR(Predrok_novembar!H129<>"",Predrok_decembar!H129<>"",Januar!H129<>"",Februar!H129<>"",April!H129<>"",Juni!H129<>"",Juli!H129,Septembar!H129<>"",Oktobar!H129<>"",Oktobar_2!H129<>""),MAX(Predrok_novembar!H129,Predrok_decembar!H129,Januar!H129,Februar!H129,April!H129,Juni!H129,Juli!H129,Septembar!H129,Oktobar!H129,Oktobar_2!H129),"") ->  | I129: =IF(OR(Predrok_novembar!I129<>"",Predrok_decembar!I129<>"",Januar!I129<>"",Februar!I129<>"",April!I129<>"",Juni!I129<>"",Juli!I129,Septembar!I129<>"",Oktobar!I129<>"",Oktobar_2!I129<>""),MAX(Predrok_novembar!I129,Predrok_decembar!I129,Januar!I129,Februar!I129,April!I129,Juni!I129,Juli!I129,Septembar!I129,Oktobar!I129,Oktobar_2!I129),"") -> 15 | J129: =IF(OR(Predrok_novembar!J129<>"",Predrok_decembar!J129<>"",Januar!J129<>"",Februar!J129<>"",April!J129<>"",Juni!J129<>"",Juli!J129,Septembar!J129<>"",Oktobar!J129<>"",Oktobar_2!J129<>""),MAX(Predrok_novembar!J129,Predrok_decembar!J129,Januar!J129,Februar!J129,April!J129,Juni!J129,Juli!J129,Septembar!J129,Oktobar!J129,Oktobar_2!J129),"") -> 15 | K129: NE | Q129: 14 | R129: 14
A130: =PODACI_STUDENTI!A129 -> 128 | B130: =PODACI_STUDENTI!B129 -> 2016/2519 | C130: =PODACI_STUDENTI!C129 -> Тошовић Марија | D130: =PODACI_STUDENTI!D129 -> рекреација | F130: =IF(OR(Predrok_novembar!F130<>"",Predrok_decembar!F130<>"",Januar!F130<>"",Februar!F130<>"",April!F130<>"",Juni!F130<>"",Juli!F130,Septembar!F130<>"",Oktobar!F130<>"",Oktobar_2!F130<>""),MAX(Predrok_novembar!F130,Predrok_decembar!F130,Januar!F130,Februar!F130,April!F130,Juni!F130,Juli!F130,Septembar!F130,Oktobar!F130,Oktobar_2!F130),"") ->  | G130: =IF(OR(Predrok_novembar!G130<>"",Predrok_decembar!G130<>"",Januar!G130<>"",Februar!G130<>"",April!G130<>"",Juni!G130<>"",Juli!G130,Septembar!G130<>"",Oktobar!G130<>"",Oktobar_2!G130<>""),MAX(Predrok_novembar!G130,Predrok_decembar!G130,Januar!G130,Februar!G130,April!G130,Juni!G130,Juli!G130,Septembar!G130,Oktobar!G130,Oktobar_2!G130),"") -> 24 | H130: =IF(OR(Predrok_novembar!H130<>"",Predrok_decembar!H130<>"",Januar!H130<>"",Februar!H130<>"",April!H130<>"",Juni!H130<>"",Juli!H130,Septembar!H130<>"",Oktobar!H130<>"",Oktobar_2!H130<>""),MAX(Predrok_novembar!H130,Predrok_decembar!H130,Januar!H130,Februar!H130,April!H130,Juni!H130,Juli!H130,Septembar!H130,Oktobar!H130,Oktobar_2!H130),"") -> 11 | I130: =IF(OR(Predrok_novembar!I130<>"",Predrok_decembar!I130<>"",Januar!I130<>"",Februar!I130<>"",April!I130<>"",Juni!I130<>"",Juli!I130,Septembar!I130<>"",Oktobar!I130<>"",Oktobar_2!I130<>""),MAX(Predrok_novembar!I130,Predrok_decembar!I130,Januar!I130,Februar!I130,April!I130,Juni!I130,Juli!I130,Septembar!I130,Oktobar!I130,Oktobar_2!I130),"") ->  | J130: =IF(OR(Predrok_novembar!J130<>"",Predrok_decembar!J130<>"",Januar!J130<>"",Februar!J130<>"",April!J130<>"",Juni!J130<>"",Juli!J130,Septembar!J130<>"",Oktobar!J130<>"",Oktobar_2!J130<>""),MAX(Predrok_novembar!J130,Predrok_decembar!J130,Januar!J130,Februar!J130,April!J130,Juni!J130,Juli!J130,Septembar!J130,Oktobar!J130,Oktobar_2!J130),"") ->  | K130: NE | L130: =IF(S130<>"",5,"") ->  | M130: =IF(S130<>"",5,"") ->  | O130: 11 | P130: 7 | AD130: =IF(AND(U130<>"",V130<>""),S130,"") -> 
A131: =PODACI_STUDENTI!A130 -> 129 | B131: =PODACI_STUDENTI!B130 -> 2016/2506 | C131: =PODACI_STUDENTI!C130 -> Чучаковић Анђела | D131: =PODACI_STUDENTI!D130 -> рекреација | F131: =IF(OR(Predrok_novembar!F131<>"",Predrok_decembar!F131<>"",Januar!F131<>"",Februar!F131<>"",April!F131<>"",Juni!F131<>"",Juli!F131,Septembar!F131<>"",Oktobar!F131<>"",Oktobar_2!F131<>""),MAX(Predrok_novembar!F131,Predrok_decembar!F131,Januar!F131,Februar!F131,April!F131,Juni!F131,Juli!F131,Septembar!F131,Oktobar!F131,Oktobar_2!F131),"") ->  | G131: =IF(OR(Predrok_novembar!G131<>"",Predrok_decembar!G131<>"",Januar!G131<>"",Februar!G131<>"",April!G131<>"",Juni!G131<>"",Juli!G131,Septembar!G131<>"",Oktobar!G131<>"",Oktobar_2!G131<>""),MAX(Predrok_novembar!G131,Predrok_decembar!G131,Januar!G131,Februar!G131,April!G131,Juni!G131,Juli!G131,Septembar!G131,Oktobar!G131,Oktobar_2!G131),"") ->  | H131: =IF(OR(Predrok_novembar!H131<>"",Predrok_decembar!H131<>"",Januar!H131<>"",Februar!H131<>"",April!H131<>"",Juni!H131<>"",Juli!H131,Septembar!H131<>"",Oktobar!H131<>"",Oktobar_2!H131<>""),MAX(Predrok_novembar!H131,Predrok_decembar!H131,Januar!H131,Februar!H131,April!H131,Juni!H131,Juli!H131,Septembar!H131,Oktobar!H131,Oktobar_2!H131),"") ->  | I131: =IF(OR(Predrok_novembar!I131<>"",Predrok_decembar!I131<>"",Januar!I131<>"",Februar!I131<>"",April!I131<>"",Juni!I131<>"",Juli!I131,Septembar!I131<>"",Oktobar!I131<>"",Oktobar_2!I131<>""),MAX(Predrok_novembar!I131,Predrok_decembar!I131,Januar!I131,Februar!I131,April!I131,Juni!I131,Juli!I131,Septembar!I131,Oktobar!I131,Oktobar_2!I131),"") ->  | J131: =IF(OR(Predrok_novembar!J131<>"",Predrok_decembar!J131<>"",Januar!J131<>"",Februar!J131<>"",April!J131<>"",Juni!J131<>"",Juli!J131,Septembar!J131<>"",Oktobar!J131<>"",Oktobar_2!J131<>""),MAX(Predrok_novembar!J131,Predrok_decembar!J131,Januar!J131,Februar!J131,April!J131,Juni!J131,Juli!J131,Septembar!J131,Oktobar!J131,Oktobar_2!J131),"") ->  | K131: =IF(B131<>"",IF(AND(F131<>"",G131<>"",H131<>"",I131<>"",J131<>""),"DA","NE"),"") -> NE | N131: =IF(F131<>"",IF(F131>=24,(F131/32)*14,""),"") ->  | O131: =IF(G131<>"",IF(G131>=24,(G131/32)*14,""),"") ->  | P131: =IF(H131<>"",IF(H131>=11,(H131/21)*14,""),"") ->  | Q131: =IF(I131<>"",IF(I131>=9,(I131/15)*14,""),"") ->  | R131: =IF(J131<>"",IF(J131>=9,(J131/15)*14,""),"") ->  | S131: =IF(V131<>"",IF(AND(N131<>"",O131<>"",P131<>"",Q131<>"",R131<>""),IF(OR(V131="Јануар",V131="Фебруар"),20,IF(OR(V131="Април",V131="Јун",V131="Јул"),15,10)),""),"") ->  | T131: =IF(AND(L131<>"",M131<>"",S131<>"",N131<>"",O131<>"",Q131<>"",P131<>"",R131<>""),ROUND(SUM(L131,M131,S131,N131,O131,Q131,P131,R131),0),"") ->  | U131: =IF(T131<>"",VLOOKUP(T131,$AM$3:$AO$7,3),"") ->  | W131: =IF(X131<>"",VLOOKUP(V131,$AR$2:$AW$10,6,FALSE),"") ->  | X131: =IF(AND(U131<>"",V131<>""),M131+L131,"") ->  | Y131: =IF(X131<>"",VLOOKUP(V131,$AR$2:$AW$10,2,FALSE),"") ->  | Z131: =IF(X131<>"",SUM(N131,O131,P131),"") ->  | AA131: =IF(X131<>"",VLOOKUP(V131,$AR$2:$AW$10,4,FALSE),"") ->  | AB131: =IF(X131<>"",Q131+R131,"") ->  | AC131: =IF(X131<>"",VLOOKUP(V131,$AR$2:$AW$10,5,FALSE),"") ->  | AF131: =IF(AND(U131<>"",V131<>""),U131,"") ->  | AG131: =IF(X131<>"",VLOOKUP(V131,$AR$2:$AW$10,6,FALSE),"") -> 
A132: =PODACI_STUDENTI!A131 -> 130 | B132: =PODACI_STUDENTI!B131 -> 2016/2078 | C132: =PODACI_STUDENTI!C131 -> Џудовић Шћепан | D132: =PODACI_STUDENTI!D131 -> кошарка | F132: =IF(OR(Predrok_novembar!F132<>"",Predrok_decembar!F132<>"",Januar!F132<>"",Februar!F132<>"",April!F132<>"",Juni!F132<>"",Juli!F132,Septembar!F132<>"",Oktobar!F132<>"",Oktobar_2!F132<>""),MAX(Predrok_novembar!F132,Predrok_decembar!F132,Januar!F132,Februar!F132,April!F132,Juni!F132,Juli!F132,Septembar!F132,Oktobar!F132,Oktobar_2!F132),"") ->  | G132: =IF(OR(Predrok_novembar!G132<>"",Predrok_decembar!G132<>"",Januar!G132<>"",Februar!G132<>"",April!G132<>"",Juni!G132<>"",Juli!G132,Septembar!G132<>"",Oktobar!G132<>"",Oktobar_2!G132<>""),MAX(Predrok_novembar!G132,Predrok_decembar!G132,Januar!G132,Februar!G132,April!G132,Juni!G132,Juli!G132,Septembar!G132,Oktobar!G132,Oktobar_2!G132),"") ->  | H132: =IF(OR(Predrok_novembar!H132<>"",Predrok_decembar!H132<>"",Januar!H132<>"",Februar!H132<>"",April!H132<>"",Juni!H132<>"",Juli!H132,Septembar!H132<>"",Oktobar!H132<>"",Oktobar_2!H132<>""),MAX(Predrok_novembar!H132,Predrok_decembar!H132,Januar!H132,Februar!H132,April!H132,Juni!H132,Juli!H132,Septembar!H132,Oktobar!H132,Oktobar_2!H132),"") ->  | I132: =IF(OR(Predrok_novembar!I132<>"",Predrok_decembar!I132<>"",Januar!I132<>"",Februar!I132<>"",April!I132<>"",Juni!I132<>"",Juli!I132,Septembar!I132<>"",Oktobar!I132<>"",Oktobar_2!I132<>""),MAX(Predrok_novembar!I132,Predrok_decembar!I132,Januar!I132,Februar!I132,April!I132,Juni!I132,Juli!I132,Septembar!I132,Oktobar!I132,Oktobar_2!I132),"") -> 10 | J132: =IF(OR(Predrok_novembar!J132<>"",Predrok_decembar!J132<>"",Januar!J132<>"",Februar!J132<>"",April!J132<>"",Juni!J132<>"",Juli!J132,Septembar!J132<>"",Oktobar!J132<>"",Oktobar_2!J132<>""),MAX(Predrok_novembar!J132,Predrok_decembar!J132,Januar!J132,Februar!J132,April!J132,Juni!J132,Juli!J132,Septembar!J132,Oktobar!J132,Oktobar_2!J132),"") ->  | K132: NE | Q132: 9
A133: =PODACI_STUDENTI!A132 -> 131 | B133: =PODACI_STUDENTI!B132 -> 2016/2064 | C133: =PODACI_STUDENTI!C132 -> Шуљагић Јован | D133: =PODACI_STUDENTI!D132 -> кондиција | F133: =IF(OR(Predrok_novembar!F133<>"",Predrok_decembar!F133<>"",Januar!F133<>"",Februar!F133<>"",April!F133<>"",Juni!F133<>"",Juli!F133,Septembar!F133<>"",Oktobar!F133<>"",Oktobar_2!F133<>""),MAX(Predrok_novembar!F133,Predrok_decembar!F133,Januar!F133,Februar!F133,April!F133,Juni!F133,Juli!F133,Septembar!F133,Oktobar!F133,Oktobar_2!F133),"") ->  | G133: =IF(OR(Predrok_novembar!G133<>"",Predrok_decembar!G133<>"",Januar!G133<>"",Februar!G133<>"",April!G133<>"",Juni!G133<>"",Juli!G133,Septembar!G133<>"",Oktobar!G133<>"",Oktobar_2!G133<>""),MAX(Predrok_novembar!G133,Predrok_decembar!G133,Januar!G133,Februar!G133,April!G133,Juni!G133,Juli!G133,Septembar!G133,Oktobar!G133,Oktobar_2!G133),"") ->  | H133: =IF(OR(Predrok_novembar!H133<>"",Predrok_decembar!H133<>"",Januar!H133<>"",Februar!H133<>"",April!H133<>"",Juni!H133<>"",Juli!H133,Septembar!H133<>"",Oktobar!H133<>"",Oktobar_2!H133<>""),MAX(Predrok_novembar!H133,Predrok_decembar!H133,Januar!H133,Februar!H133,April!H133,Juni!H133,Juli!H133,Septembar!H133,Oktobar!H133,Oktobar_2!H133),"") ->  | I133: =IF(OR(Predrok_novembar!I133<>"",Predrok_decembar!I133<>"",Januar!I133<>"",Februar!I133<>"",April!I133<>"",Juni!I133<>"",Juli!I133,Septembar!I133<>"",Oktobar!I133<>"",Oktobar_2!I133<>""),MAX(Predrok_novembar!I133,Predrok_decembar!I133,Januar!I133,Februar!I133,April!I133,Juni!I133,Juli!I133,Septembar!I133,Oktobar!I133,Oktobar_2!I133),"") ->  | J133: =IF(OR(Predrok_novembar!J133<>"",Predrok_decembar!J133<>"",Januar!J133<>"",Februar!J133<>"",April!J133<>"",Juni!J133<>"",Juli!J133,Septembar!J133<>"",Oktobar!J133<>"",Oktobar_2!J133<>""),MAX(Predrok_novembar!J133,Predrok_decembar!J133,Januar!J133,Februar!J133,April!J133,Juni!J133,Juli!J133,Septembar!J133,Oktobar!J133,Oktobar_2!J133),"") ->  | K133: NE
A134: =PODACI_STUDENTI!A133 -> 132 | B134: =PODACI_STUDENTI!B133 -> 2015/2007 | C134: =PODACI_STUDENTI!C133 -> Перић Марко | D134: =PODACI_STUDENTI!D133 -> 0 | F134: =IF(OR(Predrok_novembar!F134<>"",Predrok_decembar!F134<>"",Januar!F134<>"",Februar!F134<>"",April!F134<>"",Juni!F134<>"",Juli!F134,Septembar!F134<>"",Oktobar!F134<>"",Oktobar_2!F134<>""),MAX(Predrok_novembar!F134,Predrok_decembar!F134,Januar!F134,Februar!F134,April!F134,Juni!F134,Juli!F134,Septembar!F134,Oktobar!F134,Oktobar_2!F134),"") ->  | G134: =IF(OR(Predrok_novembar!G134<>"",Predrok_decembar!G134<>"",Januar!G134<>"",Februar!G134<>"",April!G134<>"",Juni!G134<>"",Juli!G134,Septembar!G134<>"",Oktobar!G134<>"",Oktobar_2!G134<>""),MAX(Predrok_novembar!G134,Predrok_decembar!G134,Januar!G134,Februar!G134,April!G134,Juni!G134,Juli!G134,Septembar!G134,Oktobar!G134,Oktobar_2!G134),"") ->  | H134: =IF(OR(Predrok_novembar!H134<>"",Predrok_decembar!H134<>"",Januar!H134<>"",Februar!H134<>"",April!H134<>"",Juni!H134<>"",Juli!H134,Septembar!H134<>"",Oktobar!H134<>"",Oktobar_2!H134<>""),MAX(Predrok_novembar!H134,Predrok_decembar!H134,Januar!H134,Februar!H134,April!H134,Juni!H134,Juli!H134,Septembar!H134,Oktobar!H134,Oktobar_2!H134),"") ->  | I134: =IF(OR(Predrok_novembar!I134<>"",Predrok_decembar!I134<>"",Januar!I134<>"",Februar!I134<>"",April!I134<>"",Juni!I134<>"",Juli!I134,Septembar!I134<>"",Oktobar!I134<>"",Oktobar_2!I134<>""),MAX(Predrok_novembar!I134,Predrok_decembar!I134,Januar!I134,Februar!I134,April!I134,Juni!I134,Juli!I134,Septembar!I134,Oktobar!I134,Oktobar_2!I134),"") ->  | J134: =IF(OR(Predrok_novembar!J134<>"",Predrok_decembar!J134<>"",Januar!J134<>"",Februar!J134<>"",April!J134<>"",Juni!J134<>"",Juli!J134,Septembar!J134<>"",Oktobar!J134<>"",Oktobar_2!J134<>""),MAX(Predrok_novembar!J134,Predrok_decembar!J134,Januar!J134,Februar!J134,April!J134,Juni!J134,Juli!J134,Septembar!J134,Oktobar!J134,Oktobar_2!J134),"") ->  | K134: NE
A135: =PODACI_STUDENTI!A134 -> 0 | B135: =PODACI_STUDENTI!B134 -> 0 | C135: =PODACI_STUDENTI!C134 -> 0 | D135: =PODACI_STUDENTI!D134 -> 0 | F135: =IF(OR(Predrok_novembar!F135<>"",Predrok_decembar!F135<>"",Januar!F135<>"",Februar!F135<>"",April!F135<>"",Juni!F135<>"",Juli!F135,Septembar!F135<>"",Oktobar!F135<>"",Oktobar_2!F135<>""),MAX(Predrok_novembar!F135,Predrok_decembar!F135,Januar!F135,Februar!F135,April!F135,Juni!F135,Juli!F135,Septembar!F135,Oktobar!F135,Oktobar_2!F135),"") ->  | G135: =IF(OR(Predrok_novembar!G135<>"",Predrok_decembar!G135<>"",Januar!G135<>"",Februar!G135<>"",April!G135<>"",Juni!G135<>"",Juli!G135,Septembar!G135<>"",Oktobar!G135<>"",Oktobar_2!G135<>""),MAX(Predrok_novembar!G135,Predrok_decembar!G135,Januar!G135,Februar!G135,April!G135,Juni!G135,Juli!G135,Septembar!G135,Oktobar!G135,Oktobar_2!G135),"") ->  | H135: =IF(OR(Predrok_novembar!H135<>"",Predrok_decembar!H135<>"",Januar!H135<>"",Februar!H135<>"",April!H135<>"",Juni!H135<>"",Juli!H135,Septembar!H135<>"",Oktobar!H135<>"",Oktobar_2!H135<>""),MAX(Predrok_novembar!H135,Predrok_decembar!H135,Januar!H135,Februar!H135,April!H135,Juni!H135,Juli!H135,Septembar!H135,Oktobar!H135,Oktobar_2!H135),"") ->  | I135: =IF(OR(Predrok_novembar!I135<>"",Predrok_decembar!I135<>"",Januar!I135<>"",Februar!I135<>"",April!I135<>"",Juni!I135<>"",Juli!I135,Septembar!I135<>"",Oktobar!I135<>"",Oktobar_2!I135<>""),MAX(Predrok_novembar!I135,Predrok_decembar!I135,Januar!I135,Februar!I135,April!I135,Juni!I135,Juli!I135,Septembar!I135,Oktobar!I135,Oktobar_2!I135),"") ->  | J135: =IF(OR(Predrok_novembar!J135<>"",Predrok_decembar!J135<>"",Januar!J135<>"",Februar!J135<>"",April!J135<>"",Juni!J135<>"",Juli!J135,Septembar!J135<>"",Oktobar!J135<>"",Oktobar_2!J135<>""),MAX(Predrok_novembar!J135,Predrok_decembar!J135,Januar!J135,Februar!J135,April!J135,Juni!J135,Juli!J135,Septembar!J135,Oktobar!J135,Oktobar_2!J135),"") ->  | K135: NE
A136: =PODACI_STUDENTI!A135 -> 0 | B136: =PODACI_STUDENTI!B135 -> 0 | C136: =PODACI_STUDENTI!C135 -> 0 | D136: =PODACI_STUDENTI!D135 -> 0 | F136: =IF(OR(Predrok_novembar!F136<>"",Predrok_decembar!F136<>"",Januar!F136<>"",Februar!F136<>"",April!F136<>"",Juni!F136<>"",Juli!F136,Septembar!F136<>"",Oktobar!F136<>"",Oktobar_2!F136<>""),MAX(Predrok_novembar!F136,Predrok_decembar!F136,Januar!F136,Februar!F136,April!F136,Juni!F136,Juli!F136,Septembar!F136,Oktobar!F136,Oktobar_2!F136),"") ->  | G136: =IF(OR(Predrok_novembar!G136<>"",Predrok_decembar!G136<>"",Januar!G136<>"",Februar!G136<>"",April!G136<>"",Juni!G136<>"",Juli!G136,Septembar!G136<>"",Oktobar!G136<>"",Oktobar_2!G136<>""),MAX(Predrok_novembar!G136,Predrok_decembar!G136,Januar!G136,Februar!G136,April!G136,Juni!G136,Juli!G136,Septembar!G136,Oktobar!G136,Oktobar_2!G136),"") ->  | H136: =IF(OR(Predrok_novembar!H136<>"",Predrok_decembar!H136<>"",Januar!H136<>"",Februar!H136<>"",April!H136<>"",Juni!H136<>"",Juli!H136,Septembar!H136<>"",Oktobar!H136<>"",Oktobar_2!H136<>""),MAX(Predrok_novembar!H136,Predrok_decembar!H136,Januar!H136,Februar!H136,April!H136,Juni!H136,Juli!H136,Septembar!H136,Oktobar!H136,Oktobar_2!H136),"") ->  | I136: =IF(OR(Predrok_novembar!I136<>"",Predrok_decembar!I136<>"",Januar!I136<>"",Februar!I136<>"",April!I136<>"",Juni!I136<>"",Juli!I136,Septembar!I136<>"",Oktobar!I136<>"",Oktobar_2!I136<>""),MAX(Predrok_novembar!I136,Predrok_decembar!I136,Januar!I136,Februar!I136,April!I136,Juni!I136,Juli!I136,Septembar!I136,Oktobar!I136,Oktobar_2!I136),"") ->  | J136: =IF(OR(Predrok_novembar!J136<>"",Predrok_decembar!J136<>"",Januar!J136<>"",Februar!J136<>"",April!J136<>"",Juni!J136<>"",Juli!J136,Septembar!J136<>"",Oktobar!J136<>"",Oktobar_2!J136<>""),MAX(Predrok_novembar!J136,Predrok_decembar!J136,Januar!J136,Februar!J136,April!J136,Juni!J136,Juli!J136,Septembar!J136,Oktobar!J136,Oktobar_2!J136),"") ->  | K136: NE
A137: =PODACI_STUDENTI!A136 -> 0 | B137: =PODACI_STUDENTI!B136 -> 0 | C137: =PODACI_STUDENTI!C136 -> 0 | D137: =PODACI_STUDENTI!D136 -> 0 | F137: =IF(OR(Predrok_novembar!F137<>"",Predrok_decembar!F137<>"",Januar!F137<>"",Februar!F137<>"",April!F137<>"",Juni!F137<>"",Juli!F137,Septembar!F137<>"",Oktobar!F137<>"",Oktobar_2!F137<>""),MAX(Predrok_novembar!F137,Predrok_decembar!F137,Januar!F137,Februar!F137,April!F137,Juni!F137,Juli!F137,Septembar!F137,Oktobar!F137,Oktobar_2!F137),"") ->  | G137: =IF(OR(Predrok_novembar!G137<>"",Predrok_decembar!G137<>"",Januar!G137<>"",Februar!G137<>"",April!G137<>"",Juni!G137<>"",Juli!G137,Septembar!G137<>"",Oktobar!G137<>"",Oktobar_2!G137<>""),MAX(Predrok_novembar!G137,Predrok_decembar!G137,Januar!G137,Februar!G137,April!G137,Juni!G137,Juli!G137,Septembar!G137,Oktobar!G137,Oktobar_2!G137),"") ->  | H137: =IF(OR(Predrok_novembar!H137<>"",Predrok_decembar!H137<>"",Januar!H137<>"",Februar!H137<>"",April!H137<>"",Juni!H137<>"",Juli!H137,Septembar!H137<>"",Oktobar!H137<>"",Oktobar_2!H137<>""),MAX(Predrok_novembar!H137,Predrok_decembar!H137,Januar!H137,Februar!H137,April!H137,Juni!H137,Juli!H137,Septembar!H137,Oktobar!H137,Oktobar_2!H137),"") ->  | I137: =IF(OR(Predrok_novembar!I137<>"",Predrok_decembar!I137<>"",Januar!I137<>"",Februar!I137<>"",April!I137<>"",Juni!I137<>"",Juli!I137,Septembar!I137<>"",Oktobar!I137<>"",Oktobar_2!I137<>""),MAX(Predrok_novembar!I137,Predrok_decembar!I137,Januar!I137,Februar!I137,April!I137,Juni!I137,Juli!I137,Septembar!I137,Oktobar!I137,Oktobar_2!I137),"") ->  | J137: =IF(OR(Predrok_novembar!J137<>"",Predrok_decembar!J137<>"",Januar!J137<>"",Februar!J137<>"",April!J137<>"",Juni!J137<>"",Juli!J137,Septembar!J137<>"",Oktobar!J137<>"",Oktobar_2!J137<>""),MAX(Predrok_novembar!J137,Predrok_decembar!J137,Januar!J137,Februar!J137,April!J137,Juni!J137,Juli!J137,Septembar!J137,Oktobar!J137,Oktobar_2!J137),"") ->  | K137: NE
A138: =PODACI_STUDENTI!A137 -> 0 | B138: =PODACI_STUDENTI!B137 -> 0 | C138: =PODACI_STUDENTI!C137 -> 0 | D138: =PODACI_STUDENTI!D137 -> 0 | F138: =IF(OR(Predrok_novembar!F138<>"",Predrok_decembar!F138<>"",Januar!F138<>"",Februar!F138<>"",April!F138<>"",Juni!F138<>"",Juli!F138,Septembar!F138<>"",Oktobar!F138<>"",Oktobar_2!F138<>""),MAX(Predrok_novembar!F138,Predrok_decembar!F138,Januar!F138,Februar!F138,April!F138,Juni!F138,Juli!F138,Septembar!F138,Oktobar!F138,Oktobar_2!F138),"") ->  | G138: =IF(OR(Predrok_novembar!G138<>"",Predrok_decembar!G138<>"",Januar!G138<>"",Februar!G138<>"",April!G138<>"",Juni!G138<>"",Juli!G138,Septembar!G138<>"",Oktobar!G138<>"",Oktobar_2!G138<>""),MAX(Predrok_novembar!G138,Predrok_decembar!G138,Januar!G138,Februar!G138,April!G138,Juni!G138,Juli!G138,Septembar!G138,Oktobar!G138,Oktobar_2!G138),"") ->  | H138: =IF(OR(Predrok_novembar!H138<>"",Predrok_decembar!H138<>"",Januar!H138<>"",Februar!H138<>"",April!H138<>"",Juni!H138<>"",Juli!H138,Septembar!H138<>"",Oktobar!H138<>"",Oktobar_2!H138<>""),MAX(Predrok_novembar!H138,Predrok_decembar!H138,Januar!H138,Februar!H138,April!H138,Juni!H138,Juli!H138,Septembar!H138,Oktobar!H138,Oktobar_2!H138),"") ->  | I138: =IF(OR(Predrok_novembar!I138<>"",Predrok_decembar!I138<>"",Januar!I138<>"",Februar!I138<>"",April!I138<>"",Juni!I138<>"",Juli!I138,Septembar!I138<>"",Oktobar!I138<>"",Oktobar_2!I138<>""),MAX(Predrok_novembar!I138,Predrok_decembar!I138,Januar!I138,Februar!I138,April!I138,Juni!I138,Juli!I138,Septembar!I138,Oktobar!I138,Oktobar_2!I138),"") ->  | J138: =IF(OR(Predrok_novembar!J138<>"",Predrok_decembar!J138<>"",Januar!J138<>"",Februar!J138<>"",April!J138<>"",Juni!J138<>"",Juli!J138,Septembar!J138<>"",Oktobar!J138<>"",Oktobar_2!J138<>""),MAX(Predrok_novembar!J138,Predrok_decembar!J138,Januar!J138,Februar!J138,April!J138,Juni!J138,Juli!J138,Septembar!J138,Oktobar!J138,Oktobar_2!J138),"") ->  | K138: NE
A139: =PODACI_STUDENTI!A138 -> 0 | B139: =PODACI_STUDENTI!B138 -> 0 | C139: =PODACI_STUDENTI!C138 -> 0 | D139: =PODACI_STUDENTI!D138 -> 0 | F139: =IF(OR(Predrok_novembar!F139<>"",Predrok_decembar!F139<>"",Januar!F139<>"",Februar!F139<>"",April!F139<>"",Juni!F139<>"",Juli!F139,Septembar!F139<>"",Oktobar!F139<>"",Oktobar_2!F139<>""),MAX(Predrok_novembar!F139,Predrok_decembar!F139,Januar!F139,Februar!F139,April!F139,Juni!F139,Juli!F139,Septembar!F139,Oktobar!F139,Oktobar_2!F139),"") ->  | G139: =IF(OR(Predrok_novembar!G139<>"",Predrok_decembar!G139<>"",Januar!G139<>"",Februar!G139<>"",April!G139<>"",Juni!G139<>"",Juli!G139,Septembar!G139<>"",Oktobar!G139<>"",Oktobar_2!G139<>""),MAX(Predrok_novembar!G139,Predrok_decembar!G139,Januar!G139,Februar!G139,April!G139,Juni!G139,Juli!G139,Septembar!G139,Oktobar!G139,Oktobar_2!G139),"") ->  | H139: =IF(OR(Predrok_novembar!H139<>"",Predrok_decembar!H139<>"",Januar!H139<>"",Februar!H139<>"",April!H139<>"",Juni!H139<>"",Juli!H139,Septembar!H139<>"",Oktobar!H139<>"",Oktobar_2!H139<>""),MAX(Predrok_novembar!H139,Predrok_decembar!H139,Januar!H139,Februar!H139,April!H139,Juni!H139,Juli!H139,Septembar!H139,Oktobar!H139,Oktobar_2!H139),"") ->  | I139: =IF(OR(Predrok_novembar!I139<>"",Predrok_decembar!I139<>"",Januar!I139<>"",Februar!I139<>"",April!I139<>"",Juni!I139<>"",Juli!I139,Septembar!I139<>"",Oktobar!I139<>"",Oktobar_2!I139<>""),MAX(Predrok_novembar!I139,Predrok_decembar!I139,Januar!I139,Februar!I139,April!I139,Juni!I139,Juli!I139,Septembar!I139,Oktobar!I139,Oktobar_2!I139),"") ->  | J139: =IF(OR(Predrok_novembar!J139<>"",Predrok_decembar!J139<>"",Januar!J139<>"",Februar!J139<>"",April!J139<>"",Juni!J139<>"",Juli!J139,Septembar!J139<>"",Oktobar!J139<>"",Oktobar_2!J139<>""),MAX(Predrok_novembar!J139,Predrok_decembar!J139,Januar!J139,Februar!J139,April!J139,Juni!J139,Juli!J139,Septembar!J139,Oktobar!J139,Oktobar_2!J139),"") ->  | K139: NE | L139: =IF(S139<>"",5,"") ->  | M139: =IF(S139<>"",5,"") ->  | S139: =IF(V139<>"",IF(AND(N139<>"",O139<>"",P139<>"",Q139<>"",R139<>""),IF(OR(V139="Јануар",V139="Фебруар"),20,IF(OR(V139="Април",V139="Јун",V139="Јул"),15,10)),""),"") ->  | U139: =IF(T139<>"",VLOOKUP(T139,$AM$3:$AO$7,3),"") ->  | Z139: =IF(X139<>"",SUM(N139,O139,P139),"") ->  | AB139: =IF(X139<>"",Q139+R139,"") ->  | AD139: =IF(AND(U139<>"",V139<>""),S139,"") ->  | AE139: =IF(X139<>"",SUM(X139,AD139,Z139,AB139),"") ->  | AF139: =IF(AND(U139<>"",V139<>""),U139,"") -> 
A140: =PODACI_STUDENTI!A139 -> 0 | B140: =PODACI_STUDENTI!B139 -> 0 | C140: =PODACI_STUDENTI!C139 -> 0 | D140: =PODACI_STUDENTI!D139 -> 0 | F140: =IF(OR(Predrok_novembar!F140<>"",Predrok_decembar!F140<>"",Januar!F140<>"",Februar!F140<>"",April!F140<>"",Juni!F140<>"",Juli!F140,Septembar!F140<>"",Oktobar!F140<>"",Oktobar_2!F140<>""),MAX(Predrok_novembar!F140,Predrok_decembar!F140,Januar!F140,Februar!F140,April!F140,Juni!F140,Juli!F140,Septembar!F140,Oktobar!F140,Oktobar_2!F140),"") ->  | G140: =IF(OR(Predrok_novembar!G140<>"",Predrok_decembar!G140<>"",Januar!G140<>"",Februar!G140<>"",April!G140<>"",Juni!G140<>"",Juli!G140,Septembar!G140<>"",Oktobar!G140<>"",Oktobar_2!G140<>""),MAX(Predrok_novembar!G140,Predrok_decembar!G140,Januar!G140,Februar!G140,April!G140,Juni!G140,Juli!G140,Septembar!G140,Oktobar!G140,Oktobar_2!G140),"") ->  | H140: =IF(OR(Predrok_novembar!H140<>"",Predrok_decembar!H140<>"",Januar!H140<>"",Februar!H140<>"",April!H140<>"",Juni!H140<>"",Juli!H140,Septembar!H140<>"",Oktobar!H140<>"",Oktobar_2!H140<>""),MAX(Predrok_novembar!H140,Predrok_decembar!H140,Januar!H140,Februar!H140,April!H140,Juni!H140,Juli!H140,Septembar!H140,Oktobar!H140,Oktobar_2!H140),"") ->  | I140: =IF(OR(Predrok_novembar!I140<>"",Predrok_decembar!I140<>"",Januar!I140<>"",Februar!I140<>"",April!I140<>"",Juni!I140<>"",Juli!I140,Septembar!I140<>"",Oktobar!I140<>"",Oktobar_2!I140<>""),MAX(Predrok_novembar!I140,Predrok_decembar!I140,Januar!I140,Februar!I140,April!I140,Juni!I140,Juli!I140,Septembar!I140,Oktobar!I140,Oktobar_2!I140),"") ->  | J140: =IF(OR(Predrok_novembar!J140<>"",Predrok_decembar!J140<>"",Januar!J140<>"",Februar!J140<>"",April!J140<>"",Juni!J140<>"",Juli!J140,Septembar!J140<>"",Oktobar!J140<>"",Oktobar_2!J140<>""),MAX(Predrok_novembar!J140,Predrok_decembar!J140,Januar!J140,Februar!J140,April!J140,Juni!J140,Juli!J140,Septembar!J140,Oktobar!J140,Oktobar_2!J140),"") ->  | K140: NE | L140: =IF(S140<>"",5,"") ->  | M140: =IF(S140<>"",5,"") ->  | S140: =IF(V140<>"",IF(AND(N140<>"",O140<>"",P140<>"",Q140<>"",R140<>""),IF(OR(V140="Јануар",V140="Фебруар"),20,IF(OR(V140="Април",V140="Јун",V140="Јул"),15,10)),""),"") ->  | U140: =IF(T140<>"",VLOOKUP(T140,$AM$3:$AO$7,3),"") ->  | Z140: =IF(X140<>"",SUM(N140,O140,P140),"") ->  | AB140: =IF(X140<>"",Q140+R140,"") ->  | AD140: =IF(AND(U140<>"",V140<>""),S140,"") ->  | AE140: =IF(X140<>"",SUM(X140,AD140,Z140,AB140),"") ->  | AF140: =IF(AND(U140<>"",V140<>""),U140,"") -> 
A141: =PODACI_STUDENTI!A140 -> 0 | B141: =PODACI_STUDENTI!B140 -> 0 | C141: =PODACI_STUDENTI!C140 -> 0 | D141: =PODACI_STUDENTI!D140 -> 0 | F141: =IF(OR(Predrok_novembar!F141<>"",Predrok_decembar!F141<>"",Januar!F141<>"",Februar!F141<>"",April!F141<>"",Juni!F141<>"",Juli!F141,Septembar!F141<>"",Oktobar!F141<>"",Oktobar_2!F141<>""),MAX(Predrok_novembar!F141,Predrok_decembar!F141,Januar!F141,Februar!F141,April!F141,Juni!F141,Juli!F141,Septembar!F141,Oktobar!F141,Oktobar_2!F141),"") ->  | G141: =IF(OR(Predrok_novembar!G141<>"",Predrok_decembar!G141<>"",Januar!G141<>"",Februar!G141<>"",April!G141<>"",Juni!G141<>"",Juli!G141,Septembar!G141<>"",Oktobar!G141<>"",Oktobar_2!G141<>""),MAX(Predrok_novembar!G141,Predrok_decembar!G141,Januar!G141,Februar!G141,April!G141,Juni!G141,Juli!G141,Septembar!G141,Oktobar!G141,Oktobar_2!G141),"") ->  | H141: =IF(OR(Predrok_novembar!H141<>"",Predrok_decembar!H141<>"",Januar!H141<>"",Februar!H141<>"",April!H141<>"",Juni!H141<>"",Juli!H141,Septembar!H141<>"",Oktobar!H141<>"",Oktobar_2!H141<>""),MAX(Predrok_novembar!H141,Predrok_decembar!H141,Januar!H141,Februar!H141,April!H141,Juni!H141,Juli!H141,Septembar!H141,Oktobar!H141,Oktobar_2!H141),"") ->  | I141: =IF(OR(Predrok_novembar!I141<>"",Predrok_decembar!I141<>"",Januar!I141<>"",Februar!I141<>"",April!I141<>"",Juni!I141<>"",Juli!I141,Septembar!I141<>"",Oktobar!I141<>"",Oktobar_2!I141<>""),MAX(Predrok_novembar!I141,Predrok_decembar!I141,Januar!I141,Februar!I141,April!I141,Juni!I141,Juli!I141,Septembar!I141,Oktobar!I141,Oktobar_2!I141),"") ->  | J141: =IF(OR(Predrok_novembar!J141<>"",Predrok_decembar!J141<>"",Januar!J141<>"",Februar!J141<>"",April!J141<>"",Juni!J141<>"",Juli!J141,Septembar!J141<>"",Oktobar!J141<>"",Oktobar_2!J141<>""),MAX(Predrok_novembar!J141,Predrok_decembar!J141,Januar!J141,Februar!J141,April!J141,Juni!J141,Juli!J141,Septembar!J141,Oktobar!J141,Oktobar_2!J141),"") ->  | K141: NE | L141: =IF(S141<>"",5,"") ->  | M141: =IF(S141<>"",5,"") ->  | S141: =IF(V141<>"",IF(AND(N141<>"",O141<>"",P141<>"",Q141<>"",R141<>""),IF(OR(V141="Јануар",V141="Фебруар"),20,IF(OR(V141="Април",V141="Јун",V141="Јул"),15,10)),""),"") ->  | U141: =IF(T141<>"",VLOOKUP(T141,$AM$3:$AO$7,3),"") ->  | Z141: =IF(X141<>"",SUM(N141,O141,P141),"") ->  | AB141: =IF(X141<>"",Q141+R141,"") ->  | AD141: =IF(AND(U141<>"",V141<>""),S141,"") ->  | AE141: =IF(X141<>"",SUM(X141,AD141,Z141,AB141),"") ->  | AF141: =IF(AND(U141<>"",V141<>""),U141,"") -> 
A142: =PODACI_STUDENTI!A141 -> 0 | B142: =PODACI_STUDENTI!B141 -> 0 | C142: =PODACI_STUDENTI!C141 -> 0 | D142: =PODACI_STUDENTI!D141 -> 0 | F142: =IF(OR(Predrok_novembar!F142<>"",Predrok_decembar!F142<>"",Januar!F142<>"",Februar!F142<>"",April!F142<>"",Juni!F142<>"",Juli!F142,Septembar!F142<>"",Oktobar!F142<>"",Oktobar_2!F142<>""),MAX(Predrok_novembar!F142,Predrok_decembar!F142,Januar!F142,Februar!F142,April!F142,Juni!F142,Juli!F142,Septembar!F142,Oktobar!F142,Oktobar_2!F142),"") ->  | G142: =IF(OR(Predrok_novembar!G142<>"",Predrok_decembar!G142<>"",Januar!G142<>"",Februar!G142<>"",April!G142<>"",Juni!G142<>"",Juli!G142,Septembar!G142<>"",Oktobar!G142<>"",Oktobar_2!G142<>""),MAX(Predrok_novembar!G142,Predrok_decembar!G142,Januar!G142,Februar!G142,April!G142,Juni!G142,Juli!G142,Septembar!G142,Oktobar!G142,Oktobar_2!G142),"") ->  | H142: =IF(OR(Predrok_novembar!H142<>"",Predrok_decembar!H142<>"",Januar!H142<>"",Februar!H142<>"",April!H142<>"",Juni!H142<>"",Juli!H142,Septembar!H142<>"",Oktobar!H142<>"",Oktobar_2!H142<>""),MAX(Predrok_novembar!H142,Predrok_decembar!H142,Januar!H142,Februar!H142,April!H142,Juni!H142,Juli!H142,Septembar!H142,Oktobar!H142,Oktobar_2!H142),"") ->  | I142: =IF(OR(Predrok_novembar!I142<>"",Predrok_decembar!I142<>"",Januar!I142<>"",Februar!I142<>"",April!I142<>"",Juni!I142<>"",Juli!I142,Septembar!I142<>"",Oktobar!I142<>"",Oktobar_2!I142<>""),MAX(Predrok_novembar!I142,Predrok_decembar!I142,Januar!I142,Februar!I142,April!I142,Juni!I142,Juli!I142,Septembar!I142,Oktobar!I142,Oktobar_2!I142),"") ->  | J142: =IF(OR(Predrok_novembar!J142<>"",Predrok_decembar!J142<>"",Januar!J142<>"",Februar!J142<>"",April!J142<>"",Juni!J142<>"",Juli!J142,Septembar!J142<>"",Oktobar!J142<>"",Oktobar_2!J142<>""),MAX(Predrok_novembar!J142,Predrok_decembar!J142,Januar!J142,Februar!J142,April!J142,Juni!J142,Juli!J142,Septembar!J142,Oktobar!J142,Oktobar_2!J142),"") ->  | K142: NE | L142: =IF(S142<>"",5,"") ->  | M142: =IF(S142<>"",5,"") ->  | S142: =IF(V142<>"",IF(AND(N142<>"",O142<>"",P142<>"",Q142<>"",R142<>""),IF(OR(V142="Јануар",V142="Фебруар"),20,IF(OR(V142="Април",V142="Јун",V142="Јул"),15,10)),""),"") ->  | U142: =IF(T142<>"",VLOOKUP(T142,$AM$3:$AO$7,3),"") ->  | Z142: =IF(X142<>"",SUM(N142,O142,P142),"") ->  | AB142: =IF(X142<>"",Q142+R142,"") ->  | AD142: =IF(AND(U142<>"",V142<>""),S142,"") ->  | AE142: =IF(X142<>"",SUM(X142,AD142,Z142,AB142),"") ->  | AF142: =IF(AND(U142<>"",V142<>""),U142,"") -> 
A143: =PODACI_STUDENTI!A142 -> 0 | B143: =PODACI_STUDENTI!B142 -> 0 | C143: =PODACI_STUDENTI!C142 -> 0 | D143: =PODACI_STUDENTI!D142 -> 0 | F143: =IF(OR(Predrok_novembar!F143<>"",Predrok_decembar!F143<>"",Januar!F143<>"",Februar!F143<>"",April!F143<>"",Juni!F143<>"",Juli!F143,Septembar!F143<>"",Oktobar!F143<>"",Oktobar_2!F143<>""),MAX(Predrok_novembar!F143,Predrok_decembar!F143,Januar!F143,Februar!F143,April!F143,Juni!F143,Juli!F143,Septembar!F143,Oktobar!F143,Oktobar_2!F143),"") ->  | G143: =IF(OR(Predrok_novembar!G143<>"",Predrok_decembar!G143<>"",Januar!G143<>"",Februar!G143<>"",April!G143<>"",Juni!G143<>"",Juli!G143,Septembar!G143<>"",Oktobar!G143<>"",Oktobar_2!G143<>""),MAX(Predrok_novembar!G143,Predrok_decembar!G143,Januar!G143,Februar!G143,April!G143,Juni!G143,Juli!G143,Septembar!G143,Oktobar!G143,Oktobar_2!G143),"") ->  | H143: =IF(OR(Predrok_novembar!H143<>"",Predrok_decembar!H143<>"",Januar!H143<>"",Februar!H143<>"",April!H143<>"",Juni!H143<>"",Juli!H143,Septembar!H143<>"",Oktobar!H143<>"",Oktobar_2!H143<>""),MAX(Predrok_novembar!H143,Predrok_decembar!H143,Januar!H143,Februar!H143,April!H143,Juni!H143,Juli!H143,Septembar!H143,Oktobar!H143,Oktobar_2!H143),"") ->  | I143: =IF(OR(Predrok_novembar!I143<>"",Predrok_decembar!I143<>"",Januar!I143<>"",Februar!I143<>"",April!I143<>"",Juni!I143<>"",Juli!I143,Septembar!I143<>"",Oktobar!I143<>"",Oktobar_2!I143<>""),MAX(Predrok_novembar!I143,Predrok_decembar!I143,Januar!I143,Februar!I143,April!I143,Juni!I143,Juli!I143,Septembar!I143,Oktobar!I143,Oktobar_2!I143),"") ->  | J143: =IF(OR(Predrok_novembar!J143<>"",Predrok_decembar!J143<>"",Januar!J143<>"",Februar!J143<>"",April!J143<>"",Juni!J143<>"",Juli!J143,Septembar!J143<>"",Oktobar!J143<>"",Oktobar_2!J143<>""),MAX(Predrok_novembar!J143,Predrok_decembar!J143,Januar!J143,Februar!J143,April!J143,Juni!J143,Juli!J143,Septembar!J143,Oktobar!J143,Oktobar_2!J143),"") ->  | K143: NE
A144: =PODACI_STUDENTI!A143 -> 0 | B144: =PODACI_STUDENTI!B143 -> 0 | C144: =PODACI_STUDENTI!C143 -> 0 | D144: =PODACI_STUDENTI!D143 -> 0 | F144: =IF(OR(Predrok_novembar!F144<>"",Predrok_decembar!F144<>"",Januar!F144<>"",Februar!F144<>"",April!F144<>"",Juni!F144<>"",Juli!F144,Septembar!F144<>"",Oktobar!F144<>"",Oktobar_2!F144<>""),MAX(Predrok_novembar!F144,Predrok_decembar!F144,Januar!F144,Februar!F144,April!F144,Juni!F144,Juli!F144,Septembar!F144,Oktobar!F144,Oktobar_2!F144),"") ->  | G144: =IF(OR(Predrok_novembar!G144<>"",Predrok_decembar!G144<>"",Januar!G144<>"",Februar!G144<>"",April!G144<>"",Juni!G144<>"",Juli!G144,Septembar!G144<>"",Oktobar!G144<>"",Oktobar_2!G144<>""),MAX(Predrok_novembar!G144,Predrok_decembar!G144,Januar!G144,Februar!G144,April!G144,Juni!G144,Juli!G144,Septembar!G144,Oktobar!G144,Oktobar_2!G144),"") ->  | H144: =IF(OR(Predrok_novembar!H144<>"",Predrok_decembar!H144<>"",Januar!H144<>"",Februar!H144<>"",April!H144<>"",Juni!H144<>"",Juli!H144,Septembar!H144<>"",Oktobar!H144<>"",Oktobar_2!H144<>""),MAX(Predrok_novembar!H144,Predrok_decembar!H144,Januar!H144,Februar!H144,April!H144,Juni!H144,Juli!H144,Septembar!H144,Oktobar!H144,Oktobar_2!H144),"") ->  | I144: =IF(OR(Predrok_novembar!I144<>"",Predrok_decembar!I144<>"",Januar!I144<>"",Februar!I144<>"",April!I144<>"",Juni!I144<>"",Juli!I144,Septembar!I144<>"",Oktobar!I144<>"",Oktobar_2!I144<>""),MAX(Predrok_novembar!I144,Predrok_decembar!I144,Januar!I144,Februar!I144,April!I144,Juni!I144,Juli!I144,Septembar!I144,Oktobar!I144,Oktobar_2!I144),"") ->  | J144: =IF(OR(Predrok_novembar!J144<>"",Predrok_decembar!J144<>"",Januar!J144<>"",Februar!J144<>"",April!J144<>"",Juni!J144<>"",Juli!J144,Septembar!J144<>"",Oktobar!J144<>"",Oktobar_2!J144<>""),MAX(Predrok_novembar!J144,Predrok_decembar!J144,Januar!J144,Februar!J144,April!J144,Juni!J144,Juli!J144,Septembar!J144,Oktobar!J144,Oktobar_2!J144),"") ->  | K144: NE
A145: =PODACI_STUDENTI!A144 -> 0 | B145: =PODACI_STUDENTI!B144 -> 0 | C145: =PODACI_STUDENTI!C144 -> 0 | D145: =PODACI_STUDENTI!D144 -> 0 | F145: =IF(OR(Predrok_novembar!F145<>"",Predrok_decembar!F145<>"",Januar!F145<>"",Februar!F145<>"",April!F145<>"",Juni!F145<>"",Juli!F145,Septembar!F145<>"",Oktobar!F145<>"",Oktobar_2!F145<>""),MAX(Predrok_novembar!F145,Predrok_decembar!F145,Januar!F145,Februar!F145,April!F145,Juni!F145,Juli!F145,Septembar!F145,Oktobar!F145,Oktobar_2!F145),"") ->  | G145: =IF(OR(Predrok_novembar!G145<>"",Predrok_decembar!G145<>"",Januar!G145<>"",Februar!G145<>"",April!G145<>"",Juni!G145<>"",Juli!G145,Septembar!G145<>"",Oktobar!G145<>"",Oktobar_2!G145<>""),MAX(Predrok_novembar!G145,Predrok_decembar!G145,Januar!G145,Februar!G145,April!G145,Juni!G145,Juli!G145,Septembar!G145,Oktobar!G145,Oktobar_2!G145),"") ->  | H145: =IF(OR(Predrok_novembar!H145<>"",Predrok_decembar!H145<>"",Januar!H145<>"",Februar!H145<>"",April!H145<>"",Juni!H145<>"",Juli!H145,Septembar!H145<>"",Oktobar!H145<>"",Oktobar_2!H145<>""),MAX(Predrok_novembar!H145,Predrok_decembar!H145,Januar!H145,Februar!H145,April!H145,Juni!H145,Juli!H145,Septembar!H145,Oktobar!H145,Oktobar_2!H145),"") ->  | I145: =IF(OR(Predrok_novembar!I145<>"",Predrok_decembar!I145<>"",Januar!I145<>"",Februar!I145<>"",April!I145<>"",Juni!I145<>"",Juli!I145,Septembar!I145<>"",Oktobar!I145<>"",Oktobar_2!I145<>""),MAX(Predrok_novembar!I145,Predrok_decembar!I145,Januar!I145,Februar!I145,April!I145,Juni!I145,Juli!I145,Septembar!I145,Oktobar!I145,Oktobar_2!I145),"") ->  | J145: =IF(OR(Predrok_novembar!J145<>"",Predrok_decembar!J145<>"",Januar!J145<>"",Februar!J145<>"",April!J145<>"",Juni!J145<>"",Juli!J145,Septembar!J145<>"",Oktobar!J145<>"",Oktobar_2!J145<>""),MAX(Predrok_novembar!J145,Predrok_decembar!J145,Januar!J145,Februar!J145,April!J145,Juni!J145,Juli!J145,Septembar!J145,Oktobar!J145,Oktobar_2!J145),"") ->  | K145: NE
A146: =PODACI_STUDENTI!A145 -> 0 | B146: =PODACI_STUDENTI!B145 -> 0 | C146: =PODACI_STUDENTI!C145 -> 0 | D146: =PODACI_STUDENTI!D145 -> 0 | F146: =IF(OR(Predrok_novembar!F146<>"",Predrok_decembar!F146<>"",Januar!F146<>"",Februar!F146<>"",April!F146<>"",Juni!F146<>"",Juli!F146,Septembar!F146<>"",Oktobar!F146<>"",Oktobar_2!F146<>""),MAX(Predrok_novembar!F146,Predrok_decembar!F146,Januar!F146,Februar!F146,April!F146,Juni!F146,Juli!F146,Septembar!F146,Oktobar!F146,Oktobar_2!F146),"") ->  | G146: =IF(OR(Predrok_novembar!G146<>"",Predrok_decembar!G146<>"",Januar!G146<>"",Februar!G146<>"",April!G146<>"",Juni!G146<>"",Juli!G146,Septembar!G146<>"",Oktobar!G146<>"",Oktobar_2!G146<>""),MAX(Predrok_novembar!G146,Predrok_decembar!G146,Januar!G146,Februar!G146,April!G146,Juni!G146,Juli!G146,Septembar!G146,Oktobar!G146,Oktobar_2!G146),"") ->  | H146: =IF(OR(Predrok_novembar!H146<>"",Predrok_decembar!H146<>"",Januar!H146<>"",Februar!H146<>"",April!H146<>"",Juni!H146<>"",Juli!H146,Septembar!H146<>"",Oktobar!H146<>"",Oktobar_2!H146<>""),MAX(Predrok_novembar!H146,Predrok_decembar!H146,Januar!H146,Februar!H146,April!H146,Juni!H146,Juli!H146,Septembar!H146,Oktobar!H146,Oktobar_2!H146),"") ->  | I146: =IF(OR(Predrok_novembar!I146<>"",Predrok_decembar!I146<>"",Januar!I146<>"",Februar!I146<>"",April!I146<>"",Juni!I146<>"",Juli!I146,Septembar!I146<>"",Oktobar!I146<>"",Oktobar_2!I146<>""),MAX(Predrok_novembar!I146,Predrok_decembar!I146,Januar!I146,Februar!I146,April!I146,Juni!I146,Juli!I146,Septembar!I146,Oktobar!I146,Oktobar_2!I146),"") ->  | J146: =IF(OR(Predrok_novembar!J146<>"",Predrok_decembar!J146<>"",Januar!J146<>"",Februar!J146<>"",April!J146<>"",Juni!J146<>"",Juli!J146,Septembar!J146<>"",Oktobar!J146<>"",Oktobar_2!J146<>""),MAX(Predrok_novembar!J146,Predrok_decembar!J146,Januar!J146,Februar!J146,April!J146,Juni!J146,Juli!J146,Septembar!J146,Oktobar!J146,Oktobar_2!J146),"") ->  | K146: NE
A147: =PODACI_STUDENTI!A146 -> 0 | B147: =PODACI_STUDENTI!B146 -> 0 | C147: =PODACI_STUDENTI!C146 -> 0 | D147: =PODACI_STUDENTI!D146 -> 0 | F147: =IF(OR(Predrok_novembar!F147<>"",Predrok_decembar!F147<>"",Januar!F147<>"",Februar!F147<>"",April!F147<>"",Juni!F147<>"",Juli!F147,Septembar!F147<>"",Oktobar!F147<>"",Oktobar_2!F147<>""),MAX(Predrok_novembar!F147,Predrok_decembar!F147,Januar!F147,Februar!F147,April!F147,Juni!F147,Juli!F147,Septembar!F147,Oktobar!F147,Oktobar_2!F147),"") ->  | G147: =IF(OR(Predrok_novembar!G147<>"",Predrok_decembar!G147<>"",Januar!G147<>"",Februar!G147<>"",April!G147<>"",Juni!G147<>"",Juli!G147,Septembar!G147<>"",Oktobar!G147<>"",Oktobar_2!G147<>""),MAX(Predrok_novembar!G147,Predrok_decembar!G147,Januar!G147,Februar!G147,April!G147,Juni!G147,Juli!G147,Septembar!G147,Oktobar!G147,Oktobar_2!G147),"") ->  | H147: =IF(OR(Predrok_novembar!H147<>"",Predrok_decembar!H147<>"",Januar!H147<>"",Februar!H147<>"",April!H147<>"",Juni!H147<>"",Juli!H147,Septembar!H147<>"",Oktobar!H147<>"",Oktobar_2!H147<>""),MAX(Predrok_novembar!H147,Predrok_decembar!H147,Januar!H147,Februar!H147,April!H147,Juni!H147,Juli!H147,Septembar!H147,Oktobar!H147,Oktobar_2!H147),"") ->  | I147: =IF(OR(Predrok_novembar!I147<>"",Predrok_decembar!I147<>"",Januar!I147<>"",Februar!I147<>"",April!I147<>"",Juni!I147<>"",Juli!I147,Septembar!I147<>"",Oktobar!I147<>"",Oktobar_2!I147<>""),MAX(Predrok_novembar!I147,Predrok_decembar!I147,Januar!I147,Februar!I147,April!I147,Juni!I147,Juli!I147,Septembar!I147,Oktobar!I147,Oktobar_2!I147),"") ->  | J147: =IF(OR(Predrok_novembar!J147<>"",Predrok_decembar!J147<>"",Januar!J147<>"",Februar!J147<>"",April!J147<>"",Juni!J147<>"",Juli!J147,Septembar!J147<>"",Oktobar!J147<>"",Oktobar_2!J147<>""),MAX(Predrok_novembar!J147,Predrok_decembar!J147,Januar!J147,Februar!J147,April!J147,Juni!J147,Juli!J147,Septembar!J147,Oktobar!J147,Oktobar_2!J147),"") ->  | K147: NE
A148: =PODACI_STUDENTI!A147 -> 0 | B148: =PODACI_STUDENTI!B147 -> 0 | C148: =PODACI_STUDENTI!C147 -> 0 | D148: =PODACI_STUDENTI!D147 -> 0 | F148: =IF(OR(Predrok_novembar!F148<>"",Predrok_decembar!F148<>"",Januar!F148<>"",Februar!F148<>"",April!F148<>"",Juni!F148<>"",Juli!F148,Septembar!F148<>"",Oktobar!F148<>"",Oktobar_2!F148<>""),MAX(Predrok_novembar!F148,Predrok_decembar!F148,Januar!F148,Februar!F148,April!F148,Juni!F148,Juli!F148,Septembar!F148,Oktobar!F148,Oktobar_2!F148),"") ->  | G148: =IF(OR(Predrok_novembar!G148<>"",Predrok_decembar!G148<>"",Januar!G148<>"",Februar!G148<>"",April!G148<>"",Juni!G148<>"",Juli!G148,Septembar!G148<>"",Oktobar!G148<>"",Oktobar_2!G148<>""),MAX(Predrok_novembar!G148,Predrok_decembar!G148,Januar!G148,Februar!G148,April!G148,Juni!G148,Juli!G148,Septembar!G148,Oktobar!G148,Oktobar_2!G148),"") ->  | H148: =IF(OR(Predrok_novembar!H148<>"",Predrok_decembar!H148<>"",Januar!H148<>"",Februar!H148<>"",April!H148<>"",Juni!H148<>"",Juli!H148,Septembar!H148<>"",Oktobar!H148<>"",Oktobar_2!H148<>""),MAX(Predrok_novembar!H148,Predrok_decembar!H148,Januar!H148,Februar!H148,April!H148,Juni!H148,Juli!H148,Septembar!H148,Oktobar!H148,Oktobar_2!H148),"") ->  | I148: =IF(OR(Predrok_novembar!I148<>"",Predrok_decembar!I148<>"",Januar!I148<>"",Februar!I148<>"",April!I148<>"",Juni!I148<>"",Juli!I148,Septembar!I148<>"",Oktobar!I148<>"",Oktobar_2!I148<>""),MAX(Predrok_novembar!I148,Predrok_decembar!I148,Januar!I148,Februar!I148,April!I148,Juni!I148,Juli!I148,Septembar!I148,Oktobar!I148,Oktobar_2!I148),"") ->  | J148: =IF(OR(Predrok_novembar!J148<>"",Predrok_decembar!J148<>"",Januar!J148<>"",Februar!J148<>"",April!J148<>"",Juni!J148<>"",Juli!J148,Septembar!J148<>"",Oktobar!J148<>"",Oktobar_2!J148<>""),MAX(Predrok_novembar!J148,Predrok_decembar!J148,Januar!J148,Februar!J148,April!J148,Juni!J148,Juli!J148,Septembar!J148,Oktobar!J148,Oktobar_2!J148),"") ->  | K148: NE
A149: =PODACI_STUDENTI!A148 -> 0 | B149: =PODACI_STUDENTI!B148 -> 0 | C149: =PODACI_STUDENTI!C148 -> 0 | D149: =PODACI_STUDENTI!D148 -> 0 | F149: =IF(OR(Predrok_novembar!F149<>"",Predrok_decembar!F149<>"",Januar!F149<>"",Februar!F149<>"",April!F149<>"",Juni!F149<>"",Juli!F149,Septembar!F149<>"",Oktobar!F149<>"",Oktobar_2!F149<>""),MAX(Predrok_novembar!F149,Predrok_decembar!F149,Januar!F149,Februar!F149,April!F149,Juni!F149,Juli!F149,Septembar!F149,Oktobar!F149,Oktobar_2!F149),"") ->  | G149: =IF(OR(Predrok_novembar!G149<>"",Predrok_decembar!G149<>"",Januar!G149<>"",Februar!G149<>"",April!G149<>"",Juni!G149<>"",Juli!G149,Septembar!G149<>"",Oktobar!G149<>"",Oktobar_2!G149<>""),MAX(Predrok_novembar!G149,Predrok_decembar!G149,Januar!G149,Februar!G149,April!G149,Juni!G149,Juli!G149,Septembar!G149,Oktobar!G149,Oktobar_2!G149),"") ->  | H149: =IF(OR(Predrok_novembar!H149<>"",Predrok_decembar!H149<>"",Januar!H149<>"",Februar!H149<>"",April!H149<>"",Juni!H149<>"",Juli!H149,Septembar!H149<>"",Oktobar!H149<>"",Oktobar_2!H149<>""),MAX(Predrok_novembar!H149,Predrok_decembar!H149,Januar!H149,Februar!H149,April!H149,Juni!H149,Juli!H149,Septembar!H149,Oktobar!H149,Oktobar_2!H149),"") ->  | I149: =IF(OR(Predrok_novembar!I149<>"",Predrok_decembar!I149<>"",Januar!I149<>"",Februar!I149<>"",April!I149<>"",Juni!I149<>"",Juli!I149,Septembar!I149<>"",Oktobar!I149<>"",Oktobar_2!I149<>""),MAX(Predrok_novembar!I149,Predrok_decembar!I149,Januar!I149,Februar!I149,April!I149,Juni!I149,Juli!I149,Septembar!I149,Oktobar!I149,Oktobar_2!I149),"") ->  | J149: =IF(OR(Predrok_novembar!J149<>"",Predrok_decembar!J149<>"",Januar!J149<>"",Februar!J149<>"",April!J149<>"",Juni!J149<>"",Juli!J149,Septembar!J149<>"",Oktobar!J149<>"",Oktobar_2!J149<>""),MAX(Predrok_novembar!J149,Predrok_decembar!J149,Januar!J149,Februar!J149,April!J149,Juni!J149,Juli!J149,Septembar!J149,Oktobar!J149,Oktobar_2!J149),"") ->  | K149: NE
A150: =PODACI_STUDENTI!A149 -> 0 | B150: =PODACI_STUDENTI!B149 -> 0 | C150: =PODACI_STUDENTI!C149 -> 0 | D150: =PODACI_STUDENTI!D149 -> 0 | F150: =IF(OR(Predrok_novembar!F150<>"",Predrok_decembar!F150<>"",Januar!F150<>"",Februar!F150<>"",April!F150<>"",Juni!F150<>"",Juli!F150,Septembar!F150<>"",Oktobar!F150<>"",Oktobar_2!F150<>""),MAX(Predrok_novembar!F150,Predrok_decembar!F150,Januar!F150,Februar!F150,April!F150,Juni!F150,Juli!F150,Septembar!F150,Oktobar!F150,Oktobar_2!F150),"") ->  | G150: =IF(OR(Predrok_novembar!G150<>"",Predrok_decembar!G150<>"",Januar!G150<>"",Februar!G150<>"",April!G150<>"",Juni!G150<>"",Juli!G150,Septembar!G150<>"",Oktobar!G150<>"",Oktobar_2!G150<>""),MAX(Predrok_novembar!G150,Predrok_decembar!G150,Januar!G150,Februar!G150,April!G150,Juni!G150,Juli!G150,Septembar!G150,Oktobar!G150,Oktobar_2!G150),"") ->  | H150: =IF(OR(Predrok_novembar!H150<>"",Predrok_decembar!H150<>"",Januar!H150<>"",Februar!H150<>"",April!H150<>"",Juni!H150<>"",Juli!H150,Septembar!H150<>"",Oktobar!H150<>"",Oktobar_2!H150<>""),MAX(Predrok_novembar!H150,Predrok_decembar!H150,Januar!H150,Februar!H150,April!H150,Juni!H150,Juli!H150,Septembar!H150,Oktobar!H150,Oktobar_2!H150),"") ->  | I150: =IF(OR(Predrok_novembar!I150<>"",Predrok_decembar!I150<>"",Januar!I150<>"",Februar!I150<>"",April!I150<>"",Juni!I150<>"",Juli!I150,Septembar!I150<>"",Oktobar!I150<>"",Oktobar_2!I150<>""),MAX(Predrok_novembar!I150,Predrok_decembar!I150,Januar!I150,Februar!I150,April!I150,Juni!I150,Juli!I150,Septembar!I150,Oktobar!I150,Oktobar_2!I150),"") ->  | J150: =IF(OR(Predrok_novembar!J150<>"",Predrok_decembar!J150<>"",Januar!J150<>"",Februar!J150<>"",April!J150<>"",Juni!J150<>"",Juli!J150,Septembar!J150<>"",Oktobar!J150<>"",Oktobar_2!J150<>""),MAX(Predrok_novembar!J150,Predrok_decembar!J150,Januar!J150,Februar!J150,April!J150,Juni!J150,Juli!J150,Septembar!J150,Oktobar!J150,Oktobar_2!J150),"") ->  | K150: NE
A151: =PODACI_STUDENTI!A150 -> 0 | B151: =PODACI_STUDENTI!B150 -> 0 | C151: =PODACI_STUDENTI!C150 -> 0 | D151: =PODACI_STUDENTI!D150 -> 0 | F151: =IF(OR(Predrok_novembar!F151<>"",Predrok_decembar!F151<>"",Januar!F151<>"",Februar!F151<>"",April!F151<>"",Juni!F151<>"",Juli!F151,Septembar!F151<>"",Oktobar!F151<>"",Oktobar_2!F151<>""),MAX(Predrok_novembar!F151,Predrok_decembar!F151,Januar!F151,Februar!F151,April!F151,Juni!F151,Juli!F151,Septembar!F151,Oktobar!F151,Oktobar_2!F151),"") ->  | G151: =IF(OR(Predrok_novembar!G151<>"",Predrok_decembar!G151<>"",Januar!G151<>"",Februar!G151<>"",April!G151<>"",Juni!G151<>"",Juli!G151,Septembar!G151<>"",Oktobar!G151<>"",Oktobar_2!G151<>""),MAX(Predrok_novembar!G151,Predrok_decembar!G151,Januar!G151,Februar!G151,April!G151,Juni!G151,Juli!G151,Septembar!G151,Oktobar!G151,Oktobar_2!G151),"") ->  | H151: =IF(OR(Predrok_novembar!H151<>"",Predrok_decembar!H151<>"",Januar!H151<>"",Februar!H151<>"",April!H151<>"",Juni!H151<>"",Juli!H151,Septembar!H151<>"",Oktobar!H151<>"",Oktobar_2!H151<>""),MAX(Predrok_novembar!H151,Predrok_decembar!H151,Januar!H151,Februar!H151,April!H151,Juni!H151,Juli!H151,Septembar!H151,Oktobar!H151,Oktobar_2!H151),"") ->  | I151: =IF(OR(Predrok_novembar!I151<>"",Predrok_decembar!I151<>"",Januar!I151<>"",Februar!I151<>"",April!I151<>"",Juni!I151<>"",Juli!I151,Septembar!I151<>"",Oktobar!I151<>"",Oktobar_2!I151<>""),MAX(Predrok_novembar!I151,Predrok_decembar!I151,Januar!I151,Februar!I151,April!I151,Juni!I151,Juli!I151,Septembar!I151,Oktobar!I151,Oktobar_2!I151),"") ->  | J151: =IF(OR(Predrok_novembar!J151<>"",Predrok_decembar!J151<>"",Januar!J151<>"",Februar!J151<>"",April!J151<>"",Juni!J151<>"",Juli!J151,Septembar!J151<>"",Oktobar!J151<>"",Oktobar_2!J151<>""),MAX(Predrok_novembar!J151,Predrok_decembar!J151,Januar!J151,Februar!J151,April!J151,Juni!J151,Juli!J151,Septembar!J151,Oktobar!J151,Oktobar_2!J151),"") ->  | K151: NE
A152: =PODACI_STUDENTI!A151 -> 0 | B152: =PODACI_STUDENTI!B151 -> 0 | C152: =PODACI_STUDENTI!C151 -> 0 | D152: =PODACI_STUDENTI!D151 -> 0 | F152: =IF(OR(Predrok_novembar!F152<>"",Predrok_decembar!F152<>"",Januar!F152<>"",Februar!F152<>"",April!F152<>"",Juni!F152<>"",Juli!F152,Septembar!F152<>"",Oktobar!F152<>"",Oktobar_2!F152<>""),MAX(Predrok_novembar!F152,Predrok_decembar!F152,Januar!F152,Februar!F152,April!F152,Juni!F152,Juli!F152,Septembar!F152,Oktobar!F152,Oktobar_2!F152),"") ->  | G152: =IF(OR(Predrok_novembar!G152<>"",Predrok_decembar!G152<>"",Januar!G152<>"",Februar!G152<>"",April!G152<>"",Juni!G152<>"",Juli!G152,Septembar!G152<>"",Oktobar!G152<>"",Oktobar_2!G152<>""),MAX(Predrok_novembar!G152,Predrok_decembar!G152,Januar!G152,Februar!G152,April!G152,Juni!G152,Juli!G152,Septembar!G152,Oktobar!G152,Oktobar_2!G152),"") ->  | H152: =IF(OR(Predrok_novembar!H152<>"",Predrok_decembar!H152<>"",Januar!H152<>"",Februar!H152<>"",April!H152<>"",Juni!H152<>"",Juli!H152,Septembar!H152<>"",Oktobar!H152<>"",Oktobar_2!H152<>""),MAX(Predrok_novembar!H152,Predrok_decembar!H152,Januar!H152,Februar!H152,April!H152,Juni!H152,Juli!H152,Septembar!H152,Oktobar!H152,Oktobar_2!H152),"") ->  | I152: =IF(OR(Predrok_novembar!I152<>"",Predrok_decembar!I152<>"",Januar!I152<>"",Februar!I152<>"",April!I152<>"",Juni!I152<>"",Juli!I152,Septembar!I152<>"",Oktobar!I152<>"",Oktobar_2!I152<>""),MAX(Predrok_novembar!I152,Predrok_decembar!I152,Januar!I152,Februar!I152,April!I152,Juni!I152,Juli!I152,Septembar!I152,Oktobar!I152,Oktobar_2!I152),"") ->  | J152: =IF(OR(Predrok_novembar!J152<>"",Predrok_decembar!J152<>"",Januar!J152<>"",Februar!J152<>"",April!J152<>"",Juni!J152<>"",Juli!J152,Septembar!J152<>"",Oktobar!J152<>"",Oktobar_2!J152<>""),MAX(Predrok_novembar!J152,Predrok_decembar!J152,Januar!J152,Februar!J152,April!J152,Juni!J152,Juli!J152,Septembar!J152,Oktobar!J152,Oktobar_2!J152),"") ->  | K152: NE
